Workbook

Sheet 1. Information Sheet
M12: Version | N12: 2
E14: Utility Name | F14: HYDRO HAWKESBURY INC.
E16: Service Territory | F16: (if applicable)
E18: Assigned EB Number | F18: EB-2013-0139
E20: Name of Contact and Title | F20: LINDA PARISIEN / ASST MANAGER & CFO
E22: Phone Number | F22: 613-632-6689
E24: Email Address | F24: lindaparisien@hydrohawkesbury.ca
B27: General Notes 1. Please ensure that your macros have been enabled. (Tools -> Macro -> Security) 2. Due to the time lag of deferral/variance account dispositions, this model assumes that all opening balances include previously disposed of amounts. Accordingly, all "Board Approved Dispositions" are deducted from the opening balance. 3. Please provide information in this model since the last time your balances were disposed. 4. For all Board-Approved dispositions, please ensure that the disposition amount has the same sign (e.g: debit balances are to have a positive figure and credit balance are to have a negative figure) as per the related Board decision.
B29: Notes
C31: Pale green cells represent input cells.
C33: Pale blue cells represent drop-down lists. The applicant should select the appropriate item from the drop-down list.
C35: White cells contain fixed values, automatically generated values or formulae.

Sheet 2. 2013 Continuity Schedule
E19: 2006 | O19: 2007 | Y19: 2008 | AI19: 2009 | AS19: 2010 | BC19: 2011 | BM19: 2012 | BW19: 2013 | CJ19: 2014 | CN19: Projected Interest on Dec-31-12 Balances | CQ19: 2.1.7 RRR
C20: Account Descriptions | D20: Account Number | E20: Opening Principal Amounts as of Jan-1-06 | F20: Transactions Debit / (Credit) during 2006 excluding interest and adjustments 3 | G20: Board-Approved Disposition during 2006 | H20: Adjustments during 2006 - other 2 | I20: Closing Principal Balance as of Dec-31-06 | J20: Opening Interest Amounts as of Jan-1-06 | K20: Interest Jan-1 to Dec-31-06 | L20: Board-Approved Disposition during 2006 | M20: Adjustments during 2006 - other 2 | N20: Closing Interest Amounts as of Dec-31-06 | O20: Opening Principal Amounts as of Jan-1-07 | P20: Transactions Debit / (Credit) during 2007 excluding interest and adjustments 3 | Q20: Board-Approved Disposition during 2007 1, 1A | R20: Adjustments during 2007 - other 2 | S20: Closing Principal Balance as of Dec-31-07 | T20: Opening Interest Amounts as of Jan-1-07 | U20: Interest Jan-1 to Dec-31-07 | V20: Board-Approved Disposition during 2007 1, 1A | W20: Adjustments during 2007 - other 2 | X20: Closing Interest Amounts as of Dec-31-07 | Y20: Opening Principal Amounts as of Jan-1-08 | Z20: Transactions Debit / (Credit) during 2008 excluding interest and adjustments 3 | AA20: Board-Approved Disposition during 2008 | AB20: Adjustments during 2008 - other 2 | AC20: Closing Principal Balance as of Dec-31-08 | AD20: Opening Interest Amounts as of Jan-1-08 | AE20: Interest Jan-1 to Dec-31-08 | AF20: Board-Approved Disposition during 2008 | AG20: Adjustments during 2008 - other 2 | AH20: Closing Interest Amounts as of Dec-31-08 | AI20: Opening Principal Amounts as of Jan-1-09 | AJ20: Transactions Debit / (Credit) during 2009 excluding interest and adjustments 3 | AK20: Board-Approved Disposition during 2009 | AL20: Adjustments during 2009 - other 2 | AM20: Closing Principal Balance as of Dec-31-09 | AN20: Opening Interest Amounts as of Jan-1-09 | AO20: Interest Jan-1 to Dec-31-09 | AP20: Board-Approved Disposition during 2009 | AQ20: Adjustments during 2009 - other 2 | AR20: Closing Interest Amounts as of Dec-31-09 | AS20: Opening Principal Amounts as of Jan-1-10 | AT20: Transactions Debit / (Credit) during 2010 excluding interest and adjustments 3 | AU20: Board-Approved Disposition during 2010 | AV20: Adjustments during 2010 - other 2 | AW20: Closing Principal Balance as of Dec-31-10 | AX20: Opening Interest Amounts as of Jan-1-10 | AY20: Interest Jan-1 to Dec-31-10 | AZ20: Board-Approved Disposition during 2010 | BA20: Adjustments during 2010 - other 2 | BB20: Closing Interest Amounts as of Dec-31-10 | BC20: Opening Principal Amounts as of Jan-1-11 | BD20: Transactions Debit / (Credit) during 2011 excluding interest and adjustments 3 | BE20: Board-Approved Disposition during 2011 | BF20: Adjustments during 2011 - other 2 | BG20: Closing Principal Balance as of Dec-31-11 | BH20: Opening Interest Amounts as of Jan-1-11 | BI20: Interest Jan-1 to Dec-31-11 | BJ20: Board-Approved Disposition during 2011 | BK20: Adjustments during 2011 - other 2 | BL20: Closing Interest Amounts as of Dec-31-11 | BM20: Opening Principal Amounts as of Jan-1-12 | BN20: Transactions Debit / (Credit) during 2012 excluding interest and adjustments 3 | BO20: Board-Approved Disposition during 2012 | BP20: Adjustments during 2012 - other 2 | BQ20: Closing Principal Balance as of Dec-31-12 | BR20: Opening Interest Amounts as of Jan-1-12 | BS20: Interest Jan-1 to Dec-31-12 | BT20: Board-Approved Disposition during 2012 | BU20: Adjustments during 2012 - other 2 | BV20: Closing Interest Amounts as of Dec-31-12 | BW20: Opening Principal Amounts as of Jan-1-13 | BX20: Transactions Debit / (Credit) during 2013 excluding interest and adjustments 3 | BY20: Board-Approved Disposition during 2013 | BZ20: Other 2 Adjustments during Q1 2013 | CA20: Other 2 Adjustments during Q2 2013 | CB20: Other 2 Adjustments during Q3 2013 | CC20: Other 2 Adjustments during Q4 2013 | CD20: Closing Principal Balance as of Dec-31-13 | CE20: Opening Interest Amounts as of Jan-1-13 | CF20: Interest Jan-1 to Dec-31-13 | CG20: Board-Approved Disposition during 2013 | CH20: Adjustments during 2013 - other 2 | CI20: Closing Interest Amounts as of Dec-31-13 | CJ20: Principal Disposition during 2014 - instructed by Board | CK20: Interest Disposition during 2014 - instructed by Board | CL20: Closing Principal Balances as of Dec 31-12 Adjusted for Dispositions during 2014 | CM20: Closing Interest Balances as of Dec 31-12 Adjusted for Dispositions during 2014 | CN20: Projected Interest from Jan 1, 2013 to April 30, 2013 on Dec 31, 2012 balances | CO20: Projected Interest from April 1, 2013 to December 31, 2013 on Dec 31, 2012 balances adjusted for disposition during 2013 6 | CP20: Total Claim | CQ20: As of Dec 31-12 | CR20: Variance RRR vs. 2012 Balance (Principal + Interest)
CP22: Claim before Forecasted Transactions
C23: Group 1 Accounts
A24: 1 | C24: LV Variance Account | D24: 1550 | E24: 0 | F24: 53395.46 | I24: =E24+F24-G24+H24 -> 53395.46 | N24: =J24+K24-L24+M24 -> 0 | O24: =I24 -> 53395.46 | P24: 23492.44 | S24: =O24+P24-Q24+R24 -> 76887.9 | T24: =N24 -> 0 | X24: =T24+U24-V24+W24 -> 0 | Y24: =S24 -> 76887.9 | Z24: 59779.99 | AC24: =Y24+Z24-AA24+AB24 -> 136667.89 | AD24: =X24 -> 0 | AE24: 8001.61 | AH24: =AD24+AE24-AF24+AG24 -> 8001.61 | AI24: =AC24 -> 136667.89 | AJ24: 16474.88 | AM24: =AI24+AJ24-AK24+AL24 -> 153142.77 | AN24: =AH24 -> 8001.61 | AO24: 1492.92 | AR24: =AN24+AO24-AP24+AQ24 -> 9494.53 | AS24: =AM24 -> 153142.77 | AT24: 31224.85 | AU24: 136667.89 | AW24: =AS24+AT24-AU24+AV24 -> 47699.73 | AX24: =AR24 -> 9494.53 | AY24: 589.46 | AZ24: 9823.61 | BB24: =AX24+AY24-AZ24+BA24 -> 260.38 | BC24: =AW24 -> 47699.73 | BD24: 38101.57 | BE24: 16474.88 | BG24: =BC24+BD24-BE24+BF24 -> 69326.42 | BH24: =BB24 -> 260.38 | BI24: 881.37 | BJ24: -36 | BL24: =BH24+BI24-BJ24+BK24 -> 1177.75 | BM24: =BG24 -> 69326.42 | BN24: 47719.79 | BO24: 31224.85 | BQ24: =BM24+BN24-BO24+BP24 -> 85821.36 | BR24: =BL24 -> 1177.75 | BS24: 1136.44 | BT24: 986.38 | BV24: =BR24+BS24-BT24+BU24 -> 1327.81 | BW24: =+BQ24 -> 85821.36 | BY24: 38101.57 | CD24: =BW24+BX24-BY24+SUM(BZ24:CC24) -> 47719.79 | CE24: =+BV24 -> 1327.81 | CG24: 1090 | CI24: =CE24+CF24-CG24+CH24 -> 237.81 | CL24: =CD24-CJ24 -> 47719.79 | CM24: =CI24-CK24 -> 237.81 | CN24: 414.76 | CO24: 470.86 | CP24: =SUM(CL24:CO24) -> 48843.22 | CQ24: 87149.17 | CR24: =CQ24-SUM(BQ24,BV24) -> 0
A25: 2 | C25: RSVA - Wholesale Market Service Charge | D25: 1580 | E25: 279819 | F25: -204392.72 | I25: =E25+F25-G25+H25 -> 75426.28 | N25: =J25+K25-L25+M25 -> 0 | O25: =I25 -> 75426.28 | P25: -141298.74 | Q25: 189779.21 | S25: =O25+P25-Q25+R25 -> -255651.67 | T25: =N25 -> 0 | X25: =T25+U25-V25+W25 -> 0 | Y25: =S25 -> -255651.67 | Z25: -63584.47 | AC25: =Y25+Z25-AA25+AB25 -> -319236.14 | AD25: =X25 -> 0 | AE25: 4026.32 | AH25: =AD25+AE25-AF25+AG25 -> 4026.32 | AI25: =AC25 -> -319236.14 | AJ25: -130545.46 | AM25: =AI25+AJ25-AK25+AL25 -> -449781.6 | AN25: =AH25 -> 4026.32 | AO25: -4018.88 | AR25: =AN25+AO25-AP25+AQ25 -> 7.44 | AS25: =AM25 -> -449781.6 | AT25: -204029.06 | AU25: -319236.53 | AW25: =AS25+AT25-AU25+AV25 -> -334574.13 | AX25: =AR25 -> 7.44 | AY25: -2418 | AZ25: -229.68 | BB25: =AX25+AY25-AZ25+BA25 -> -2180.88 | BC25: =AW25 -> -334574.13 | BD25: -171832.71 | BE25: -130545.46 | BG25: =BC25+BD25-BE25+SUM(BF25:BF25) -> -375861.38 | BH25: =BB25 -> -2180.88 | BI25: -6029.78 | BJ25: -2084 | BL25: =BH25+BI25-BJ25+BK25 -> -6126.66 | BM25: =BG25 -> -375861.38 | BN25: -113567.77 | BO25: -204029.06 | BQ25: =BM25+BN25-BO25+SUM(BP25:BP25) -> -285400.09 | BR25: =BL25 -> -6126.66 | BS25: -4900.15 | BT25: -4712.88 | BV25: =BR25+BS25-BT25+BU25 -> -6313.93 | BW25: -285400.09 | BY25: -171832.71 | CD25: =BW25+BX25-BY25+SUM(BZ25:CC25) -> -113567.38 | CE25: -6313.93 | CG25: -5771 | CI25: =CE25+CF25-CG25+CH25 -> -542.93 | CL25: =CD25-CJ25 -> -113567.38 | CM25: =CI25-CK25 -> -542.93 | CN25: -1379.31 | CO25: -1120.59 | CP25: =SUM(CL25:CO25) -> -116610.21 | CQ25: -291714.41 | CR25: -0.39
A26: 3 | C26: RSVA - Retail Transmission Network Charge | D26: 1584 | E26: -64907 | F26: -25130.26 | I26: -90037.26 | N26: 0 | O26: -90037.26 | P26: -65335.75 | Q26: -56380.85 | S26: -98992.16 | T26: 0 | X26: 0 | Y26: -98992.16 | Z26: -117781.5 | AC26: -216773.66 | AD26: 0 | AE26: -14658.83 | AH26: -14658.83 | AI26: -216773.66 | AJ26: -5521 | AM26: -222294.66 | AN26: -14658.83 | AO26: -2494.87 | AR26: -17153.7 | AS26: -222294.66 | AT26: 58508.3 | AU26: -216773.17 | AW26: 52986.81 | AX26: -17153.7 | AY26: 62.83 | AZ26: -17548.83 | BB26: 457.96 | BC26: 52986.81 | BD26: -4465.71 | BE26: -5521.84 | BG26: 54042.94 | BH26: 457.96 | BI26: 960.42 | BJ26: 297 | BL26: 1121.38 | BM26: 54042.94 | BN26: -7548.6 | BO26: 58508.3 | BQ26: -12013.96 | BR26: 1121.38 | BS26: 445.05 | BT26: 1276.96 | BV26: 289.47 | BW26: -12013.96 | BY26: -4465.71 | CD26: -7548.25 | CE26: 289.47 | CG26: 42 | CI26: 247.47 | CL26: -7548.25 | CM26: 247.47 | CN26: -58.06 | CO26: -74.48 | CP26: -7433.32 | CQ26: -11724.24 | CR26: 0.25
A27: 4 | C27: RSVA - Retail Transmission Connection Charge | D27: 1586 | E27: -1062491 | F27: -267102.89 | I27: -1329593.89 | N27: 0 | O27: -1329593.89 | P27: -284716.3 | Q27: -538858.03 | S27: -1075452.16 | T27: 0 | X27: 0 | Y27: -1075452.16 | Z27: -168990.51 | AC27: -1244442.67 | AD27: 0 | AE27: -202316.7 | AH27: -202316.7 | AI27: -1244442.67 | AJ27: -56457.17 | AM27: -1300899.84 | AN27: -202316.7 | AO27: -14319.78 | AR27: -216636.48 | AS27: -1300899.84 | AT27: -32155.55 | AU27: =-1006715.97-237727 -> -1244442.97 | AW27: -88612.42 | AX27: -216636.48 | AY27: -3055.53 | AZ27: -218909.7 | BB27: -782.31 | BC27: -88612.42 | BD27: -33890.8 | BE27: -56457.17 | BG27: -66046.05 | BH27: -782.31 | BI27: -1332.17 | BJ27: 1269 | BL27: -3383.48 | BM27: -66046.05 | BN27: -20930.62 | BO27: -32155.55 | BQ27: -54821.12 | BR27: -3383.48 | BS27: -917.15 | BT27: -2952.31 | BV27: -1348.32 | BW27: -54821.12 | BY27: -33890.8 | CD27: -20930.32 | CE27: -1348.32 | CG27: -1251 | CI27: -97.32 | CL27: -20930.32 | CM27: -97.32 | CN27: -264.95 | CO27: -206.53 | CP27: -21499.12 | CQ27: -56169.74 | CR27: -0.2999999998
A28: 5 | C28: RSVA - Power (excluding Global Adjustment) | D28: 1588 | E28: 187208 | F28: -10717.54 | I28: 176490.46 | N28: 0 | O28: 176490.46 | P28: -209738.95 | Q28: 271445.49 | S28: -304693.98 | T28: 0 | X28: 0 | Y28: -304693.98 | Z28: -361591.77 | AC28: -666285.75 | AD28: 0 | AE28: 25466 | AH28: 25466 | AI28: -666285.75 | AJ28: 178842.56 | AM28: -487443.19 | AN28: 25466 | AO28: -8292.8 | AR28: 17173.2 | AS28: -487443.19 | AT28: 281183.36 | AU28: -666285.61 | AW28: 460025.78 | AX28: 17173.2 | AY28: 3566.37 | AZ28: 16633 | BB28: 4106.57 | BC28: 460025.78 | BD28: 334728.84 | BE28: -343119.4 | BF28: -521962 | BG28: 615912.02 | BH28: 4106.57 | BI28: 8057.14 | BJ28: 11072 | BK28: 16632.78 | BL28: 17724.49 | BM28: 615912.02 | BN28: 112791.51 | BO28: 281183.36 | BQ28: 447520.17 | BR28: 17724.49 | BS28: 9456.53 | BT28: 16024.22 | BV28: 11156.8 | BW28: 447520.17 | BY28: 334728.84 | CD28: 112791.33 | CE28: 11156.8 | CG28: 9622 | CI28: 1534.8 | CL28: 112791.33 | CM28: 1534.8 | CN28: 2162.81 | CO28: 1112.93 | CP28: 117601.87 | CQ28: 458677.02 | CR28: 0.04999999999
A29: 6 | C29: RSVA - Power - Sub-account - Global Adjustment | D29: 1588 | E29: 26725 | F29: 109866.99 | I29: 136591.99 | N29: 0 | O29: 136591.99 | P29: 26949.37 | S29: 163541.36 | T29: 0 | X29: 0 | Y29: 163541.36 | Z29: 68903.69 | AC29: 232445.05 | AD29: 0 | AE29: 17171 | AH29: 17171 | AI29: 232445.05 | AJ29: 441493.59 | AM29: 673938.64 | AN29: 17171 | AO29: 4505.98 | AR29: 21676.98 | AS29: 673938.64 | AT29: 53797.49 | AU29: 232444.73 | AW29: 495291.4 | AX29: 21676.98 | AY29: 3262.48 | AZ29: 20219.88 | BB29: 4719.58 | BC29: 495291.4 | BD29: 520284.04 | BE29: 926602.71 | BF29: 485109.12 | BG29: 574081.85 | BH29: 4719.58 | BI29: 10124.2 | BJ29: 38154 | BK29: 20220.1 | BL29: -3090.12 | BM29: 574081.85 | BN29: 266285.87 | BO29: 53797.49 | BQ29: 786570.23 | BR29: -3090.12 | BS29: 9482.07 | BT29: -10028.97 | BV29: 16420.92 | BW29: 786570.23 | BY29: 520284.04 | CD29: 266286.19 | CE29: 16420.92 | CG29: 17385 | CI29: -964.08 | CL29: 266286.19 | CM29: -964.08 | CN29: 3801.4 | CO29: 2627.48 | CP29: 271750.99 | CQ29: 802991.18 | CR29: 0.03000000003
A30: 7 | C30: Recovery of Regulatory Asset Balances | D30: 1590 | E30: 139329 | F30: -38261.29 | I30: 101067.71 | N30: 0 | O30: 101067.71 | P30: -67395.88 | Q30: -38035.03 | S30: 71706.86 | T30: 0 | X30: 0 | Y30: 71706.86 | Z30: -34576.65 | AC30: 37130.21 | AD30: 0 | AE30: 25872.28 | AH30: 25872.28 | AI30: 37130.21 | AJ30: 0 | AM30: 37130.21 | AN30: 25872.28 | AO30: 419.82 | AR30: 26292.1 | AS30: 37130.21 | AU30: 37130.56 | AW30: -0.35 | AX30: 26292.1 | AY30: 75.81 | AZ30: 25872.28 | BB30: 495.63 | BC30: -0.35 | BG30: -0.35 | BH30: 495.63 | BJ30: 419.82 | BL30: 75.81 | BM30: -0.35 | BQ30: -0.35 | BR30: 75.81 | BT30: 75.81 | BV30: 1.023181539e-12 | BW30: -0.35 | CD30: -0.35 | CE30: 1.023181539e-12 | CI30: 1.023181539e-12 | CL30: -0.35 | CM30: 1.023181539e-12 | CP30: -0.35 | CR30: =CQ30-SUM(BQ30,BV30) -> 0.35
A31: 8 | C31: Disposition and Recovery/Refund of Regulatory Balances (2008)7 | D31: 1595 | I31: 0 | N31: 0 | O31: =I31 -> 0 | S31: 0 | T31: =N31 -> 0 | X31: 0 | Y31: =S31 -> 0 | AC31: 0 | AD31: =X31 -> 0 | AH31: 0 | AI31: =AC31 -> 0 | AM31: 0 | AN31: =AH31 -> 0 | AR31: 0 | AS31: =AM31 -> 0 | AT31: =364560.63+98197.44 -> 462758.07 | AU31: =1969839.02-232444.73 -> 1737394.29 | AW31: -1274636.22 | AX31: =AR31 -> 0 | AY31: =-8919.13+25477.43+8541.99 -> 25100.29 | AZ31: =141638.16-20219.88 -> 121418.28 | BB31: -96317.99 | BC31: =AW31 -> -1274636.22 | BD31: =701686.47+83666.49 -> 785352.96 | BF31: =521962-485109.12 -> 36852.88 | BG31: -452430.38 | BH31: =BB31 -> -96317.99 | BI31: =-10961.67+49037.57+7277.98 -> 45353.88 | BK31: =-16632.78-20220.1 -> -36852.88 | BL31: -87816.99 | BM31: =BG31 -> -452430.38 | BN31: 305002.56 | BQ31: -147427.82 | BR31: =BL31 -> -87816.99 | BS31: 16811.81 | BT31: -24897 | BV31: -46108.18 | BW31: -147427.82 | CD31: -147427.82 | CE31: -46108.18 | CI31: -46108.18 | CL31: -147427.82 | CM31: -46108.18 | CN31: -718.44 | CO31: -1454.69 | CP31: -195709.13 | CQ31: -193536 | CR31: =CQ31-SUM(BQ31,BV31) -> 0
A32: 9 | C32: Disposition and Recovery/Refund of Regulatory Balances (2009)7 | D32: 1595 | I32: 0 | N32: 0 | O32: 0 | S32: 0 | T32: 0 | X32: 0 | Y32: 0 | AC32: 0 | AD32: 0 | AH32: 0 | AI32: 0 | AM32: 0 | AN32: 0 | AR32: 0 | AS32: 0 | AW32: 0 | AX32: 0 | BB32: 0 | BC32: 0 | BD32: 0 | BE32: 0 | BG32: 0 | BH32: 0 | BI32: 0 | BJ32: 0 | BL32: 0 | BM32: =BG32 -> 0 | BN32: 0 | BQ32: 0 | BR32: =BL32 -> 0 | BS32: 0 | BV32: 0 | BW32: 0 | CD32: 0 | CE32: 0 | CI32: 0 | CL32: 0 | CM32: 0 | CP32: 0 | CR32: =CQ32-SUM(BQ32,BV32) -> 0
A33: 9 | C33: Disposition and Recovery/Refund of Regulatory Balances (2010)7 | D33: 1595 | I33: =E33+F33-G33+H33 -> 0 | N33: =J33+K33-L33+M33 -> 0 | O33: =I33 -> 0 | S33: =O33+P33-Q33+R33 -> 0 | T33: =N33 -> 0 | X33: =T33+U33-V33+W33 -> 0 | Y33: =S33 -> 0 | AC33: =Y33+Z33-AA33+AB33 -> 0 | AD33: =X33 -> 0 | AH33: =AD33+AE33-AF33+AG33 -> 0 | AI33: =AC33 -> 0 | AM33: =AI33+AJ33-AK33+AL33 -> 0 | AN33: =AH33 -> 0 | AR33: =AN33+AO33-AP33+AQ33 -> 0 | AS33: =AM33 -> 0 | AW33: =AS33+AT33-AU33+AV33 -> 0 | AX33: =AR33 -> 0 | BB33: =AX33+AY33-AZ33+BA33 -> 0 | BC33: =AW33 -> 0 | BG33: 0 | BH33: =BB33 -> 0 | BL33: =BH33+BI33-BJ33+BK33 -> 0 | BM33: =BG33 -> 0 | BN33: 0 | BO33: 0 | BQ33: 0 | BR33: =BL33 -> 0 | BS33: 0 | BT33: 0 | BV33: =BR33+BS33-BT33+BU33 -> 0 | BW33: 0 | CD33: =BW33+BX33-BY33+SUM(BZ33:CC33) -> 0 | CE33: 0 | CI33: =CE33+CF33-CG33+CH33 -> 0 | CL33: =CD33-CJ33 -> 0 | CM33: =CI33-CK33 -> 0 | CP33: 0 | CR33: =CQ33-SUM(BQ33,BV33) -> 0
C35: Group 1 Sub-Total (including Account 1588 - Global Adjustment) | E35: =SUM(E24:E33) -> -494317 | F35: =SUM(F24:F33) -> -382342.25 | G35: 0 | H35: 0 | I35: -876659.25 | J35: 0 | K35: 0 | L35: 0 | M35: 0 | N35: 0 | O35: -876659.25 | P35: -718043.81 | Q35: -172049.21 | R35: 0 | S35: -1422653.85 | T35: 0 | U35: 0 | V35: 0 | W35: 0 | X35: 0 | Y35: -1422653.85 | Z35: -617841.22 | AA35: 0 | AB35: 0 | AC35: -2040495.07 | AD35: 0 | AE35: -136438.32 | AF35: 0 | AG35: 0 | AH35: -136438.32 | AI35: -2040495.07 | AJ35: 444287.4 | AK35: 0 | AL35: 0 | AM35: -1596207.67 | AN35: -136438.32 | AO35: -22707.61 | AP35: 0 | AQ35: 0 | AR35: -159145.93 | AS35: -1596207.67 | AT35: 651287.46 | AU35: -303100.81 | AV35: 0 | AW35: -641819.4 | AX35: -159145.93 | AY35: 27183.71 | AZ35: -42721.16 | BA35: 0 | BB35: -89241.06 | BC35: -641819.4 | BD35: 1468278.19 | BE35: 407433.72 | BF35: 0 | BG35: 419025.07 | BH35: -89241.06 | BI35: 58015.06 | BJ35: 49091.82 | BK35: 0 | BL35: -80317.82 | BM35: =SUM(BM24:BM33) -> 419025.07 | BN35: 589752.74 | BO35: 188529.39 | BP35: 0 | BQ35: 820248.42 | BR35: -80317.82 | BS35: 31514.6 | BT35: -24227.79 | BU35: 0 | BV35: -24575.43 | BW35: 820248.42 | BX35: 0 | BY35: 682925.23 | BZ35: 0 | CA35: 0 | CB35: =SUM(CB24:CB33) -> 0 | CC35: 0 | CD35: 137323.19 | CE35: -24575.43 | CF35: 0 | CG35: 21117 | CH35: 0 | CI35: -45692.43 | CJ35: 0 | CK35: 0 | CL35: 137323.19 | CM35: -45692.43 | CN35: 3958.21 | CO35: 1354.98 | CP35: 96943.95 | CQ35: 795672.98 | CR35: -0.009999999861
C36: Group 1 Sub-Total (excluding Account 1588 - Global Adjustment) | E36: =E35-E37 -> -521042 | F36: =F35-F37 -> -492209.24 | G36: =G35-G37 -> 0 | H36: 0 | I36: -1013251.24 | J36: 0 | K36: 0 | L36: =L35-L37 -> 0 | M36: =M35-M37 -> 0 | N36: 0 | O36: -1013251.24 | P36: -744993.18 | Q36: =Q35-Q37 -> -172049.21 | R36: 0 | S36: -1586195.21 | T36: 0 | U36: 0 | V36: =V35-V37 -> 0 | W36: =W35-W37 -> 0 | X36: =X35-X37 -> 0 | Y36: -1586195.21 | Z36: -686744.91 | AA36: 0 | AB36: 0 | AC36: -2272940.12 | AD36: 0 | AE36: -153609.32 | AF36: =AF35-AF37 -> 0 | AG36: =AG35-AG37 -> 0 | AH36: =AH35-AH37 -> -153609.32 | AI36: -2272940.12 | AJ36: 2793.81 | AK36: 0 | AL36: 0 | AM36: -2270146.31 | AN36: -153609.32 | AO36: -27213.59 | AP36: =AP35-AP37 -> 0 | AQ36: =AQ35-AQ37 -> 0 | AR36: =AR35-AR37 -> -180822.91 | AS36: -2270146.31 | AT36: 597489.97 | AU36: -535545.54 | AV36: 0 | AW36: -1137110.8 | AX36: -180822.91 | AY36: 23921.23 | AZ36: =AZ35-AZ37 -> -62941.04 | BA36: =BA35-BA37 -> 0 | BB36: =BB35-BB37 -> -93960.64 | BC36: -1137110.8 | BD36: 947994.15 | BE36: -519168.99 | BF36: -485109.12 | BG36: -155056.78 | BH36: -93960.64 | BI36: 47890.86 | BJ36: =BJ35-BJ37 -> 10937.82 | BK36: -20220.1 | BL36: -77227.7 | BM36: -155056.78 | BN36: 323466.87 | BO36: 134731.9 | BP36: 0 | BQ36: 33678.19 | BR36: -77227.7 | BS36: 22032.53 | BT36: =BT35-BT37 -> -14198.82 | BU36: 0 | BV36: -40996.35 | BW36: 33678.19 | BX36: 0 | BY36: 162641.19 | BZ36: 0 | CA36: 0 | CB36: 0 | CC36: 0 | CD36: -128963 | CE36: -40996.35 | CF36: 0 | CG36: 3732 | CH36: 0 | CI36: -44728.35 | CJ36: 0 | CK36: 0 | CL36: -128963 | CM36: -44728.35 | CN36: 156.81 | CO36: -1272.5 | CP36: -174807.04 | CQ36: =CQ35-CQ37 -> -7318.2 | CR36: =CQ36-SUM(BQ36,BV36) -> -0.03999999991
C37: =C29 -> RSVA - Power - Sub-account - Global Adjustment | D37: 1588 | E37: =E29 -> 26725 | F37: =F29 -> 109866.99 | G37: =G29 -> 0 | H37: 0 | I37: 136591.99 | J37: 0 | K37: 0 | L37: =L29 -> 0 | M37: =M29 -> 0 | N37: 0 | O37: 136591.99 | P37: 26949.37 | Q37: =Q29 -> 0 | R37: 0 | S37: 163541.36 | T37: 0 | U37: 0 | V37: 0 | W37: 0 | X37: 0 | Y37: 163541.36 | Z37: 68903.69 | AA37: =AA29 -> 0 | AB37: 0 | AC37: 232445.05 | AD37: 0 | AE37: 17171 | AF37: 0 | AG37: 0 | AH37: 17171 | AI37: 232445.05 | AJ37: 441493.59 | AK37: 0 | AL37: 0 | AM37: 673938.64 | AN37: 17171 | AO37: 4505.98 | AP37: =AP29 -> 0 | AQ37: =AQ29 -> 0 | AR37: =AR29 -> 21676.98 | AS37: 673938.64 | AT37: 53797.49 | AU37: 232444.73 | AV37: 0 | AW37: 495291.4 | AX37: 21676.98 | AY37: 3262.48 | AZ37: 20219.88 | BA37: 0 | BB37: 4719.58 | BC37: =BC29 -> 495291.4 | BD37: 520284.04 | BE37: 926602.71 | BF37: 485109.12 | BG37: 574081.85 | BH37: 4719.58 | BI37: 10124.2 | BJ37: 38154 | BK37: 20220.1 | BL37: -3090.12 | BM37: =BM29 -> 574081.85 | BN37: 266285.87 | BO37: 53797.49 | BP37: 0 | BQ37: 786570.23 | BR37: -3090.12 | BS37: 9482.07 | BT37: -10028.97 | BU37: 0 | BV37: 16420.92 | BW37: =BW29 -> 786570.23 | BX37: 0 | BY37: 520284.04 | BZ37: 0 | CA37: 0 | CB37: 0 | CC37: 0 | CD37: 266286.19 | CE37: 16420.92 | CF37: 0 | CG37: 17385 | CH37: 0 | CI37: -964.08 | CJ37: =CJ29 -> 0 | CK37: 0 | CL37: 266286.19 | CM37: -964.08 | CN37: 3801.4 | CO37: 2627.48 | CP37: 271750.99 | CQ37: =CQ29 -> 802991.18 | CR37: =CQ37-SUM(BQ37,BV37) -> 0.03000000003
C39: Group 2 Accounts
A40: 10 | C40: Other Regulatory Assets - Sub-Account - OEB Cost Assessments | D40: 1508 | E40: 10851 | F40: 1320.23 | I40: =E40+F40-G40+H40 -> 12171.23 | N40: =J40+K40-L40+M40 -> 0 | O40: =I40 -> 12171.23 | P40: -5428.5 | S40: =O40+P40-Q40+R40 -> 6742.73 | T40: =N40 -> 0 | X40: =T40+U40-V40+W40 -> 0 | Y40: =S40 -> 6742.73 | Z40: 0 | AC40: =Y40+Z40-AA40+AB40 -> 6742.73 | AD40: =X40 -> 0 | AE40: 1587.45 | AH40: =AD40+AE40-AF40+AG40 -> 1587.45 | AI40: =AC40 -> 6742.73 | AJ40: 0 | AM40: =AI40+AJ40-AK40+AL40 -> 6742.73 | AN40: =AH40 -> 1587.45 | AO40: 76.24 | AR40: =AN40+AO40-AP40+AQ40 -> 1663.69 | AS40: =AM40 -> 6742.73 | AU40: 6742.73 | AW40: =AS40+AT40-AU40+AV40 -> 0 | AX40: =AR40 -> 1663.69 | AY40: 13.76 | AZ40: 1677 | BB40: =AX40+AY40-AZ40+BA40 -> 0.45 | BC40: =AW40 -> 0 | BG40: =BC40+BD40-BE40+SUM(BF40:BF40) -> 0 | BH40: =BB40 -> 0.45 | BL40: =BH40+BI40-BJ40+BK40 -> 0.45 | BM40: =BG40 -> 0 | BQ40: =BM40+BN40-BO40+SUM(BP40:BP40) -> 0 | BR40: =BL40 -> 0.45 | BV40: =BR40+BS40-BT40+BU40 -> 0.45 | BW40: =+BQ40 -> 0 | CD40: =BW40+BX40-BY40+SUM(BZ40:CC40) -> 0 | CE40: =+BV40 -> 0.45 | CI40: =CE40+CF40-CG40+CH40 -> 0.45 | CL40: =CD40-CJ40 -> 0 | CM40: =CI40-CK40 -> 0.45 | CP40: 0.45 | CR40: =CQ40-SUM(BQ40,BV40) -> -0.45 | CT40: Other Regulatory Assets - Sub-Account - OEB Cost Assessments
A41: 11 | C41: Other Regulatory Assets - Sub-Account - OMERS Pension Contributions | D41: 1508 | E41: 24235.95 | F41: 9132.7 | I41: 33368.65 | N41: 0 | O41: 33368.65 | P41: 0 | S41: 33368.65 | T41: 0 | X41: 0 | Y41: 33368.65 | Z41: 0 | AC41: 33368.65 | AD41: 0 | AE41: 4390.48 | AH41: 4390.48 | AI41: 33368.65 | AJ41: 0 | AM41: 33368.65 | AN41: 4390.48 | AO41: 377.29 | AR41: 4767.77 | AS41: 33368.65 | AU41: 33368.65 | AW41: 0 | AX41: 4767.77 | AY41: 68.13 | AZ41: 4836 | BB41: -0.1 | BC41: =AW41 -> 0 | BG41: 0 | BH41: -0.1 | BL41: -0.1 | BM41: =BG41 -> 0 | BQ41: 0 | BR41: -0.1 | BV41: -0.1 | BW41: 0 | CD41: 0 | CE41: -0.1 | CI41: -0.1 | CL41: =CD41-CJ41 -> 0 | CM41: =CI41-CK41 -> -0.1 | CP41: -0.1 | CR41: 0.1 | CT41: Other Regulatory Assets - Sub-Account - Pension Contributions
C42: Other Regulatory Assets - Sub-Account - Incremental Capital Charges - RATE RIDER | D42: 1508 | I42: 0 | N42: 0 | O42: 0 | X42: 0 | Y42: 0 | AC42: 0 | AH42: 0 | AI42: 0 | AM42: 0 | AR42: 0 | AS42: 0 | AW42: 0 | BB42: 0 | BC42: 0 | BG42: 0 | BL42: 0 | BM42: 0 | BN42: -119260.14 | BQ42: -119260.14 | BR42: 0 | BS42: -531.48 | BV42: -531.48 | BW42: -119260.14 | CD42: -119260.14 | CE42: -531.48 | CI42: -531.48 | CL42: -119260.14 | CM42: -531.48 | CN42: -576.37 | CO42: -1182.44 | CP42: -121550.43 | CQ42: =-119260.14-531.48 -> -119791.62 | CR42: 0 | CT42: Other Regulatory Assets - Sub-Account - Deferred IFRS Transition Costs
C43: Other Regulatory Assets - Sub-Account - Incremental Capital Expenditures - SUB 115KV EXPENSES | D43: 1508 | I43: 0 | N43: 0 | O43: 0 | X43: 0 | Y43: 0 | AC43: 0 | AH43: 0 | AI43: 0 | AM43: 0 | AR43: 0 | AS43: 0 | AW43: 0 | BB43: 0 | BC43: 0 | BG43: 0 | BL43: 0 | BM43: 0 | BN43: 84497.41 | BQ43: 84497.41 | BR43: 0 | BS43: 735.49 | BV43: 735.49 | BW43: 84497.41 | CD43: 84497.41 | CE43: 735.49 | CI43: 735.49 | CL43: 84497.41 | CM43: 735.49 | CN43: 408.37 | CO43: 837.78 | CP43: 86479.05 | CQ43: =84497.41+735.49 -> 85232.9 | CR43: 0 | CT43: Other Regulatory Assets - Sub-Account - Incremental Capital Charges
C44: Other Regulatory Assets - Sub-Account - Incremental Capital Expenditures - SUB 44KV EXPENSES | D44: 1508 | I44: 0 | N44: 0 | O44: 0 | X44: 0 | Y44: 0 | AC44: 0 | AH44: 0 | AI44: 0 | AM44: 0 | AR44: 0 | AS44: 0 | AW44: 0 | BB44: 0 | BC44: 0 | BG44: 0 | BL44: 0 | BM44: 0 | BN44: 785788.64 | BQ44: 785788.64 | BR44: 0 | BS44: 7145.54 | BV44: 7145.54 | BW44: 785788.64 | CD44: 785788.64 | CE44: 7145.54 | CI44: 7145.54 | CL44: 785788.64 | CM44: 7145.54 | CN44: 3797.62 | CO44: 7790.94 | CP44: 804522.74 | CQ44: =785788.64+7145.54 -> 792934.18 | CR44: 0 | CT44: Other Regulatory Assets - Sub-Account - Financial Assistance Payment and Recovery Variance - Ontario Clean Energy Benefit Act
A45: 12 | C45: Other Regulatory Assets - Sub-Account - Deferred IFRS Transition Costs | D45: 1508 | I45: 0 | N45: 0 | O45: 0 | S45: 0 | T45: 0 | X45: 0 | Y45: 0 | AC45: 0 | AD45: 0 | AH45: 0 | AI45: 0 | AM45: 0 | AN45: 0 | AR45: 0 | AS45: 0 | AW45: 0 | AX45: 0 | BB45: 0 | BC45: 0 | BD45: 1038.17 | BG45: 1038.17 | BH45: 0 | BI45: 5.45 | BL45: 5.45 | BM45: 1038.17 | BN45: 4066 | BQ45: 5104.17 | BR45: 5.45 | BS45: =3.8+11.26+18.91+18.91 -> 52.88 | BV45: 58.33 | BW45: 5104.17 | CD45: 5104.17 | CE45: 58.33 | CI45: 58.33 | CL45: 5104.17 | CM45: 58.33 | CN45: 24.67 | CO45: 50.61 | CP45: 5237.78 | CQ45: 5163 | CR45: 0.5 | CT45: Other Regulatory Assets - Sub-Account - Financial Assistance Payment and Recovery Carrying Charges
A46: 13 | C46: Other Regulatory Assets - Sub-Account - Incremental Capital Charges | D46: 1508 | AS46: 0 | AT46: 3194.71 | AW46: =AS46+AT46-AU46+AV46 -> 3194.71 | AX46: =AR46 -> 0 | AY46: 23.12 | BB46: =AX46+AY46-AZ46+BA46 -> 23.12 | BC46: =AW46 -> 3194.71 | BG46: 3194.71 | BH46: 23.12 | BI46: 46.97 | BL46: =BH46+BI46-BJ46+BK46 -> 70.09 | BM46: =BG46 -> 3194.71 | BQ46: 3194.71 | BR46: 70.09 | BS46: =11.71+11.71+11.84+11.84 -> 47.1 | BV46: =BR46+BS46-BT46+BU46 -> 117.19 | BW46: 3194.71 | CD46: 3194.71 | CE46: 117.19 | CI46: 117.19 | CL46: 3194.71 | CM46: 117.19 | CN46: 15.44 | CO46: 31.67 | CP46: 3359.01 | CQ46: 3312 | CR46: 0.1 | CT46: Other Regulatory Assets - Sub-Account - Other
A47: 14 | C47: Other Regulatory Assets - Sub-Account - Financial Assistance Payment and Recovery Variance - Ontario Clean Energy Benefit Act8 | D47: 1508 | AW47: =AS47+AT47-AU47+AV47 -> 0 | AX47: =AR47 -> 0 | BB47: =AX47+AY47-AZ47+BA47 -> 0 | BC47: =AW47 -> 0 | BG47: 0 | BH47: 0 | BL47: =BH47+BI47-BJ47+BK47 -> 0 | BM47: =BG47 -> 0 | BQ47: 0 | BR47: 0 | BV47: =BR47+BS47-BT47+BU47 -> 0 | BW47: 0 | CD47: =BW47+BX47-BY47+SUM(BZ47:CC47) -> 0 | CE47: 0 | CI47: 0 | CL47: =CD47-CJ47 -> 0 | CM47: =CI47-CK47 -> 0 | CP47: 0 | CR47: 0
A48: 15 | C48: Other Regulatory Assets - Sub-Account - Financial Assistance Payment and Recovery Carrying Charges | D48: 1508 | AW48: =AS48+AT48-AU48+AV48 -> 0 | AX48: =AR48 -> 0 | BB48: =AX48+AY48-AZ48+BA48 -> 0 | BC48: =AW48 -> 0 | BG48: 0 | BH48: 0 | BL48: =BH48+BI48-BJ48+BK48 -> 0 | BM48: =BG48 -> 0 | BQ48: 0 | BR48: 0 | BV48: =BR48+BS48-BT48+BU48 -> 0 | BW48: 0 | CD48: =BW48+BX48-BY48+SUM(BZ48:CC48) -> 0 | CE48: 0 | CI48: 0 | CL48: =CD48-CJ48 -> 0 | CM48: =CI48-CK48 -> 0 | CP48: 0 | CR48: 0
A49: 16 | C49: Other Regulatory Assets - Sub-Account - Hydro One Incremental Capital Charges (2005/06) | D49: 1508 | E49: 11009 | I49: 11009 | N49: 0 | O49: 11009 | Q49: 11009 | S49: 0 | T49: 0 | X49: 0 | Y49: 0 | AC49: 0 | AD49: 0 | AE49: 76.17 | AH49: 76.17 | AI49: 0 | AM49: 0 | AN49: 76.17 | AO49: 0 | AR49: 76.17 | AS49: 0 | AW49: 0 | AX49: 76.17 | AZ49: 76 | BB49: 0.17 | BC49: 0 | BG49: 0 | BH49: 0.17 | BL49: 0.17 | BM49: =BG49 -> 0 | BQ49: 0 | BR49: 0.17 | BV49: =BR49+BS49-BT49+BU49 -> 0.17 | BW49: 0 | CD49: 0 | CE49: 0.17 | CI49: =CE49+CF49-CG49+CH49 -> 0.17 | CL49: 0 | CM49: 0.17 | CP49: 0.17 | CR49: -0.17
A50: 17 | C50: Retail Cost Variance Account - Retail | D50: 1518 | E50: 4248 | F50: 146.14 | I50: 4394.14 | N50: 0 | O50: 4394.14 | P50: -843.77 | Q50: 3336.6 | S50: 213.77 | T50: 0 | X50: 0 | Y50: 213.77 | Z50: 1820.91 | AC50: 2034.68 | AD50: 0 | AE50: 130.77 | AH50: 130.77 | AI50: 2034.68 | AJ50: -501.54 | AM50: 1533.14 | AN50: 130.77 | AO50: 22.35 | AR50: 153.12 | AS50: 1533.14 | AT50: -179.09 | AU50: 2034.68 | AW50: -680.63 | AX50: 153.12 | AY50: -0.54 | AZ50: 157.77 | BB50: -5.19 | BC50: -680.63 | BD50: 577.92 | BG50: -102.71 | BH50: -5.19 | BI50: -6.72 | BL50: -11.91 | BM50: -102.71 | BN50: 1933.72 | BQ50: 1831.01 | BR50: -11.91 | BS50: 11.09 | BV50: -0.82 | BW50: 1831.01 | CD50: 1831.01 | CE50: -0.82 | CI50: -0.82 | CL50: 1831.01 | CM50: -0.82 | CN50: 8.85 | CO50: 18.07 | CP50: 1857.11 | CQ50: 1830.19 | CR50: 0
A51: 18 | C51: Misc. Deferred Debits | D51: 1525 | E51: 273603 | F51: 40.5 | I51: 273643.5 | N51: 0 | O51: 273643.5 | Q51: 32489 | S51: 241154.5 | T51: 0 | X51: 0 | Y51: 241154.5 | Z51: 0 | AC51: 241154.5 | AD51: 0 | AE51: 28492.57 | AH51: 28492.57 | AI51: 241154.5 | AJ51: 0 | AM51: 241154.5 | AN51: 28492.57 | AO51: 2726.7 | AR51: 31219.27 | AS51: 241154.5 | AU51: =3427.92+237727 -> 241154.92 | AW51: -0.42 | AX51: 31219.27 | AY51: 492.39 | AZ51: 31707.57 | BB51: 4.09 | BC51: -0.42 | BG51: -0.42 | BH51: 4.09 | BL51: 4.09 | BM51: -0.42 | BQ51: -0.42 | BR51: 4.09 | BS51: -4.09 | BV51: 1.456612608e-13 | BW51: -0.42 | CD51: -0.42 | CE51: 1.456612608e-13 | CI51: 1.456612608e-13 | CL51: -0.42 | CM51: 1.456612608e-13 | CP51: -0.42 | CR51: 0.42
A52: 19 | C52: Renewable Generation Connection Capital Deferral Account | D52: 1531 | I52: 0 | N52: 0 | S52: 0 | T52: 0 | X52: 0 | AC52: 0 | AH52: 0 | AM52: 0 | AR52: 0 | AW52: 0 | AX52: 0 | BB52: 0 | BC52: 0 | BG52: 0 | BH52: 0 | BL52: 0 | BM52: 0 | BQ52: 0 | BR52: 0 | BV52: 0 | BW52: 0 | CD52: 0 | CE52: 0 | CI52: 0 | CL52: =CD52-CJ52 -> 0 | CM52: =CI52-CK52 -> 0 | CP52: 0 | CR52: 0
A53: 20 | C53: Renewable Generation Connection OM&A Deferral Account | D53: 1532 | I53: 0 | N53: 0 | S53: 0 | T53: 0 | X53: 0 | AC53: 0 | AH53: 0 | AM53: 0 | AR53: 0 | AS53: 0 | AT53: -10000 | AW53: -10000 | AX53: 0 | BB53: 0 | BC53: -10000 | BD53: 10000 | BG53: 0 | BH53: 0 | BL53: 0 | BM53: 0 | BQ53: 0 | BR53: 0 | BV53: 0 | BW53: 0 | CD53: 0 | CE53: 0 | CI53: 0 | CL53: 0 | CM53: 0 | CP53: 0 | CR53: 0
A54: 21 | C54: Renewable Generation Connection Funding Adder Deferral Account | D54: 1533 | I54: 0 | N54: 0 | S54: 0 | T54: 0 | X54: 0 | AC54: 0 | AH54: 0 | AM54: 0 | AR54: 0 | AW54: 0 | AX54: 0 | BB54: 0 | BC54: 0 | BG54: 0 | BH54: 0 | BL54: 0 | BM54: 0 | BQ54: 0 | BR54: 0 | BV54: 0 | BW54: 0 | CD54: 0 | CE54: 0 | CI54: 0 | CL54: 0 | CM54: 0 | CP54: 0 | CR54: 0
A55: 22 | C55: Smart Grid Capital Deferral Account | D55: 1534 | I55: 0 | N55: 0 | S55: 0 | T55: 0 | X55: 0 | AC55: 0 | AH55: 0 | AM55: 0 | AR55: 0 | AW55: 0 | AX55: 0 | BB55: 0 | BC55: 0 | BG55: 0 | BH55: 0 | BL55: 0 | BM55: 0 | BQ55: 0 | BR55: 0 | BV55: 0 | BW55: 0 | CD55: 0 | CE55: 0 | CI55: 0 | CL55: 0 | CM55: 0 | CP55: 0 | CR55: 0
A56: 23 | C56: Smart Grid OM&A Deferral Account | D56: 1535 | I56: 0 | N56: 0 | S56: 0 | T56: 0 | X56: 0 | AC56: 0 | AH56: 0 | AM56: 0 | AR56: 0 | AS56: 0 | AT56: 1840 | AW56: 1840 | AX56: 0 | AY56: -1.66 | BB56: -1.66 | BC56: 1840 | BG56: 1840 | BH56: -1.66 | BI56: 8.93 | BL56: 7.27 | BM56: 1840 | BQ56: 1840 | BR56: 7.27 | BS56: 27.12 | BV56: 34.39 | BW56: 1840 | CD56: 1840 | CE56: 34.39 | CI56: 34.39 | CL56: 1840 | CM56: 34.39 | CN56: 8.89 | CO56: 18.16 | CP56: 1901.44 | CQ56: 1874.39 | CR56: 0
A57: 24 | C57: Smart Grid Funding Adder Deferral Account | D57: 1536 | I57: 0 | N57: 0 | S57: 0 | T57: 0 | X57: 0 | AC57: 0 | AH57: 0 | AM57: 0 | AR57: 0 | AW57: 0 | AX57: 0 | BB57: 0 | BC57: 0 | BG57: 0 | BH57: 0 | BL57: 0 | BM57: 0 | BQ57: 0 | BR57: 0 | BV57: 0 | BW57: 0 | CD57: 0 | CE57: 0 | CI57: 0 | CL57: 0 | CM57: 0 | CP57: 0 | CR57: 0
A58: 25 | C58: Retail Cost Variance Account - STR | D58: 1548 | E58: 6220.6 | F58: 2815.56 | I58: 9036.16 | N58: 0 | O58: =I58 -> 9036.16 | P58: 2519.8 | Q58: 4344.95 | S58: 7211.01 | T58: 0 | X58: 0 | Y58: =S58 -> 7211.01 | Z58: 2545.14 | AC58: 9756.15 | AD58: =X58 -> 0 | AE58: 743.89 | AH58: 743.89 | AI58: =AC58 -> 9756.15 | AJ58: 2355.72 | AM58: 12111.87 | AN58: =AH58 -> 743.89 | AO58: 115.79 | AR58: 859.68 | AS58: =AM58 -> 12111.87 | AT58: 1975 | AU58: 9756.15 | AW58: 4330.72 | AX58: 859.68 | AY58: 48.49 | AZ58: 873.89 | BB58: 34.28 | BC58: 4330.72 | BD58: 2379.75 | BG58: 6710.47 | BH58: 34.28 | BI58: 81.02 | BL58: 115.3 | BM58: 6710.47 | BN58: 2513.1 | BQ58: 9223.57 | BR58: 115.3 | BS58: 115.94 | BV58: 231.24 | BW58: 9223.57 | CD58: 9223.57 | CE58: 231.24 | CI58: 231.24 | CL58: =CD58-CJ58 -> 9223.57 | CM58: =CI58-CK58 -> 231.24 | CN58: 44.58 | CO58: 91.01 | CP58: 9590.4 | CQ58: 9454.81 | CR58: 0
A59: 26 | C59: Board-Approved CDM Variance Account | D59: 1567 | BB59: 0 | BG59: 0 | BH59: 0 | BL59: =BH59+BI59-BJ59+BK59 -> 0 | BQ59: 0 | BR59: 0 | BV59: =BR59+BS59-BT59+BU59 -> 0 | BW59: 0 | CD59: =BW59+BX59-BY59+SUM(BZ59:CC59) -> 0 | CE59: 0 | CI59: =CE59+CF59-CG59+CH59 -> 0 | CL59: 0 | CM59: 0 | CP59: 0 | CR59: 0
A60: 27 | C60: Extra-Ordinary Event Costs | D60: 1572 | I60: 0 | N60: 0 | O60: 0 | S60: 0 | T60: 0 | X60: 0 | Y60: =S60 -> 0 | AC60: 0 | AD60: =X60 -> 0 | AH60: 0 | AI60: =AC60 -> 0 | AM60: 0 | AN60: =AH60 -> 0 | AR60: 0 | AS60: =AM60 -> 0 | AW60: 0 | AX60: =AR60 -> 0 | BB60: 0 | BC60: =AW60 -> 0 | BG60: 0 | BH60: 0 | BL60: 0 | BM60: =BG60 -> 0 | BQ60: 0 | BR60: 0 | BV60: =BR60+BS60-BT60+BU60 -> 0 | BW60: 0 | CD60: 0 | CE60: 0 | CI60: =CE60+CF60-CG60+CH60 -> 0 | CL60: 0 | CM60: 0 | CP60: 0 | CR60: 0
A61: 28 | C61: Deferred Rate Impact Amounts | D61: 1574 | I61: 0 | N61: 0 | O61: 0 | S61: 0 | T61: 0 | X61: 0 | Y61: =S61 -> 0 | AC61: 0 | AD61: =X61 -> 0 | AH61: 0 | AI61: =AC61 -> 0 | AM61: 0 | AN61: =AH61 -> 0 | AR61: 0 | AS61: =AM61 -> 0 | AW61: 0 | AX61: =AR61 -> 0 | BB61: 0 | BC61: =AW61 -> 0 | BG61: 0 | BH61: 0 | BL61: 0 | BM61: =BG61 -> 0 | BQ61: 0 | BR61: 0 | BV61: 0 | BW61: 0 | CD61: 0 | CE61: 0 | CI61: =CE61+CF61-CG61+CH61 -> 0 | CL61: 0 | CM61: 0 | CP61: 0 | CR61: 0
A62: 29 | C62: RSVA - One-time | D62: 1582 | E62: 24850.95 | F62: 0 | I62: 24850.95 | N62: 0 | O62: 24850.95 | Q62: 14807.27 | S62: 10043.68 | T62: 0 | X62: 0 | Y62: =S62 -> 10043.68 | Z62: 0 | AC62: 10043.68 | AD62: =X62 -> 0 | AE62: 3258.83 | AH62: 3258.83 | AI62: =AC62 -> 10043.68 | AJ62: 0 | AM62: 10043.68 | AN62: =AH62 -> 3258.83 | AO62: 113.55 | AR62: 3372.38 | AS62: =AM62 -> 10043.68 | AU62: 10043.68 | AW62: 0 | AX62: =AR62 -> 3372.38 | AY62: 20.45 | AZ62: 3392.83 | BB62: 0 | BC62: =AW62 -> 0 | BG62: 0 | BH62: 0 | BL62: 0 | BM62: =BG62 -> 0 | BQ62: 0 | BR62: 0 | BV62: 0 | BW62: 0 | CD62: 0 | CE62: 0 | CI62: =CE62+CF62-CG62+CH62 -> 0 | CL62: 0 | CM62: 0 | CP62: 0 | CR62: 0
A63: 30 | C63: Other Deferred Credits | D63: 2425 | I63: 0 | N63: 0 | O63: 0 | S63: 0 | T63: 0 | X63: 0 | Y63: =S63 -> 0 | AC63: 0 | AD63: =X63 -> 0 | AH63: 0 | AI63: =AC63 -> 0 | AM63: 0 | AN63: =AH63 -> 0 | AR63: 0 | AS63: =AM63 -> 0 | AW63: 0 | AX63: =AR63 -> 0 | BB63: 0 | BC63: =AW63 -> 0 | BG63: 0 | BH63: 0 | BL63: 0 | BM63: =BG63 -> 0 | BQ63: 0 | BR63: 0 | BV63: 0 | BW63: 0 | CD63: 0 | CE63: 0 | CI63: =CE63+CF63-CG63+CH63 -> 0 | CL63: 0 | CM63: 0 | CP63: 0 | CR63: 0
C65: Group 2 Sub-Total | E65: =SUM(E40:E63) -> 355018.5 | F65: 13455.13 | G65: 0 | H65: 0 | I65: 368473.63 | J65: 0 | K65: 0 | L65: =SUM(L40:L63) -> 0 | M65: =SUM(M40:M63) -> 0 | N65: =SUM(N40:N63) -> 0 | O65: =SUM(O40:O63) -> 368473.63 | P65: -3752.47 | Q65: 65986.82 | R65: 0 | S65: 298734.34 | T65: 0 | U65: 0 | V65: 0 | W65: 0 | X65: 0 | Y65: =SUM(Y40:Y63) -> 298734.34 | Z65: 4366.05 | AA65: 0 | AB65: 0 | AC65: 303100.39 | AD65: 0 | AE65: 38680.16 | AF65: 0 | AG65: 0 | AH65: 38680.16 | AI65: 303100.39 | AJ65: 1854.18 | AK65: 0 | AL65: 0 | AM65: 304954.57 | AN65: 38680.16 | AO65: 3431.92 | AP65: =SUM(AP40:AP63) -> 0 | AQ65: =SUM(AQ40:AQ63) -> 0 | AR65: 42112.08 | AS65: 304954.57 | AT65: -3169.38 | AU65: 303100.81 | AV65: 0 | AW65: -1315.62 | AX65: 42112.08 | AY65: 664.14 | AZ65: 42721.06 | BA65: 0 | BB65: 55.16 | BC65: =SUM(BC40:BC63) -> -1315.62 | BD65: 13995.84 | BE65: 0 | BF65: 0 | BG65: 12680.22 | BH65: 55.16 | BI65: 135.65 | BJ65: 0 | BK65: 0 | BL65: 190.81 | BM65: =SUM(BM40:BM63) -> 12680.22 | BN65: 759538.73 | BO65: 0 | BP65: 0 | BQ65: 772218.95 | BR65: 190.81 | BS65: 7599.59 | BT65: 0 | BU65: 0 | BV65: 7790.4 | BW65: =SUM(BW40:BW63) -> 772218.95 | BX65: 0 | BY65: 0 | BZ65: 0 | CA65: 0 | CB65: 0 | CC65: 0 | CD65: 772218.95 | CE65: 7790.4 | CF65: 0 | CG65: 0 | CH65: 0 | CI65: 7790.4 | CJ65: =SUM(CJ40:CJ63) -> 0 | CK65: 0 | CL65: 772218.95 | CM65: 7790.4 | CN65: 3732.05 | CO65: 7655.8 | CP65: 791397.2 | CQ65: 780009.85 | CR65: =CQ65-SUM(BQ65,BV65) -> 0.5000000001
A67: 31 | C67: Deferred Payments in Lieu of Taxes | D67: 1562 | E67: -235803 | F67: 142729.34 | I67: =E67+F67-G67+H67 -> -93073.66 | J67: 9901.83 | K67: -9766.61 | N67: =J67+K67-L67+M67 -> 135.22 | O67: =I67 -> -93073.66 | P67: 39934.93 | S67: =O67+P67-Q67+R67 -> -53138.73 | T67: =N67 -> 135.22 | U67: -3714.65 | X67: =T67+U67-V67+W67 -> -3579.43 | Y67: =S67 -> -53138.73 | AC67: =Y67+Z67-AA67+AB67 -> -53138.73 | AD67: =X67 -> -3579.43 | AE67: -2114.94 | AH67: =AD67+AE67-AF67+AG67 -> -5694.37 | AI67: =AC67 -> -53138.73 | AM67: =AI67+AJ67-AK67+AL67 -> -53138.73 | AN67: =AH67 -> -5694.37 | AO67: -600.84 | AR67: =AN67+AO67-AP67+AQ67 -> -6295.21 | AS67: =AM67 -> -53138.73 | AW67: =AS67+AT67-AU67+AV67 -> -53138.73 | AX67: =AR67 -> -6295.21 | AY67: -423.81 | BB67: =AX67+AY67-AZ67+BA67 -> -6719.02 | BC67: =AW67 -> -53138.73 | BD67: 48619.73 | BG67: =BC67+BD67-BE67+SUM(BF67:BF67) -> -4519 | BH67: =BB67 -> -6719.02 | BI67: 4939.02 | BL67: =BH67+BI67-BJ67+BK67 -> -1780 | BM67: =BG67 -> -4519 | BO67: -4519 | BQ67: =BM67+BN67-BO67+SUM(BP67:BP67) -> 0 | BR67: =BL67 -> -1780 | BT67: -1780 | BV67: =BR67+BS67-BT67+BU67 -> -9.094947018e-13 | BW67: =+BQ67 -> 0 | CD67: =BW67+BX67-BY67+SUM(BZ67:CC67) -> 0 | CE67: =+BV67 -> -9.094947018e-13 | CI67: =CE67+CF67-CG67+CH67 -> -9.094947018e-13 | CL67: =CD67-CJ67 -> 0 | CM67: =CI67-CK67 -> -9.094947018e-13 | CP67: -9.094947018e-13 | CR67: =CQ67-SUM(BQ67,BV67) -> 9.094947018e-13
A68: 32 | C68: PILs and Tax Variance for 2006 and Subsequent Years (excludes sub-account and contra account below) | D68: 1592 | I68: =E68+F68-G68+H68 -> 0 | N68: =J68+K68-L68+M68 -> 0 | O68: =I68 -> 0 | S68: =O68+P68-Q68+R68 -> 0 | T68: =N68 -> 0 | X68: =T68+U68-V68+W68 -> 0 | Y68: =S68 -> 0 | AC68: =Y68+Z68-AA68+AB68 -> 0 | AD68: =X68 -> 0 | AH68: =AD68+AE68-AF68+AG68 -> 0 | AI68: =AC68 -> 0 | AM68: =AI68+AJ68-AK68+AL68 -> 0 | AN68: =AH68 -> 0 | AR68: =AN68+AO68-AP68+AQ68 -> 0 | AS68: =AM68 -> 0 | AW68: =AS68+AT68-AU68+AV68 -> 0 | AX68: =AR68 -> 0 | BB68: =AX68+AY68-AZ68+BA68 -> 0 | BC68: =AW68 -> 0 | BG68: =BC68+BD68-BE68+SUM(BF68:BF68) -> 0 | BH68: =BB68 -> 0 | BL68: =BH68+BI68-BJ68+BK68 -> 0 | BM68: =BG68 -> 0 | BQ68: =BM68+BN68-BO68+SUM(BP68:BP68) -> 0 | BR68: =BL68 -> 0 | BV68: =BR68+BS68-BT68+BU68 -> 0 | BW68: =+BQ68 -> 0 | CD68: =BW68+BX68-BY68+SUM(BZ68:CC68) -> 0 | CE68: =+BV68 -> 0 | CI68: =CE68+CF68-CG68+CH68 -> 0 | CL68: =CD68-CJ68 -> 0 | CM68: =CI68-CK68 -> 0 | CP68: 0 | CR68: =CQ68-SUM(BQ68,BV68) -> 0
A69: 33 | C69: PILs and Tax Variance for 2006 and Subsequent Years - Sub-Account HST/OVAT Input Tax Credits (ITCs) | D69: 1592 | I69: =E69+F69-G69+H69 -> 0 | N69: =J69+K69-L69+M69 -> 0 | O69: =I69 -> 0 | S69: =O69+P69-Q69+R69 -> 0 | T69: =N69 -> 0 | X69: =T69+U69-V69+W69 -> 0 | Y69: =S69 -> 0 | AC69: =Y69+Z69-AA69+AB69 -> 0 | AD69: =X69 -> 0 | AH69: =AD69+AE69-AF69+AG69 -> 0 | AI69: =AC69 -> 0 | AM69: =AI69+AJ69-AK69+AL69 -> 0 | AN69: =AH69 -> 0 | AR69: =AN69+AO69-AP69+AQ69 -> 0 | AS69: =AM69 -> 0 | AW69: =AS69+AT69-AU69+AV69 -> 0 | AX69: =AR69 -> 0 | BB69: =AX69+AY69-AZ69+BA69 -> 0 | BC69: =AW69 -> 0 | BG69: =BC69+BD69-BE69+SUM(BF69:BF69) -> 0 | BH69: =BB69 -> 0 | BL69: =BH69+BI69-BJ69+BK69 -> 0 | BM69: =BG69 -> 0 | BQ69: =BM69+BN69-BO69+SUM(BP69:BP69) -> 0 | BR69: =BL69 -> 0 | BV69: =BR69+BS69-BT69+BU69 -> 0 | BW69: =+BQ69 -> 0 | CD69: =BW69+BX69-BY69+SUM(BZ69:CC69) -> 0 | CE69: =+BV69 -> 0 | CI69: =CE69+CF69-CG69+CH69 -> 0 | CL69: =CD69-CJ69 -> 0 | CM69: =CI69-CK69 -> 0 | CP69: 0 | CR69: =CQ69-SUM(BQ69,BV69) -> 0
CR70: =CQ70-SUM(BQ70,BV70) -> 0
C71: Total of Group 1 and Group 2 Accounts (including 1562 and 1592) | E71: =+E65+E35+E67+E68+E69 -> -375101.5 | F71: =+F65+F35+F67+F68+F69 -> -226157.78 | G71: 0 | H71: 0 | I71: -601259.28 | J71: 9901.83 | K71: -9766.61 | L71: 0 | M71: 0 | N71: 135.22 | O71: -601259.28 | P71: -681861.35 | Q71: -106062.39 | R71: 0 | S71: -1177058.24 | T71: 135.22 | U71: -3714.65 | V71: 0 | W71: 0 | X71: -3579.43 | Y71: -1177058.24 | Z71: -613475.17 | AA71: 0 | AB71: 0 | AC71: -1790533.41 | AD71: -3579.43 | AE71: -99873.1 | AF71: 0 | AG71: 0 | AH71: -103452.53 | AI71: -1790533.41 | AJ71: 446141.58 | AK71: 0 | AL71: 0 | AM71: -1344391.83 | AN71: -103452.53 | AO71: -19876.53 | AP71: 0 | AQ71: 0 | AR71: -123329.06 | AS71: -1344391.83 | AT71: 648118.08 | AU71: 0 | AV71: 0 | AW71: -696273.75 | AX71: -123329.06 | AY71: 27424.04 | AZ71: -0.1 | BA71: 0 | BB71: -95904.92 | BC71: -696273.75 | BD71: 1530893.76 | BE71: 407433.72 | BF71: 0 | BG71: 427186.29 | BH71: -95904.92 | BI71: 63089.73 | BJ71: 49091.82 | BK71: 0 | BL71: -81907.01 | BM71: =+BM65+BM35+BM67+BM68+BM69 -> 427186.29 | BN71: 1349291.47 | BO71: 184010.39 | BP71: 0 | BQ71: 1592467.37 | BR71: -81907.01 | BS71: 39114.19 | BT71: =+BT65+BT35+BT67+BT68+BT69 -> -26007.79 | BU71: 0 | BV71: -16785.03 | BW71: 1592467.37 | BX71: 0 | BY71: 682925.23 | BZ71: 0 | CA71: 0 | CB71: =+CB65+CB35+CB67+CB68+CB69 -> 0 | CC71: 0 | CD71: 909542.14 | CE71: -16785.03 | CF71: 0 | CG71: 21117 | CH71: 0 | CI71: -37902.03 | CJ71: 0 | CK71: 0 | CL71: 909542.14 | CM71: -37902.03 | CN71: 7690.26 | CO71: 9010.78 | CP71: 888341.15 | CQ71: 1575682.83 | CR71: 0.4900000003
A74: 34 | C74: Special Purpose Charge Assessment Variance Account9 | D74: 1521 | AT74: 50304.74 | AW74: =AS74+AT74-AU74+AV74 -> 50304.74 | AX74: 0 | AY74: 378.35 | BB74: =AX74+AY74-AZ74+BA74 -> 378.35 | BC74: =AW74 -> 50304.74 | BD74: -37889.33 | BG74: =BC74+BD74-BE74+SUM(BF74:BF74) -> 12415.41 | BH74: =BB74 -> 378.35 | BI74: 350.14 | BL74: =BH74+BI74-BJ74+BK74 -> 728.49 | BM74: =BG74 -> 12415.41 | BO74: 12415.41 | BQ74: =BM74+BN74-BO74+SUM(BP74:BP74) -> -3.637978807e-12 | BR74: =BL74 -> 728.49 | BS74: 243.1 | BT74: 971.59 | BV74: =BR74+BS74-BT74+BU74 -> 0 | BW74: =+BQ74 -> -3.637978807e-12 | CD74: =BW74+BX74-BY74+SUM(BZ74:CC74) -> -3.637978807e-12 | CE74: =+BV74 -> 0 | CI74: =CE74+CF74-CG74+CH74 -> 0 | CL74: =CD74-CJ74 -> -3.637978807e-12 | CM74: =CI74-CK74 -> 0 | CP74: -3.637978807e-12 | CR74: =CQ74-SUM(BQ74,BV74) -> 3.637978807e-12
CR75: =CQ75-SUM(BQ75,BV75) -> 0
C76: LRAM Variance Account | D76: 1568 | BG76: =BC76+BD76-BE76+SUM(BF76:BF76) -> 0 | BL76: =BH76+BI76-BJ76+BK76 -> 0 | BN76: =1231.61+5316.6 -> 6548.21 | BQ76: =BM76+BN76-BO76+SUM(BP76:BP76) -> 6548.21 | BS76: 152.65 | BV76: =BR76+BS76-BT76+BU76 -> 152.65 | BW76: =+BQ76 -> 6548.21 | CD76: =BW76+BX76-BY76+SUM(BZ76:CC76) -> 6548.21 | CE76: =+BV76 -> 152.65 | CI76: =CE76+CF76-CG76+CH76 -> 152.65 | CL76: =CD76-CJ76 -> 6548.21 | CM76: =CI76-CK76 -> 152.65 | CN76: =27.4+25.69 -> 53.09 | CO76: =12.15+52.46 -> 64.61 | CP76: =SUM(CL76:CO76) -> 6818.56 | CR76: =CQ76-SUM(BQ76,BV76) -> -6700.86
C79: Total including Account 1521 and Account 1568 | E79: =E74+E71+E76 -> -375101.5 | F79: =F74+F71+F76 -> -226157.78 | G79: 0 | H79: 0 | I79: -601259.28 | J79: 9901.83 | K79: -9766.61 | L79: 0 | M79: 0 | N79: 135.22 | O79: -601259.28 | P79: -681861.35 | Q79: -106062.39 | R79: 0 | S79: -1177058.24 | T79: 135.22 | U79: -3714.65 | V79: 0 | W79: 0 | X79: -3579.43 | Y79: -1177058.24 | Z79: -613475.17 | AA79: 0 | AB79: 0 | AC79: -1790533.41 | AD79: -3579.43 | AE79: -99873.1 | AF79: 0 | AG79: 0 | AH79: -103452.53 | AI79: -1790533.41 | AJ79: 446141.58 | AK79: 0 | AL79: 0 | AM79: -1344391.83 | AN79: -103452.53 | AO79: -19876.53 | AP79: 0 | AQ79: 0 | AR79: -123329.06 | AS79: -1344391.83 | AT79: 698422.82 | AU79: 0 | AV79: 0 | AW79: -645969.01 | AX79: -123329.06 | AY79: 27802.39 | AZ79: -0.1 | BA79: 0 | BB79: -95526.57 | BC79: -645969.01 | BD79: 1493004.43 | BE79: 407433.72 | BF79: 0 | BG79: 439601.7 | BH79: -95526.57 | BI79: 63439.87 | BJ79: 49091.82 | BK79: 0 | BL79: -81178.52 | BM79: =BM74+BM71+BM76 -> 439601.7 | BN79: 1355839.68 | BO79: 196425.8 | BP79: 0 | BQ79: 1599015.58 | BR79: -81178.52 | BS79: 39509.94 | BT79: =BT74+BT71+BT76 -> -25036.2 | BU79: 0 | BV79: -16632.38 | BW79: 1599015.58 | BX79: 0 | BY79: 682925.23 | BZ79: 0 | CA79: 0 | CB79: =CB74+CB71+CB76 -> 0 | CC79: 0 | CD79: 916090.35 | CE79: -16632.38 | CF79: 0 | CG79: 21117 | CH79: 0 | CI79: -37749.38 | CJ79: 0 | CK79: 0 | CL79: 916090.35 | CM79: -37749.38 | CN79: 7743.35 | CO79: 9075.39 | CP79: 895159.71 | CQ79: 1575682.83 | CR79: -6700.37
A81: 35 | C81: Smart Meter Capital and Recovery Offset Variance - Sub-Account - Capital11 | D81: 1555 | I81: =E81+F81-G81+H81 -> 0 | N81: =J81+K81-L81+M81 -> 0 | O81: =I81 -> 0 | S81: =O81+P81-Q81+R81 -> 0 | T81: =N81 -> 0 | X81: =T81+U81-V81+W81 -> 0 | Y81: =S81 -> 0 | AC81: =Y81+Z81-AA81+AB81 -> 0 | AD81: =X81 -> 0 | AH81: =AD81+AE81-AF81+AG81 -> 0 | AI81: =AC81 -> 0 | AJ81: =177802.43+4149.92 -> 181952.35 | AM81: =AI81+AJ81-AK81+AL81 -> 181952.35 | AN81: =AH81 -> 0 | AR81: =AN81+AO81-AP81+AQ81 -> 0 | AS81: =AM81 -> 181952.35 | AT81: =305716.2+1029.6+1097.6 -> 307843.4 | AW81: =AS81+AT81-AU81+AV81 -> 489795.75 | AX81: =AR81 -> 0 | AY81: 3480.48 | BB81: =AX81+AY81-AZ81+BA81 -> 3480.48 | BC81: =AW81 -> 489795.75 | BD81: =114764.88+7519.8+33000+458.3 -> 155742.98 | BG81: =BC81+BD81-BE81+SUM(BF81:BF81) -> 645538.73 | BH81: =BB81 -> 3480.48 | BI81: 8271 | BL81: =BH81+BI81-BJ81+BK81 -> 11751.48 | BM81: =BG81 -> 645538.73 | BO81: =598283.51+8549.4+4149.92+33000+1555.9 -> 645538.73 | BQ81: =BM81+BN81-BO81+SUM(BP81:BP81) -> -1.164153218e-10 | BR81: =BL81 -> 11751.48 | BS81: 2110.86 | BT81: 13862 | BV81: =BR81+BS81-BT81+BU81 -> 0.34 | BW81: =+BQ81 -> -1.164153218e-10 | CD81: =BW81+BX81-BY81+SUM(BZ81:CC81) -> -1.164153218e-10 | CE81: =+BV81 -> 0.34 | CI81: =CE81+CF81-CG81+CH81 -> 0.34 | CL81: =CD81-CJ81 -> -1.164153218e-10 | CM81: =CI81-CK81 -> 0.34 | CP81: 0.3399999999 | CR81: =CQ81-SUM(BQ81,BV81) -> -0.3399999999
A82: 36 | C82: Smart Meter Capital and Recovery Offset Variance - Sub-Account - Recoveries11 | D82: 1555 | E82: 0 | F82: -9330.14 | I82: =E82+F82-G82+H82 -> -9330.14 | N82: =J82+K82-L82+M82 -> 0 | O82: =I82 -> -9330.14 | P82: -16549.83 | S82: =O82+P82-Q82+R82 -> -25879.97 | T82: =N82 -> 0 | X82: =T82+U82-V82+W82 -> 0 | Y82: =S82 -> -25879.97 | Z82: -16647.39 | AC82: =Y82+Z82-AA82+AB82 -> -42527.36 | AD82: =X82 -> 0 | AE82: -2195.54 | AH82: =AD82+AE82-AF82+AG82 -> -2195.54 | AI82: =AC82 -> -42527.36 | AJ82: -44006.96 | AM82: =AI82+AJ82-AK82+AL82 -> -86534.32 | AN82: =AH82 -> -2195.54 | AO82: 115.32 | AR82: =AN82+AO82-AP82+AQ82 -> -2080.22 | AS82: =AM82 -> -86534.32 | AT82: -82356.96 | AW82: =AS82+AT82-AU82+AV82 -> -168891.28 | AX82: =AR82 -> -2080.22 | AY82: -1032.21 | BB82: =AX82+AY82-AZ82+BA82 -> -3112.43 | BC82: =AW82 -> -168891.28 | BD82: -97527.38 | BG82: =BC82+BD82-BE82+SUM(BF82:BF82) -> -266418.66 | BH82: =BB82 -> -3112.43 | BI82: -3154 | BL82: =BH82+BI82-BJ82+BK82 -> -6266.43 | BM82: =BG82 -> -266418.66 | BN82: -40384.76 | BO82: -306803.42 | BQ82: =BM82+BN82-BO82+SUM(BP82:BP82) -> -5.820766091e-11 | BR82: =BL82 -> -6266.43 | BS82: -1020.92 | BT82: -7287 | BV82: =BR82+BS82-BT82+BU82 -> -0.35 | BW82: =+BQ82 -> -5.820766091e-11 | CD82: =BW82+BX82-BY82+SUM(BZ82:CC82) -> -5.820766091e-11 | CE82: =+BV82 -> -0.35 | CI82: =CE82+CF82-CG82+CH82 -> -0.35 | CL82: =CD82-CJ82 -> -5.820766091e-11 | CM82: =CI82-CK82 -> -0.35 | CP82: -0.3500000001 | CR82: =CQ82-SUM(BQ82,BV82) -> 0.3500000001
A83: 37 | C83: Smart Meter Capital and Recovery Offset Variance - Sub-Account - Stranded Meter Costs11 | D83: 1555 | I83: =E83+F83-G83+H83 -> 0 | N83: =J83+K83-L83+M83 -> 0 | O83: =I83 -> 0 | S83: =O83+P83-Q83+R83 -> 0 | T83: =N83 -> 0 | X83: =T83+U83-V83+W83 -> 0 | Y83: =S83 -> 0 | AC83: =Y83+Z83-AA83+AB83 -> 0 | AD83: =X83 -> 0 | AH83: =AD83+AE83-AF83+AG83 -> 0 | AI83: =AC83 -> 0 | AM83: =AI83+AJ83-AK83+AL83 -> 0 | AN83: =AH83 -> 0 | AR83: =AN83+AO83-AP83+AQ83 -> 0 | AS83: =AM83 -> 0 | AW83: =AS83+AT83-AU83+AV83 -> 0 | AX83: =AR83 -> 0 | BB83: =AX83+AY83-AZ83+BA83 -> 0 | BC83: =AW83 -> 0 | BG83: =BC83+BD83-BE83+SUM(BF83:BF83) -> 0 | BH83: =BB83 -> 0 | BL83: =BH83+BI83-BJ83+BK83 -> 0 | BM83: =BG83 -> 0 | BQ83: =BM83+BN83-BO83+SUM(BP83:BP83) -> 0 | BR83: =BL83 -> 0 | BV83: =BR83+BS83-BT83+BU83 -> 0 | BW83: =+BQ83 -> 0 | CD83: =BW83+BX83-BY83+SUM(BZ83:CC83) -> 0 | CE83: =+BV83 -> 0 | CI83: =CE83+CF83-CG83+CH83 -> 0 | CL83: =CD83-CJ83 -> 0 | CM83: =CI83-CK83 -> 0 | CP83: 0 | CR83: =CQ83-SUM(BQ83,BV83) -> 0
A84: 38 | C84: Smart Meter OM&A Variance11 | D84: 1556 | I84: =E84+F84-G84+H84 -> 0 | N84: =J84+K84-L84+M84 -> 0 | O84: =I84 -> 0 | S84: =O84+P84-Q84+R84 -> 0 | T84: =N84 -> 0 | X84: =T84+U84-V84+W84 -> 0 | Y84: =S84 -> 0 | AC84: =Y84+Z84-AA84+AB84 -> 0 | AD84: =X84 -> 0 | AH84: =AD84+AE84-AF84+AG84 -> 0 | AI84: =AC84 -> 0 | AM84: =AI84+AJ84-AK84+AL84 -> 0 | AN84: =AH84 -> 0 | AR84: =AN84+AO84-AP84+AQ84 -> 0 | AS84: =AM84 -> 0 | AT84: =3900.62+439.58+902.63 -> 5242.83 | AW84: =AS84+AT84-AU84+AV84 -> 5242.83 | AX84: =AR84 -> 0 | AY84: 84.84 | BB84: =AX84+AY84-AZ84+BA84 -> 84.84 | BC84: =AW84 -> 5242.83 | BD84: =3283.09+416.7 -> 3699.79 | BG84: =BC84+BD84-BE84+SUM(BF84:BF84) -> 8942.62 | BH84: =BB84 -> 84.84 | BI84: 600.61 | BL84: =BH84+BI84-BJ84+BK84 -> 685.45 | BM84: =BG84 -> 8942.62 | BN84: 957.52 | BO84: =8141.23+439.58+1319.33 -> 9900.14 | BQ84: =BM84+BN84-BO84+SUM(BP84:BP84) -> 0 | BR84: =BL84 -> 685.45 | BS84: 289.05 | BT84: 974.5 | BV84: =BR84+BS84-BT84+BU84 -> 0 | BW84: =+BQ84 -> 0 | CD84: =BW84+BX84-BY84+SUM(BZ84:CC84) -> 0 | CE84: =+BV84 -> 0 | CI84: =CE84+CF84-CG84+CH84 -> 0 | CL84: =CD84-CJ84 -> 0 | CM84: =CI84-CK84 -> 0 | CP84: 0 | CR84: =CQ84-SUM(BQ84,BV84) -> 0
C86: The following is not included in the total claim but are included on a memo basis:
A87: 39 | C87: Deferred PILs Contra Account 5 | D87: 1563 | E87: 235803 | F87: -142729 | I87: =E87+F87-G87+H87 -> 93074 | J87: -9902 | K87: 9766.61 | N87: =J87+K87-L87+M87 -> -135.39 | O87: =I87 -> 93074 | P87: -39934.93 | S87: =O87+P87-Q87+R87 -> 53139.07 | T87: =N87 -> -135.39 | U87: 3714.65 | X87: =T87+U87-V87+W87 -> 3579.26 | Y87: =S87 -> 53139.07 | AC87: =Y87+Z87-AA87+AB87 -> 53139.07 | AD87: =X87 -> 3579.26 | AE87: 2114.94 | AH87: =AD87+AE87-AF87+AG87 -> 5694.2 | AI87: =AC87 -> 53139.07 | AM87: =AI87+AJ87-AK87+AL87 -> 53139.07 | AN87: =AH87 -> 5694.2 | AO87: 600.84 | AR87: =AN87+AO87-AP87+AQ87 -> 6295.04 | AS87: =AM87 -> 53139.07 | AW87: =AS87+AT87-AU87+AV87 -> 53139.07 | AX87: =AR87 -> 6295.04 | AY87: 423.81 | BB87: =AX87+AY87-AZ87+BA87 -> 6718.85 | BC87: =AW87 -> 53139.07 | BD87: -48619.73 | BG87: =BC87+BD87-BE87+SUM(BF87:BF87) -> 4519.34 | BH87: =BB87 -> 6718.85 | BI87: -4939.02 | BL87: =BH87+BI87-BJ87+BK87 -> 1779.83 | BM87: =BG87 -> 4519.34 | BN87: -2426.77 | BQ87: =BM87+BN87-BO87+SUM(BP87:BP87) -> 2092.57 | BR87: =BL87 -> 1779.83 | BS87: -955.87 | BV87: =BR87+BS87-BT87+BU87 -> 823.96 | BW87: =+BQ87 -> 2092.57 | CD87: =BW87+BX87-BY87+SUM(BZ87:CC87) -> 2092.57 | CE87: =+BV87 -> 823.96 | CI87: =CE87+CF87-CG87+CH87 -> 823.96 | CL87: =CD87-CJ87 -> 2092.57 | CM87: =CI87-CK87 -> 823.96 | CP87: 2916.53 | CQ87: 2916.36 | CR87: =CQ87-SUM(BQ87,BV87) -> -0.17
A88: 40 | C88: IFRS-CGAAP Transition PP&E Amounts10 | D88: 1575 | I88: =E88+F88-G88+H88 -> 0 | N88: =J88+K88-L88+M88 -> 0 | O88: =I88 -> 0 | S88: =O88+P88-Q88+R88 -> 0 | T88: =N88 -> 0 | X88: =T88+U88-V88+W88 -> 0 | Y88: =S88 -> 0 | AC88: =Y88+Z88-AA88+AB88 -> 0 | AD88: =X88 -> 0 | AH88: =AD88+AE88-AF88+AG88 -> 0 | AI88: =AC88 -> 0 | AM88: =AI88+AJ88-AK88+AL88 -> 0 | AN88: =AH88 -> 0 | AR88: =AN88+AO88-AP88+AQ88 -> 0 | AS88: =AM88 -> 0 | AW88: =AS88+AT88-AU88+AV88 -> 0 | AX88: =AR88 -> 0 | BB88: =AX88+AY88-AZ88+BA88 -> 0 | BC88: =AW88 -> 0 | BG88: =BC88+BD88-BE88+SUM(BF88:BF88) -> 0 | BH88: =BB88 -> 0 | BL88: =BH88+BI88-BJ88+BK88 -> 0 | BM88: =BG88 -> 0 | BQ88: =BM88+BN88-BO88+SUM(BP88:BP88) -> 0 | BR88: =BL88 -> 0 | BV88: =BR88+BS88-BT88+BU88 -> 0 | BW88: =+BQ88 -> 0 | CD88: =BW88+BX88-BY88+SUM(BZ88:CC88) -> 0 | CE88: =+BV88 -> 0 | CI88: =CE88+CF88-CG88+CH88 -> 0 | CL88: =CD88-CJ88 -> 0 | CM88: =CI88-CK88 -> 0 | CP88: 0 | CR88: =CQ88-SUM(BQ88,BV88) -> 0
A89: 41 | C89: PILs and Tax Variance for 2006 and Subsequent Years - Sub-Account HST/OVAT Contra Account | D89: 1592 | I89: =E89+F89-G89+H89 -> 0 | N89: =J89+K89-L89+M89 -> 0 | O89: =I89 -> 0 | S89: =O89+P89-Q89+R89 -> 0 | T89: =N89 -> 0 | X89: =T89+U89-V89+W89 -> 0 | Y89: =S89 -> 0 | AC89: =Y89+Z89-AA89+AB89 -> 0 | AD89: =X89 -> 0 | AH89: =AD89+AE89-AF89+AG89 -> 0 | AI89: =AC89 -> 0 | AM89: =AI89+AJ89-AK89+AL89 -> 0 | AN89: =AH89 -> 0 | AR89: =AN89+AO89-AP89+AQ89 -> 0 | AS89: =AM89 -> 0 | AW89: =AS89+AT89-AU89+AV89 -> 0 | AX89: =AR89 -> 0 | BB89: =AX89+AY89-AZ89+BA89 -> 0 | BC89: =AW89 -> 0 | BG89: =BC89+BD89-BE89+SUM(BF89:BF89) -> 0 | BH89: =BB89 -> 0 | BL89: =BH89+BI89-BJ89+BK89 -> 0 | BM89: =BG89 -> 0 | BQ89: =BM89+BN89-BO89+SUM(BP89:BP89) -> 0 | BR89: =BL89 -> 0 | BV89: =BR89+BS89-BT89+BU89 -> 0 | BW89: =+BQ89 -> 0 | CD89: =BW89+BX89-BY89+SUM(BZ89:CC89) -> 0 | CE89: =+BV89 -> 0 | CI89: =CE89+CF89-CG89+CH89 -> 0 | CL89: =CD89-CJ89 -> 0 | CM89: =CI89-CK89 -> 0 | CP89: 0 | CR89: =CQ89-SUM(BQ89,BV89) -> 0
C90: Disposition and Recovery/Refund of Regulatory Balances (2009)7 | D90: 1595 | BC90: =AW90 -> 0 | BD90: =66536.24-149746.01 -> -83209.77 | BE90: =519169.03-926602.71 -> -407433.68 | BG90: =BC90+BD90-BE90+SUM(BF90:BF90) -> 324223.91 | BH90: =BB90 -> 0 | BI90: =-1401.8-6165.99 -> -7567.79 | BJ90: =-10937.82-38154 -> -49091.82 | BL90: =BH90+BI90-BJ90+BK90 -> 41524.03 | BM90: =BG90 -> 324223.91 | BN90: -215638.6 | BQ90: =BM90+BN90-BO90+SUM(BP90:BP90) -> 108585.31 | BR90: =BL90 -> 41524.03 | BS90: -22175.84 | BV90: =BR90+BS90-BT90+BU90 -> 19348.19 | BW90: =+BQ90 -> 108585.31 | CD90: =BW90+BX90-BY90+SUM(BZ90:CC90) -> 108585.31 | CE90: =+BV90 -> 19348.19 | CI90: =CE90+CF90-CG90+CH90 -> 19348.19 | CL90: =CD90-CJ90 -> 108585.31 | CM90: =CI90-CK90 -> 19348.19 | CP90: =SUM(CL90:CO90) -> 127933.5 | CQ90: 127933.5 | CR90: =CQ90-SUM(BQ90,BV90) -> 0
A91: 42 | C91: Disposition and Recovery/Refund of Regulatory Balances (2010)7 | D91: 1595 | I91: =E91+F91-G91+H91 -> 0 | N91: =J91+K91-L91+M91 -> 0 | O91: =I91 -> 0 | S91: =O91+P91-Q91+R91 -> 0 | T91: =N91 -> 0 | X91: =T91+U91-V91+W91 -> 0 | Y91: =S91 -> 0 | AC91: =Y91+Z91-AA91+AB91 -> 0 | AD91: =X91 -> 0 | AH91: =AD91+AE91-AF91+AG91 -> 0 | AI91: =AC91 -> 0 | AM91: =AI91+AJ91-AK91+AL91 -> 0 | AN91: =AH91 -> 0 | AR91: =AN91+AO91-AP91+AQ91 -> 0 | AS91: =AM91 -> 0 | AW91: =AS91+AT91-AU91+AV91 -> 0 | AX91: =AR91 -> 0 | BB91: =AX91+AY91-AZ91+BA91 -> 0 | BC91: =AW91 -> 0 | BG91: 0 | BH91: =BB91 -> 0 | BL91: =BH91+BI91-BJ91+BK91 -> 0 | BM91: =BG91 -> 0 | BN91: =-76597.08-30381.31 -> -106978.39 | BO91: =-142628.31-53797.49 -> -196425.8 | BQ91: 89447.41 | BR91: =BL91 -> 0 | BS91: =8059.48+5663.7+974.49 -> 14697.67 | BT91: =15007.23+10028.97 -> 25036.2 | BV91: =BR91+BS91-BT91+BU91 -> -10338.53 | BW91: 89447.41 | CD91: =BW91+BX91-BY91+SUM(BZ91:CC91) -> 89447.41 | CE91: -10338.53 | CI91: =CE91+CF91-CG91+CH91 -> -10338.53 | CL91: =CD91-CJ91 -> 89447.41 | CM91: =CI91-CK91 -> -10338.53 | CP91: 79108.88 | CQ91: 79108.88 | CR91: =CQ91-SUM(BQ91,BV91) -> 0
C94: For all Board-Approved dispositions, please ensure that the disposition amount has the same sign (e.g: debit balances are to have a positive figure and credit balance are to have a negative figure) as per the related Board decision.
B95: 1 | C95: Provide supporting statement indicating whether due to denial of costs in 2006 EDR by the Board, 10% transition costs write-off, etc.
B96: 1A | C96: Adjustments Instructed by the Board include deferral/variance account balances moved to Account 1590 as a result of the 2006 EDR and account 1595 during the 2008 EDR and subsequent years as ordered by the Board.
B97: 2 | C97: Please provide explanations for the nature of the adjustments. If the adjustment relates to previously Board Approved disposed balances, please provide amounts for adjustments and include supporting documentations.
B98: 3 | C98: For RSVA accounts only, report the net variance to the account during the year. For all other accounts, record the transactions during the year.
B99: 4 | C99: Please describe "other" components of 1508 and add more component lines if necessary.
B100: 5 | C100: 1563 is a contra-account and is not included in the total but is shown on a memo basis. Account 1562 establishes the obligation to the ratepayer.
B101: 6 | C101: If the LDC’s 2013 rate year begins January 1, 2013, the projected interest is recorded from January 1, 2012 to December 31, 2012 on the December 31, 2011 balance adjusted for the disposed balances approved by the Board in the 2012 rate decision. If the LDC’s 2013 rate year begins May 1, 2013 the projected interest is recorded from January 1, 2012 to April 30, 2013 on the December 31, 2011 balance adjusted for the disposed balances approved by the Board in the 2012 rate decision.
B104: 7 | C104: Include Account 1595 as part of Group 1 accounts (lines 31, 32 and 33) for review and disposition if the recovery (or refund) period has been completed. If the recovery (or refund) period has not been completed, include the
C105: balances in Account 1595 on a memo basis only (line 90 & 91).
B106: 8 | C106: As per the January 6, 2011 Letter from the Board, regarding the implementation of the Ontario Clean Energy Benefit:
C107: "By way of exception... The Board does acticipate that licensed distributors that cannot adapt their invoices as of January 1, 2011 will require a variance account for OCEB purposes... The Board expects that any principal
C108: balances in "Sub account Financial Assistance Payment and Recovery Variance - Ontario Clean Energy Benefit Act" will be addressed through the monthly settlement process with the IESO or the host distributor, as applicable.
B109: 9 | C109: The Board expected that requests for disposition of the balances in Account 1521 were to be addressed as part of the proceedings to set rates for the 2012 rate year, except in cases where this approach would have resulted in
C110: non-compliance with the timeline set out in section 8 of the SPC regulation.
B111: 10 | C111: Account 1575 shall not be cleared through the distributor's deferral and variance account rate rider. Account 1575 shall be cleared as an adjustment to the distributor's revenue requirement.
B112: 11 | C112: Deferral accounts related to Smart Meter deployment are not to be recovered/refunded through the Deferral and Variance Account rate rider. For details on how to dispose of balances in Smart Meter accounts see the Board's
C113: Guideline: Smart Meter Disposition and Cost Recovery (G-2011-0001)

Sheet 3. Appendix A
B16: Accounts that produced a variance on the 2013 continuity schedule are listed below. Please provide a detailed explanation for each variance below.
C20: Account Descriptions | D20: Account Number | E20: Variance RRR vs. 2011 Balance (Principal + Interest) | F20: Explanation
C23: Group 1 Accounts
A24: 1 | C24: LV Variance Account | D24: 1550 | E24: =IF(ISERROR(VLOOKUP($A24, '2. 2013 Continuity Schedule'!$A$20:$CR$93, MATCH('3. Appendix A'!$E$20, '2. 2013 Continuity Schedule'!$A$20:$CR$20,0),FALSE)), 0, VLOOKUP($A24, '2. 2013 Continuity Schedule'!$A$20:$CR$93, MATCH('3. Appendix A'!$E$20, '2. 2013 Continuity Schedule'!$A$20:$CR$20,0),FALSE)) -> 0
A25: 2 | C25: RSVA - Wholesale Market Service Charge | D25: 1580 | E25: =IF(ISERROR(VLOOKUP($A25, '2. 2013 Continuity Schedule'!$A$20:$CR$93, MATCH('3. Appendix A'!$E$20, '2. 2013 Continuity Schedule'!$A$20:$CR$20,0),FALSE)), 0, VLOOKUP($A25, '2. 2013 Continuity Schedule'!$A$20:$CR$93, MATCH('3. Appendix A'!$E$20, '2. 2013 Continuity Schedule'!$A$20:$CR$20,0),FALSE)) -> 0
A26: 3 | C26: RSVA - Retail Transmission Network Charge | D26: 1584 | E26: =IF(ISERROR(VLOOKUP($A26, '2. 2013 Continuity Schedule'!$A$20:$CR$93, MATCH('3. Appendix A'!$E$20, '2. 2013 Continuity Schedule'!$A$20:$CR$20,0),FALSE)), 0, VLOOKUP($A26, '2. 2013 Continuity Schedule'!$A$20:$CR$93, MATCH('3. Appendix A'!$E$20, '2. 2013 Continuity Schedule'!$A$20:$CR$20,0),FALSE)) -> 0
A27: 4 | C27: RSVA - Retail Transmission Connection Charge | D27: 1586 | E27: =IF(ISERROR(VLOOKUP($A27, '2. 2013 Continuity Schedule'!$A$20:$CR$93, MATCH('3. Appendix A'!$E$20, '2. 2013 Continuity Schedule'!$A$20:$CR$20,0),FALSE)), 0, VLOOKUP($A27, '2. 2013 Continuity Schedule'!$A$20:$CR$93, MATCH('3. Appendix A'!$E$20, '2. 2013 Continuity Schedule'!$A$20:$CR$20,0),FALSE)) -> 0
A28: 5 | C28: RSVA - Power | D28: 1588 | E28: =IF(ISERROR(VLOOKUP($A28, '2. 2013 Continuity Schedule'!$A$20:$CR$93, MATCH('3. Appendix A'!$E$20, '2. 2013 Continuity Schedule'!$A$20:$CR$20,0),FALSE)), 0, VLOOKUP($A28, '2. 2013 Continuity Schedule'!$A$20:$CR$93, MATCH('3. Appendix A'!$E$20, '2. 2013 Continuity Schedule'!$A$20:$CR$20,0),FALSE)) -> 0
A29: 6 | C29: RSVA - Power - Sub-account - Global Adjustment | D29: 1588 | E29: =IF(ISERROR(VLOOKUP($A29, '2. 2013 Continuity Schedule'!$A$20:$CR$93, MATCH('3. Appendix A'!$E$20, '2. 2013 Continuity Schedule'!$A$20:$CR$20,0),FALSE)), 0, VLOOKUP($A29, '2. 2013 Continuity Schedule'!$A$20:$CR$93, MATCH('3. Appendix A'!$E$20, '2. 2013 Continuity Schedule'!$A$20:$CR$20,0),FALSE)) -> 0
A30: 7 | C30: Recovery of Regulatory Asset Balances | D30: 1590 | E30: =IF(ISERROR(VLOOKUP($A30, '2. 2013 Continuity Schedule'!$A$20:$CR$93, MATCH('3. Appendix A'!$E$20, '2. 2013 Continuity Schedule'!$A$20:$CR$20,0),FALSE)), 0, VLOOKUP($A30, '2. 2013 Continuity Schedule'!$A$20:$CR$93, MATCH('3. Appendix A'!$E$20, '2. 2013 Continuity Schedule'!$A$20:$CR$20,0),FALSE)) -> 0
A31: 8 | C31: Disposition and Recovery/Refund of Regulatory Balances (2008)7 | D31: 1595 | E31: =IF(ISERROR(VLOOKUP($A31, '2. 2013 Continuity Schedule'!$A$20:$CR$93, MATCH('3. Appendix A'!$E$20, '2. 2013 Continuity Schedule'!$A$20:$CR$20,0),FALSE)), 0, VLOOKUP($A31, '2. 2013 Continuity Schedule'!$A$20:$CR$93, MATCH('3. Appendix A'!$E$20, '2. 2013 Continuity Schedule'!$A$20:$CR$20,0),FALSE)) -> 0
A32: 9 | C32: Disposition and Recovery/Refund of Regulatory Balances (2009)7 | D32: 1595 | E32: =IF(ISERROR(VLOOKUP($A32, '2. 2013 Continuity Schedule'!$A$20:$CR$93, MATCH('3. Appendix A'!$E$20, '2. 2013 Continuity Schedule'!$A$20:$CR$20,0),FALSE)), 0, VLOOKUP($A32, '2. 2013 Continuity Schedule'!$A$20:$CR$93, MATCH('3. Appendix A'!$E$20, '2. 2013 Continuity Schedule'!$A$20:$CR$20,0),FALSE)) -> 0
A33: 9 | C33: Disposition and Recovery/Refund of Regulatory Balances (2010)7 | D33: 1595 | E33: =IF(ISERROR(VLOOKUP($A33, '2. 2013 Continuity Schedule'!$A$20:$CR$93, MATCH('3. Appendix A'!$E$20, '2. 2013 Continuity Schedule'!$A$20:$CR$20,0),FALSE)), 0, VLOOKUP($A33, '2. 2013 Continuity Schedule'!$A$20:$CR$93, MATCH('3. Appendix A'!$E$20, '2. 2013 Continuity Schedule'!$A$20:$CR$20,0),FALSE)) -> 0
C34: Group 2 Accounts
A35: 10 | C35: Other Regulatory Assets - Sub-Account - OEB Cost Assessments | D35: 1508 | E35: =IF(ISERROR(VLOOKUP($A35, '2. 2013 Continuity Schedule'!$A$20:$CR$93, MATCH('3. Appendix A'!$E$20, '2. 2013 Continuity Schedule'!$A$20:$CR$20,0),FALSE)), 0, VLOOKUP($A35, '2. 2013 Continuity Schedule'!$A$20:$CR$93, MATCH('3. Appendix A'!$E$20, '2. 2013 Continuity Schedule'!$A$20:$CR$20,0),FALSE)) -> 0
A36: 11 | C36: Other Regulatory Assets - Sub-Account - Pension Contributions | D36: 1508 | E36: =IF(ISERROR(VLOOKUP($A36, '2. 2013 Continuity Schedule'!$A$20:$CR$93, MATCH('3. Appendix A'!$E$20, '2. 2013 Continuity Schedule'!$A$20:$CR$20,0),FALSE)), 0, VLOOKUP($A36, '2. 2013 Continuity Schedule'!$A$20:$CR$93, MATCH('3. Appendix A'!$E$20, '2. 2013 Continuity Schedule'!$A$20:$CR$20,0),FALSE)) -> 0
A37: 12 | C37: Other Regulatory Assets - Sub-Account - Deferred IFRS Transition Costs | D37: 1508 | E37: =IF(ISERROR(VLOOKUP($A37, '2. 2013 Continuity Schedule'!$A$20:$CR$93, MATCH('3. Appendix A'!$E$20, '2. 2013 Continuity Schedule'!$A$20:$CR$20,0),FALSE)), 0, VLOOKUP($A37, '2. 2013 Continuity Schedule'!$A$20:$CR$93, MATCH('3. Appendix A'!$E$20, '2. 2013 Continuity Schedule'!$A$20:$CR$20,0),FALSE)) -> 0
A38: 13 | C38: Other Regulatory Assets - Sub-Account - Incremental Capital Charges | D38: 1508 | E38: =IF(ISERROR(VLOOKUP($A38, '2. 2013 Continuity Schedule'!$A$20:$CR$93, MATCH('3. Appendix A'!$E$20, '2. 2013 Continuity Schedule'!$A$20:$CR$20,0),FALSE)), 0, VLOOKUP($A38, '2. 2013 Continuity Schedule'!$A$20:$CR$93, MATCH('3. Appendix A'!$E$20, '2. 2013 Continuity Schedule'!$A$20:$CR$20,0),FALSE)) -> 0
A39: 14 | C39: Other Regulatory Assets - Sub-Account - Financial Assistance Payment and Recovery Variance - Ontario Clean Energy Benefit Act8 | D39: 1508 | E39: =IF(ISERROR(VLOOKUP($A39, '2. 2013 Continuity Schedule'!$A$20:$CR$93, MATCH('3. Appendix A'!$E$20, '2. 2013 Continuity Schedule'!$A$20:$CR$20,0),FALSE)), 0, VLOOKUP($A39, '2. 2013 Continuity Schedule'!$A$20:$CR$93, MATCH('3. Appendix A'!$E$20, '2. 2013 Continuity Schedule'!$A$20:$CR$20,0),FALSE)) -> 0
A40: 15 | C40: Other Regulatory Assets - Sub-Account - Financial Assistance Payment and Recovery Carrying Charges | D40: 1508 | E40: =IF(ISERROR(VLOOKUP($A40, '2. 2013 Continuity Schedule'!$A$20:$CR$93, MATCH('3. Appendix A'!$E$20, '2. 2013 Continuity Schedule'!$A$20:$CR$20,0),FALSE)), 0, VLOOKUP($A40, '2. 2013 Continuity Schedule'!$A$20:$CR$93, MATCH('3. Appendix A'!$E$20, '2. 2013 Continuity Schedule'!$A$20:$CR$20,0),FALSE)) -> 0
A41: 16 | C41: Other Regulatory Assets - Sub-Account - Other 4 | D41: 1508 | E41: =IF(ISERROR(VLOOKUP($A41, '2. 2013 Continuity Schedule'!$A$20:$CR$93, MATCH('3. Appendix A'!$E$20, '2. 2013 Continuity Schedule'!$A$20:$CR$20,0),FALSE)), 0, VLOOKUP($A41, '2. 2013 Continuity Schedule'!$A$20:$CR$93, MATCH('3. Appendix A'!$E$20, '2. 2013 Continuity Schedule'!$A$20:$CR$20,0),FALSE)) -> 0
A42: 17 | C42: Retail Cost Variance Account - Retail | D42: 1518 | E42: =IF(ISERROR(VLOOKUP($A42, '2. 2013 Continuity Schedule'!$A$20:$CR$93, MATCH('3. Appendix A'!$E$20, '2. 2013 Continuity Schedule'!$A$20:$CR$20,0),FALSE)), 0, VLOOKUP($A42, '2. 2013 Continuity Schedule'!$A$20:$CR$93, MATCH('3. Appendix A'!$E$20, '2. 2013 Continuity Schedule'!$A$20:$CR$20,0),FALSE)) -> 0
A43: 18 | C43: Misc. Deferred Debits | D43: 1525 | E43: =IF(ISERROR(VLOOKUP($A43, '2. 2013 Continuity Schedule'!$A$20:$CR$93, MATCH('3. Appendix A'!$E$20, '2. 2013 Continuity Schedule'!$A$20:$CR$20,0),FALSE)), 0, VLOOKUP($A43, '2. 2013 Continuity Schedule'!$A$20:$CR$93, MATCH('3. Appendix A'!$E$20, '2. 2013 Continuity Schedule'!$A$20:$CR$20,0),FALSE)) -> 0
A44: 19 | C44: Renewable Generation Connection Capital Deferral Account | D44: 1531 | E44: =IF(ISERROR(VLOOKUP($A44, '2. 2013 Continuity Schedule'!$A$20:$CR$93, MATCH('3. Appendix A'!$E$20, '2. 2013 Continuity Schedule'!$A$20:$CR$20,0),FALSE)), 0, VLOOKUP($A44, '2. 2013 Continuity Schedule'!$A$20:$CR$93, MATCH('3. Appendix A'!$E$20, '2. 2013 Continuity Schedule'!$A$20:$CR$20,0),FALSE)) -> 0
A45: 20 | C45: Renewable Generation Connection OM&A Deferral Account | D45: 1532 | E45: =IF(ISERROR(VLOOKUP($A45, '2. 2013 Continuity Schedule'!$A$20:$CR$93, MATCH('3. Appendix A'!$E$20, '2. 2013 Continuity Schedule'!$A$20:$CR$20,0),FALSE)), 0, VLOOKUP($A45, '2. 2013 Continuity Schedule'!$A$20:$CR$93, MATCH('3. Appendix A'!$E$20, '2. 2013 Continuity Schedule'!$A$20:$CR$20,0),FALSE)) -> 0
A46: 21 | C46: Renewable Generation Connection Funding Adder Deferral Account | D46: 1533 | E46: =IF(ISERROR(VLOOKUP($A46, '2. 2013 Continuity Schedule'!$A$20:$CR$93, MATCH('3. Appendix A'!$E$20, '2. 2013 Continuity Schedule'!$A$20:$CR$20,0),FALSE)), 0, VLOOKUP($A46, '2. 2013 Continuity Schedule'!$A$20:$CR$93, MATCH('3. Appendix A'!$E$20, '2. 2013 Continuity Schedule'!$A$20:$CR$20,0),FALSE)) -> 0
A47: 22 | C47: Smart Grid Capital Deferral Account | D47: 1534 | E47: =IF(ISERROR(VLOOKUP($A47, '2. 2013 Continuity Schedule'!$A$20:$CR$93, MATCH('3. Appendix A'!$E$20, '2. 2013 Continuity Schedule'!$A$20:$CR$20,0),FALSE)), 0, VLOOKUP($A47, '2. 2013 Continuity Schedule'!$A$20:$CR$93, MATCH('3. Appendix A'!$E$20, '2. 2013 Continuity Schedule'!$A$20:$CR$20,0),FALSE)) -> 0
A48: 23 | C48: Smart Grid OM&A Deferral Account | D48: 1535 | E48: =IF(ISERROR(VLOOKUP($A48, '2. 2013 Continuity Schedule'!$A$20:$CR$93, MATCH('3. Appendix A'!$E$20, '2. 2013 Continuity Schedule'!$A$20:$CR$20,0),FALSE)), 0, VLOOKUP($A48, '2. 2013 Continuity Schedule'!$A$20:$CR$93, MATCH('3. Appendix A'!$E$20, '2. 2013 Continuity Schedule'!$A$20:$CR$20,0),FALSE)) -> 0
A49: 24 | C49: Smart Grid Funding Adder Deferral Account | D49: 1536 | E49: =IF(ISERROR(VLOOKUP($A49, '2. 2013 Continuity Schedule'!$A$20:$CR$93, MATCH('3. Appendix A'!$E$20, '2. 2013 Continuity Schedule'!$A$20:$CR$20,0),FALSE)), 0, VLOOKUP($A49, '2. 2013 Continuity Schedule'!$A$20:$CR$93, MATCH('3. Appendix A'!$E$20, '2. 2013 Continuity Schedule'!$A$20:$CR$20,0),FALSE)) -> 0
A50: 25 | C50: Retail Cost Variance Account - STR | D50: 1548 | E50: =IF(ISERROR(VLOOKUP($A50, '2. 2013 Continuity Schedule'!$A$20:$CR$93, MATCH('3. Appendix A'!$E$20, '2. 2013 Continuity Schedule'!$A$20:$CR$20,0),FALSE)), 0, VLOOKUP($A50, '2. 2013 Continuity Schedule'!$A$20:$CR$93, MATCH('3. Appendix A'!$E$20, '2. 2013 Continuity Schedule'!$A$20:$CR$20,0),FALSE)) -> 0
A51: 26 | C51: Board-Approved CDM Variance Account | D51: 1567 | E51: =IF(ISERROR(VLOOKUP($A51, '2. 2013 Continuity Schedule'!$A$20:$CR$93, MATCH('3. Appendix A'!$E$20, '2. 2013 Continuity Schedule'!$A$20:$CR$20,0),FALSE)), 0, VLOOKUP($A51, '2. 2013 Continuity Schedule'!$A$20:$CR$93, MATCH('3. Appendix A'!$E$20, '2. 2013 Continuity Schedule'!$A$20:$CR$20,0),FALSE)) -> 0
A52: 27 | C52: Extra-Ordinary Event Costs | D52: 1572 | E52: =IF(ISERROR(VLOOKUP($A52, '2. 2013 Continuity Schedule'!$A$20:$CR$93, MATCH('3. Appendix A'!$E$20, '2. 2013 Continuity Schedule'!$A$20:$CR$20,0),FALSE)), 0, VLOOKUP($A52, '2. 2013 Continuity Schedule'!$A$20:$CR$93, MATCH('3. Appendix A'!$E$20, '2. 2013 Continuity Schedule'!$A$20:$CR$20,0),FALSE)) -> 0
A53: 28 | C53: Deferred Rate Impact Amounts | D53: 1574 | E53: =IF(ISERROR(VLOOKUP($A53, '2. 2013 Continuity Schedule'!$A$20:$CR$93, MATCH('3. Appendix A'!$E$20, '2. 2013 Continuity Schedule'!$A$20:$CR$20,0),FALSE)), 0, VLOOKUP($A53, '2. 2013 Continuity Schedule'!$A$20:$CR$93, MATCH('3. Appendix A'!$E$20, '2. 2013 Continuity Schedule'!$A$20:$CR$20,0),FALSE)) -> 0
A54: 29 | C54: RSVA - One-time | D54: 1582 | E54: =IF(ISERROR(VLOOKUP($A54, '2. 2013 Continuity Schedule'!$A$20:$CR$93, MATCH('3. Appendix A'!$E$20, '2. 2013 Continuity Schedule'!$A$20:$CR$20,0),FALSE)), 0, VLOOKUP($A54, '2. 2013 Continuity Schedule'!$A$20:$CR$93, MATCH('3. Appendix A'!$E$20, '2. 2013 Continuity Schedule'!$A$20:$CR$20,0),FALSE)) -> 0
A55: 30 | C55: Other Deferred Credits | D55: 2425 | E55: =IF(ISERROR(VLOOKUP($A55, '2. 2013 Continuity Schedule'!$A$20:$CR$93, MATCH('3. Appendix A'!$E$20, '2. 2013 Continuity Schedule'!$A$20:$CR$20,0),FALSE)), 0, VLOOKUP($A55, '2. 2013 Continuity Schedule'!$A$20:$CR$93, MATCH('3. Appendix A'!$E$20, '2. 2013 Continuity Schedule'!$A$20:$CR$20,0),FALSE)) -> 0
A56: 31 | C56: Deferred Payments in Lieu of Taxes | D56: 1562 | E56: =IF(ISERROR(VLOOKUP($A56, '2. 2013 Continuity Schedule'!$A$20:$CR$93, MATCH('3. Appendix A'!$E$20, '2. 2013 Continuity Schedule'!$A$20:$CR$20,0),FALSE)), 0, VLOOKUP($A56, '2. 2013 Continuity Schedule'!$A$20:$CR$93, MATCH('3. Appendix A'!$E$20, '2. 2013 Continuity Schedule'!$A$20:$CR$20,0),FALSE)) -> 0
A57: 32 | C57: PILs and Tax Variance for 2006 and Subsequent Years (excludes sub-account and contra account below) | D57: 1592 | E57: =IF(ISERROR(VLOOKUP($A57, '2. 2013 Continuity Schedule'!$A$20:$CR$93, MATCH('3. Appendix A'!$E$20, '2. 2013 Continuity Schedule'!$A$20:$CR$20,0),FALSE)), 0, VLOOKUP($A57, '2. 2013 Continuity Schedule'!$A$20:$CR$93, MATCH('3. Appendix A'!$E$20, '2. 2013 Continuity Schedule'!$A$20:$CR$20,0),FALSE)) -> 0
A58: 33 | C58: PILs and Tax Variance for 2006 and Subsequent Years - Sub-Account HST/OVAT Input Tax Credits (ITCs) | D58: 1592 | E58: =IF(ISERROR(VLOOKUP($A58, '2. 2013 Continuity Schedule'!$A$20:$CR$93, MATCH('3. Appendix A'!$E$20, '2. 2013 Continuity Schedule'!$A$20:$CR$20,0),FALSE)), 0, VLOOKUP($A58, '2. 2013 Continuity Schedule'!$A$20:$CR$93, MATCH('3. Appendix A'!$E$20, '2. 2013 Continuity Schedule'!$A$20:$CR$20,0),FALSE)) -> 0
A59: 34 | C59: Special Purpose Charge Assessment Variance Account9 | D59: 1521 | E59: =IF(ISERROR(VLOOKUP($A59, '2. 2013 Continuity Schedule'!$A$20:$CR$93, MATCH('3. Appendix A'!$E$20, '2. 2013 Continuity Schedule'!$A$20:$CR$20,0),FALSE)), 0, VLOOKUP($A59, '2. 2013 Continuity Schedule'!$A$20:$CR$93, MATCH('3. Appendix A'!$E$20, '2. 2013 Continuity Schedule'!$A$20:$CR$20,0),FALSE)) -> 0
A60: 35 | C60: Smart Meter Capital and Recovery Offset Variance - Sub-Account - Capital11 | D60: 1555 | E60: =IF(ISERROR(VLOOKUP($A60, '2. 2013 Continuity Schedule'!$A$20:$CR$93, MATCH('3. Appendix A'!$E$20, '2. 2013 Continuity Schedule'!$A$20:$CR$20,0),FALSE)), 0, VLOOKUP($A60, '2. 2013 Continuity Schedule'!$A$20:$CR$93, MATCH('3. Appendix A'!$E$20, '2. 2013 Continuity Schedule'!$A$20:$CR$20,0),FALSE)) -> 0
A61: 36 | C61: Smart Meter Capital and Recovery Offset Variance - Sub-Account - Recoveries11 | D61: 1555 | E61: =IF(ISERROR(VLOOKUP($A61, '2. 2013 Continuity Schedule'!$A$20:$CR$93, MATCH('3. Appendix A'!$E$20, '2. 2013 Continuity Schedule'!$A$20:$CR$20,0),FALSE)), 0, VLOOKUP($A61, '2. 2013 Continuity Schedule'!$A$20:$CR$93, MATCH('3. Appendix A'!$E$20, '2. 2013 Continuity Schedule'!$A$20:$CR$20,0),FALSE)) -> 0
A62: 37 | C62: Smart Meter Capital and Recovery Offset Variance - Sub-Account - Stranded Meter Costs11 | D62: 1555 | E62: =IF(ISERROR(VLOOKUP($A62, '2. 2013 Continuity Schedule'!$A$20:$CR$93, MATCH('3. Appendix A'!$E$20, '2. 2013 Continuity Schedule'!$A$20:$CR$20,0),FALSE)), 0, VLOOKUP($A62, '2. 2013 Continuity Schedule'!$A$20:$CR$93, MATCH('3. Appendix A'!$E$20, '2. 2013 Continuity Schedule'!$A$20:$CR$20,0),FALSE)) -> 0
A63: 38 | C63: Smart Meter OM&A Variance11 | D63: 1556 | E63: =IF(ISERROR(VLOOKUP($A63, '2. 2013 Continuity Schedule'!$A$20:$CR$93, MATCH('3. Appendix A'!$E$20, '2. 2013 Continuity Schedule'!$A$20:$CR$20,0),FALSE)), 0, VLOOKUP($A63, '2. 2013 Continuity Schedule'!$A$20:$CR$93, MATCH('3. Appendix A'!$E$20, '2. 2013 Continuity Schedule'!$A$20:$CR$20,0),FALSE)) -> 0
A64: 39 | C64: Deferred PILs Contra Account 5 | D64: 1563 | E64: =IF(ISERROR(VLOOKUP($A64, '2. 2013 Continuity Schedule'!$A$20:$CR$93, MATCH('3. Appendix A'!$E$20, '2. 2013 Continuity Schedule'!$A$20:$CR$20,0),FALSE)), 0, VLOOKUP($A64, '2. 2013 Continuity Schedule'!$A$20:$CR$93, MATCH('3. Appendix A'!$E$20, '2. 2013 Continuity Schedule'!$A$20:$CR$20,0),FALSE)) -> 0
A65: 40 | C65: IFRS-CGAAP Transition PP&E Amounts10 | D65: 1575 | E65: =IF(ISERROR(VLOOKUP($A65, '2. 2013 Continuity Schedule'!$A$20:$CR$93, MATCH('3. Appendix A'!$E$20, '2. 2013 Continuity Schedule'!$A$20:$CR$20,0),FALSE)), 0, VLOOKUP($A65, '2. 2013 Continuity Schedule'!$A$20:$CR$93, MATCH('3. Appendix A'!$E$20, '2. 2013 Continuity Schedule'!$A$20:$CR$20,0),FALSE)) -> 0
A66: 41 | C66: PILs and Tax Variance for 2006 and Subsequent Years - Sub-Account HST/OVAT Contra Account | D66: 1592 | E66: =IF(ISERROR(VLOOKUP($A66, '2. 2013 Continuity Schedule'!$A$20:$CR$93, MATCH('3. Appendix A'!$E$20, '2. 2013 Continuity Schedule'!$A$20:$CR$20,0),FALSE)), 0, VLOOKUP($A66, '2. 2013 Continuity Schedule'!$A$20:$CR$93, MATCH('3. Appendix A'!$E$20, '2. 2013 Continuity Schedule'!$A$20:$CR$20,0),FALSE)) -> 0
A67: 42 | C67: Disposition and Recovery of Regulatory Balances7 | D67: 1595 | E67: =IF(ISERROR(VLOOKUP($A67, '2. 2013 Continuity Schedule'!$A$20:$CR$93, MATCH('3. Appendix A'!$E$20, '2. 2013 Continuity Schedule'!$A$20:$CR$20,0),FALSE)), 0, VLOOKUP($A67, '2. 2013 Continuity Schedule'!$A$20:$CR$93, MATCH('3. Appendix A'!$E$20, '2. 2013 Continuity Schedule'!$A$20:$CR$20,0),FALSE)) -> 0

Sheet 4. Billing Determinants
B16: In the green shaded cells, enter the most recent Board Approved volumetric forecast. If there is a material difference between the latest Board-approved volumetric forecast and the most recent 12-month actual volumetric data, use the most recent 12-month actual data. Do not enter data for the MicroFit class.
B19: Rate Class (Enter Rate Classes in cells below) | C19: Units | D19: # of Customers | E19: Metered kWh | F19: Metered kW | G19: Billed kWh for Non-RPP Customers | H19: Estimated kW for Non-RPP Customers | I19: Distribution Revenue 1 | J19: 1590 Recovery Share Proportion | K19: 1595 Recovery Share Proportion (2008) 2 | L19: 1595 Recovery Share Proportion (2009) 2 | M19: 1595 Recovery Share Proportion (2010) 2 | N19: 1568 LRAM Variance Account Class Allocation ($ amounts)
B21: Residential | C21: kWh | D21: 4869 | E21: 51132834 | G21: 2604189 | H21: =IF(ISERROR(F21/E21*G21), 0, F21/E21*G21) -> 0 | I21: =424536.66+346910.33+252905.01+13597.32 -> 1037949.32 | K21: 0.57
B22: GS<50 | C22: kWh | D22: 616 | E22: 18531353 | G22: 70374 | H22: =IF(ISERROR(F22/E22*G22), 0, F22/E22*G22) -> 0 | I22: =101557.19+97869.93+55476.18+1589.48 -> 256492.78 | K22: 0.16
B23: GS>50 | C23: kW | D23: 94 | E23: =28621077+49253940 -> 77875017 | F23: =80056+126584 -> 206640 | G23: 77875019 | H23: 206640.0053 | I23: =317528.57+112714.81-113523.52+210.46 -> 316930.32 | K23: 0.25
B24: USL | C24: kWh | D24: 5 | E24: 214901 | G24: 9584 | H24: 0 | I24: =451.33+385.5+13.76 -> 850.59 | K24: 0
B25: Sentinel | C25: kW | D25: 21 | E25: 102354 | F25: 284 | G25: 5803 | H25: 16.1014909 | I25: =899.94+1387.82+169.81 -> 2457.57 | K25: 0
B26: Street Lights | C26: kW | D26: 1204 | E26: 1355854 | F26: 3751 | G26: 1355855 | H26: =IF(ISERROR(F26/E26*G26), 0, F26/E26*G26) -> 3751.002767 | I26: =25139.76+8891.12+2.75 -> 34033.63 | K26: 0.02
H27: 0
H28: 0
H29: 0
H30: 0
H31: 0
H32: 0
H33: 0
H34: 0
H35: 0
H36: 0
H37: 0
H38: 0
H39: 0
H40: 0
B41: Total | D41: =SUM(D21:D40) -> 6809 | E41: =SUM(E21:E40) -> 149212313 | F41: =SUM(F21:F40) -> 210675 | G41: 81920824 | H41: 210407.1096 | I41: 1648714.21 | J41: 0 | K41: 1 | L41: 0 | M41: 0 | N41: 0
M42: Balance as per Sheet 2 | N42: ='2. 2013 Continuity Schedule'!CP76 -> 6818.56
M43: Variance | N43: =N41-N42 -> -6818.56
A45: 1 For Account 1562, the allocation to customer classes should be performed on the basis of the test year distribution revenue allocation to customer classes found in the Applicant’s Cost of Service application that was most recently approved at the time of disposition of the 1562 account balances
A47: 2 Residual Account balance to be allocated to rate classes in proportion to the recovery share as established when rate riders were implemented.

Sheet 5. Allocation of Balances
D4: Amounts from Sheet 2 | E4: Allocator | F4: =IF(LEN(TRIM('4. Billing Determinants'!$B21))=0, "", '4. Billing Determinants'!$B21) -> Residential | G4: =IF(LEN(TRIM('4. Billing Determinants'!$B22))=0, "", '4. Billing Determinants'!$B22) -> GS<50 | H4: =IF(LEN(TRIM('4. Billing Determinants'!$B23))=0, "", '4. Billing Determinants'!$B23) -> GS>50 | I4: =IF(LEN(TRIM('4. Billing Determinants'!$B24))=0, "", '4. Billing Determinants'!$B24) -> USL | J4: =IF(LEN(TRIM('4. Billing Determinants'!$B25))=0, "", '4. Billing Determinants'!$B25) -> Sentinel | K4: =IF(LEN(TRIM('4. Billing Determinants'!$B26))=0, "", '4. Billing Determinants'!$B26) -> Street Lights | L4: =IF(LEN(TRIM('4. Billing Determinants'!$B27))=0, "", '4. Billing Determinants'!$B27) ->  | M4: =IF(LEN(TRIM('4. Billing Determinants'!$B28))=0, "", '4. Billing Determinants'!$B28) ->  | N4: =IF(LEN(TRIM('4. Billing Determinants'!$B29))=0, "", '4. Billing Determinants'!$B29) ->  | O4: =IF(LEN(TRIM('4. Billing Determinants'!$B30))=0, "", '4. Billing Determinants'!$B30) ->  | P4: =IF(LEN(TRIM('4. Billing Determinants'!$B31))=0, "", '4. Billing Determinants'!$B31) ->  | Q4: =IF(LEN(TRIM('4. Billing Determinants'!$B32))=0, "", '4. Billing Determinants'!$B32) ->  | R4: =IF(LEN(TRIM('4. Billing Determinants'!$B33))=0, "", '4. Billing Determinants'!$B33) ->  | S4: =IF(LEN(TRIM('4. Billing Determinants'!$B34))=0, "", '4. Billing Determinants'!$B34) ->  | T4: =IF(LEN(TRIM('4. Billing Determinants'!$B35))=0, "", '4. Billing Determinants'!$B35) ->  | U4: =IF(LEN(TRIM('4. Billing Determinants'!$B36))=0, "", '4. Billing Determinants'!$B36) ->  | V4: =IF(LEN(TRIM('4. Billing Determinants'!$B37))=0, "", '4. Billing Determinants'!$B37) ->  | W4: =IF(LEN(TRIM('4. Billing Determinants'!$B38))=0, "", '4. Billing Determinants'!$B38) ->  | X4: =IF(LEN(TRIM('4. Billing Determinants'!$B39))=0, "", '4. Billing Determinants'!$B39) ->  | Y4: =IF(LEN(TRIM('4. Billing Determinants'!$B40))=0, "", '4. Billing Determinants'!$B40) -> 
B5: LV Variance Account | C5: 1550 | D5: ='2. 2013 Continuity Schedule'!CP24 -> 48843.22 | E5: kWh | F5: =IF(F$4="",0,IF($E5="kWh",VLOOKUP(F$4,'4. Billing Determinants'!$B$19:$N$41,4,0)/'4. Billing Determinants'!$E$41*$D5,IF($E5="kW",VLOOKUP(F$4,'4. Billing Determinants'!$B$19:$N$41,5,0)/'4. Billing Determinants'!$F$41*$D5,IF($E5="Non-RPP kWh",VLOOKUP(F$4,'4. Billing Determinants'!$B$19:$N$41,6,0)/'4. Billing Determinants'!$G$41*$D5,IF($E5="Distribution Rev.",VLOOKUP(F$4,'4. Billing Determinants'!$B$19:$N$41,8,0)/'4. Billing Determinants'!$I$41*$D5, VLOOKUP(F$4,'4. Billing Determinants'!$B$19:$N$41,3,0)/'4. Billing Determinants'!$D$41*$D5))))) -> 16737.84294 | G5: =IF(G$4="",0,IF($E5="kWh",VLOOKUP(G$4,'4. Billing Determinants'!$B$19:$N$41,4,0)/'4. Billing Determinants'!$E$41*$D5,IF($E5="kW",VLOOKUP(G$4,'4. Billing Determinants'!$B$19:$N$41,5,0)/'4. Billing Determinants'!$F$41*$D5,IF($E5="Non-RPP kWh",VLOOKUP(G$4,'4. Billing Determinants'!$B$19:$N$41,6,0)/'4. Billing Determinants'!$G$41*$D5,IF($E5="Distribution Rev.",VLOOKUP(G$4,'4. Billing Determinants'!$B$19:$N$41,8,0)/'4. Billing Determinants'!$I$41*$D5, VLOOKUP(G$4,'4. Billing Determinants'!$B$19:$N$41,3,0)/'4. Billing Determinants'!$D$41*$D5))))) -> 6066.060724 | H5: =IF(H$4="",0,IF($E5="kWh",VLOOKUP(H$4,'4. Billing Determinants'!$B$19:$N$41,4,0)/'4. Billing Determinants'!$E$41*$D5,IF($E5="kW",VLOOKUP(H$4,'4. Billing Determinants'!$B$19:$N$41,5,0)/'4. Billing Determinants'!$F$41*$D5,IF($E5="Non-RPP kWh",VLOOKUP(H$4,'4. Billing Determinants'!$B$19:$N$41,6,0)/'4. Billing Determinants'!$G$41*$D5,IF($E5="Distribution Rev.",VLOOKUP(H$4,'4. Billing Determinants'!$B$19:$N$41,8,0)/'4. Billing Determinants'!$I$41*$D5, VLOOKUP(H$4,'4. Billing Determinants'!$B$19:$N$41,3,0)/'4. Billing Determinants'!$D$41*$D5))))) -> 25491.64014 | I5: =IF(I$4="",0,IF($E5="kWh",VLOOKUP(I$4,'4. Billing Determinants'!$B$19:$N$41,4,0)/'4. Billing Determinants'!$E$41*$D5,IF($E5="kW",VLOOKUP(I$4,'4. Billing Determinants'!$B$19:$N$41,5,0)/'4. Billing Determinants'!$F$41*$D5,IF($E5="Non-RPP kWh",VLOOKUP(I$4,'4. Billing Determinants'!$B$19:$N$41,6,0)/'4. Billing Determinants'!$G$41*$D5,IF($E5="Distribution Rev.",VLOOKUP(I$4,'4. Billing Determinants'!$B$19:$N$41,8,0)/'4. Billing Determinants'!$I$41*$D5, VLOOKUP(I$4,'4. Billing Determinants'!$B$19:$N$41,3,0)/'4. Billing Determinants'!$D$41*$D5))))) -> 70.34578186 | J5: =IF(J$4="",0,IF($E5="kWh",VLOOKUP(J$4,'4. Billing Determinants'!$B$19:$N$41,4,0)/'4. Billing Determinants'!$E$41*$D5,IF($E5="kW",VLOOKUP(J$4,'4. Billing Determinants'!$B$19:$N$41,5,0)/'4. Billing Determinants'!$F$41*$D5,IF($E5="Non-RPP kWh",VLOOKUP(J$4,'4. Billing Determinants'!$B$19:$N$41,6,0)/'4. Billing Determinants'!$G$41*$D5,IF($E5="Distribution Rev.",VLOOKUP(J$4,'4. Billing Determinants'!$B$19:$N$41,8,0)/'4. Billing Determinants'!$I$41*$D5, VLOOKUP(J$4,'4. Billing Determinants'!$B$19:$N$41,3,0)/'4. Billing Determinants'!$D$41*$D5))))) -> 33.50460052 | K5: =IF(K$4="",0,IF($E5="kWh",VLOOKUP(K$4,'4. Billing Determinants'!$B$19:$N$41,4,0)/'4. Billing Determinants'!$E$41*$D5,IF($E5="kW",VLOOKUP(K$4,'4. Billing Determinants'!$B$19:$N$41,5,0)/'4. Billing Determinants'!$F$41*$D5,IF($E5="Non-RPP kWh",VLOOKUP(K$4,'4. Billing Determinants'!$B$19:$N$41,6,0)/'4. Billing Determinants'!$G$41*$D5,IF($E5="Distribution Rev.",VLOOKUP(K$4,'4. Billing Determinants'!$B$19:$N$41,8,0)/'4. Billing Determinants'!$I$41*$D5, VLOOKUP(K$4,'4. Billing Determinants'!$B$19:$N$41,3,0)/'4. Billing Determinants'!$D$41*$D5))))) -> 443.8258069 | L5: =IF(L$4="",0,IF($E5="kWh",VLOOKUP(L$4,'4. Billing Determinants'!$B$19:$N$41,4,0)/'4. Billing Determinants'!$E$41*$D5,IF($E5="kW",VLOOKUP(L$4,'4. Billing Determinants'!$B$19:$N$41,5,0)/'4. Billing Determinants'!$F$41*$D5,IF($E5="Non-RPP kWh",VLOOKUP(L$4,'4. Billing Determinants'!$B$19:$N$41,6,0)/'4. Billing Determinants'!$G$41*$D5,IF($E5="Distribution Rev.",VLOOKUP(L$4,'4. Billing Determinants'!$B$19:$N$41,8,0)/'4. Billing Determinants'!$I$41*$D5, VLOOKUP(L$4,'4. Billing Determinants'!$B$19:$N$41,3,0)/'4. Billing Determinants'!$D$41*$D5))))) -> 0 | M5: =IF(M$4="",0,IF($E5="kWh",VLOOKUP(M$4,'4. Billing Determinants'!$B$19:$N$41,4,0)/'4. Billing Determinants'!$E$41*$D5,IF($E5="kW",VLOOKUP(M$4,'4. Billing Determinants'!$B$19:$N$41,5,0)/'4. Billing Determinants'!$F$41*$D5,IF($E5="Non-RPP kWh",VLOOKUP(M$4,'4. Billing Determinants'!$B$19:$N$41,6,0)/'4. Billing Determinants'!$G$41*$D5,IF($E5="Distribution Rev.",VLOOKUP(M$4,'4. Billing Determinants'!$B$19:$N$41,8,0)/'4. Billing Determinants'!$I$41*$D5, VLOOKUP(M$4,'4. Billing Determinants'!$B$19:$N$41,3,0)/'4. Billing Determinants'!$D$41*$D5))))) -> 0 | N5: =IF(N$4="",0,IF($E5="kWh",VLOOKUP(N$4,'4. Billing Determinants'!$B$19:$N$41,4,0)/'4. Billing Determinants'!$E$41*$D5,IF($E5="kW",VLOOKUP(N$4,'4. Billing Determinants'!$B$19:$N$41,5,0)/'4. Billing Determinants'!$F$41*$D5,IF($E5="Non-RPP kWh",VLOOKUP(N$4,'4. Billing Determinants'!$B$19:$N$41,6,0)/'4. Billing Determinants'!$G$41*$D5,IF($E5="Distribution Rev.",VLOOKUP(N$4,'4. Billing Determinants'!$B$19:$N$41,8,0)/'4. Billing Determinants'!$I$41*$D5, VLOOKUP(N$4,'4. Billing Determinants'!$B$19:$N$41,3,0)/'4. Billing Determinants'!$D$41*$D5))))) -> 0 | O5: =IF(O$4="",0,IF($E5="kWh",VLOOKUP(O$4,'4. Billing Determinants'!$B$19:$N$41,4,0)/'4. Billing Determinants'!$E$41*$D5,IF($E5="kW",VLOOKUP(O$4,'4. Billing Determinants'!$B$19:$N$41,5,0)/'4. Billing Determinants'!$F$41*$D5,IF($E5="Non-RPP kWh",VLOOKUP(O$4,'4. Billing Determinants'!$B$19:$N$41,6,0)/'4. Billing Determinants'!$G$41*$D5,IF($E5="Distribution Rev.",VLOOKUP(O$4,'4. Billing Determinants'!$B$19:$N$41,8,0)/'4. Billing Determinants'!$I$41*$D5, VLOOKUP(O$4,'4. Billing Determinants'!$B$19:$N$41,3,0)/'4. Billing Determinants'!$D$41*$D5))))) -> 0 | P5: =IF(P$4="",0,IF($E5="kWh",VLOOKUP(P$4,'4. Billing Determinants'!$B$19:$N$41,4,0)/'4. Billing Determinants'!$E$41*$D5,IF($E5="kW",VLOOKUP(P$4,'4. Billing Determinants'!$B$19:$N$41,5,0)/'4. Billing Determinants'!$F$41*$D5,IF($E5="Non-RPP kWh",VLOOKUP(P$4,'4. Billing Determinants'!$B$19:$N$41,6,0)/'4. Billing Determinants'!$G$41*$D5,IF($E5="Distribution Rev.",VLOOKUP(P$4,'4. Billing Determinants'!$B$19:$N$41,8,0)/'4. Billing Determinants'!$I$41*$D5, VLOOKUP(P$4,'4. Billing Determinants'!$B$19:$N$41,3,0)/'4. Billing Determinants'!$D$41*$D5))))) -> 0 | Q5: =IF(Q$4="",0,IF($E5="kWh",VLOOKUP(Q$4,'4. Billing Determinants'!$B$19:$N$41,4,0)/'4. Billing Determinants'!$E$41*$D5,IF($E5="kW",VLOOKUP(Q$4,'4. Billing Determinants'!$B$19:$N$41,5,0)/'4. Billing Determinants'!$F$41*$D5,IF($E5="Non-RPP kWh",VLOOKUP(Q$4,'4. Billing Determinants'!$B$19:$N$41,6,0)/'4. Billing Determinants'!$G$41*$D5,IF($E5="Distribution Rev.",VLOOKUP(Q$4,'4. Billing Determinants'!$B$19:$N$41,8,0)/'4. Billing Determinants'!$I$41*$D5, VLOOKUP(Q$4,'4. Billing Determinants'!$B$19:$N$41,3,0)/'4. Billing Determinants'!$D$41*$D5))))) -> 0 | R5: =IF(R$4="",0,IF($E5="kWh",VLOOKUP(R$4,'4. Billing Determinants'!$B$19:$N$41,4,0)/'4. Billing Determinants'!$E$41*$D5,IF($E5="kW",VLOOKUP(R$4,'4. Billing Determinants'!$B$19:$N$41,5,0)/'4. Billing Determinants'!$F$41*$D5,IF($E5="Non-RPP kWh",VLOOKUP(R$4,'4. Billing Determinants'!$B$19:$N$41,6,0)/'4. Billing Determinants'!$G$41*$D5,IF($E5="Distribution Rev.",VLOOKUP(R$4,'4. Billing Determinants'!$B$19:$N$41,8,0)/'4. Billing Determinants'!$I$41*$D5, VLOOKUP(R$4,'4. Billing Determinants'!$B$19:$N$41,3,0)/'4. Billing Determinants'!$D$41*$D5))))) -> 0 | S5: =IF(S$4="",0,IF($E5="kWh",VLOOKUP(S$4,'4. Billing Determinants'!$B$19:$N$41,4,0)/'4. Billing Determinants'!$E$41*$D5,IF($E5="kW",VLOOKUP(S$4,'4. Billing Determinants'!$B$19:$N$41,5,0)/'4. Billing Determinants'!$F$41*$D5,IF($E5="Non-RPP kWh",VLOOKUP(S$4,'4. Billing Determinants'!$B$19:$N$41,6,0)/'4. Billing Determinants'!$G$41*$D5,IF($E5="Distribution Rev.",VLOOKUP(S$4,'4. Billing Determinants'!$B$19:$N$41,8,0)/'4. Billing Determinants'!$I$41*$D5, VLOOKUP(S$4,'4. Billing Determinants'!$B$19:$N$41,3,0)/'4. Billing Determinants'!$D$41*$D5))))) -> 0 | T5: =IF(T$4="",0,IF($E5="kWh",VLOOKUP(T$4,'4. Billing Determinants'!$B$19:$N$41,4,0)/'4. Billing Determinants'!$E$41*$D5,IF($E5="kW",VLOOKUP(T$4,'4. Billing Determinants'!$B$19:$N$41,5,0)/'4. Billing Determinants'!$F$41*$D5,IF($E5="Non-RPP kWh",VLOOKUP(T$4,'4. Billing Determinants'!$B$19:$N$41,6,0)/'4. Billing Determinants'!$G$41*$D5,IF($E5="Distribution Rev.",VLOOKUP(T$4,'4. Billing Determinants'!$B$19:$N$41,8,0)/'4. Billing Determinants'!$I$41*$D5, VLOOKUP(T$4,'4. Billing Determinants'!$B$19:$N$41,3,0)/'4. Billing Determinants'!$D$41*$D5))))) -> 0 | U5: =IF(U$4="",0,IF($E5="kWh",VLOOKUP(U$4,'4. Billing Determinants'!$B$19:$N$41,4,0)/'4. Billing Determinants'!$E$41*$D5,IF($E5="kW",VLOOKUP(U$4,'4. Billing Determinants'!$B$19:$N$41,5,0)/'4. Billing Determinants'!$F$41*$D5,IF($E5="Non-RPP kWh",VLOOKUP(U$4,'4. Billing Determinants'!$B$19:$N$41,6,0)/'4. Billing Determinants'!$G$41*$D5,IF($E5="Distribution Rev.",VLOOKUP(U$4,'4. Billing Determinants'!$B$19:$N$41,8,0)/'4. Billing Determinants'!$I$41*$D5, VLOOKUP(U$4,'4. Billing Determinants'!$B$19:$N$41,3,0)/'4. Billing Determinants'!$D$41*$D5))))) -> 0 | V5: =IF(V$4="",0,IF($E5="kWh",VLOOKUP(V$4,'4. Billing Determinants'!$B$19:$N$41,4,0)/'4. Billing Determinants'!$E$41*$D5,IF($E5="kW",VLOOKUP(V$4,'4. Billing Determinants'!$B$19:$N$41,5,0)/'4. Billing Determinants'!$F$41*$D5,IF($E5="Non-RPP kWh",VLOOKUP(V$4,'4. Billing Determinants'!$B$19:$N$41,6,0)/'4. Billing Determinants'!$G$41*$D5,IF($E5="Distribution Rev.",VLOOKUP(V$4,'4. Billing Determinants'!$B$19:$N$41,8,0)/'4. Billing Determinants'!$I$41*$D5, VLOOKUP(V$4,'4. Billing Determinants'!$B$19:$N$41,3,0)/'4. Billing Determinants'!$D$41*$D5))))) -> 0 | W5: =IF(W$4="",0,IF($E5="kWh",VLOOKUP(W$4,'4. Billing Determinants'!$B$19:$N$41,4,0)/'4. Billing Determinants'!$E$41*$D5,IF($E5="kW",VLOOKUP(W$4,'4. Billing Determinants'!$B$19:$N$41,5,0)/'4. Billing Determinants'!$F$41*$D5,IF($E5="Non-RPP kWh",VLOOKUP(W$4,'4. Billing Determinants'!$B$19:$N$41,6,0)/'4. Billing Determinants'!$G$41*$D5,IF($E5="Distribution Rev.",VLOOKUP(W$4,'4. Billing Determinants'!$B$19:$N$41,8,0)/'4. Billing Determinants'!$I$41*$D5, VLOOKUP(W$4,'4. Billing Determinants'!$B$19:$N$41,3,0)/'4. Billing Determinants'!$D$41*$D5))))) -> 0 | X5: =IF(X$4="",0,IF($E5="kWh",VLOOKUP(X$4,'4. Billing Determinants'!$B$19:$N$41,4,0)/'4. Billing Determinants'!$E$41*$D5,IF($E5="kW",VLOOKUP(X$4,'4. Billing Determinants'!$B$19:$N$41,5,0)/'4. Billing Determinants'!$F$41*$D5,IF($E5="Non-RPP kWh",VLOOKUP(X$4,'4. Billing Determinants'!$B$19:$N$41,6,0)/'4. Billing Determinants'!$G$41*$D5,IF($E5="Distribution Rev.",VLOOKUP(X$4,'4. Billing Determinants'!$B$19:$N$41,8,0)/'4. Billing Determinants'!$I$41*$D5, VLOOKUP(X$4,'4. Billing Determinants'!$B$19:$N$41,3,0)/'4. Billing Determinants'!$D$41*$D5))))) -> 0 | Y5: =IF(Y$4="",0,IF($E5="kWh",VLOOKUP(Y$4,'4. Billing Determinants'!$B$19:$N$41,4,0)/'4. Billing Determinants'!$E$41*$D5,IF($E5="kW",VLOOKUP(Y$4,'4. Billing Determinants'!$B$19:$N$41,5,0)/'4. Billing Determinants'!$F$41*$D5,IF($E5="Non-RPP kWh",VLOOKUP(Y$4,'4. Billing Determinants'!$B$19:$N$41,6,0)/'4. Billing Determinants'!$G$41*$D5,IF($E5="Distribution Rev.",VLOOKUP(Y$4,'4. Billing Determinants'!$B$19:$N$41,8,0)/'4. Billing Determinants'!$I$41*$D5, VLOOKUP(Y$4,'4. Billing Determinants'!$B$19:$N$41,3,0)/'4. Billing Determinants'!$D$41*$D5))))) -> 0
B6: RSVA - Wholesale Market Service Charge | C6: 1580 | D6: ='2. 2013 Continuity Schedule'!CP25 -> -116610.21 | E6: kWh | F6: =IF(F$4="",0,IF($E6="kWh",VLOOKUP(F$4,'4. Billing Determinants'!$B$19:$N$41,4,0)/'4. Billing Determinants'!$E$41*$D6,IF($E6="kW",VLOOKUP(F$4,'4. Billing Determinants'!$B$19:$N$41,5,0)/'4. Billing Determinants'!$F$41*$D6,IF($E6="Non-RPP kWh",VLOOKUP(F$4,'4. Billing Determinants'!$B$19:$N$41,6,0)/'4. Billing Determinants'!$G$41*$D6,IF($E6="Distribution Rev.",VLOOKUP(F$4,'4. Billing Determinants'!$B$19:$N$41,8,0)/'4. Billing Determinants'!$I$41*$D6, VLOOKUP(F$4,'4. Billing Determinants'!$B$19:$N$41,3,0)/'4. Billing Determinants'!$D$41*$D6))))) -> -39960.5796 | G6: =IF(G$4="",0,IF($E6="kWh",VLOOKUP(G$4,'4. Billing Determinants'!$B$19:$N$41,4,0)/'4. Billing Determinants'!$E$41*$D6,IF($E6="kW",VLOOKUP(G$4,'4. Billing Determinants'!$B$19:$N$41,5,0)/'4. Billing Determinants'!$F$41*$D6,IF($E6="Non-RPP kWh",VLOOKUP(G$4,'4. Billing Determinants'!$B$19:$N$41,6,0)/'4. Billing Determinants'!$G$41*$D6,IF($E6="Distribution Rev.",VLOOKUP(G$4,'4. Billing Determinants'!$B$19:$N$41,8,0)/'4. Billing Determinants'!$I$41*$D6, VLOOKUP(G$4,'4. Billing Determinants'!$B$19:$N$41,3,0)/'4. Billing Determinants'!$D$41*$D6))))) -> -14482.35016 | H6: =IF(H$4="",0,IF($E6="kWh",VLOOKUP(H$4,'4. Billing Determinants'!$B$19:$N$41,4,0)/'4. Billing Determinants'!$E$41*$D6,IF($E6="kW",VLOOKUP(H$4,'4. Billing Determinants'!$B$19:$N$41,5,0)/'4. Billing Determinants'!$F$41*$D6,IF($E6="Non-RPP kWh",VLOOKUP(H$4,'4. Billing Determinants'!$B$19:$N$41,6,0)/'4. Billing Determinants'!$G$41*$D6,IF($E6="Distribution Rev.",VLOOKUP(H$4,'4. Billing Determinants'!$B$19:$N$41,8,0)/'4. Billing Determinants'!$I$41*$D6, VLOOKUP(H$4,'4. Billing Determinants'!$B$19:$N$41,3,0)/'4. Billing Determinants'!$D$41*$D6))))) -> -60859.73673 | I6: =IF(I$4="",0,IF($E6="kWh",VLOOKUP(I$4,'4. Billing Determinants'!$B$19:$N$41,4,0)/'4. Billing Determinants'!$E$41*$D6,IF($E6="kW",VLOOKUP(I$4,'4. Billing Determinants'!$B$19:$N$41,5,0)/'4. Billing Determinants'!$F$41*$D6,IF($E6="Non-RPP kWh",VLOOKUP(I$4,'4. Billing Determinants'!$B$19:$N$41,6,0)/'4. Billing Determinants'!$G$41*$D6,IF($E6="Distribution Rev.",VLOOKUP(I$4,'4. Billing Determinants'!$B$19:$N$41,8,0)/'4. Billing Determinants'!$I$41*$D6, VLOOKUP(I$4,'4. Billing Determinants'!$B$19:$N$41,3,0)/'4. Billing Determinants'!$D$41*$D6))))) -> -167.9462655 | J6: =IF(J$4="",0,IF($E6="kWh",VLOOKUP(J$4,'4. Billing Determinants'!$B$19:$N$41,4,0)/'4. Billing Determinants'!$E$41*$D6,IF($E6="kW",VLOOKUP(J$4,'4. Billing Determinants'!$B$19:$N$41,5,0)/'4. Billing Determinants'!$F$41*$D6,IF($E6="Non-RPP kWh",VLOOKUP(J$4,'4. Billing Determinants'!$B$19:$N$41,6,0)/'4. Billing Determinants'!$G$41*$D6,IF($E6="Distribution Rev.",VLOOKUP(J$4,'4. Billing Determinants'!$B$19:$N$41,8,0)/'4. Billing Determinants'!$I$41*$D6, VLOOKUP(J$4,'4. Billing Determinants'!$B$19:$N$41,3,0)/'4. Billing Determinants'!$D$41*$D6))))) -> -79.99019112 | K6: =IF(K$4="",0,IF($E6="kWh",VLOOKUP(K$4,'4. Billing Determinants'!$B$19:$N$41,4,0)/'4. Billing Determinants'!$E$41*$D6,IF($E6="kW",VLOOKUP(K$4,'4. Billing Determinants'!$B$19:$N$41,5,0)/'4. Billing Determinants'!$F$41*$D6,IF($E6="Non-RPP kWh",VLOOKUP(K$4,'4. Billing Determinants'!$B$19:$N$41,6,0)/'4. Billing Determinants'!$G$41*$D6,IF($E6="Distribution Rev.",VLOOKUP(K$4,'4. Billing Determinants'!$B$19:$N$41,8,0)/'4. Billing Determinants'!$I$41*$D6, VLOOKUP(K$4,'4. Billing Determinants'!$B$19:$N$41,3,0)/'4. Billing Determinants'!$D$41*$D6))))) -> -1059.607056 | L6: =IF(L$4="",0,IF($E6="kWh",VLOOKUP(L$4,'4. Billing Determinants'!$B$19:$N$41,4,0)/'4. Billing Determinants'!$E$41*$D6,IF($E6="kW",VLOOKUP(L$4,'4. Billing Determinants'!$B$19:$N$41,5,0)/'4. Billing Determinants'!$F$41*$D6,IF($E6="Non-RPP kWh",VLOOKUP(L$4,'4. Billing Determinants'!$B$19:$N$41,6,0)/'4. Billing Determinants'!$G$41*$D6,IF($E6="Distribution Rev.",VLOOKUP(L$4,'4. Billing Determinants'!$B$19:$N$41,8,0)/'4. Billing Determinants'!$I$41*$D6, VLOOKUP(L$4,'4. Billing Determinants'!$B$19:$N$41,3,0)/'4. Billing Determinants'!$D$41*$D6))))) -> 0 | M6: =IF(M$4="",0,IF($E6="kWh",VLOOKUP(M$4,'4. Billing Determinants'!$B$19:$N$41,4,0)/'4. Billing Determinants'!$E$41*$D6,IF($E6="kW",VLOOKUP(M$4,'4. Billing Determinants'!$B$19:$N$41,5,0)/'4. Billing Determinants'!$F$41*$D6,IF($E6="Non-RPP kWh",VLOOKUP(M$4,'4. Billing Determinants'!$B$19:$N$41,6,0)/'4. Billing Determinants'!$G$41*$D6,IF($E6="Distribution Rev.",VLOOKUP(M$4,'4. Billing Determinants'!$B$19:$N$41,8,0)/'4. Billing Determinants'!$I$41*$D6, VLOOKUP(M$4,'4. Billing Determinants'!$B$19:$N$41,3,0)/'4. Billing Determinants'!$D$41*$D6))))) -> 0 | N6: =IF(N$4="",0,IF($E6="kWh",VLOOKUP(N$4,'4. Billing Determinants'!$B$19:$N$41,4,0)/'4. Billing Determinants'!$E$41*$D6,IF($E6="kW",VLOOKUP(N$4,'4. Billing Determinants'!$B$19:$N$41,5,0)/'4. Billing Determinants'!$F$41*$D6,IF($E6="Non-RPP kWh",VLOOKUP(N$4,'4. Billing Determinants'!$B$19:$N$41,6,0)/'4. Billing Determinants'!$G$41*$D6,IF($E6="Distribution Rev.",VLOOKUP(N$4,'4. Billing Determinants'!$B$19:$N$41,8,0)/'4. Billing Determinants'!$I$41*$D6, VLOOKUP(N$4,'4. Billing Determinants'!$B$19:$N$41,3,0)/'4. Billing Determinants'!$D$41*$D6))))) -> 0 | O6: =IF(O$4="",0,IF($E6="kWh",VLOOKUP(O$4,'4. Billing Determinants'!$B$19:$N$41,4,0)/'4. Billing Determinants'!$E$41*$D6,IF($E6="kW",VLOOKUP(O$4,'4. Billing Determinants'!$B$19:$N$41,5,0)/'4. Billing Determinants'!$F$41*$D6,IF($E6="Non-RPP kWh",VLOOKUP(O$4,'4. Billing Determinants'!$B$19:$N$41,6,0)/'4. Billing Determinants'!$G$41*$D6,IF($E6="Distribution Rev.",VLOOKUP(O$4,'4. Billing Determinants'!$B$19:$N$41,8,0)/'4. Billing Determinants'!$I$41*$D6, VLOOKUP(O$4,'4. Billing Determinants'!$B$19:$N$41,3,0)/'4. Billing Determinants'!$D$41*$D6))))) -> 0 | P6: =IF(P$4="",0,IF($E6="kWh",VLOOKUP(P$4,'4. Billing Determinants'!$B$19:$N$41,4,0)/'4. Billing Determinants'!$E$41*$D6,IF($E6="kW",VLOOKUP(P$4,'4. Billing Determinants'!$B$19:$N$41,5,0)/'4. Billing Determinants'!$F$41*$D6,IF($E6="Non-RPP kWh",VLOOKUP(P$4,'4. Billing Determinants'!$B$19:$N$41,6,0)/'4. Billing Determinants'!$G$41*$D6,IF($E6="Distribution Rev.",VLOOKUP(P$4,'4. Billing Determinants'!$B$19:$N$41,8,0)/'4. Billing Determinants'!$I$41*$D6, VLOOKUP(P$4,'4. Billing Determinants'!$B$19:$N$41,3,0)/'4. Billing Determinants'!$D$41*$D6))))) -> 0 | Q6: =IF(Q$4="",0,IF($E6="kWh",VLOOKUP(Q$4,'4. Billing Determinants'!$B$19:$N$41,4,0)/'4. Billing Determinants'!$E$41*$D6,IF($E6="kW",VLOOKUP(Q$4,'4. Billing Determinants'!$B$19:$N$41,5,0)/'4. Billing Determinants'!$F$41*$D6,IF($E6="Non-RPP kWh",VLOOKUP(Q$4,'4. Billing Determinants'!$B$19:$N$41,6,0)/'4. Billing Determinants'!$G$41*$D6,IF($E6="Distribution Rev.",VLOOKUP(Q$4,'4. Billing Determinants'!$B$19:$N$41,8,0)/'4. Billing Determinants'!$I$41*$D6, VLOOKUP(Q$4,'4. Billing Determinants'!$B$19:$N$41,3,0)/'4. Billing Determinants'!$D$41*$D6))))) -> 0 | R6: =IF(R$4="",0,IF($E6="kWh",VLOOKUP(R$4,'4. Billing Determinants'!$B$19:$N$41,4,0)/'4. Billing Determinants'!$E$41*$D6,IF($E6="kW",VLOOKUP(R$4,'4. Billing Determinants'!$B$19:$N$41,5,0)/'4. Billing Determinants'!$F$41*$D6,IF($E6="Non-RPP kWh",VLOOKUP(R$4,'4. Billing Determinants'!$B$19:$N$41,6,0)/'4. Billing Determinants'!$G$41*$D6,IF($E6="Distribution Rev.",VLOOKUP(R$4,'4. Billing Determinants'!$B$19:$N$41,8,0)/'4. Billing Determinants'!$I$41*$D6, VLOOKUP(R$4,'4. Billing Determinants'!$B$19:$N$41,3,0)/'4. Billing Determinants'!$D$41*$D6))))) -> 0 | S6: =IF(S$4="",0,IF($E6="kWh",VLOOKUP(S$4,'4. Billing Determinants'!$B$19:$N$41,4,0)/'4. Billing Determinants'!$E$41*$D6,IF($E6="kW",VLOOKUP(S$4,'4. Billing Determinants'!$B$19:$N$41,5,0)/'4. Billing Determinants'!$F$41*$D6,IF($E6="Non-RPP kWh",VLOOKUP(S$4,'4. Billing Determinants'!$B$19:$N$41,6,0)/'4. Billing Determinants'!$G$41*$D6,IF($E6="Distribution Rev.",VLOOKUP(S$4,'4. Billing Determinants'!$B$19:$N$41,8,0)/'4. Billing Determinants'!$I$41*$D6, VLOOKUP(S$4,'4. Billing Determinants'!$B$19:$N$41,3,0)/'4. Billing Determinants'!$D$41*$D6))))) -> 0 | T6: =IF(T$4="",0,IF($E6="kWh",VLOOKUP(T$4,'4. Billing Determinants'!$B$19:$N$41,4,0)/'4. Billing Determinants'!$E$41*$D6,IF($E6="kW",VLOOKUP(T$4,'4. Billing Determinants'!$B$19:$N$41,5,0)/'4. Billing Determinants'!$F$41*$D6,IF($E6="Non-RPP kWh",VLOOKUP(T$4,'4. Billing Determinants'!$B$19:$N$41,6,0)/'4. Billing Determinants'!$G$41*$D6,IF($E6="Distribution Rev.",VLOOKUP(T$4,'4. Billing Determinants'!$B$19:$N$41,8,0)/'4. Billing Determinants'!$I$41*$D6, VLOOKUP(T$4,'4. Billing Determinants'!$B$19:$N$41,3,0)/'4. Billing Determinants'!$D$41*$D6))))) -> 0 | U6: =IF(U$4="",0,IF($E6="kWh",VLOOKUP(U$4,'4. Billing Determinants'!$B$19:$N$41,4,0)/'4. Billing Determinants'!$E$41*$D6,IF($E6="kW",VLOOKUP(U$4,'4. Billing Determinants'!$B$19:$N$41,5,0)/'4. Billing Determinants'!$F$41*$D6,IF($E6="Non-RPP kWh",VLOOKUP(U$4,'4. Billing Determinants'!$B$19:$N$41,6,0)/'4. Billing Determinants'!$G$41*$D6,IF($E6="Distribution Rev.",VLOOKUP(U$4,'4. Billing Determinants'!$B$19:$N$41,8,0)/'4. Billing Determinants'!$I$41*$D6, VLOOKUP(U$4,'4. Billing Determinants'!$B$19:$N$41,3,0)/'4. Billing Determinants'!$D$41*$D6))))) -> 0 | V6: =IF(V$4="",0,IF($E6="kWh",VLOOKUP(V$4,'4. Billing Determinants'!$B$19:$N$41,4,0)/'4. Billing Determinants'!$E$41*$D6,IF($E6="kW",VLOOKUP(V$4,'4. Billing Determinants'!$B$19:$N$41,5,0)/'4. Billing Determinants'!$F$41*$D6,IF($E6="Non-RPP kWh",VLOOKUP(V$4,'4. Billing Determinants'!$B$19:$N$41,6,0)/'4. Billing Determinants'!$G$41*$D6,IF($E6="Distribution Rev.",VLOOKUP(V$4,'4. Billing Determinants'!$B$19:$N$41,8,0)/'4. Billing Determinants'!$I$41*$D6, VLOOKUP(V$4,'4. Billing Determinants'!$B$19:$N$41,3,0)/'4. Billing Determinants'!$D$41*$D6))))) -> 0 | W6: =IF(W$4="",0,IF($E6="kWh",VLOOKUP(W$4,'4. Billing Determinants'!$B$19:$N$41,4,0)/'4. Billing Determinants'!$E$41*$D6,IF($E6="kW",VLOOKUP(W$4,'4. Billing Determinants'!$B$19:$N$41,5,0)/'4. Billing Determinants'!$F$41*$D6,IF($E6="Non-RPP kWh",VLOOKUP(W$4,'4. Billing Determinants'!$B$19:$N$41,6,0)/'4. Billing Determinants'!$G$41*$D6,IF($E6="Distribution Rev.",VLOOKUP(W$4,'4. Billing Determinants'!$B$19:$N$41,8,0)/'4. Billing Determinants'!$I$41*$D6, VLOOKUP(W$4,'4. Billing Determinants'!$B$19:$N$41,3,0)/'4. Billing Determinants'!$D$41*$D6))))) -> 0 | X6: =IF(X$4="",0,IF($E6="kWh",VLOOKUP(X$4,'4. Billing Determinants'!$B$19:$N$41,4,0)/'4. Billing Determinants'!$E$41*$D6,IF($E6="kW",VLOOKUP(X$4,'4. Billing Determinants'!$B$19:$N$41,5,0)/'4. Billing Determinants'!$F$41*$D6,IF($E6="Non-RPP kWh",VLOOKUP(X$4,'4. Billing Determinants'!$B$19:$N$41,6,0)/'4. Billing Determinants'!$G$41*$D6,IF($E6="Distribution Rev.",VLOOKUP(X$4,'4. Billing Determinants'!$B$19:$N$41,8,0)/'4. Billing Determinants'!$I$41*$D6, VLOOKUP(X$4,'4. Billing Determinants'!$B$19:$N$41,3,0)/'4. Billing Determinants'!$D$41*$D6))))) -> 0 | Y6: =IF(Y$4="",0,IF($E6="kWh",VLOOKUP(Y$4,'4. Billing Determinants'!$B$19:$N$41,4,0)/'4. Billing Determinants'!$E$41*$D6,IF($E6="kW",VLOOKUP(Y$4,'4. Billing Determinants'!$B$19:$N$41,5,0)/'4. Billing Determinants'!$F$41*$D6,IF($E6="Non-RPP kWh",VLOOKUP(Y$4,'4. Billing Determinants'!$B$19:$N$41,6,0)/'4. Billing Determinants'!$G$41*$D6,IF($E6="Distribution Rev.",VLOOKUP(Y$4,'4. Billing Determinants'!$B$19:$N$41,8,0)/'4. Billing Determinants'!$I$41*$D6, VLOOKUP(Y$4,'4. Billing Determinants'!$B$19:$N$41,3,0)/'4. Billing Determinants'!$D$41*$D6))))) -> 0
B7: RSVA - Retail Transmission Network Charge | C7: 1584 | D7: ='2. 2013 Continuity Schedule'!CP26 -> -7433.32 | E7: kWh | F7: =IF(F$4="",0,IF($E7="kWh",VLOOKUP(F$4,'4. Billing Determinants'!$B$19:$N$41,4,0)/'4. Billing Determinants'!$E$41*$D7,IF($E7="kW",VLOOKUP(F$4,'4. Billing Determinants'!$B$19:$N$41,5,0)/'4. Billing Determinants'!$F$41*$D7,IF($E7="Non-RPP kWh",VLOOKUP(F$4,'4. Billing Determinants'!$B$19:$N$41,6,0)/'4. Billing Determinants'!$G$41*$D7,IF($E7="Distribution Rev.",VLOOKUP(F$4,'4. Billing Determinants'!$B$19:$N$41,8,0)/'4. Billing Determinants'!$I$41*$D7, VLOOKUP(F$4,'4. Billing Determinants'!$B$19:$N$41,3,0)/'4. Billing Determinants'!$D$41*$D7))))) -> -2547.287888 | G7: =IF(G$4="",0,IF($E7="kWh",VLOOKUP(G$4,'4. Billing Determinants'!$B$19:$N$41,4,0)/'4. Billing Determinants'!$E$41*$D7,IF($E7="kW",VLOOKUP(G$4,'4. Billing Determinants'!$B$19:$N$41,5,0)/'4. Billing Determinants'!$F$41*$D7,IF($E7="Non-RPP kWh",VLOOKUP(G$4,'4. Billing Determinants'!$B$19:$N$41,6,0)/'4. Billing Determinants'!$G$41*$D7,IF($E7="Distribution Rev.",VLOOKUP(G$4,'4. Billing Determinants'!$B$19:$N$41,8,0)/'4. Billing Determinants'!$I$41*$D7, VLOOKUP(G$4,'4. Billing Determinants'!$B$19:$N$41,3,0)/'4. Billing Determinants'!$D$41*$D7))))) -> -923.1776796 | H7: =IF(H$4="",0,IF($E7="kWh",VLOOKUP(H$4,'4. Billing Determinants'!$B$19:$N$41,4,0)/'4. Billing Determinants'!$E$41*$D7,IF($E7="kW",VLOOKUP(H$4,'4. Billing Determinants'!$B$19:$N$41,5,0)/'4. Billing Determinants'!$F$41*$D7,IF($E7="Non-RPP kWh",VLOOKUP(H$4,'4. Billing Determinants'!$B$19:$N$41,6,0)/'4. Billing Determinants'!$G$41*$D7,IF($E7="Distribution Rev.",VLOOKUP(H$4,'4. Billing Determinants'!$B$19:$N$41,8,0)/'4. Billing Determinants'!$I$41*$D7, VLOOKUP(H$4,'4. Billing Determinants'!$B$19:$N$41,3,0)/'4. Billing Determinants'!$D$41*$D7))))) -> -3879.505047 | I7: =IF(I$4="",0,IF($E7="kWh",VLOOKUP(I$4,'4. Billing Determinants'!$B$19:$N$41,4,0)/'4. Billing Determinants'!$E$41*$D7,IF($E7="kW",VLOOKUP(I$4,'4. Billing Determinants'!$B$19:$N$41,5,0)/'4. Billing Determinants'!$F$41*$D7,IF($E7="Non-RPP kWh",VLOOKUP(I$4,'4. Billing Determinants'!$B$19:$N$41,6,0)/'4. Billing Determinants'!$G$41*$D7,IF($E7="Distribution Rev.",VLOOKUP(I$4,'4. Billing Determinants'!$B$19:$N$41,8,0)/'4. Billing Determinants'!$I$41*$D7, VLOOKUP(I$4,'4. Billing Determinants'!$B$19:$N$41,3,0)/'4. Billing Determinants'!$D$41*$D7))))) -> -10.70573781 | J7: =IF(J$4="",0,IF($E7="kWh",VLOOKUP(J$4,'4. Billing Determinants'!$B$19:$N$41,4,0)/'4. Billing Determinants'!$E$41*$D7,IF($E7="kW",VLOOKUP(J$4,'4. Billing Determinants'!$B$19:$N$41,5,0)/'4. Billing Determinants'!$F$41*$D7,IF($E7="Non-RPP kWh",VLOOKUP(J$4,'4. Billing Determinants'!$B$19:$N$41,6,0)/'4. Billing Determinants'!$G$41*$D7,IF($E7="Distribution Rev.",VLOOKUP(J$4,'4. Billing Determinants'!$B$19:$N$41,8,0)/'4. Billing Determinants'!$I$41*$D7, VLOOKUP(J$4,'4. Billing Determinants'!$B$19:$N$41,3,0)/'4. Billing Determinants'!$D$41*$D7))))) -> -5.098976217 | K7: =IF(K$4="",0,IF($E7="kWh",VLOOKUP(K$4,'4. Billing Determinants'!$B$19:$N$41,4,0)/'4. Billing Determinants'!$E$41*$D7,IF($E7="kW",VLOOKUP(K$4,'4. Billing Determinants'!$B$19:$N$41,5,0)/'4. Billing Determinants'!$F$41*$D7,IF($E7="Non-RPP kWh",VLOOKUP(K$4,'4. Billing Determinants'!$B$19:$N$41,6,0)/'4. Billing Determinants'!$G$41*$D7,IF($E7="Distribution Rev.",VLOOKUP(K$4,'4. Billing Determinants'!$B$19:$N$41,8,0)/'4. Billing Determinants'!$I$41*$D7, VLOOKUP(K$4,'4. Billing Determinants'!$B$19:$N$41,3,0)/'4. Billing Determinants'!$D$41*$D7))))) -> -67.54467143 | L7: =IF(L$4="",0,IF($E7="kWh",VLOOKUP(L$4,'4. Billing Determinants'!$B$19:$N$41,4,0)/'4. Billing Determinants'!$E$41*$D7,IF($E7="kW",VLOOKUP(L$4,'4. Billing Determinants'!$B$19:$N$41,5,0)/'4. Billing Determinants'!$F$41*$D7,IF($E7="Non-RPP kWh",VLOOKUP(L$4,'4. Billing Determinants'!$B$19:$N$41,6,0)/'4. Billing Determinants'!$G$41*$D7,IF($E7="Distribution Rev.",VLOOKUP(L$4,'4. Billing Determinants'!$B$19:$N$41,8,0)/'4. Billing Determinants'!$I$41*$D7, VLOOKUP(L$4,'4. Billing Determinants'!$B$19:$N$41,3,0)/'4. Billing Determinants'!$D$41*$D7))))) -> 0 | M7: =IF(M$4="",0,IF($E7="kWh",VLOOKUP(M$4,'4. Billing Determinants'!$B$19:$N$41,4,0)/'4. Billing Determinants'!$E$41*$D7,IF($E7="kW",VLOOKUP(M$4,'4. Billing Determinants'!$B$19:$N$41,5,0)/'4. Billing Determinants'!$F$41*$D7,IF($E7="Non-RPP kWh",VLOOKUP(M$4,'4. Billing Determinants'!$B$19:$N$41,6,0)/'4. Billing Determinants'!$G$41*$D7,IF($E7="Distribution Rev.",VLOOKUP(M$4,'4. Billing Determinants'!$B$19:$N$41,8,0)/'4. Billing Determinants'!$I$41*$D7, VLOOKUP(M$4,'4. Billing Determinants'!$B$19:$N$41,3,0)/'4. Billing Determinants'!$D$41*$D7))))) -> 0 | N7: =IF(N$4="",0,IF($E7="kWh",VLOOKUP(N$4,'4. Billing Determinants'!$B$19:$N$41,4,0)/'4. Billing Determinants'!$E$41*$D7,IF($E7="kW",VLOOKUP(N$4,'4. Billing Determinants'!$B$19:$N$41,5,0)/'4. Billing Determinants'!$F$41*$D7,IF($E7="Non-RPP kWh",VLOOKUP(N$4,'4. Billing Determinants'!$B$19:$N$41,6,0)/'4. Billing Determinants'!$G$41*$D7,IF($E7="Distribution Rev.",VLOOKUP(N$4,'4. Billing Determinants'!$B$19:$N$41,8,0)/'4. Billing Determinants'!$I$41*$D7, VLOOKUP(N$4,'4. Billing Determinants'!$B$19:$N$41,3,0)/'4. Billing Determinants'!$D$41*$D7))))) -> 0 | O7: =IF(O$4="",0,IF($E7="kWh",VLOOKUP(O$4,'4. Billing Determinants'!$B$19:$N$41,4,0)/'4. Billing Determinants'!$E$41*$D7,IF($E7="kW",VLOOKUP(O$4,'4. Billing Determinants'!$B$19:$N$41,5,0)/'4. Billing Determinants'!$F$41*$D7,IF($E7="Non-RPP kWh",VLOOKUP(O$4,'4. Billing Determinants'!$B$19:$N$41,6,0)/'4. Billing Determinants'!$G$41*$D7,IF($E7="Distribution Rev.",VLOOKUP(O$4,'4. Billing Determinants'!$B$19:$N$41,8,0)/'4. Billing Determinants'!$I$41*$D7, VLOOKUP(O$4,'4. Billing Determinants'!$B$19:$N$41,3,0)/'4. Billing Determinants'!$D$41*$D7))))) -> 0 | P7: =IF(P$4="",0,IF($E7="kWh",VLOOKUP(P$4,'4. Billing Determinants'!$B$19:$N$41,4,0)/'4. Billing Determinants'!$E$41*$D7,IF($E7="kW",VLOOKUP(P$4,'4. Billing Determinants'!$B$19:$N$41,5,0)/'4. Billing Determinants'!$F$41*$D7,IF($E7="Non-RPP kWh",VLOOKUP(P$4,'4. Billing Determinants'!$B$19:$N$41,6,0)/'4. Billing Determinants'!$G$41*$D7,IF($E7="Distribution Rev.",VLOOKUP(P$4,'4. Billing Determinants'!$B$19:$N$41,8,0)/'4. Billing Determinants'!$I$41*$D7, VLOOKUP(P$4,'4. Billing Determinants'!$B$19:$N$41,3,0)/'4. Billing Determinants'!$D$41*$D7))))) -> 0 | Q7: =IF(Q$4="",0,IF($E7="kWh",VLOOKUP(Q$4,'4. Billing Determinants'!$B$19:$N$41,4,0)/'4. Billing Determinants'!$E$41*$D7,IF($E7="kW",VLOOKUP(Q$4,'4. Billing Determinants'!$B$19:$N$41,5,0)/'4. Billing Determinants'!$F$41*$D7,IF($E7="Non-RPP kWh",VLOOKUP(Q$4,'4. Billing Determinants'!$B$19:$N$41,6,0)/'4. Billing Determinants'!$G$41*$D7,IF($E7="Distribution Rev.",VLOOKUP(Q$4,'4. Billing Determinants'!$B$19:$N$41,8,0)/'4. Billing Determinants'!$I$41*$D7, VLOOKUP(Q$4,'4. Billing Determinants'!$B$19:$N$41,3,0)/'4. Billing Determinants'!$D$41*$D7))))) -> 0 | R7: =IF(R$4="",0,IF($E7="kWh",VLOOKUP(R$4,'4. Billing Determinants'!$B$19:$N$41,4,0)/'4. Billing Determinants'!$E$41*$D7,IF($E7="kW",VLOOKUP(R$4,'4. Billing Determinants'!$B$19:$N$41,5,0)/'4. Billing Determinants'!$F$41*$D7,IF($E7="Non-RPP kWh",VLOOKUP(R$4,'4. Billing Determinants'!$B$19:$N$41,6,0)/'4. Billing Determinants'!$G$41*$D7,IF($E7="Distribution Rev.",VLOOKUP(R$4,'4. Billing Determinants'!$B$19:$N$41,8,0)/'4. Billing Determinants'!$I$41*$D7, VLOOKUP(R$4,'4. Billing Determinants'!$B$19:$N$41,3,0)/'4. Billing Determinants'!$D$41*$D7))))) -> 0 | S7: =IF(S$4="",0,IF($E7="kWh",VLOOKUP(S$4,'4. Billing Determinants'!$B$19:$N$41,4,0)/'4. Billing Determinants'!$E$41*$D7,IF($E7="kW",VLOOKUP(S$4,'4. Billing Determinants'!$B$19:$N$41,5,0)/'4. Billing Determinants'!$F$41*$D7,IF($E7="Non-RPP kWh",VLOOKUP(S$4,'4. Billing Determinants'!$B$19:$N$41,6,0)/'4. Billing Determinants'!$G$41*$D7,IF($E7="Distribution Rev.",VLOOKUP(S$4,'4. Billing Determinants'!$B$19:$N$41,8,0)/'4. Billing Determinants'!$I$41*$D7, VLOOKUP(S$4,'4. Billing Determinants'!$B$19:$N$41,3,0)/'4. Billing Determinants'!$D$41*$D7))))) -> 0 | T7: =IF(T$4="",0,IF($E7="kWh",VLOOKUP(T$4,'4. Billing Determinants'!$B$19:$N$41,4,0)/'4. Billing Determinants'!$E$41*$D7,IF($E7="kW",VLOOKUP(T$4,'4. Billing Determinants'!$B$19:$N$41,5,0)/'4. Billing Determinants'!$F$41*$D7,IF($E7="Non-RPP kWh",VLOOKUP(T$4,'4. Billing Determinants'!$B$19:$N$41,6,0)/'4. Billing Determinants'!$G$41*$D7,IF($E7="Distribution Rev.",VLOOKUP(T$4,'4. Billing Determinants'!$B$19:$N$41,8,0)/'4. Billing Determinants'!$I$41*$D7, VLOOKUP(T$4,'4. Billing Determinants'!$B$19:$N$41,3,0)/'4. Billing Determinants'!$D$41*$D7))))) -> 0 | U7: =IF(U$4="",0,IF($E7="kWh",VLOOKUP(U$4,'4. Billing Determinants'!$B$19:$N$41,4,0)/'4. Billing Determinants'!$E$41*$D7,IF($E7="kW",VLOOKUP(U$4,'4. Billing Determinants'!$B$19:$N$41,5,0)/'4. Billing Determinants'!$F$41*$D7,IF($E7="Non-RPP kWh",VLOOKUP(U$4,'4. Billing Determinants'!$B$19:$N$41,6,0)/'4. Billing Determinants'!$G$41*$D7,IF($E7="Distribution Rev.",VLOOKUP(U$4,'4. Billing Determinants'!$B$19:$N$41,8,0)/'4. Billing Determinants'!$I$41*$D7, VLOOKUP(U$4,'4. Billing Determinants'!$B$19:$N$41,3,0)/'4. Billing Determinants'!$D$41*$D7))))) -> 0 | V7: =IF(V$4="",0,IF($E7="kWh",VLOOKUP(V$4,'4. Billing Determinants'!$B$19:$N$41,4,0)/'4. Billing Determinants'!$E$41*$D7,IF($E7="kW",VLOOKUP(V$4,'4. Billing Determinants'!$B$19:$N$41,5,0)/'4. Billing Determinants'!$F$41*$D7,IF($E7="Non-RPP kWh",VLOOKUP(V$4,'4. Billing Determinants'!$B$19:$N$41,6,0)/'4. Billing Determinants'!$G$41*$D7,IF($E7="Distribution Rev.",VLOOKUP(V$4,'4. Billing Determinants'!$B$19:$N$41,8,0)/'4. Billing Determinants'!$I$41*$D7, VLOOKUP(V$4,'4. Billing Determinants'!$B$19:$N$41,3,0)/'4. Billing Determinants'!$D$41*$D7))))) -> 0 | W7: =IF(W$4="",0,IF($E7="kWh",VLOOKUP(W$4,'4. Billing Determinants'!$B$19:$N$41,4,0)/'4. Billing Determinants'!$E$41*$D7,IF($E7="kW",VLOOKUP(W$4,'4. Billing Determinants'!$B$19:$N$41,5,0)/'4. Billing Determinants'!$F$41*$D7,IF($E7="Non-RPP kWh",VLOOKUP(W$4,'4. Billing Determinants'!$B$19:$N$41,6,0)/'4. Billing Determinants'!$G$41*$D7,IF($E7="Distribution Rev.",VLOOKUP(W$4,'4. Billing Determinants'!$B$19:$N$41,8,0)/'4. Billing Determinants'!$I$41*$D7, VLOOKUP(W$4,'4. Billing Determinants'!$B$19:$N$41,3,0)/'4. Billing Determinants'!$D$41*$D7))))) -> 0 | X7: =IF(X$4="",0,IF($E7="kWh",VLOOKUP(X$4,'4. Billing Determinants'!$B$19:$N$41,4,0)/'4. Billing Determinants'!$E$41*$D7,IF($E7="kW",VLOOKUP(X$4,'4. Billing Determinants'!$B$19:$N$41,5,0)/'4. Billing Determinants'!$F$41*$D7,IF($E7="Non-RPP kWh",VLOOKUP(X$4,'4. Billing Determinants'!$B$19:$N$41,6,0)/'4. Billing Determinants'!$G$41*$D7,IF($E7="Distribution Rev.",VLOOKUP(X$4,'4. Billing Determinants'!$B$19:$N$41,8,0)/'4. Billing Determinants'!$I$41*$D7, VLOOKUP(X$4,'4. Billing Determinants'!$B$19:$N$41,3,0)/'4. Billing Determinants'!$D$41*$D7))))) -> 0 | Y7: =IF(Y$4="",0,IF($E7="kWh",VLOOKUP(Y$4,'4. Billing Determinants'!$B$19:$N$41,4,0)/'4. Billing Determinants'!$E$41*$D7,IF($E7="kW",VLOOKUP(Y$4,'4. Billing Determinants'!$B$19:$N$41,5,0)/'4. Billing Determinants'!$F$41*$D7,IF($E7="Non-RPP kWh",VLOOKUP(Y$4,'4. Billing Determinants'!$B$19:$N$41,6,0)/'4. Billing Determinants'!$G$41*$D7,IF($E7="Distribution Rev.",VLOOKUP(Y$4,'4. Billing Determinants'!$B$19:$N$41,8,0)/'4. Billing Determinants'!$I$41*$D7, VLOOKUP(Y$4,'4. Billing Determinants'!$B$19:$N$41,3,0)/'4. Billing Determinants'!$D$41*$D7))))) -> 0
B8: RSVA - Retail Transmission Connection Charge | C8: 1586 | D8: ='2. 2013 Continuity Schedule'!CP27 -> -21499.12 | E8: kWh | F8: =IF(F$4="",0,IF($E8="kWh",VLOOKUP(F$4,'4. Billing Determinants'!$B$19:$N$41,4,0)/'4. Billing Determinants'!$E$41*$D8,IF($E8="kW",VLOOKUP(F$4,'4. Billing Determinants'!$B$19:$N$41,5,0)/'4. Billing Determinants'!$F$41*$D8,IF($E8="Non-RPP kWh",VLOOKUP(F$4,'4. Billing Determinants'!$B$19:$N$41,6,0)/'4. Billing Determinants'!$G$41*$D8,IF($E8="Distribution Rev.",VLOOKUP(F$4,'4. Billing Determinants'!$B$19:$N$41,8,0)/'4. Billing Determinants'!$I$41*$D8, VLOOKUP(F$4,'4. Billing Determinants'!$B$19:$N$41,3,0)/'4. Billing Determinants'!$D$41*$D8))))) -> -7367.427741 | G8: =IF(G$4="",0,IF($E8="kWh",VLOOKUP(G$4,'4. Billing Determinants'!$B$19:$N$41,4,0)/'4. Billing Determinants'!$E$41*$D8,IF($E8="kW",VLOOKUP(G$4,'4. Billing Determinants'!$B$19:$N$41,5,0)/'4. Billing Determinants'!$F$41*$D8,IF($E8="Non-RPP kWh",VLOOKUP(G$4,'4. Billing Determinants'!$B$19:$N$41,6,0)/'4. Billing Determinants'!$G$41*$D8,IF($E8="Distribution Rev.",VLOOKUP(G$4,'4. Billing Determinants'!$B$19:$N$41,8,0)/'4. Billing Determinants'!$I$41*$D8, VLOOKUP(G$4,'4. Billing Determinants'!$B$19:$N$41,3,0)/'4. Billing Determinants'!$D$41*$D8))))) -> -2670.073092 | H8: =IF(H$4="",0,IF($E8="kWh",VLOOKUP(H$4,'4. Billing Determinants'!$B$19:$N$41,4,0)/'4. Billing Determinants'!$E$41*$D8,IF($E8="kW",VLOOKUP(H$4,'4. Billing Determinants'!$B$19:$N$41,5,0)/'4. Billing Determinants'!$F$41*$D8,IF($E8="Non-RPP kWh",VLOOKUP(H$4,'4. Billing Determinants'!$B$19:$N$41,6,0)/'4. Billing Determinants'!$G$41*$D8,IF($E8="Distribution Rev.",VLOOKUP(H$4,'4. Billing Determinants'!$B$19:$N$41,8,0)/'4. Billing Determinants'!$I$41*$D8, VLOOKUP(H$4,'4. Billing Determinants'!$B$19:$N$41,3,0)/'4. Billing Determinants'!$D$41*$D8))))) -> -11220.55078 | I8: =IF(I$4="",0,IF($E8="kWh",VLOOKUP(I$4,'4. Billing Determinants'!$B$19:$N$41,4,0)/'4. Billing Determinants'!$E$41*$D8,IF($E8="kW",VLOOKUP(I$4,'4. Billing Determinants'!$B$19:$N$41,5,0)/'4. Billing Determinants'!$F$41*$D8,IF($E8="Non-RPP kWh",VLOOKUP(I$4,'4. Billing Determinants'!$B$19:$N$41,6,0)/'4. Billing Determinants'!$G$41*$D8,IF($E8="Distribution Rev.",VLOOKUP(I$4,'4. Billing Determinants'!$B$19:$N$41,8,0)/'4. Billing Determinants'!$I$41*$D8, VLOOKUP(I$4,'4. Billing Determinants'!$B$19:$N$41,3,0)/'4. Billing Determinants'!$D$41*$D8))))) -> -30.96381454 | J8: =IF(J$4="",0,IF($E8="kWh",VLOOKUP(J$4,'4. Billing Determinants'!$B$19:$N$41,4,0)/'4. Billing Determinants'!$E$41*$D8,IF($E8="kW",VLOOKUP(J$4,'4. Billing Determinants'!$B$19:$N$41,5,0)/'4. Billing Determinants'!$F$41*$D8,IF($E8="Non-RPP kWh",VLOOKUP(J$4,'4. Billing Determinants'!$B$19:$N$41,6,0)/'4. Billing Determinants'!$G$41*$D8,IF($E8="Distribution Rev.",VLOOKUP(J$4,'4. Billing Determinants'!$B$19:$N$41,8,0)/'4. Billing Determinants'!$I$41*$D8, VLOOKUP(J$4,'4. Billing Determinants'!$B$19:$N$41,3,0)/'4. Billing Determinants'!$D$41*$D8))))) -> -14.74758272 | K8: =IF(K$4="",0,IF($E8="kWh",VLOOKUP(K$4,'4. Billing Determinants'!$B$19:$N$41,4,0)/'4. Billing Determinants'!$E$41*$D8,IF($E8="kW",VLOOKUP(K$4,'4. Billing Determinants'!$B$19:$N$41,5,0)/'4. Billing Determinants'!$F$41*$D8,IF($E8="Non-RPP kWh",VLOOKUP(K$4,'4. Billing Determinants'!$B$19:$N$41,6,0)/'4. Billing Determinants'!$G$41*$D8,IF($E8="Distribution Rev.",VLOOKUP(K$4,'4. Billing Determinants'!$B$19:$N$41,8,0)/'4. Billing Determinants'!$I$41*$D8, VLOOKUP(K$4,'4. Billing Determinants'!$B$19:$N$41,3,0)/'4. Billing Determinants'!$D$41*$D8))))) -> -195.3569867 | L8: =IF(L$4="",0,IF($E8="kWh",VLOOKUP(L$4,'4. Billing Determinants'!$B$19:$N$41,4,0)/'4. Billing Determinants'!$E$41*$D8,IF($E8="kW",VLOOKUP(L$4,'4. Billing Determinants'!$B$19:$N$41,5,0)/'4. Billing Determinants'!$F$41*$D8,IF($E8="Non-RPP kWh",VLOOKUP(L$4,'4. Billing Determinants'!$B$19:$N$41,6,0)/'4. Billing Determinants'!$G$41*$D8,IF($E8="Distribution Rev.",VLOOKUP(L$4,'4. Billing Determinants'!$B$19:$N$41,8,0)/'4. Billing Determinants'!$I$41*$D8, VLOOKUP(L$4,'4. Billing Determinants'!$B$19:$N$41,3,0)/'4. Billing Determinants'!$D$41*$D8))))) -> 0 | M8: =IF(M$4="",0,IF($E8="kWh",VLOOKUP(M$4,'4. Billing Determinants'!$B$19:$N$41,4,0)/'4. Billing Determinants'!$E$41*$D8,IF($E8="kW",VLOOKUP(M$4,'4. Billing Determinants'!$B$19:$N$41,5,0)/'4. Billing Determinants'!$F$41*$D8,IF($E8="Non-RPP kWh",VLOOKUP(M$4,'4. Billing Determinants'!$B$19:$N$41,6,0)/'4. Billing Determinants'!$G$41*$D8,IF($E8="Distribution Rev.",VLOOKUP(M$4,'4. Billing Determinants'!$B$19:$N$41,8,0)/'4. Billing Determinants'!$I$41*$D8, VLOOKUP(M$4,'4. Billing Determinants'!$B$19:$N$41,3,0)/'4. Billing Determinants'!$D$41*$D8))))) -> 0 | N8: =IF(N$4="",0,IF($E8="kWh",VLOOKUP(N$4,'4. Billing Determinants'!$B$19:$N$41,4,0)/'4. Billing Determinants'!$E$41*$D8,IF($E8="kW",VLOOKUP(N$4,'4. Billing Determinants'!$B$19:$N$41,5,0)/'4. Billing Determinants'!$F$41*$D8,IF($E8="Non-RPP kWh",VLOOKUP(N$4,'4. Billing Determinants'!$B$19:$N$41,6,0)/'4. Billing Determinants'!$G$41*$D8,IF($E8="Distribution Rev.",VLOOKUP(N$4,'4. Billing Determinants'!$B$19:$N$41,8,0)/'4. Billing Determinants'!$I$41*$D8, VLOOKUP(N$4,'4. Billing Determinants'!$B$19:$N$41,3,0)/'4. Billing Determinants'!$D$41*$D8))))) -> 0 | O8: =IF(O$4="",0,IF($E8="kWh",VLOOKUP(O$4,'4. Billing Determinants'!$B$19:$N$41,4,0)/'4. Billing Determinants'!$E$41*$D8,IF($E8="kW",VLOOKUP(O$4,'4. Billing Determinants'!$B$19:$N$41,5,0)/'4. Billing Determinants'!$F$41*$D8,IF($E8="Non-RPP kWh",VLOOKUP(O$4,'4. Billing Determinants'!$B$19:$N$41,6,0)/'4. Billing Determinants'!$G$41*$D8,IF($E8="Distribution Rev.",VLOOKUP(O$4,'4. Billing Determinants'!$B$19:$N$41,8,0)/'4. Billing Determinants'!$I$41*$D8, VLOOKUP(O$4,'4. Billing Determinants'!$B$19:$N$41,3,0)/'4. Billing Determinants'!$D$41*$D8))))) -> 0 | P8: =IF(P$4="",0,IF($E8="kWh",VLOOKUP(P$4,'4. Billing Determinants'!$B$19:$N$41,4,0)/'4. Billing Determinants'!$E$41*$D8,IF($E8="kW",VLOOKUP(P$4,'4. Billing Determinants'!$B$19:$N$41,5,0)/'4. Billing Determinants'!$F$41*$D8,IF($E8="Non-RPP kWh",VLOOKUP(P$4,'4. Billing Determinants'!$B$19:$N$41,6,0)/'4. Billing Determinants'!$G$41*$D8,IF($E8="Distribution Rev.",VLOOKUP(P$4,'4. Billing Determinants'!$B$19:$N$41,8,0)/'4. Billing Determinants'!$I$41*$D8, VLOOKUP(P$4,'4. Billing Determinants'!$B$19:$N$41,3,0)/'4. Billing Determinants'!$D$41*$D8))))) -> 0 | Q8: =IF(Q$4="",0,IF($E8="kWh",VLOOKUP(Q$4,'4. Billing Determinants'!$B$19:$N$41,4,0)/'4. Billing Determinants'!$E$41*$D8,IF($E8="kW",VLOOKUP(Q$4,'4. Billing Determinants'!$B$19:$N$41,5,0)/'4. Billing Determinants'!$F$41*$D8,IF($E8="Non-RPP kWh",VLOOKUP(Q$4,'4. Billing Determinants'!$B$19:$N$41,6,0)/'4. Billing Determinants'!$G$41*$D8,IF($E8="Distribution Rev.",VLOOKUP(Q$4,'4. Billing Determinants'!$B$19:$N$41,8,0)/'4. Billing Determinants'!$I$41*$D8, VLOOKUP(Q$4,'4. Billing Determinants'!$B$19:$N$41,3,0)/'4. Billing Determinants'!$D$41*$D8))))) -> 0 | R8: =IF(R$4="",0,IF($E8="kWh",VLOOKUP(R$4,'4. Billing Determinants'!$B$19:$N$41,4,0)/'4. Billing Determinants'!$E$41*$D8,IF($E8="kW",VLOOKUP(R$4,'4. Billing Determinants'!$B$19:$N$41,5,0)/'4. Billing Determinants'!$F$41*$D8,IF($E8="Non-RPP kWh",VLOOKUP(R$4,'4. Billing Determinants'!$B$19:$N$41,6,0)/'4. Billing Determinants'!$G$41*$D8,IF($E8="Distribution Rev.",VLOOKUP(R$4,'4. Billing Determinants'!$B$19:$N$41,8,0)/'4. Billing Determinants'!$I$41*$D8, VLOOKUP(R$4,'4. Billing Determinants'!$B$19:$N$41,3,0)/'4. Billing Determinants'!$D$41*$D8))))) -> 0 | S8: =IF(S$4="",0,IF($E8="kWh",VLOOKUP(S$4,'4. Billing Determinants'!$B$19:$N$41,4,0)/'4. Billing Determinants'!$E$41*$D8,IF($E8="kW",VLOOKUP(S$4,'4. Billing Determinants'!$B$19:$N$41,5,0)/'4. Billing Determinants'!$F$41*$D8,IF($E8="Non-RPP kWh",VLOOKUP(S$4,'4. Billing Determinants'!$B$19:$N$41,6,0)/'4. Billing Determinants'!$G$41*$D8,IF($E8="Distribution Rev.",VLOOKUP(S$4,'4. Billing Determinants'!$B$19:$N$41,8,0)/'4. Billing Determinants'!$I$41*$D8, VLOOKUP(S$4,'4. Billing Determinants'!$B$19:$N$41,3,0)/'4. Billing Determinants'!$D$41*$D8))))) -> 0 | T8: =IF(T$4="",0,IF($E8="kWh",VLOOKUP(T$4,'4. Billing Determinants'!$B$19:$N$41,4,0)/'4. Billing Determinants'!$E$41*$D8,IF($E8="kW",VLOOKUP(T$4,'4. Billing Determinants'!$B$19:$N$41,5,0)/'4. Billing Determinants'!$F$41*$D8,IF($E8="Non-RPP kWh",VLOOKUP(T$4,'4. Billing Determinants'!$B$19:$N$41,6,0)/'4. Billing Determinants'!$G$41*$D8,IF($E8="Distribution Rev.",VLOOKUP(T$4,'4. Billing Determinants'!$B$19:$N$41,8,0)/'4. Billing Determinants'!$I$41*$D8, VLOOKUP(T$4,'4. Billing Determinants'!$B$19:$N$41,3,0)/'4. Billing Determinants'!$D$41*$D8))))) -> 0 | U8: =IF(U$4="",0,IF($E8="kWh",VLOOKUP(U$4,'4. Billing Determinants'!$B$19:$N$41,4,0)/'4. Billing Determinants'!$E$41*$D8,IF($E8="kW",VLOOKUP(U$4,'4. Billing Determinants'!$B$19:$N$41,5,0)/'4. Billing Determinants'!$F$41*$D8,IF($E8="Non-RPP kWh",VLOOKUP(U$4,'4. Billing Determinants'!$B$19:$N$41,6,0)/'4. Billing Determinants'!$G$41*$D8,IF($E8="Distribution Rev.",VLOOKUP(U$4,'4. Billing Determinants'!$B$19:$N$41,8,0)/'4. Billing Determinants'!$I$41*$D8, VLOOKUP(U$4,'4. Billing Determinants'!$B$19:$N$41,3,0)/'4. Billing Determinants'!$D$41*$D8))))) -> 0 | V8: =IF(V$4="",0,IF($E8="kWh",VLOOKUP(V$4,'4. Billing Determinants'!$B$19:$N$41,4,0)/'4. Billing Determinants'!$E$41*$D8,IF($E8="kW",VLOOKUP(V$4,'4. Billing Determinants'!$B$19:$N$41,5,0)/'4. Billing Determinants'!$F$41*$D8,IF($E8="Non-RPP kWh",VLOOKUP(V$4,'4. Billing Determinants'!$B$19:$N$41,6,0)/'4. Billing Determinants'!$G$41*$D8,IF($E8="Distribution Rev.",VLOOKUP(V$4,'4. Billing Determinants'!$B$19:$N$41,8,0)/'4. Billing Determinants'!$I$41*$D8, VLOOKUP(V$4,'4. Billing Determinants'!$B$19:$N$41,3,0)/'4. Billing Determinants'!$D$41*$D8))))) -> 0 | W8: =IF(W$4="",0,IF($E8="kWh",VLOOKUP(W$4,'4. Billing Determinants'!$B$19:$N$41,4,0)/'4. Billing Determinants'!$E$41*$D8,IF($E8="kW",VLOOKUP(W$4,'4. Billing Determinants'!$B$19:$N$41,5,0)/'4. Billing Determinants'!$F$41*$D8,IF($E8="Non-RPP kWh",VLOOKUP(W$4,'4. Billing Determinants'!$B$19:$N$41,6,0)/'4. Billing Determinants'!$G$41*$D8,IF($E8="Distribution Rev.",VLOOKUP(W$4,'4. Billing Determinants'!$B$19:$N$41,8,0)/'4. Billing Determinants'!$I$41*$D8, VLOOKUP(W$4,'4. Billing Determinants'!$B$19:$N$41,3,0)/'4. Billing Determinants'!$D$41*$D8))))) -> 0 | X8: =IF(X$4="",0,IF($E8="kWh",VLOOKUP(X$4,'4. Billing Determinants'!$B$19:$N$41,4,0)/'4. Billing Determinants'!$E$41*$D8,IF($E8="kW",VLOOKUP(X$4,'4. Billing Determinants'!$B$19:$N$41,5,0)/'4. Billing Determinants'!$F$41*$D8,IF($E8="Non-RPP kWh",VLOOKUP(X$4,'4. Billing Determinants'!$B$19:$N$41,6,0)/'4. Billing Determinants'!$G$41*$D8,IF($E8="Distribution Rev.",VLOOKUP(X$4,'4. Billing Determinants'!$B$19:$N$41,8,0)/'4. Billing Determinants'!$I$41*$D8, VLOOKUP(X$4,'4. Billing Determinants'!$B$19:$N$41,3,0)/'4. Billing Determinants'!$D$41*$D8))))) -> 0 | Y8: =IF(Y$4="",0,IF($E8="kWh",VLOOKUP(Y$4,'4. Billing Determinants'!$B$19:$N$41,4,0)/'4. Billing Determinants'!$E$41*$D8,IF($E8="kW",VLOOKUP(Y$4,'4. Billing Determinants'!$B$19:$N$41,5,0)/'4. Billing Determinants'!$F$41*$D8,IF($E8="Non-RPP kWh",VLOOKUP(Y$4,'4. Billing Determinants'!$B$19:$N$41,6,0)/'4. Billing Determinants'!$G$41*$D8,IF($E8="Distribution Rev.",VLOOKUP(Y$4,'4. Billing Determinants'!$B$19:$N$41,8,0)/'4. Billing Determinants'!$I$41*$D8, VLOOKUP(Y$4,'4. Billing Determinants'!$B$19:$N$41,3,0)/'4. Billing Determinants'!$D$41*$D8))))) -> 0
B9: RSVA - Power (excluding Global Adjustment) | C9: 1588 | D9: ='2. 2013 Continuity Schedule'!CP28 -> 117601.87 | E9: kWh | F9: =IF(F$4="",0,IF($E9="kWh",VLOOKUP(F$4,'4. Billing Determinants'!$B$19:$N$41,4,0)/'4. Billing Determinants'!$E$41*$D9,IF($E9="kW",VLOOKUP(F$4,'4. Billing Determinants'!$B$19:$N$41,5,0)/'4. Billing Determinants'!$F$41*$D9,IF($E9="Non-RPP kWh",VLOOKUP(F$4,'4. Billing Determinants'!$B$19:$N$41,6,0)/'4. Billing Determinants'!$G$41*$D9,IF($E9="Distribution Rev.",VLOOKUP(F$4,'4. Billing Determinants'!$B$19:$N$41,8,0)/'4. Billing Determinants'!$I$41*$D9, VLOOKUP(F$4,'4. Billing Determinants'!$B$19:$N$41,3,0)/'4. Billing Determinants'!$D$41*$D9))))) -> 40300.40669 | G9: =IF(G$4="",0,IF($E9="kWh",VLOOKUP(G$4,'4. Billing Determinants'!$B$19:$N$41,4,0)/'4. Billing Determinants'!$E$41*$D9,IF($E9="kW",VLOOKUP(G$4,'4. Billing Determinants'!$B$19:$N$41,5,0)/'4. Billing Determinants'!$F$41*$D9,IF($E9="Non-RPP kWh",VLOOKUP(G$4,'4. Billing Determinants'!$B$19:$N$41,6,0)/'4. Billing Determinants'!$G$41*$D9,IF($E9="Distribution Rev.",VLOOKUP(G$4,'4. Billing Determinants'!$B$19:$N$41,8,0)/'4. Billing Determinants'!$I$41*$D9, VLOOKUP(G$4,'4. Billing Determinants'!$B$19:$N$41,3,0)/'4. Billing Determinants'!$D$41*$D9))))) -> 14605.50891 | H9: =IF(H$4="",0,IF($E9="kWh",VLOOKUP(H$4,'4. Billing Determinants'!$B$19:$N$41,4,0)/'4. Billing Determinants'!$E$41*$D9,IF($E9="kW",VLOOKUP(H$4,'4. Billing Determinants'!$B$19:$N$41,5,0)/'4. Billing Determinants'!$F$41*$D9,IF($E9="Non-RPP kWh",VLOOKUP(H$4,'4. Billing Determinants'!$B$19:$N$41,6,0)/'4. Billing Determinants'!$G$41*$D9,IF($E9="Distribution Rev.",VLOOKUP(H$4,'4. Billing Determinants'!$B$19:$N$41,8,0)/'4. Billing Determinants'!$I$41*$D9, VLOOKUP(H$4,'4. Billing Determinants'!$B$19:$N$41,3,0)/'4. Billing Determinants'!$D$41*$D9))))) -> 61377.29147 | I9: =IF(I$4="",0,IF($E9="kWh",VLOOKUP(I$4,'4. Billing Determinants'!$B$19:$N$41,4,0)/'4. Billing Determinants'!$E$41*$D9,IF($E9="kW",VLOOKUP(I$4,'4. Billing Determinants'!$B$19:$N$41,5,0)/'4. Billing Determinants'!$F$41*$D9,IF($E9="Non-RPP kWh",VLOOKUP(I$4,'4. Billing Determinants'!$B$19:$N$41,6,0)/'4. Billing Determinants'!$G$41*$D9,IF($E9="Distribution Rev.",VLOOKUP(I$4,'4. Billing Determinants'!$B$19:$N$41,8,0)/'4. Billing Determinants'!$I$41*$D9, VLOOKUP(I$4,'4. Billing Determinants'!$B$19:$N$41,3,0)/'4. Billing Determinants'!$D$41*$D9))))) -> 169.3744903 | J9: =IF(J$4="",0,IF($E9="kWh",VLOOKUP(J$4,'4. Billing Determinants'!$B$19:$N$41,4,0)/'4. Billing Determinants'!$E$41*$D9,IF($E9="kW",VLOOKUP(J$4,'4. Billing Determinants'!$B$19:$N$41,5,0)/'4. Billing Determinants'!$F$41*$D9,IF($E9="Non-RPP kWh",VLOOKUP(J$4,'4. Billing Determinants'!$B$19:$N$41,6,0)/'4. Billing Determinants'!$G$41*$D9,IF($E9="Distribution Rev.",VLOOKUP(J$4,'4. Billing Determinants'!$B$19:$N$41,8,0)/'4. Billing Determinants'!$I$41*$D9, VLOOKUP(J$4,'4. Billing Determinants'!$B$19:$N$41,3,0)/'4. Billing Determinants'!$D$41*$D9))))) -> 80.67043235 | K9: =IF(K$4="",0,IF($E9="kWh",VLOOKUP(K$4,'4. Billing Determinants'!$B$19:$N$41,4,0)/'4. Billing Determinants'!$E$41*$D9,IF($E9="kW",VLOOKUP(K$4,'4. Billing Determinants'!$B$19:$N$41,5,0)/'4. Billing Determinants'!$F$41*$D9,IF($E9="Non-RPP kWh",VLOOKUP(K$4,'4. Billing Determinants'!$B$19:$N$41,6,0)/'4. Billing Determinants'!$G$41*$D9,IF($E9="Distribution Rev.",VLOOKUP(K$4,'4. Billing Determinants'!$B$19:$N$41,8,0)/'4. Billing Determinants'!$I$41*$D9, VLOOKUP(K$4,'4. Billing Determinants'!$B$19:$N$41,3,0)/'4. Billing Determinants'!$D$41*$D9))))) -> 1068.618016 | L9: =IF(L$4="",0,IF($E9="kWh",VLOOKUP(L$4,'4. Billing Determinants'!$B$19:$N$41,4,0)/'4. Billing Determinants'!$E$41*$D9,IF($E9="kW",VLOOKUP(L$4,'4. Billing Determinants'!$B$19:$N$41,5,0)/'4. Billing Determinants'!$F$41*$D9,IF($E9="Non-RPP kWh",VLOOKUP(L$4,'4. Billing Determinants'!$B$19:$N$41,6,0)/'4. Billing Determinants'!$G$41*$D9,IF($E9="Distribution Rev.",VLOOKUP(L$4,'4. Billing Determinants'!$B$19:$N$41,8,0)/'4. Billing Determinants'!$I$41*$D9, VLOOKUP(L$4,'4. Billing Determinants'!$B$19:$N$41,3,0)/'4. Billing Determinants'!$D$41*$D9))))) -> 0 | M9: =IF(M$4="",0,IF($E9="kWh",VLOOKUP(M$4,'4. Billing Determinants'!$B$19:$N$41,4,0)/'4. Billing Determinants'!$E$41*$D9,IF($E9="kW",VLOOKUP(M$4,'4. Billing Determinants'!$B$19:$N$41,5,0)/'4. Billing Determinants'!$F$41*$D9,IF($E9="Non-RPP kWh",VLOOKUP(M$4,'4. Billing Determinants'!$B$19:$N$41,6,0)/'4. Billing Determinants'!$G$41*$D9,IF($E9="Distribution Rev.",VLOOKUP(M$4,'4. Billing Determinants'!$B$19:$N$41,8,0)/'4. Billing Determinants'!$I$41*$D9, VLOOKUP(M$4,'4. Billing Determinants'!$B$19:$N$41,3,0)/'4. Billing Determinants'!$D$41*$D9))))) -> 0 | N9: =IF(N$4="",0,IF($E9="kWh",VLOOKUP(N$4,'4. Billing Determinants'!$B$19:$N$41,4,0)/'4. Billing Determinants'!$E$41*$D9,IF($E9="kW",VLOOKUP(N$4,'4. Billing Determinants'!$B$19:$N$41,5,0)/'4. Billing Determinants'!$F$41*$D9,IF($E9="Non-RPP kWh",VLOOKUP(N$4,'4. Billing Determinants'!$B$19:$N$41,6,0)/'4. Billing Determinants'!$G$41*$D9,IF($E9="Distribution Rev.",VLOOKUP(N$4,'4. Billing Determinants'!$B$19:$N$41,8,0)/'4. Billing Determinants'!$I$41*$D9, VLOOKUP(N$4,'4. Billing Determinants'!$B$19:$N$41,3,0)/'4. Billing Determinants'!$D$41*$D9))))) -> 0 | O9: =IF(O$4="",0,IF($E9="kWh",VLOOKUP(O$4,'4. Billing Determinants'!$B$19:$N$41,4,0)/'4. Billing Determinants'!$E$41*$D9,IF($E9="kW",VLOOKUP(O$4,'4. Billing Determinants'!$B$19:$N$41,5,0)/'4. Billing Determinants'!$F$41*$D9,IF($E9="Non-RPP kWh",VLOOKUP(O$4,'4. Billing Determinants'!$B$19:$N$41,6,0)/'4. Billing Determinants'!$G$41*$D9,IF($E9="Distribution Rev.",VLOOKUP(O$4,'4. Billing Determinants'!$B$19:$N$41,8,0)/'4. Billing Determinants'!$I$41*$D9, VLOOKUP(O$4,'4. Billing Determinants'!$B$19:$N$41,3,0)/'4. Billing Determinants'!$D$41*$D9))))) -> 0 | P9: =IF(P$4="",0,IF($E9="kWh",VLOOKUP(P$4,'4. Billing Determinants'!$B$19:$N$41,4,0)/'4. Billing Determinants'!$E$41*$D9,IF($E9="kW",VLOOKUP(P$4,'4. Billing Determinants'!$B$19:$N$41,5,0)/'4. Billing Determinants'!$F$41*$D9,IF($E9="Non-RPP kWh",VLOOKUP(P$4,'4. Billing Determinants'!$B$19:$N$41,6,0)/'4. Billing Determinants'!$G$41*$D9,IF($E9="Distribution Rev.",VLOOKUP(P$4,'4. Billing Determinants'!$B$19:$N$41,8,0)/'4. Billing Determinants'!$I$41*$D9, VLOOKUP(P$4,'4. Billing Determinants'!$B$19:$N$41,3,0)/'4. Billing Determinants'!$D$41*$D9))))) -> 0 | Q9: =IF(Q$4="",0,IF($E9="kWh",VLOOKUP(Q$4,'4. Billing Determinants'!$B$19:$N$41,4,0)/'4. Billing Determinants'!$E$41*$D9,IF($E9="kW",VLOOKUP(Q$4,'4. Billing Determinants'!$B$19:$N$41,5,0)/'4. Billing Determinants'!$F$41*$D9,IF($E9="Non-RPP kWh",VLOOKUP(Q$4,'4. Billing Determinants'!$B$19:$N$41,6,0)/'4. Billing Determinants'!$G$41*$D9,IF($E9="Distribution Rev.",VLOOKUP(Q$4,'4. Billing Determinants'!$B$19:$N$41,8,0)/'4. Billing Determinants'!$I$41*$D9, VLOOKUP(Q$4,'4. Billing Determinants'!$B$19:$N$41,3,0)/'4. Billing Determinants'!$D$41*$D9))))) -> 0 | R9: =IF(R$4="",0,IF($E9="kWh",VLOOKUP(R$4,'4. Billing Determinants'!$B$19:$N$41,4,0)/'4. Billing Determinants'!$E$41*$D9,IF($E9="kW",VLOOKUP(R$4,'4. Billing Determinants'!$B$19:$N$41,5,0)/'4. Billing Determinants'!$F$41*$D9,IF($E9="Non-RPP kWh",VLOOKUP(R$4,'4. Billing Determinants'!$B$19:$N$41,6,0)/'4. Billing Determinants'!$G$41*$D9,IF($E9="Distribution Rev.",VLOOKUP(R$4,'4. Billing Determinants'!$B$19:$N$41,8,0)/'4. Billing Determinants'!$I$41*$D9, VLOOKUP(R$4,'4. Billing Determinants'!$B$19:$N$41,3,0)/'4. Billing Determinants'!$D$41*$D9))))) -> 0 | S9: =IF(S$4="",0,IF($E9="kWh",VLOOKUP(S$4,'4. Billing Determinants'!$B$19:$N$41,4,0)/'4. Billing Determinants'!$E$41*$D9,IF($E9="kW",VLOOKUP(S$4,'4. Billing Determinants'!$B$19:$N$41,5,0)/'4. Billing Determinants'!$F$41*$D9,IF($E9="Non-RPP kWh",VLOOKUP(S$4,'4. Billing Determinants'!$B$19:$N$41,6,0)/'4. Billing Determinants'!$G$41*$D9,IF($E9="Distribution Rev.",VLOOKUP(S$4,'4. Billing Determinants'!$B$19:$N$41,8,0)/'4. Billing Determinants'!$I$41*$D9, VLOOKUP(S$4,'4. Billing Determinants'!$B$19:$N$41,3,0)/'4. Billing Determinants'!$D$41*$D9))))) -> 0 | T9: =IF(T$4="",0,IF($E9="kWh",VLOOKUP(T$4,'4. Billing Determinants'!$B$19:$N$41,4,0)/'4. Billing Determinants'!$E$41*$D9,IF($E9="kW",VLOOKUP(T$4,'4. Billing Determinants'!$B$19:$N$41,5,0)/'4. Billing Determinants'!$F$41*$D9,IF($E9="Non-RPP kWh",VLOOKUP(T$4,'4. Billing Determinants'!$B$19:$N$41,6,0)/'4. Billing Determinants'!$G$41*$D9,IF($E9="Distribution Rev.",VLOOKUP(T$4,'4. Billing Determinants'!$B$19:$N$41,8,0)/'4. Billing Determinants'!$I$41*$D9, VLOOKUP(T$4,'4. Billing Determinants'!$B$19:$N$41,3,0)/'4. Billing Determinants'!$D$41*$D9))))) -> 0 | U9: =IF(U$4="",0,IF($E9="kWh",VLOOKUP(U$4,'4. Billing Determinants'!$B$19:$N$41,4,0)/'4. Billing Determinants'!$E$41*$D9,IF($E9="kW",VLOOKUP(U$4,'4. Billing Determinants'!$B$19:$N$41,5,0)/'4. Billing Determinants'!$F$41*$D9,IF($E9="Non-RPP kWh",VLOOKUP(U$4,'4. Billing Determinants'!$B$19:$N$41,6,0)/'4. Billing Determinants'!$G$41*$D9,IF($E9="Distribution Rev.",VLOOKUP(U$4,'4. Billing Determinants'!$B$19:$N$41,8,0)/'4. Billing Determinants'!$I$41*$D9, VLOOKUP(U$4,'4. Billing Determinants'!$B$19:$N$41,3,0)/'4. Billing Determinants'!$D$41*$D9))))) -> 0 | V9: =IF(V$4="",0,IF($E9="kWh",VLOOKUP(V$4,'4. Billing Determinants'!$B$19:$N$41,4,0)/'4. Billing Determinants'!$E$41*$D9,IF($E9="kW",VLOOKUP(V$4,'4. Billing Determinants'!$B$19:$N$41,5,0)/'4. Billing Determinants'!$F$41*$D9,IF($E9="Non-RPP kWh",VLOOKUP(V$4,'4. Billing Determinants'!$B$19:$N$41,6,0)/'4. Billing Determinants'!$G$41*$D9,IF($E9="Distribution Rev.",VLOOKUP(V$4,'4. Billing Determinants'!$B$19:$N$41,8,0)/'4. Billing Determinants'!$I$41*$D9, VLOOKUP(V$4,'4. Billing Determinants'!$B$19:$N$41,3,0)/'4. Billing Determinants'!$D$41*$D9))))) -> 0 | W9: =IF(W$4="",0,IF($E9="kWh",VLOOKUP(W$4,'4. Billing Determinants'!$B$19:$N$41,4,0)/'4. Billing Determinants'!$E$41*$D9,IF($E9="kW",VLOOKUP(W$4,'4. Billing Determinants'!$B$19:$N$41,5,0)/'4. Billing Determinants'!$F$41*$D9,IF($E9="Non-RPP kWh",VLOOKUP(W$4,'4. Billing Determinants'!$B$19:$N$41,6,0)/'4. Billing Determinants'!$G$41*$D9,IF($E9="Distribution Rev.",VLOOKUP(W$4,'4. Billing Determinants'!$B$19:$N$41,8,0)/'4. Billing Determinants'!$I$41*$D9, VLOOKUP(W$4,'4. Billing Determinants'!$B$19:$N$41,3,0)/'4. Billing Determinants'!$D$41*$D9))))) -> 0 | X9: =IF(X$4="",0,IF($E9="kWh",VLOOKUP(X$4,'4. Billing Determinants'!$B$19:$N$41,4,0)/'4. Billing Determinants'!$E$41*$D9,IF($E9="kW",VLOOKUP(X$4,'4. Billing Determinants'!$B$19:$N$41,5,0)/'4. Billing Determinants'!$F$41*$D9,IF($E9="Non-RPP kWh",VLOOKUP(X$4,'4. Billing Determinants'!$B$19:$N$41,6,0)/'4. Billing Determinants'!$G$41*$D9,IF($E9="Distribution Rev.",VLOOKUP(X$4,'4. Billing Determinants'!$B$19:$N$41,8,0)/'4. Billing Determinants'!$I$41*$D9, VLOOKUP(X$4,'4. Billing Determinants'!$B$19:$N$41,3,0)/'4. Billing Determinants'!$D$41*$D9))))) -> 0 | Y9: =IF(Y$4="",0,IF($E9="kWh",VLOOKUP(Y$4,'4. Billing Determinants'!$B$19:$N$41,4,0)/'4. Billing Determinants'!$E$41*$D9,IF($E9="kW",VLOOKUP(Y$4,'4. Billing Determinants'!$B$19:$N$41,5,0)/'4. Billing Determinants'!$F$41*$D9,IF($E9="Non-RPP kWh",VLOOKUP(Y$4,'4. Billing Determinants'!$B$19:$N$41,6,0)/'4. Billing Determinants'!$G$41*$D9,IF($E9="Distribution Rev.",VLOOKUP(Y$4,'4. Billing Determinants'!$B$19:$N$41,8,0)/'4. Billing Determinants'!$I$41*$D9, VLOOKUP(Y$4,'4. Billing Determinants'!$B$19:$N$41,3,0)/'4. Billing Determinants'!$D$41*$D9))))) -> 0
B10: RSVA - Power - Sub-account - Global Adjustment | C10: 1588 | D10: ='2. 2013 Continuity Schedule'!CP29 -> 271750.99 | E10: Non-RPP kWh | F10: =IF(F$4="",0,IF($E10="kWh",VLOOKUP(F$4,'4. Billing Determinants'!$B$19:$N$41,4,0)/'4. Billing Determinants'!$E$41*$D10,IF($E10="kW",VLOOKUP(F$4,'4. Billing Determinants'!$B$19:$N$41,5,0)/'4. Billing Determinants'!$F$41*$D10,IF($E10="Non-RPP kWh",VLOOKUP(F$4,'4. Billing Determinants'!$B$19:$N$41,6,0)/'4. Billing Determinants'!$G$41*$D10,IF($E10="Distribution Rev.",VLOOKUP(F$4,'4. Billing Determinants'!$B$19:$N$41,8,0)/'4. Billing Determinants'!$I$41*$D10, VLOOKUP(F$4,'4. Billing Determinants'!$B$19:$N$41,3,0)/'4. Billing Determinants'!$D$41*$D10))))) -> 8638.718513 | G10: =IF(G$4="",0,IF($E10="kWh",VLOOKUP(G$4,'4. Billing Determinants'!$B$19:$N$41,4,0)/'4. Billing Determinants'!$E$41*$D10,IF($E10="kW",VLOOKUP(G$4,'4. Billing Determinants'!$B$19:$N$41,5,0)/'4. Billing Determinants'!$F$41*$D10,IF($E10="Non-RPP kWh",VLOOKUP(G$4,'4. Billing Determinants'!$B$19:$N$41,6,0)/'4. Billing Determinants'!$G$41*$D10,IF($E10="Distribution Rev.",VLOOKUP(G$4,'4. Billing Determinants'!$B$19:$N$41,8,0)/'4. Billing Determinants'!$I$41*$D10, VLOOKUP(G$4,'4. Billing Determinants'!$B$19:$N$41,3,0)/'4. Billing Determinants'!$D$41*$D10))))) -> 233.4474098 | H10: =IF(H$4="",0,IF($E10="kWh",VLOOKUP(H$4,'4. Billing Determinants'!$B$19:$N$41,4,0)/'4. Billing Determinants'!$E$41*$D10,IF($E10="kW",VLOOKUP(H$4,'4. Billing Determinants'!$B$19:$N$41,5,0)/'4. Billing Determinants'!$F$41*$D10,IF($E10="Non-RPP kWh",VLOOKUP(H$4,'4. Billing Determinants'!$B$19:$N$41,6,0)/'4. Billing Determinants'!$G$41*$D10,IF($E10="Distribution Rev.",VLOOKUP(H$4,'4. Billing Determinants'!$B$19:$N$41,8,0)/'4. Billing Determinants'!$I$41*$D10, VLOOKUP(H$4,'4. Billing Determinants'!$B$19:$N$41,3,0)/'4. Billing Determinants'!$D$41*$D10))))) -> 258330.086 | I10: =IF(I$4="",0,IF($E10="kWh",VLOOKUP(I$4,'4. Billing Determinants'!$B$19:$N$41,4,0)/'4. Billing Determinants'!$E$41*$D10,IF($E10="kW",VLOOKUP(I$4,'4. Billing Determinants'!$B$19:$N$41,5,0)/'4. Billing Determinants'!$F$41*$D10,IF($E10="Non-RPP kWh",VLOOKUP(I$4,'4. Billing Determinants'!$B$19:$N$41,6,0)/'4. Billing Determinants'!$G$41*$D10,IF($E10="Distribution Rev.",VLOOKUP(I$4,'4. Billing Determinants'!$B$19:$N$41,8,0)/'4. Billing Determinants'!$I$41*$D10, VLOOKUP(I$4,'4. Billing Determinants'!$B$19:$N$41,3,0)/'4. Billing Determinants'!$D$41*$D10))))) -> 31.79242299 | J10: =IF(J$4="",0,IF($E10="kWh",VLOOKUP(J$4,'4. Billing Determinants'!$B$19:$N$41,4,0)/'4. Billing Determinants'!$E$41*$D10,IF($E10="kW",VLOOKUP(J$4,'4. Billing Determinants'!$B$19:$N$41,5,0)/'4. Billing Determinants'!$F$41*$D10,IF($E10="Non-RPP kWh",VLOOKUP(J$4,'4. Billing Determinants'!$B$19:$N$41,6,0)/'4. Billing Determinants'!$G$41*$D10,IF($E10="Distribution Rev.",VLOOKUP(J$4,'4. Billing Determinants'!$B$19:$N$41,8,0)/'4. Billing Determinants'!$I$41*$D10, VLOOKUP(J$4,'4. Billing Determinants'!$B$19:$N$41,3,0)/'4. Billing Determinants'!$D$41*$D10))))) -> 19.24994059 | K10: =IF(K$4="",0,IF($E10="kWh",VLOOKUP(K$4,'4. Billing Determinants'!$B$19:$N$41,4,0)/'4. Billing Determinants'!$E$41*$D10,IF($E10="kW",VLOOKUP(K$4,'4. Billing Determinants'!$B$19:$N$41,5,0)/'4. Billing Determinants'!$F$41*$D10,IF($E10="Non-RPP kWh",VLOOKUP(K$4,'4. Billing Determinants'!$B$19:$N$41,6,0)/'4. Billing Determinants'!$G$41*$D10,IF($E10="Distribution Rev.",VLOOKUP(K$4,'4. Billing Determinants'!$B$19:$N$41,8,0)/'4. Billing Determinants'!$I$41*$D10, VLOOKUP(K$4,'4. Billing Determinants'!$B$19:$N$41,3,0)/'4. Billing Determinants'!$D$41*$D10))))) -> 4497.695709 | L10: =IF(L$4="",0,IF($E10="kWh",VLOOKUP(L$4,'4. Billing Determinants'!$B$19:$N$41,4,0)/'4. Billing Determinants'!$E$41*$D10,IF($E10="kW",VLOOKUP(L$4,'4. Billing Determinants'!$B$19:$N$41,5,0)/'4. Billing Determinants'!$F$41*$D10,IF($E10="Non-RPP kWh",VLOOKUP(L$4,'4. Billing Determinants'!$B$19:$N$41,6,0)/'4. Billing Determinants'!$G$41*$D10,IF($E10="Distribution Rev.",VLOOKUP(L$4,'4. Billing Determinants'!$B$19:$N$41,8,0)/'4. Billing Determinants'!$I$41*$D10, VLOOKUP(L$4,'4. Billing Determinants'!$B$19:$N$41,3,0)/'4. Billing Determinants'!$D$41*$D10))))) -> 0 | M10: =IF(M$4="",0,IF($E10="kWh",VLOOKUP(M$4,'4. Billing Determinants'!$B$19:$N$41,4,0)/'4. Billing Determinants'!$E$41*$D10,IF($E10="kW",VLOOKUP(M$4,'4. Billing Determinants'!$B$19:$N$41,5,0)/'4. Billing Determinants'!$F$41*$D10,IF($E10="Non-RPP kWh",VLOOKUP(M$4,'4. Billing Determinants'!$B$19:$N$41,6,0)/'4. Billing Determinants'!$G$41*$D10,IF($E10="Distribution Rev.",VLOOKUP(M$4,'4. Billing Determinants'!$B$19:$N$41,8,0)/'4. Billing Determinants'!$I$41*$D10, VLOOKUP(M$4,'4. Billing Determinants'!$B$19:$N$41,3,0)/'4. Billing Determinants'!$D$41*$D10))))) -> 0 | N10: =IF(N$4="",0,IF($E10="kWh",VLOOKUP(N$4,'4. Billing Determinants'!$B$19:$N$41,4,0)/'4. Billing Determinants'!$E$41*$D10,IF($E10="kW",VLOOKUP(N$4,'4. Billing Determinants'!$B$19:$N$41,5,0)/'4. Billing Determinants'!$F$41*$D10,IF($E10="Non-RPP kWh",VLOOKUP(N$4,'4. Billing Determinants'!$B$19:$N$41,6,0)/'4. Billing Determinants'!$G$41*$D10,IF($E10="Distribution Rev.",VLOOKUP(N$4,'4. Billing Determinants'!$B$19:$N$41,8,0)/'4. Billing Determinants'!$I$41*$D10, VLOOKUP(N$4,'4. Billing Determinants'!$B$19:$N$41,3,0)/'4. Billing Determinants'!$D$41*$D10))))) -> 0 | O10: =IF(O$4="",0,IF($E10="kWh",VLOOKUP(O$4,'4. Billing Determinants'!$B$19:$N$41,4,0)/'4. Billing Determinants'!$E$41*$D10,IF($E10="kW",VLOOKUP(O$4,'4. Billing Determinants'!$B$19:$N$41,5,0)/'4. Billing Determinants'!$F$41*$D10,IF($E10="Non-RPP kWh",VLOOKUP(O$4,'4. Billing Determinants'!$B$19:$N$41,6,0)/'4. Billing Determinants'!$G$41*$D10,IF($E10="Distribution Rev.",VLOOKUP(O$4,'4. Billing Determinants'!$B$19:$N$41,8,0)/'4. Billing Determinants'!$I$41*$D10, VLOOKUP(O$4,'4. Billing Determinants'!$B$19:$N$41,3,0)/'4. Billing Determinants'!$D$41*$D10))))) -> 0 | P10: =IF(P$4="",0,IF($E10="kWh",VLOOKUP(P$4,'4. Billing Determinants'!$B$19:$N$41,4,0)/'4. Billing Determinants'!$E$41*$D10,IF($E10="kW",VLOOKUP(P$4,'4. Billing Determinants'!$B$19:$N$41,5,0)/'4. Billing Determinants'!$F$41*$D10,IF($E10="Non-RPP kWh",VLOOKUP(P$4,'4. Billing Determinants'!$B$19:$N$41,6,0)/'4. Billing Determinants'!$G$41*$D10,IF($E10="Distribution Rev.",VLOOKUP(P$4,'4. Billing Determinants'!$B$19:$N$41,8,0)/'4. Billing Determinants'!$I$41*$D10, VLOOKUP(P$4,'4. Billing Determinants'!$B$19:$N$41,3,0)/'4. Billing Determinants'!$D$41*$D10))))) -> 0 | Q10: =IF(Q$4="",0,IF($E10="kWh",VLOOKUP(Q$4,'4. Billing Determinants'!$B$19:$N$41,4,0)/'4. Billing Determinants'!$E$41*$D10,IF($E10="kW",VLOOKUP(Q$4,'4. Billing Determinants'!$B$19:$N$41,5,0)/'4. Billing Determinants'!$F$41*$D10,IF($E10="Non-RPP kWh",VLOOKUP(Q$4,'4. Billing Determinants'!$B$19:$N$41,6,0)/'4. Billing Determinants'!$G$41*$D10,IF($E10="Distribution Rev.",VLOOKUP(Q$4,'4. Billing Determinants'!$B$19:$N$41,8,0)/'4. Billing Determinants'!$I$41*$D10, VLOOKUP(Q$4,'4. Billing Determinants'!$B$19:$N$41,3,0)/'4. Billing Determinants'!$D$41*$D10))))) -> 0 | R10: =IF(R$4="",0,IF($E10="kWh",VLOOKUP(R$4,'4. Billing Determinants'!$B$19:$N$41,4,0)/'4. Billing Determinants'!$E$41*$D10,IF($E10="kW",VLOOKUP(R$4,'4. Billing Determinants'!$B$19:$N$41,5,0)/'4. Billing Determinants'!$F$41*$D10,IF($E10="Non-RPP kWh",VLOOKUP(R$4,'4. Billing Determinants'!$B$19:$N$41,6,0)/'4. Billing Determinants'!$G$41*$D10,IF($E10="Distribution Rev.",VLOOKUP(R$4,'4. Billing Determinants'!$B$19:$N$41,8,0)/'4. Billing Determinants'!$I$41*$D10, VLOOKUP(R$4,'4. Billing Determinants'!$B$19:$N$41,3,0)/'4. Billing Determinants'!$D$41*$D10))))) -> 0 | S10: =IF(S$4="",0,IF($E10="kWh",VLOOKUP(S$4,'4. Billing Determinants'!$B$19:$N$41,4,0)/'4. Billing Determinants'!$E$41*$D10,IF($E10="kW",VLOOKUP(S$4,'4. Billing Determinants'!$B$19:$N$41,5,0)/'4. Billing Determinants'!$F$41*$D10,IF($E10="Non-RPP kWh",VLOOKUP(S$4,'4. Billing Determinants'!$B$19:$N$41,6,0)/'4. Billing Determinants'!$G$41*$D10,IF($E10="Distribution Rev.",VLOOKUP(S$4,'4. Billing Determinants'!$B$19:$N$41,8,0)/'4. Billing Determinants'!$I$41*$D10, VLOOKUP(S$4,'4. Billing Determinants'!$B$19:$N$41,3,0)/'4. Billing Determinants'!$D$41*$D10))))) -> 0 | T10: =IF(T$4="",0,IF($E10="kWh",VLOOKUP(T$4,'4. Billing Determinants'!$B$19:$N$41,4,0)/'4. Billing Determinants'!$E$41*$D10,IF($E10="kW",VLOOKUP(T$4,'4. Billing Determinants'!$B$19:$N$41,5,0)/'4. Billing Determinants'!$F$41*$D10,IF($E10="Non-RPP kWh",VLOOKUP(T$4,'4. Billing Determinants'!$B$19:$N$41,6,0)/'4. Billing Determinants'!$G$41*$D10,IF($E10="Distribution Rev.",VLOOKUP(T$4,'4. Billing Determinants'!$B$19:$N$41,8,0)/'4. Billing Determinants'!$I$41*$D10, VLOOKUP(T$4,'4. Billing Determinants'!$B$19:$N$41,3,0)/'4. Billing Determinants'!$D$41*$D10))))) -> 0 | U10: =IF(U$4="",0,IF($E10="kWh",VLOOKUP(U$4,'4. Billing Determinants'!$B$19:$N$41,4,0)/'4. Billing Determinants'!$E$41*$D10,IF($E10="kW",VLOOKUP(U$4,'4. Billing Determinants'!$B$19:$N$41,5,0)/'4. Billing Determinants'!$F$41*$D10,IF($E10="Non-RPP kWh",VLOOKUP(U$4,'4. Billing Determinants'!$B$19:$N$41,6,0)/'4. Billing Determinants'!$G$41*$D10,IF($E10="Distribution Rev.",VLOOKUP(U$4,'4. Billing Determinants'!$B$19:$N$41,8,0)/'4. Billing Determinants'!$I$41*$D10, VLOOKUP(U$4,'4. Billing Determinants'!$B$19:$N$41,3,0)/'4. Billing Determinants'!$D$41*$D10))))) -> 0 | V10: =IF(V$4="",0,IF($E10="kWh",VLOOKUP(V$4,'4. Billing Determinants'!$B$19:$N$41,4,0)/'4. Billing Determinants'!$E$41*$D10,IF($E10="kW",VLOOKUP(V$4,'4. Billing Determinants'!$B$19:$N$41,5,0)/'4. Billing Determinants'!$F$41*$D10,IF($E10="Non-RPP kWh",VLOOKUP(V$4,'4. Billing Determinants'!$B$19:$N$41,6,0)/'4. Billing Determinants'!$G$41*$D10,IF($E10="Distribution Rev.",VLOOKUP(V$4,'4. Billing Determinants'!$B$19:$N$41,8,0)/'4. Billing Determinants'!$I$41*$D10, VLOOKUP(V$4,'4. Billing Determinants'!$B$19:$N$41,3,0)/'4. Billing Determinants'!$D$41*$D10))))) -> 0 | W10: =IF(W$4="",0,IF($E10="kWh",VLOOKUP(W$4,'4. Billing Determinants'!$B$19:$N$41,4,0)/'4. Billing Determinants'!$E$41*$D10,IF($E10="kW",VLOOKUP(W$4,'4. Billing Determinants'!$B$19:$N$41,5,0)/'4. Billing Determinants'!$F$41*$D10,IF($E10="Non-RPP kWh",VLOOKUP(W$4,'4. Billing Determinants'!$B$19:$N$41,6,0)/'4. Billing Determinants'!$G$41*$D10,IF($E10="Distribution Rev.",VLOOKUP(W$4,'4. Billing Determinants'!$B$19:$N$41,8,0)/'4. Billing Determinants'!$I$41*$D10, VLOOKUP(W$4,'4. Billing Determinants'!$B$19:$N$41,3,0)/'4. Billing Determinants'!$D$41*$D10))))) -> 0 | X10: =IF(X$4="",0,IF($E10="kWh",VLOOKUP(X$4,'4. Billing Determinants'!$B$19:$N$41,4,0)/'4. Billing Determinants'!$E$41*$D10,IF($E10="kW",VLOOKUP(X$4,'4. Billing Determinants'!$B$19:$N$41,5,0)/'4. Billing Determinants'!$F$41*$D10,IF($E10="Non-RPP kWh",VLOOKUP(X$4,'4. Billing Determinants'!$B$19:$N$41,6,0)/'4. Billing Determinants'!$G$41*$D10,IF($E10="Distribution Rev.",VLOOKUP(X$4,'4. Billing Determinants'!$B$19:$N$41,8,0)/'4. Billing Determinants'!$I$41*$D10, VLOOKUP(X$4,'4. Billing Determinants'!$B$19:$N$41,3,0)/'4. Billing Determinants'!$D$41*$D10))))) -> 0 | Y10: =IF(Y$4="",0,IF($E10="kWh",VLOOKUP(Y$4,'4. Billing Determinants'!$B$19:$N$41,4,0)/'4. Billing Determinants'!$E$41*$D10,IF($E10="kW",VLOOKUP(Y$4,'4. Billing Determinants'!$B$19:$N$41,5,0)/'4. Billing Determinants'!$F$41*$D10,IF($E10="Non-RPP kWh",VLOOKUP(Y$4,'4. Billing Determinants'!$B$19:$N$41,6,0)/'4. Billing Determinants'!$G$41*$D10,IF($E10="Distribution Rev.",VLOOKUP(Y$4,'4. Billing Determinants'!$B$19:$N$41,8,0)/'4. Billing Determinants'!$I$41*$D10, VLOOKUP(Y$4,'4. Billing Determinants'!$B$19:$N$41,3,0)/'4. Billing Determinants'!$D$41*$D10))))) -> 0
B11: Recovery of Regulatory Asset Balances | C11: 1590 | D11: ='2. 2013 Continuity Schedule'!CP30 -> -0.35 | E11: kWh | F11: =IF(F$4="",0,IF($E11="kWh",VLOOKUP(F$4,'4. Billing Determinants'!$B$19:$N$41,4,0)/'4. Billing Determinants'!$E$41*$D11,IF($E11="kW",VLOOKUP(F$4,'4. Billing Determinants'!$B$19:$N$41,5,0)/'4. Billing Determinants'!$F$41*$D11,IF($E11="Non-RPP kWh",VLOOKUP(F$4,'4. Billing Determinants'!$B$19:$N$41,6,0)/'4. Billing Determinants'!$G$41*$D11,IF($E11="Distribution Rev.",VLOOKUP(F$4,'4. Billing Determinants'!$B$19:$N$41,8,0)/'4. Billing Determinants'!$I$41*$D11, VLOOKUP(F$4,'4. Billing Determinants'!$B$19:$N$41,3,0)/'4. Billing Determinants'!$D$41*$D11))))) -> -0.1199397794 | G11: =IF(G$4="",0,IF($E11="kWh",VLOOKUP(G$4,'4. Billing Determinants'!$B$19:$N$41,4,0)/'4. Billing Determinants'!$E$41*$D11,IF($E11="kW",VLOOKUP(G$4,'4. Billing Determinants'!$B$19:$N$41,5,0)/'4. Billing Determinants'!$F$41*$D11,IF($E11="Non-RPP kWh",VLOOKUP(G$4,'4. Billing Determinants'!$B$19:$N$41,6,0)/'4. Billing Determinants'!$G$41*$D11,IF($E11="Distribution Rev.",VLOOKUP(G$4,'4. Billing Determinants'!$B$19:$N$41,8,0)/'4. Billing Determinants'!$I$41*$D11, VLOOKUP(G$4,'4. Billing Determinants'!$B$19:$N$41,3,0)/'4. Billing Determinants'!$D$41*$D11))))) -> -0.04346808531 | H11: =IF(H$4="",0,IF($E11="kWh",VLOOKUP(H$4,'4. Billing Determinants'!$B$19:$N$41,4,0)/'4. Billing Determinants'!$E$41*$D11,IF($E11="kW",VLOOKUP(H$4,'4. Billing Determinants'!$B$19:$N$41,5,0)/'4. Billing Determinants'!$F$41*$D11,IF($E11="Non-RPP kWh",VLOOKUP(H$4,'4. Billing Determinants'!$B$19:$N$41,6,0)/'4. Billing Determinants'!$G$41*$D11,IF($E11="Distribution Rev.",VLOOKUP(H$4,'4. Billing Determinants'!$B$19:$N$41,8,0)/'4. Billing Determinants'!$I$41*$D11, VLOOKUP(H$4,'4. Billing Determinants'!$B$19:$N$41,3,0)/'4. Billing Determinants'!$D$41*$D11))))) -> -0.1826676057 | I11: =IF(I$4="",0,IF($E11="kWh",VLOOKUP(I$4,'4. Billing Determinants'!$B$19:$N$41,4,0)/'4. Billing Determinants'!$E$41*$D11,IF($E11="kW",VLOOKUP(I$4,'4. Billing Determinants'!$B$19:$N$41,5,0)/'4. Billing Determinants'!$F$41*$D11,IF($E11="Non-RPP kWh",VLOOKUP(I$4,'4. Billing Determinants'!$B$19:$N$41,6,0)/'4. Billing Determinants'!$G$41*$D11,IF($E11="Distribution Rev.",VLOOKUP(I$4,'4. Billing Determinants'!$B$19:$N$41,8,0)/'4. Billing Determinants'!$I$41*$D11, VLOOKUP(I$4,'4. Billing Determinants'!$B$19:$N$41,3,0)/'4. Billing Determinants'!$D$41*$D11))))) -> -0.0005040827294 | J11: =IF(J$4="",0,IF($E11="kWh",VLOOKUP(J$4,'4. Billing Determinants'!$B$19:$N$41,4,0)/'4. Billing Determinants'!$E$41*$D11,IF($E11="kW",VLOOKUP(J$4,'4. Billing Determinants'!$B$19:$N$41,5,0)/'4. Billing Determinants'!$F$41*$D11,IF($E11="Non-RPP kWh",VLOOKUP(J$4,'4. Billing Determinants'!$B$19:$N$41,6,0)/'4. Billing Determinants'!$G$41*$D11,IF($E11="Distribution Rev.",VLOOKUP(J$4,'4. Billing Determinants'!$B$19:$N$41,8,0)/'4. Billing Determinants'!$I$41*$D11, VLOOKUP(J$4,'4. Billing Determinants'!$B$19:$N$41,3,0)/'4. Billing Determinants'!$D$41*$D11))))) -> -0.0002400867548 | K11: =IF(K$4="",0,IF($E11="kWh",VLOOKUP(K$4,'4. Billing Determinants'!$B$19:$N$41,4,0)/'4. Billing Determinants'!$E$41*$D11,IF($E11="kW",VLOOKUP(K$4,'4. Billing Determinants'!$B$19:$N$41,5,0)/'4. Billing Determinants'!$F$41*$D11,IF($E11="Non-RPP kWh",VLOOKUP(K$4,'4. Billing Determinants'!$B$19:$N$41,6,0)/'4. Billing Determinants'!$G$41*$D11,IF($E11="Distribution Rev.",VLOOKUP(K$4,'4. Billing Determinants'!$B$19:$N$41,8,0)/'4. Billing Determinants'!$I$41*$D11, VLOOKUP(K$4,'4. Billing Determinants'!$B$19:$N$41,3,0)/'4. Billing Determinants'!$D$41*$D11))))) -> -0.003180360189 | L11: =IF(L$4="",0,IF($E11="kWh",VLOOKUP(L$4,'4. Billing Determinants'!$B$19:$N$41,4,0)/'4. Billing Determinants'!$E$41*$D11,IF($E11="kW",VLOOKUP(L$4,'4. Billing Determinants'!$B$19:$N$41,5,0)/'4. Billing Determinants'!$F$41*$D11,IF($E11="Non-RPP kWh",VLOOKUP(L$4,'4. Billing Determinants'!$B$19:$N$41,6,0)/'4. Billing Determinants'!$G$41*$D11,IF($E11="Distribution Rev.",VLOOKUP(L$4,'4. Billing Determinants'!$B$19:$N$41,8,0)/'4. Billing Determinants'!$I$41*$D11, VLOOKUP(L$4,'4. Billing Determinants'!$B$19:$N$41,3,0)/'4. Billing Determinants'!$D$41*$D11))))) -> 0 | M11: =IF(M$4="",0,IF($E11="kWh",VLOOKUP(M$4,'4. Billing Determinants'!$B$19:$N$41,4,0)/'4. Billing Determinants'!$E$41*$D11,IF($E11="kW",VLOOKUP(M$4,'4. Billing Determinants'!$B$19:$N$41,5,0)/'4. Billing Determinants'!$F$41*$D11,IF($E11="Non-RPP kWh",VLOOKUP(M$4,'4. Billing Determinants'!$B$19:$N$41,6,0)/'4. Billing Determinants'!$G$41*$D11,IF($E11="Distribution Rev.",VLOOKUP(M$4,'4. Billing Determinants'!$B$19:$N$41,8,0)/'4. Billing Determinants'!$I$41*$D11, VLOOKUP(M$4,'4. Billing Determinants'!$B$19:$N$41,3,0)/'4. Billing Determinants'!$D$41*$D11))))) -> 0 | N11: =IF(N$4="",0,IF($E11="kWh",VLOOKUP(N$4,'4. Billing Determinants'!$B$19:$N$41,4,0)/'4. Billing Determinants'!$E$41*$D11,IF($E11="kW",VLOOKUP(N$4,'4. Billing Determinants'!$B$19:$N$41,5,0)/'4. Billing Determinants'!$F$41*$D11,IF($E11="Non-RPP kWh",VLOOKUP(N$4,'4. Billing Determinants'!$B$19:$N$41,6,0)/'4. Billing Determinants'!$G$41*$D11,IF($E11="Distribution Rev.",VLOOKUP(N$4,'4. Billing Determinants'!$B$19:$N$41,8,0)/'4. Billing Determinants'!$I$41*$D11, VLOOKUP(N$4,'4. Billing Determinants'!$B$19:$N$41,3,0)/'4. Billing Determinants'!$D$41*$D11))))) -> 0 | O11: =IF(O$4="",0,IF($E11="kWh",VLOOKUP(O$4,'4. Billing Determinants'!$B$19:$N$41,4,0)/'4. Billing Determinants'!$E$41*$D11,IF($E11="kW",VLOOKUP(O$4,'4. Billing Determinants'!$B$19:$N$41,5,0)/'4. Billing Determinants'!$F$41*$D11,IF($E11="Non-RPP kWh",VLOOKUP(O$4,'4. Billing Determinants'!$B$19:$N$41,6,0)/'4. Billing Determinants'!$G$41*$D11,IF($E11="Distribution Rev.",VLOOKUP(O$4,'4. Billing Determinants'!$B$19:$N$41,8,0)/'4. Billing Determinants'!$I$41*$D11, VLOOKUP(O$4,'4. Billing Determinants'!$B$19:$N$41,3,0)/'4. Billing Determinants'!$D$41*$D11))))) -> 0 | P11: =IF(P$4="",0,IF($E11="kWh",VLOOKUP(P$4,'4. Billing Determinants'!$B$19:$N$41,4,0)/'4. Billing Determinants'!$E$41*$D11,IF($E11="kW",VLOOKUP(P$4,'4. Billing Determinants'!$B$19:$N$41,5,0)/'4. Billing Determinants'!$F$41*$D11,IF($E11="Non-RPP kWh",VLOOKUP(P$4,'4. Billing Determinants'!$B$19:$N$41,6,0)/'4. Billing Determinants'!$G$41*$D11,IF($E11="Distribution Rev.",VLOOKUP(P$4,'4. Billing Determinants'!$B$19:$N$41,8,0)/'4. Billing Determinants'!$I$41*$D11, VLOOKUP(P$4,'4. Billing Determinants'!$B$19:$N$41,3,0)/'4. Billing Determinants'!$D$41*$D11))))) -> 0 | Q11: =IF(Q$4="",0,IF($E11="kWh",VLOOKUP(Q$4,'4. Billing Determinants'!$B$19:$N$41,4,0)/'4. Billing Determinants'!$E$41*$D11,IF($E11="kW",VLOOKUP(Q$4,'4. Billing Determinants'!$B$19:$N$41,5,0)/'4. Billing Determinants'!$F$41*$D11,IF($E11="Non-RPP kWh",VLOOKUP(Q$4,'4. Billing Determinants'!$B$19:$N$41,6,0)/'4. Billing Determinants'!$G$41*$D11,IF($E11="Distribution Rev.",VLOOKUP(Q$4,'4. Billing Determinants'!$B$19:$N$41,8,0)/'4. Billing Determinants'!$I$41*$D11, VLOOKUP(Q$4,'4. Billing Determinants'!$B$19:$N$41,3,0)/'4. Billing Determinants'!$D$41*$D11))))) -> 0 | R11: =IF(R$4="",0,IF($E11="kWh",VLOOKUP(R$4,'4. Billing Determinants'!$B$19:$N$41,4,0)/'4. Billing Determinants'!$E$41*$D11,IF($E11="kW",VLOOKUP(R$4,'4. Billing Determinants'!$B$19:$N$41,5,0)/'4. Billing Determinants'!$F$41*$D11,IF($E11="Non-RPP kWh",VLOOKUP(R$4,'4. Billing Determinants'!$B$19:$N$41,6,0)/'4. Billing Determinants'!$G$41*$D11,IF($E11="Distribution Rev.",VLOOKUP(R$4,'4. Billing Determinants'!$B$19:$N$41,8,0)/'4. Billing Determinants'!$I$41*$D11, VLOOKUP(R$4,'4. Billing Determinants'!$B$19:$N$41,3,0)/'4. Billing Determinants'!$D$41*$D11))))) -> 0 | S11: =IF(S$4="",0,IF($E11="kWh",VLOOKUP(S$4,'4. Billing Determinants'!$B$19:$N$41,4,0)/'4. Billing Determinants'!$E$41*$D11,IF($E11="kW",VLOOKUP(S$4,'4. Billing Determinants'!$B$19:$N$41,5,0)/'4. Billing Determinants'!$F$41*$D11,IF($E11="Non-RPP kWh",VLOOKUP(S$4,'4. Billing Determinants'!$B$19:$N$41,6,0)/'4. Billing Determinants'!$G$41*$D11,IF($E11="Distribution Rev.",VLOOKUP(S$4,'4. Billing Determinants'!$B$19:$N$41,8,0)/'4. Billing Determinants'!$I$41*$D11, VLOOKUP(S$4,'4. Billing Determinants'!$B$19:$N$41,3,0)/'4. Billing Determinants'!$D$41*$D11))))) -> 0 | T11: =IF(T$4="",0,IF($E11="kWh",VLOOKUP(T$4,'4. Billing Determinants'!$B$19:$N$41,4,0)/'4. Billing Determinants'!$E$41*$D11,IF($E11="kW",VLOOKUP(T$4,'4. Billing Determinants'!$B$19:$N$41,5,0)/'4. Billing Determinants'!$F$41*$D11,IF($E11="Non-RPP kWh",VLOOKUP(T$4,'4. Billing Determinants'!$B$19:$N$41,6,0)/'4. Billing Determinants'!$G$41*$D11,IF($E11="Distribution Rev.",VLOOKUP(T$4,'4. Billing Determinants'!$B$19:$N$41,8,0)/'4. Billing Determinants'!$I$41*$D11, VLOOKUP(T$4,'4. Billing Determinants'!$B$19:$N$41,3,0)/'4. Billing Determinants'!$D$41*$D11))))) -> 0 | U11: =IF(U$4="",0,IF($E11="kWh",VLOOKUP(U$4,'4. Billing Determinants'!$B$19:$N$41,4,0)/'4. Billing Determinants'!$E$41*$D11,IF($E11="kW",VLOOKUP(U$4,'4. Billing Determinants'!$B$19:$N$41,5,0)/'4. Billing Determinants'!$F$41*$D11,IF($E11="Non-RPP kWh",VLOOKUP(U$4,'4. Billing Determinants'!$B$19:$N$41,6,0)/'4. Billing Determinants'!$G$41*$D11,IF($E11="Distribution Rev.",VLOOKUP(U$4,'4. Billing Determinants'!$B$19:$N$41,8,0)/'4. Billing Determinants'!$I$41*$D11, VLOOKUP(U$4,'4. Billing Determinants'!$B$19:$N$41,3,0)/'4. Billing Determinants'!$D$41*$D11))))) -> 0 | V11: =IF(V$4="",0,IF($E11="kWh",VLOOKUP(V$4,'4. Billing Determinants'!$B$19:$N$41,4,0)/'4. Billing Determinants'!$E$41*$D11,IF($E11="kW",VLOOKUP(V$4,'4. Billing Determinants'!$B$19:$N$41,5,0)/'4. Billing Determinants'!$F$41*$D11,IF($E11="Non-RPP kWh",VLOOKUP(V$4,'4. Billing Determinants'!$B$19:$N$41,6,0)/'4. Billing Determinants'!$G$41*$D11,IF($E11="Distribution Rev.",VLOOKUP(V$4,'4. Billing Determinants'!$B$19:$N$41,8,0)/'4. Billing Determinants'!$I$41*$D11, VLOOKUP(V$4,'4. Billing Determinants'!$B$19:$N$41,3,0)/'4. Billing Determinants'!$D$41*$D11))))) -> 0 | W11: =IF(W$4="",0,IF($E11="kWh",VLOOKUP(W$4,'4. Billing Determinants'!$B$19:$N$41,4,0)/'4. Billing Determinants'!$E$41*$D11,IF($E11="kW",VLOOKUP(W$4,'4. Billing Determinants'!$B$19:$N$41,5,0)/'4. Billing Determinants'!$F$41*$D11,IF($E11="Non-RPP kWh",VLOOKUP(W$4,'4. Billing Determinants'!$B$19:$N$41,6,0)/'4. Billing Determinants'!$G$41*$D11,IF($E11="Distribution Rev.",VLOOKUP(W$4,'4. Billing Determinants'!$B$19:$N$41,8,0)/'4. Billing Determinants'!$I$41*$D11, VLOOKUP(W$4,'4. Billing Determinants'!$B$19:$N$41,3,0)/'4. Billing Determinants'!$D$41*$D11))))) -> 0 | X11: =IF(X$4="",0,IF($E11="kWh",VLOOKUP(X$4,'4. Billing Determinants'!$B$19:$N$41,4,0)/'4. Billing Determinants'!$E$41*$D11,IF($E11="kW",VLOOKUP(X$4,'4. Billing Determinants'!$B$19:$N$41,5,0)/'4. Billing Determinants'!$F$41*$D11,IF($E11="Non-RPP kWh",VLOOKUP(X$4,'4. Billing Determinants'!$B$19:$N$41,6,0)/'4. Billing Determinants'!$G$41*$D11,IF($E11="Distribution Rev.",VLOOKUP(X$4,'4. Billing Determinants'!$B$19:$N$41,8,0)/'4. Billing Determinants'!$I$41*$D11, VLOOKUP(X$4,'4. Billing Determinants'!$B$19:$N$41,3,0)/'4. Billing Determinants'!$D$41*$D11))))) -> 0 | Y11: =IF(Y$4="",0,IF($E11="kWh",VLOOKUP(Y$4,'4. Billing Determinants'!$B$19:$N$41,4,0)/'4. Billing Determinants'!$E$41*$D11,IF($E11="kW",VLOOKUP(Y$4,'4. Billing Determinants'!$B$19:$N$41,5,0)/'4. Billing Determinants'!$F$41*$D11,IF($E11="Non-RPP kWh",VLOOKUP(Y$4,'4. Billing Determinants'!$B$19:$N$41,6,0)/'4. Billing Determinants'!$G$41*$D11,IF($E11="Distribution Rev.",VLOOKUP(Y$4,'4. Billing Determinants'!$B$19:$N$41,8,0)/'4. Billing Determinants'!$I$41*$D11, VLOOKUP(Y$4,'4. Billing Determinants'!$B$19:$N$41,3,0)/'4. Billing Determinants'!$D$41*$D11))))) -> 0
B12: Disposition and Recovery/Refund of Regulatory Balances (2008) | C12: 1595 | D12: ='2. 2013 Continuity Schedule'!CP31 -> -195709.13 | E12: kWh | F12: =IF(F$4="",0,IF($E12="kWh",VLOOKUP(F$4,'4. Billing Determinants'!$B$19:$N$41,4,0)/'4. Billing Determinants'!$E$41*$D12,IF($E12="kW",VLOOKUP(F$4,'4. Billing Determinants'!$B$19:$N$41,5,0)/'4. Billing Determinants'!$F$41*$D12,IF($E12="Non-RPP kWh",VLOOKUP(F$4,'4. Billing Determinants'!$B$19:$N$41,6,0)/'4. Billing Determinants'!$G$41*$D12,IF($E12="Distribution Rev.",VLOOKUP(F$4,'4. Billing Determinants'!$B$19:$N$41,8,0)/'4. Billing Determinants'!$I$41*$D12, VLOOKUP(F$4,'4. Billing Determinants'!$B$19:$N$41,3,0)/'4. Billing Determinants'!$D$41*$D12))))) -> -67066.59963 | G12: =IF(G$4="",0,IF($E12="kWh",VLOOKUP(G$4,'4. Billing Determinants'!$B$19:$N$41,4,0)/'4. Billing Determinants'!$E$41*$D12,IF($E12="kW",VLOOKUP(G$4,'4. Billing Determinants'!$B$19:$N$41,5,0)/'4. Billing Determinants'!$F$41*$D12,IF($E12="Non-RPP kWh",VLOOKUP(G$4,'4. Billing Determinants'!$B$19:$N$41,6,0)/'4. Billing Determinants'!$G$41*$D12,IF($E12="Distribution Rev.",VLOOKUP(G$4,'4. Billing Determinants'!$B$19:$N$41,8,0)/'4. Billing Determinants'!$I$41*$D12, VLOOKUP(G$4,'4. Billing Determinants'!$B$19:$N$41,3,0)/'4. Billing Determinants'!$D$41*$D12))))) -> -24306.00331 | H12: =IF(H$4="",0,IF($E12="kWh",VLOOKUP(H$4,'4. Billing Determinants'!$B$19:$N$41,4,0)/'4. Billing Determinants'!$E$41*$D12,IF($E12="kW",VLOOKUP(H$4,'4. Billing Determinants'!$B$19:$N$41,5,0)/'4. Billing Determinants'!$F$41*$D12,IF($E12="Non-RPP kWh",VLOOKUP(H$4,'4. Billing Determinants'!$B$19:$N$41,6,0)/'4. Billing Determinants'!$G$41*$D12,IF($E12="Distribution Rev.",VLOOKUP(H$4,'4. Billing Determinants'!$B$19:$N$41,8,0)/'4. Billing Determinants'!$I$41*$D12, VLOOKUP(H$4,'4. Billing Determinants'!$B$19:$N$41,3,0)/'4. Billing Determinants'!$D$41*$D12))))) -> -102142.0519 | I12: =IF(I$4="",0,IF($E12="kWh",VLOOKUP(I$4,'4. Billing Determinants'!$B$19:$N$41,4,0)/'4. Billing Determinants'!$E$41*$D12,IF($E12="kW",VLOOKUP(I$4,'4. Billing Determinants'!$B$19:$N$41,5,0)/'4. Billing Determinants'!$F$41*$D12,IF($E12="Non-RPP kWh",VLOOKUP(I$4,'4. Billing Determinants'!$B$19:$N$41,6,0)/'4. Billing Determinants'!$G$41*$D12,IF($E12="Distribution Rev.",VLOOKUP(I$4,'4. Billing Determinants'!$B$19:$N$41,8,0)/'4. Billing Determinants'!$I$41*$D12, VLOOKUP(I$4,'4. Billing Determinants'!$B$19:$N$41,3,0)/'4. Billing Determinants'!$D$41*$D12))))) -> -281.8674069 | J12: =IF(J$4="",0,IF($E12="kWh",VLOOKUP(J$4,'4. Billing Determinants'!$B$19:$N$41,4,0)/'4. Billing Determinants'!$E$41*$D12,IF($E12="kW",VLOOKUP(J$4,'4. Billing Determinants'!$B$19:$N$41,5,0)/'4. Billing Determinants'!$F$41*$D12,IF($E12="Non-RPP kWh",VLOOKUP(J$4,'4. Billing Determinants'!$B$19:$N$41,6,0)/'4. Billing Determinants'!$G$41*$D12,IF($E12="Distribution Rev.",VLOOKUP(J$4,'4. Billing Determinants'!$B$19:$N$41,8,0)/'4. Billing Determinants'!$I$41*$D12, VLOOKUP(J$4,'4. Billing Determinants'!$B$19:$N$41,3,0)/'4. Billing Determinants'!$D$41*$D12))))) -> -134.2490569 | K12: =IF(K$4="",0,IF($E12="kWh",VLOOKUP(K$4,'4. Billing Determinants'!$B$19:$N$41,4,0)/'4. Billing Determinants'!$E$41*$D12,IF($E12="kW",VLOOKUP(K$4,'4. Billing Determinants'!$B$19:$N$41,5,0)/'4. Billing Determinants'!$F$41*$D12,IF($E12="Non-RPP kWh",VLOOKUP(K$4,'4. Billing Determinants'!$B$19:$N$41,6,0)/'4. Billing Determinants'!$G$41*$D12,IF($E12="Distribution Rev.",VLOOKUP(K$4,'4. Billing Determinants'!$B$19:$N$41,8,0)/'4. Billing Determinants'!$I$41*$D12, VLOOKUP(K$4,'4. Billing Determinants'!$B$19:$N$41,3,0)/'4. Billing Determinants'!$D$41*$D12))))) -> -1778.358645 | L12: =IF(L$4="",0,IF($E12="kWh",VLOOKUP(L$4,'4. Billing Determinants'!$B$19:$N$41,4,0)/'4. Billing Determinants'!$E$41*$D12,IF($E12="kW",VLOOKUP(L$4,'4. Billing Determinants'!$B$19:$N$41,5,0)/'4. Billing Determinants'!$F$41*$D12,IF($E12="Non-RPP kWh",VLOOKUP(L$4,'4. Billing Determinants'!$B$19:$N$41,6,0)/'4. Billing Determinants'!$G$41*$D12,IF($E12="Distribution Rev.",VLOOKUP(L$4,'4. Billing Determinants'!$B$19:$N$41,8,0)/'4. Billing Determinants'!$I$41*$D12, VLOOKUP(L$4,'4. Billing Determinants'!$B$19:$N$41,3,0)/'4. Billing Determinants'!$D$41*$D12))))) -> 0 | M12: =IF(M$4="",0,IF($E12="kWh",VLOOKUP(M$4,'4. Billing Determinants'!$B$19:$N$41,4,0)/'4. Billing Determinants'!$E$41*$D12,IF($E12="kW",VLOOKUP(M$4,'4. Billing Determinants'!$B$19:$N$41,5,0)/'4. Billing Determinants'!$F$41*$D12,IF($E12="Non-RPP kWh",VLOOKUP(M$4,'4. Billing Determinants'!$B$19:$N$41,6,0)/'4. Billing Determinants'!$G$41*$D12,IF($E12="Distribution Rev.",VLOOKUP(M$4,'4. Billing Determinants'!$B$19:$N$41,8,0)/'4. Billing Determinants'!$I$41*$D12, VLOOKUP(M$4,'4. Billing Determinants'!$B$19:$N$41,3,0)/'4. Billing Determinants'!$D$41*$D12))))) -> 0 | N12: =IF(N$4="",0,IF($E12="kWh",VLOOKUP(N$4,'4. Billing Determinants'!$B$19:$N$41,4,0)/'4. Billing Determinants'!$E$41*$D12,IF($E12="kW",VLOOKUP(N$4,'4. Billing Determinants'!$B$19:$N$41,5,0)/'4. Billing Determinants'!$F$41*$D12,IF($E12="Non-RPP kWh",VLOOKUP(N$4,'4. Billing Determinants'!$B$19:$N$41,6,0)/'4. Billing Determinants'!$G$41*$D12,IF($E12="Distribution Rev.",VLOOKUP(N$4,'4. Billing Determinants'!$B$19:$N$41,8,0)/'4. Billing Determinants'!$I$41*$D12, VLOOKUP(N$4,'4. Billing Determinants'!$B$19:$N$41,3,0)/'4. Billing Determinants'!$D$41*$D12))))) -> 0 | O12: =IF(O$4="",0,IF($E12="kWh",VLOOKUP(O$4,'4. Billing Determinants'!$B$19:$N$41,4,0)/'4. Billing Determinants'!$E$41*$D12,IF($E12="kW",VLOOKUP(O$4,'4. Billing Determinants'!$B$19:$N$41,5,0)/'4. Billing Determinants'!$F$41*$D12,IF($E12="Non-RPP kWh",VLOOKUP(O$4,'4. Billing Determinants'!$B$19:$N$41,6,0)/'4. Billing Determinants'!$G$41*$D12,IF($E12="Distribution Rev.",VLOOKUP(O$4,'4. Billing Determinants'!$B$19:$N$41,8,0)/'4. Billing Determinants'!$I$41*$D12, VLOOKUP(O$4,'4. Billing Determinants'!$B$19:$N$41,3,0)/'4. Billing Determinants'!$D$41*$D12))))) -> 0 | P12: =IF(P$4="",0,IF($E12="kWh",VLOOKUP(P$4,'4. Billing Determinants'!$B$19:$N$41,4,0)/'4. Billing Determinants'!$E$41*$D12,IF($E12="kW",VLOOKUP(P$4,'4. Billing Determinants'!$B$19:$N$41,5,0)/'4. Billing Determinants'!$F$41*$D12,IF($E12="Non-RPP kWh",VLOOKUP(P$4,'4. Billing Determinants'!$B$19:$N$41,6,0)/'4. Billing Determinants'!$G$41*$D12,IF($E12="Distribution Rev.",VLOOKUP(P$4,'4. Billing Determinants'!$B$19:$N$41,8,0)/'4. Billing Determinants'!$I$41*$D12, VLOOKUP(P$4,'4. Billing Determinants'!$B$19:$N$41,3,0)/'4. Billing Determinants'!$D$41*$D12))))) -> 0 | Q12: =IF(Q$4="",0,IF($E12="kWh",VLOOKUP(Q$4,'4. Billing Determinants'!$B$19:$N$41,4,0)/'4. Billing Determinants'!$E$41*$D12,IF($E12="kW",VLOOKUP(Q$4,'4. Billing Determinants'!$B$19:$N$41,5,0)/'4. Billing Determinants'!$F$41*$D12,IF($E12="Non-RPP kWh",VLOOKUP(Q$4,'4. Billing Determinants'!$B$19:$N$41,6,0)/'4. Billing Determinants'!$G$41*$D12,IF($E12="Distribution Rev.",VLOOKUP(Q$4,'4. Billing Determinants'!$B$19:$N$41,8,0)/'4. Billing Determinants'!$I$41*$D12, VLOOKUP(Q$4,'4. Billing Determinants'!$B$19:$N$41,3,0)/'4. Billing Determinants'!$D$41*$D12))))) -> 0 | R12: =IF(R$4="",0,IF($E12="kWh",VLOOKUP(R$4,'4. Billing Determinants'!$B$19:$N$41,4,0)/'4. Billing Determinants'!$E$41*$D12,IF($E12="kW",VLOOKUP(R$4,'4. Billing Determinants'!$B$19:$N$41,5,0)/'4. Billing Determinants'!$F$41*$D12,IF($E12="Non-RPP kWh",VLOOKUP(R$4,'4. Billing Determinants'!$B$19:$N$41,6,0)/'4. Billing Determinants'!$G$41*$D12,IF($E12="Distribution Rev.",VLOOKUP(R$4,'4. Billing Determinants'!$B$19:$N$41,8,0)/'4. Billing Determinants'!$I$41*$D12, VLOOKUP(R$4,'4. Billing Determinants'!$B$19:$N$41,3,0)/'4. Billing Determinants'!$D$41*$D12))))) -> 0 | S12: =IF(S$4="",0,IF($E12="kWh",VLOOKUP(S$4,'4. Billing Determinants'!$B$19:$N$41,4,0)/'4. Billing Determinants'!$E$41*$D12,IF($E12="kW",VLOOKUP(S$4,'4. Billing Determinants'!$B$19:$N$41,5,0)/'4. Billing Determinants'!$F$41*$D12,IF($E12="Non-RPP kWh",VLOOKUP(S$4,'4. Billing Determinants'!$B$19:$N$41,6,0)/'4. Billing Determinants'!$G$41*$D12,IF($E12="Distribution Rev.",VLOOKUP(S$4,'4. Billing Determinants'!$B$19:$N$41,8,0)/'4. Billing Determinants'!$I$41*$D12, VLOOKUP(S$4,'4. Billing Determinants'!$B$19:$N$41,3,0)/'4. Billing Determinants'!$D$41*$D12))))) -> 0 | T12: =IF(T$4="",0,IF($E12="kWh",VLOOKUP(T$4,'4. Billing Determinants'!$B$19:$N$41,4,0)/'4. Billing Determinants'!$E$41*$D12,IF($E12="kW",VLOOKUP(T$4,'4. Billing Determinants'!$B$19:$N$41,5,0)/'4. Billing Determinants'!$F$41*$D12,IF($E12="Non-RPP kWh",VLOOKUP(T$4,'4. Billing Determinants'!$B$19:$N$41,6,0)/'4. Billing Determinants'!$G$41*$D12,IF($E12="Distribution Rev.",VLOOKUP(T$4,'4. Billing Determinants'!$B$19:$N$41,8,0)/'4. Billing Determinants'!$I$41*$D12, VLOOKUP(T$4,'4. Billing Determinants'!$B$19:$N$41,3,0)/'4. Billing Determinants'!$D$41*$D12))))) -> 0 | U12: =IF(U$4="",0,IF($E12="kWh",VLOOKUP(U$4,'4. Billing Determinants'!$B$19:$N$41,4,0)/'4. Billing Determinants'!$E$41*$D12,IF($E12="kW",VLOOKUP(U$4,'4. Billing Determinants'!$B$19:$N$41,5,0)/'4. Billing Determinants'!$F$41*$D12,IF($E12="Non-RPP kWh",VLOOKUP(U$4,'4. Billing Determinants'!$B$19:$N$41,6,0)/'4. Billing Determinants'!$G$41*$D12,IF($E12="Distribution Rev.",VLOOKUP(U$4,'4. Billing Determinants'!$B$19:$N$41,8,0)/'4. Billing Determinants'!$I$41*$D12, VLOOKUP(U$4,'4. Billing Determinants'!$B$19:$N$41,3,0)/'4. Billing Determinants'!$D$41*$D12))))) -> 0 | V12: =IF(V$4="",0,IF($E12="kWh",VLOOKUP(V$4,'4. Billing Determinants'!$B$19:$N$41,4,0)/'4. Billing Determinants'!$E$41*$D12,IF($E12="kW",VLOOKUP(V$4,'4. Billing Determinants'!$B$19:$N$41,5,0)/'4. Billing Determinants'!$F$41*$D12,IF($E12="Non-RPP kWh",VLOOKUP(V$4,'4. Billing Determinants'!$B$19:$N$41,6,0)/'4. Billing Determinants'!$G$41*$D12,IF($E12="Distribution Rev.",VLOOKUP(V$4,'4. Billing Determinants'!$B$19:$N$41,8,0)/'4. Billing Determinants'!$I$41*$D12, VLOOKUP(V$4,'4. Billing Determinants'!$B$19:$N$41,3,0)/'4. Billing Determinants'!$D$41*$D12))))) -> 0 | W12: =IF(W$4="",0,IF($E12="kWh",VLOOKUP(W$4,'4. Billing Determinants'!$B$19:$N$41,4,0)/'4. Billing Determinants'!$E$41*$D12,IF($E12="kW",VLOOKUP(W$4,'4. Billing Determinants'!$B$19:$N$41,5,0)/'4. Billing Determinants'!$F$41*$D12,IF($E12="Non-RPP kWh",VLOOKUP(W$4,'4. Billing Determinants'!$B$19:$N$41,6,0)/'4. Billing Determinants'!$G$41*$D12,IF($E12="Distribution Rev.",VLOOKUP(W$4,'4. Billing Determinants'!$B$19:$N$41,8,0)/'4. Billing Determinants'!$I$41*$D12, VLOOKUP(W$4,'4. Billing Determinants'!$B$19:$N$41,3,0)/'4. Billing Determinants'!$D$41*$D12))))) -> 0 | X12: =IF(X$4="",0,IF($E12="kWh",VLOOKUP(X$4,'4. Billing Determinants'!$B$19:$N$41,4,0)/'4. Billing Determinants'!$E$41*$D12,IF($E12="kW",VLOOKUP(X$4,'4. Billing Determinants'!$B$19:$N$41,5,0)/'4. Billing Determinants'!$F$41*$D12,IF($E12="Non-RPP kWh",VLOOKUP(X$4,'4. Billing Determinants'!$B$19:$N$41,6,0)/'4. Billing Determinants'!$G$41*$D12,IF($E12="Distribution Rev.",VLOOKUP(X$4,'4. Billing Determinants'!$B$19:$N$41,8,0)/'4. Billing Determinants'!$I$41*$D12, VLOOKUP(X$4,'4. Billing Determinants'!$B$19:$N$41,3,0)/'4. Billing Determinants'!$D$41*$D12))))) -> 0 | Y12: =IF(Y$4="",0,IF($E12="kWh",VLOOKUP(Y$4,'4. Billing Determinants'!$B$19:$N$41,4,0)/'4. Billing Determinants'!$E$41*$D12,IF($E12="kW",VLOOKUP(Y$4,'4. Billing Determinants'!$B$19:$N$41,5,0)/'4. Billing Determinants'!$F$41*$D12,IF($E12="Non-RPP kWh",VLOOKUP(Y$4,'4. Billing Determinants'!$B$19:$N$41,6,0)/'4. Billing Determinants'!$G$41*$D12,IF($E12="Distribution Rev.",VLOOKUP(Y$4,'4. Billing Determinants'!$B$19:$N$41,8,0)/'4. Billing Determinants'!$I$41*$D12, VLOOKUP(Y$4,'4. Billing Determinants'!$B$19:$N$41,3,0)/'4. Billing Determinants'!$D$41*$D12))))) -> 0
B13: Disposition and Recovery/Refund of Regulatory Balances (2009) | C13: 1595 | D13: ='2. 2013 Continuity Schedule'!CP32 -> 0 | E13: kWh | F13: =IF(F$4="",0,IF($E13="kWh",VLOOKUP(F$4,'4. Billing Determinants'!$B$19:$N$41,4,0)/'4. Billing Determinants'!$E$41*$D13,IF($E13="kW",VLOOKUP(F$4,'4. Billing Determinants'!$B$19:$N$41,5,0)/'4. Billing Determinants'!$F$41*$D13,IF($E13="Non-RPP kWh",VLOOKUP(F$4,'4. Billing Determinants'!$B$19:$N$41,6,0)/'4. Billing Determinants'!$G$41*$D13,IF($E13="Distribution Rev.",VLOOKUP(F$4,'4. Billing Determinants'!$B$19:$N$41,8,0)/'4. Billing Determinants'!$I$41*$D13, VLOOKUP(F$4,'4. Billing Determinants'!$B$19:$N$41,3,0)/'4. Billing Determinants'!$D$41*$D13))))) -> 0 | G13: =IF(G$4="",0,IF($E13="kWh",VLOOKUP(G$4,'4. Billing Determinants'!$B$19:$N$41,4,0)/'4. Billing Determinants'!$E$41*$D13,IF($E13="kW",VLOOKUP(G$4,'4. Billing Determinants'!$B$19:$N$41,5,0)/'4. Billing Determinants'!$F$41*$D13,IF($E13="Non-RPP kWh",VLOOKUP(G$4,'4. Billing Determinants'!$B$19:$N$41,6,0)/'4. Billing Determinants'!$G$41*$D13,IF($E13="Distribution Rev.",VLOOKUP(G$4,'4. Billing Determinants'!$B$19:$N$41,8,0)/'4. Billing Determinants'!$I$41*$D13, VLOOKUP(G$4,'4. Billing Determinants'!$B$19:$N$41,3,0)/'4. Billing Determinants'!$D$41*$D13))))) -> 0 | H13: =IF(H$4="",0,IF($E13="kWh",VLOOKUP(H$4,'4. Billing Determinants'!$B$19:$N$41,4,0)/'4. Billing Determinants'!$E$41*$D13,IF($E13="kW",VLOOKUP(H$4,'4. Billing Determinants'!$B$19:$N$41,5,0)/'4. Billing Determinants'!$F$41*$D13,IF($E13="Non-RPP kWh",VLOOKUP(H$4,'4. Billing Determinants'!$B$19:$N$41,6,0)/'4. Billing Determinants'!$G$41*$D13,IF($E13="Distribution Rev.",VLOOKUP(H$4,'4. Billing Determinants'!$B$19:$N$41,8,0)/'4. Billing Determinants'!$I$41*$D13, VLOOKUP(H$4,'4. Billing Determinants'!$B$19:$N$41,3,0)/'4. Billing Determinants'!$D$41*$D13))))) -> 0 | I13: =IF(I$4="",0,IF($E13="kWh",VLOOKUP(I$4,'4. Billing Determinants'!$B$19:$N$41,4,0)/'4. Billing Determinants'!$E$41*$D13,IF($E13="kW",VLOOKUP(I$4,'4. Billing Determinants'!$B$19:$N$41,5,0)/'4. Billing Determinants'!$F$41*$D13,IF($E13="Non-RPP kWh",VLOOKUP(I$4,'4. Billing Determinants'!$B$19:$N$41,6,0)/'4. Billing Determinants'!$G$41*$D13,IF($E13="Distribution Rev.",VLOOKUP(I$4,'4. Billing Determinants'!$B$19:$N$41,8,0)/'4. Billing Determinants'!$I$41*$D13, VLOOKUP(I$4,'4. Billing Determinants'!$B$19:$N$41,3,0)/'4. Billing Determinants'!$D$41*$D13))))) -> 0 | J13: =IF(J$4="",0,IF($E13="kWh",VLOOKUP(J$4,'4. Billing Determinants'!$B$19:$N$41,4,0)/'4. Billing Determinants'!$E$41*$D13,IF($E13="kW",VLOOKUP(J$4,'4. Billing Determinants'!$B$19:$N$41,5,0)/'4. Billing Determinants'!$F$41*$D13,IF($E13="Non-RPP kWh",VLOOKUP(J$4,'4. Billing Determinants'!$B$19:$N$41,6,0)/'4. Billing Determinants'!$G$41*$D13,IF($E13="Distribution Rev.",VLOOKUP(J$4,'4. Billing Determinants'!$B$19:$N$41,8,0)/'4. Billing Determinants'!$I$41*$D13, VLOOKUP(J$4,'4. Billing Determinants'!$B$19:$N$41,3,0)/'4. Billing Determinants'!$D$41*$D13))))) -> 0 | K13: =IF(K$4="",0,IF($E13="kWh",VLOOKUP(K$4,'4. Billing Determinants'!$B$19:$N$41,4,0)/'4. Billing Determinants'!$E$41*$D13,IF($E13="kW",VLOOKUP(K$4,'4. Billing Determinants'!$B$19:$N$41,5,0)/'4. Billing Determinants'!$F$41*$D13,IF($E13="Non-RPP kWh",VLOOKUP(K$4,'4. Billing Determinants'!$B$19:$N$41,6,0)/'4. Billing Determinants'!$G$41*$D13,IF($E13="Distribution Rev.",VLOOKUP(K$4,'4. Billing Determinants'!$B$19:$N$41,8,0)/'4. Billing Determinants'!$I$41*$D13, VLOOKUP(K$4,'4. Billing Determinants'!$B$19:$N$41,3,0)/'4. Billing Determinants'!$D$41*$D13))))) -> 0 | L13: =IF(L$4="",0,IF($E13="kWh",VLOOKUP(L$4,'4. Billing Determinants'!$B$19:$N$41,4,0)/'4. Billing Determinants'!$E$41*$D13,IF($E13="kW",VLOOKUP(L$4,'4. Billing Determinants'!$B$19:$N$41,5,0)/'4. Billing Determinants'!$F$41*$D13,IF($E13="Non-RPP kWh",VLOOKUP(L$4,'4. Billing Determinants'!$B$19:$N$41,6,0)/'4. Billing Determinants'!$G$41*$D13,IF($E13="Distribution Rev.",VLOOKUP(L$4,'4. Billing Determinants'!$B$19:$N$41,8,0)/'4. Billing Determinants'!$I$41*$D13, VLOOKUP(L$4,'4. Billing Determinants'!$B$19:$N$41,3,0)/'4. Billing Determinants'!$D$41*$D13))))) -> 0 | M13: =IF(M$4="",0,IF($E13="kWh",VLOOKUP(M$4,'4. Billing Determinants'!$B$19:$N$41,4,0)/'4. Billing Determinants'!$E$41*$D13,IF($E13="kW",VLOOKUP(M$4,'4. Billing Determinants'!$B$19:$N$41,5,0)/'4. Billing Determinants'!$F$41*$D13,IF($E13="Non-RPP kWh",VLOOKUP(M$4,'4. Billing Determinants'!$B$19:$N$41,6,0)/'4. Billing Determinants'!$G$41*$D13,IF($E13="Distribution Rev.",VLOOKUP(M$4,'4. Billing Determinants'!$B$19:$N$41,8,0)/'4. Billing Determinants'!$I$41*$D13, VLOOKUP(M$4,'4. Billing Determinants'!$B$19:$N$41,3,0)/'4. Billing Determinants'!$D$41*$D13))))) -> 0 | N13: =IF(N$4="",0,IF($E13="kWh",VLOOKUP(N$4,'4. Billing Determinants'!$B$19:$N$41,4,0)/'4. Billing Determinants'!$E$41*$D13,IF($E13="kW",VLOOKUP(N$4,'4. Billing Determinants'!$B$19:$N$41,5,0)/'4. Billing Determinants'!$F$41*$D13,IF($E13="Non-RPP kWh",VLOOKUP(N$4,'4. Billing Determinants'!$B$19:$N$41,6,0)/'4. Billing Determinants'!$G$41*$D13,IF($E13="Distribution Rev.",VLOOKUP(N$4,'4. Billing Determinants'!$B$19:$N$41,8,0)/'4. Billing Determinants'!$I$41*$D13, VLOOKUP(N$4,'4. Billing Determinants'!$B$19:$N$41,3,0)/'4. Billing Determinants'!$D$41*$D13))))) -> 0 | O13: =IF(O$4="",0,IF($E13="kWh",VLOOKUP(O$4,'4. Billing Determinants'!$B$19:$N$41,4,0)/'4. Billing Determinants'!$E$41*$D13,IF($E13="kW",VLOOKUP(O$4,'4. Billing Determinants'!$B$19:$N$41,5,0)/'4. Billing Determinants'!$F$41*$D13,IF($E13="Non-RPP kWh",VLOOKUP(O$4,'4. Billing Determinants'!$B$19:$N$41,6,0)/'4. Billing Determinants'!$G$41*$D13,IF($E13="Distribution Rev.",VLOOKUP(O$4,'4. Billing Determinants'!$B$19:$N$41,8,0)/'4. Billing Determinants'!$I$41*$D13, VLOOKUP(O$4,'4. Billing Determinants'!$B$19:$N$41,3,0)/'4. Billing Determinants'!$D$41*$D13))))) -> 0 | P13: =IF(P$4="",0,IF($E13="kWh",VLOOKUP(P$4,'4. Billing Determinants'!$B$19:$N$41,4,0)/'4. Billing Determinants'!$E$41*$D13,IF($E13="kW",VLOOKUP(P$4,'4. Billing Determinants'!$B$19:$N$41,5,0)/'4. Billing Determinants'!$F$41*$D13,IF($E13="Non-RPP kWh",VLOOKUP(P$4,'4. Billing Determinants'!$B$19:$N$41,6,0)/'4. Billing Determinants'!$G$41*$D13,IF($E13="Distribution Rev.",VLOOKUP(P$4,'4. Billing Determinants'!$B$19:$N$41,8,0)/'4. Billing Determinants'!$I$41*$D13, VLOOKUP(P$4,'4. Billing Determinants'!$B$19:$N$41,3,0)/'4. Billing Determinants'!$D$41*$D13))))) -> 0 | Q13: =IF(Q$4="",0,IF($E13="kWh",VLOOKUP(Q$4,'4. Billing Determinants'!$B$19:$N$41,4,0)/'4. Billing Determinants'!$E$41*$D13,IF($E13="kW",VLOOKUP(Q$4,'4. Billing Determinants'!$B$19:$N$41,5,0)/'4. Billing Determinants'!$F$41*$D13,IF($E13="Non-RPP kWh",VLOOKUP(Q$4,'4. Billing Determinants'!$B$19:$N$41,6,0)/'4. Billing Determinants'!$G$41*$D13,IF($E13="Distribution Rev.",VLOOKUP(Q$4,'4. Billing Determinants'!$B$19:$N$41,8,0)/'4. Billing Determinants'!$I$41*$D13, VLOOKUP(Q$4,'4. Billing Determinants'!$B$19:$N$41,3,0)/'4. Billing Determinants'!$D$41*$D13))))) -> 0 | R13: =IF(R$4="",0,IF($E13="kWh",VLOOKUP(R$4,'4. Billing Determinants'!$B$19:$N$41,4,0)/'4. Billing Determinants'!$E$41*$D13,IF($E13="kW",VLOOKUP(R$4,'4. Billing Determinants'!$B$19:$N$41,5,0)/'4. Billing Determinants'!$F$41*$D13,IF($E13="Non-RPP kWh",VLOOKUP(R$4,'4. Billing Determinants'!$B$19:$N$41,6,0)/'4. Billing Determinants'!$G$41*$D13,IF($E13="Distribution Rev.",VLOOKUP(R$4,'4. Billing Determinants'!$B$19:$N$41,8,0)/'4. Billing Determinants'!$I$41*$D13, VLOOKUP(R$4,'4. Billing Determinants'!$B$19:$N$41,3,0)/'4. Billing Determinants'!$D$41*$D13))))) -> 0 | S13: =IF(S$4="",0,IF($E13="kWh",VLOOKUP(S$4,'4. Billing Determinants'!$B$19:$N$41,4,0)/'4. Billing Determinants'!$E$41*$D13,IF($E13="kW",VLOOKUP(S$4,'4. Billing Determinants'!$B$19:$N$41,5,0)/'4. Billing Determinants'!$F$41*$D13,IF($E13="Non-RPP kWh",VLOOKUP(S$4,'4. Billing Determinants'!$B$19:$N$41,6,0)/'4. Billing Determinants'!$G$41*$D13,IF($E13="Distribution Rev.",VLOOKUP(S$4,'4. Billing Determinants'!$B$19:$N$41,8,0)/'4. Billing Determinants'!$I$41*$D13, VLOOKUP(S$4,'4. Billing Determinants'!$B$19:$N$41,3,0)/'4. Billing Determinants'!$D$41*$D13))))) -> 0 | T13: =IF(T$4="",0,IF($E13="kWh",VLOOKUP(T$4,'4. Billing Determinants'!$B$19:$N$41,4,0)/'4. Billing Determinants'!$E$41*$D13,IF($E13="kW",VLOOKUP(T$4,'4. Billing Determinants'!$B$19:$N$41,5,0)/'4. Billing Determinants'!$F$41*$D13,IF($E13="Non-RPP kWh",VLOOKUP(T$4,'4. Billing Determinants'!$B$19:$N$41,6,0)/'4. Billing Determinants'!$G$41*$D13,IF($E13="Distribution Rev.",VLOOKUP(T$4,'4. Billing Determinants'!$B$19:$N$41,8,0)/'4. Billing Determinants'!$I$41*$D13, VLOOKUP(T$4,'4. Billing Determinants'!$B$19:$N$41,3,0)/'4. Billing Determinants'!$D$41*$D13))))) -> 0 | U13: =IF(U$4="",0,IF($E13="kWh",VLOOKUP(U$4,'4. Billing Determinants'!$B$19:$N$41,4,0)/'4. Billing Determinants'!$E$41*$D13,IF($E13="kW",VLOOKUP(U$4,'4. Billing Determinants'!$B$19:$N$41,5,0)/'4. Billing Determinants'!$F$41*$D13,IF($E13="Non-RPP kWh",VLOOKUP(U$4,'4. Billing Determinants'!$B$19:$N$41,6,0)/'4. Billing Determinants'!$G$41*$D13,IF($E13="Distribution Rev.",VLOOKUP(U$4,'4. Billing Determinants'!$B$19:$N$41,8,0)/'4. Billing Determinants'!$I$41*$D13, VLOOKUP(U$4,'4. Billing Determinants'!$B$19:$N$41,3,0)/'4. Billing Determinants'!$D$41*$D13))))) -> 0 | V13: =IF(V$4="",0,IF($E13="kWh",VLOOKUP(V$4,'4. Billing Determinants'!$B$19:$N$41,4,0)/'4. Billing Determinants'!$E$41*$D13,IF($E13="kW",VLOOKUP(V$4,'4. Billing Determinants'!$B$19:$N$41,5,0)/'4. Billing Determinants'!$F$41*$D13,IF($E13="Non-RPP kWh",VLOOKUP(V$4,'4. Billing Determinants'!$B$19:$N$41,6,0)/'4. Billing Determinants'!$G$41*$D13,IF($E13="Distribution Rev.",VLOOKUP(V$4,'4. Billing Determinants'!$B$19:$N$41,8,0)/'4. Billing Determinants'!$I$41*$D13, VLOOKUP(V$4,'4. Billing Determinants'!$B$19:$N$41,3,0)/'4. Billing Determinants'!$D$41*$D13))))) -> 0 | W13: =IF(W$4="",0,IF($E13="kWh",VLOOKUP(W$4,'4. Billing Determinants'!$B$19:$N$41,4,0)/'4. Billing Determinants'!$E$41*$D13,IF($E13="kW",VLOOKUP(W$4,'4. Billing Determinants'!$B$19:$N$41,5,0)/'4. Billing Determinants'!$F$41*$D13,IF($E13="Non-RPP kWh",VLOOKUP(W$4,'4. Billing Determinants'!$B$19:$N$41,6,0)/'4. Billing Determinants'!$G$41*$D13,IF($E13="Distribution Rev.",VLOOKUP(W$4,'4. Billing Determinants'!$B$19:$N$41,8,0)/'4. Billing Determinants'!$I$41*$D13, VLOOKUP(W$4,'4. Billing Determinants'!$B$19:$N$41,3,0)/'4. Billing Determinants'!$D$41*$D13))))) -> 0 | X13: =IF(X$4="",0,IF($E13="kWh",VLOOKUP(X$4,'4. Billing Determinants'!$B$19:$N$41,4,0)/'4. Billing Determinants'!$E$41*$D13,IF($E13="kW",VLOOKUP(X$4,'4. Billing Determinants'!$B$19:$N$41,5,0)/'4. Billing Determinants'!$F$41*$D13,IF($E13="Non-RPP kWh",VLOOKUP(X$4,'4. Billing Determinants'!$B$19:$N$41,6,0)/'4. Billing Determinants'!$G$41*$D13,IF($E13="Distribution Rev.",VLOOKUP(X$4,'4. Billing Determinants'!$B$19:$N$41,8,0)/'4. Billing Determinants'!$I$41*$D13, VLOOKUP(X$4,'4. Billing Determinants'!$B$19:$N$41,3,0)/'4. Billing Determinants'!$D$41*$D13))))) -> 0 | Y13: =IF(Y$4="",0,IF($E13="kWh",VLOOKUP(Y$4,'4. Billing Determinants'!$B$19:$N$41,4,0)/'4. Billing Determinants'!$E$41*$D13,IF($E13="kW",VLOOKUP(Y$4,'4. Billing Determinants'!$B$19:$N$41,5,0)/'4. Billing Determinants'!$F$41*$D13,IF($E13="Non-RPP kWh",VLOOKUP(Y$4,'4. Billing Determinants'!$B$19:$N$41,6,0)/'4. Billing Determinants'!$G$41*$D13,IF($E13="Distribution Rev.",VLOOKUP(Y$4,'4. Billing Determinants'!$B$19:$N$41,8,0)/'4. Billing Determinants'!$I$41*$D13, VLOOKUP(Y$4,'4. Billing Determinants'!$B$19:$N$41,3,0)/'4. Billing Determinants'!$D$41*$D13))))) -> 0
B14: Disposition and Recovery/Refund of Regulatory Balances (2010) | C14: 1595 | D14: ='2. 2013 Continuity Schedule'!CP33 -> 0 | E14: kWh | F14: =IF(F$4="",0,IF($E14="kWh",VLOOKUP(F$4,'4. Billing Determinants'!$B$19:$N$41,4,0)/'4. Billing Determinants'!$E$41*$D14,IF($E14="kW",VLOOKUP(F$4,'4. Billing Determinants'!$B$19:$N$41,5,0)/'4. Billing Determinants'!$F$41*$D14,IF($E14="Non-RPP kWh",VLOOKUP(F$4,'4. Billing Determinants'!$B$19:$N$41,6,0)/'4. Billing Determinants'!$G$41*$D14,IF($E14="Distribution Rev.",VLOOKUP(F$4,'4. Billing Determinants'!$B$19:$N$41,8,0)/'4. Billing Determinants'!$I$41*$D14, VLOOKUP(F$4,'4. Billing Determinants'!$B$19:$N$41,3,0)/'4. Billing Determinants'!$D$41*$D14))))) -> 0 | G14: =IF(G$4="",0,IF($E14="kWh",VLOOKUP(G$4,'4. Billing Determinants'!$B$19:$N$41,4,0)/'4. Billing Determinants'!$E$41*$D14,IF($E14="kW",VLOOKUP(G$4,'4. Billing Determinants'!$B$19:$N$41,5,0)/'4. Billing Determinants'!$F$41*$D14,IF($E14="Non-RPP kWh",VLOOKUP(G$4,'4. Billing Determinants'!$B$19:$N$41,6,0)/'4. Billing Determinants'!$G$41*$D14,IF($E14="Distribution Rev.",VLOOKUP(G$4,'4. Billing Determinants'!$B$19:$N$41,8,0)/'4. Billing Determinants'!$I$41*$D14, VLOOKUP(G$4,'4. Billing Determinants'!$B$19:$N$41,3,0)/'4. Billing Determinants'!$D$41*$D14))))) -> 0 | H14: =IF(H$4="",0,IF($E14="kWh",VLOOKUP(H$4,'4. Billing Determinants'!$B$19:$N$41,4,0)/'4. Billing Determinants'!$E$41*$D14,IF($E14="kW",VLOOKUP(H$4,'4. Billing Determinants'!$B$19:$N$41,5,0)/'4. Billing Determinants'!$F$41*$D14,IF($E14="Non-RPP kWh",VLOOKUP(H$4,'4. Billing Determinants'!$B$19:$N$41,6,0)/'4. Billing Determinants'!$G$41*$D14,IF($E14="Distribution Rev.",VLOOKUP(H$4,'4. Billing Determinants'!$B$19:$N$41,8,0)/'4. Billing Determinants'!$I$41*$D14, VLOOKUP(H$4,'4. Billing Determinants'!$B$19:$N$41,3,0)/'4. Billing Determinants'!$D$41*$D14))))) -> 0 | I14: =IF(I$4="",0,IF($E14="kWh",VLOOKUP(I$4,'4. Billing Determinants'!$B$19:$N$41,4,0)/'4. Billing Determinants'!$E$41*$D14,IF($E14="kW",VLOOKUP(I$4,'4. Billing Determinants'!$B$19:$N$41,5,0)/'4. Billing Determinants'!$F$41*$D14,IF($E14="Non-RPP kWh",VLOOKUP(I$4,'4. Billing Determinants'!$B$19:$N$41,6,0)/'4. Billing Determinants'!$G$41*$D14,IF($E14="Distribution Rev.",VLOOKUP(I$4,'4. Billing Determinants'!$B$19:$N$41,8,0)/'4. Billing Determinants'!$I$41*$D14, VLOOKUP(I$4,'4. Billing Determinants'!$B$19:$N$41,3,0)/'4. Billing Determinants'!$D$41*$D14))))) -> 0 | J14: =IF(J$4="",0,IF($E14="kWh",VLOOKUP(J$4,'4. Billing Determinants'!$B$19:$N$41,4,0)/'4. Billing Determinants'!$E$41*$D14,IF($E14="kW",VLOOKUP(J$4,'4. Billing Determinants'!$B$19:$N$41,5,0)/'4. Billing Determinants'!$F$41*$D14,IF($E14="Non-RPP kWh",VLOOKUP(J$4,'4. Billing Determinants'!$B$19:$N$41,6,0)/'4. Billing Determinants'!$G$41*$D14,IF($E14="Distribution Rev.",VLOOKUP(J$4,'4. Billing Determinants'!$B$19:$N$41,8,0)/'4. Billing Determinants'!$I$41*$D14, VLOOKUP(J$4,'4. Billing Determinants'!$B$19:$N$41,3,0)/'4. Billing Determinants'!$D$41*$D14))))) -> 0 | K14: =IF(K$4="",0,IF($E14="kWh",VLOOKUP(K$4,'4. Billing Determinants'!$B$19:$N$41,4,0)/'4. Billing Determinants'!$E$41*$D14,IF($E14="kW",VLOOKUP(K$4,'4. Billing Determinants'!$B$19:$N$41,5,0)/'4. Billing Determinants'!$F$41*$D14,IF($E14="Non-RPP kWh",VLOOKUP(K$4,'4. Billing Determinants'!$B$19:$N$41,6,0)/'4. Billing Determinants'!$G$41*$D14,IF($E14="Distribution Rev.",VLOOKUP(K$4,'4. Billing Determinants'!$B$19:$N$41,8,0)/'4. Billing Determinants'!$I$41*$D14, VLOOKUP(K$4,'4. Billing Determinants'!$B$19:$N$41,3,0)/'4. Billing Determinants'!$D$41*$D14))))) -> 0 | L14: =IF(L$4="",0,IF($E14="kWh",VLOOKUP(L$4,'4. Billing Determinants'!$B$19:$N$41,4,0)/'4. Billing Determinants'!$E$41*$D14,IF($E14="kW",VLOOKUP(L$4,'4. Billing Determinants'!$B$19:$N$41,5,0)/'4. Billing Determinants'!$F$41*$D14,IF($E14="Non-RPP kWh",VLOOKUP(L$4,'4. Billing Determinants'!$B$19:$N$41,6,0)/'4. Billing Determinants'!$G$41*$D14,IF($E14="Distribution Rev.",VLOOKUP(L$4,'4. Billing Determinants'!$B$19:$N$41,8,0)/'4. Billing Determinants'!$I$41*$D14, VLOOKUP(L$4,'4. Billing Determinants'!$B$19:$N$41,3,0)/'4. Billing Determinants'!$D$41*$D14))))) -> 0 | M14: =IF(M$4="",0,IF($E14="kWh",VLOOKUP(M$4,'4. Billing Determinants'!$B$19:$N$41,4,0)/'4. Billing Determinants'!$E$41*$D14,IF($E14="kW",VLOOKUP(M$4,'4. Billing Determinants'!$B$19:$N$41,5,0)/'4. Billing Determinants'!$F$41*$D14,IF($E14="Non-RPP kWh",VLOOKUP(M$4,'4. Billing Determinants'!$B$19:$N$41,6,0)/'4. Billing Determinants'!$G$41*$D14,IF($E14="Distribution Rev.",VLOOKUP(M$4,'4. Billing Determinants'!$B$19:$N$41,8,0)/'4. Billing Determinants'!$I$41*$D14, VLOOKUP(M$4,'4. Billing Determinants'!$B$19:$N$41,3,0)/'4. Billing Determinants'!$D$41*$D14))))) -> 0 | N14: =IF(N$4="",0,IF($E14="kWh",VLOOKUP(N$4,'4. Billing Determinants'!$B$19:$N$41,4,0)/'4. Billing Determinants'!$E$41*$D14,IF($E14="kW",VLOOKUP(N$4,'4. Billing Determinants'!$B$19:$N$41,5,0)/'4. Billing Determinants'!$F$41*$D14,IF($E14="Non-RPP kWh",VLOOKUP(N$4,'4. Billing Determinants'!$B$19:$N$41,6,0)/'4. Billing Determinants'!$G$41*$D14,IF($E14="Distribution Rev.",VLOOKUP(N$4,'4. Billing Determinants'!$B$19:$N$41,8,0)/'4. Billing Determinants'!$I$41*$D14, VLOOKUP(N$4,'4. Billing Determinants'!$B$19:$N$41,3,0)/'4. Billing Determinants'!$D$41*$D14))))) -> 0 | O14: =IF(O$4="",0,IF($E14="kWh",VLOOKUP(O$4,'4. Billing Determinants'!$B$19:$N$41,4,0)/'4. Billing Determinants'!$E$41*$D14,IF($E14="kW",VLOOKUP(O$4,'4. Billing Determinants'!$B$19:$N$41,5,0)/'4. Billing Determinants'!$F$41*$D14,IF($E14="Non-RPP kWh",VLOOKUP(O$4,'4. Billing Determinants'!$B$19:$N$41,6,0)/'4. Billing Determinants'!$G$41*$D14,IF($E14="Distribution Rev.",VLOOKUP(O$4,'4. Billing Determinants'!$B$19:$N$41,8,0)/'4. Billing Determinants'!$I$41*$D14, VLOOKUP(O$4,'4. Billing Determinants'!$B$19:$N$41,3,0)/'4. Billing Determinants'!$D$41*$D14))))) -> 0 | P14: =IF(P$4="",0,IF($E14="kWh",VLOOKUP(P$4,'4. Billing Determinants'!$B$19:$N$41,4,0)/'4. Billing Determinants'!$E$41*$D14,IF($E14="kW",VLOOKUP(P$4,'4. Billing Determinants'!$B$19:$N$41,5,0)/'4. Billing Determinants'!$F$41*$D14,IF($E14="Non-RPP kWh",VLOOKUP(P$4,'4. Billing Determinants'!$B$19:$N$41,6,0)/'4. Billing Determinants'!$G$41*$D14,IF($E14="Distribution Rev.",VLOOKUP(P$4,'4. Billing Determinants'!$B$19:$N$41,8,0)/'4. Billing Determinants'!$I$41*$D14, VLOOKUP(P$4,'4. Billing Determinants'!$B$19:$N$41,3,0)/'4. Billing Determinants'!$D$41*$D14))))) -> 0 | Q14: =IF(Q$4="",0,IF($E14="kWh",VLOOKUP(Q$4,'4. Billing Determinants'!$B$19:$N$41,4,0)/'4. Billing Determinants'!$E$41*$D14,IF($E14="kW",VLOOKUP(Q$4,'4. Billing Determinants'!$B$19:$N$41,5,0)/'4. Billing Determinants'!$F$41*$D14,IF($E14="Non-RPP kWh",VLOOKUP(Q$4,'4. Billing Determinants'!$B$19:$N$41,6,0)/'4. Billing Determinants'!$G$41*$D14,IF($E14="Distribution Rev.",VLOOKUP(Q$4,'4. Billing Determinants'!$B$19:$N$41,8,0)/'4. Billing Determinants'!$I$41*$D14, VLOOKUP(Q$4,'4. Billing Determinants'!$B$19:$N$41,3,0)/'4. Billing Determinants'!$D$41*$D14))))) -> 0 | R14: =IF(R$4="",0,IF($E14="kWh",VLOOKUP(R$4,'4. Billing Determinants'!$B$19:$N$41,4,0)/'4. Billing Determinants'!$E$41*$D14,IF($E14="kW",VLOOKUP(R$4,'4. Billing Determinants'!$B$19:$N$41,5,0)/'4. Billing Determinants'!$F$41*$D14,IF($E14="Non-RPP kWh",VLOOKUP(R$4,'4. Billing Determinants'!$B$19:$N$41,6,0)/'4. Billing Determinants'!$G$41*$D14,IF($E14="Distribution Rev.",VLOOKUP(R$4,'4. Billing Determinants'!$B$19:$N$41,8,0)/'4. Billing Determinants'!$I$41*$D14, VLOOKUP(R$4,'4. Billing Determinants'!$B$19:$N$41,3,0)/'4. Billing Determinants'!$D$41*$D14))))) -> 0 | S14: =IF(S$4="",0,IF($E14="kWh",VLOOKUP(S$4,'4. Billing Determinants'!$B$19:$N$41,4,0)/'4. Billing Determinants'!$E$41*$D14,IF($E14="kW",VLOOKUP(S$4,'4. Billing Determinants'!$B$19:$N$41,5,0)/'4. Billing Determinants'!$F$41*$D14,IF($E14="Non-RPP kWh",VLOOKUP(S$4,'4. Billing Determinants'!$B$19:$N$41,6,0)/'4. Billing Determinants'!$G$41*$D14,IF($E14="Distribution Rev.",VLOOKUP(S$4,'4. Billing Determinants'!$B$19:$N$41,8,0)/'4. Billing Determinants'!$I$41*$D14, VLOOKUP(S$4,'4. Billing Determinants'!$B$19:$N$41,3,0)/'4. Billing Determinants'!$D$41*$D14))))) -> 0 | T14: =IF(T$4="",0,IF($E14="kWh",VLOOKUP(T$4,'4. Billing Determinants'!$B$19:$N$41,4,0)/'4. Billing Determinants'!$E$41*$D14,IF($E14="kW",VLOOKUP(T$4,'4. Billing Determinants'!$B$19:$N$41,5,0)/'4. Billing Determinants'!$F$41*$D14,IF($E14="Non-RPP kWh",VLOOKUP(T$4,'4. Billing Determinants'!$B$19:$N$41,6,0)/'4. Billing Determinants'!$G$41*$D14,IF($E14="Distribution Rev.",VLOOKUP(T$4,'4. Billing Determinants'!$B$19:$N$41,8,0)/'4. Billing Determinants'!$I$41*$D14, VLOOKUP(T$4,'4. Billing Determinants'!$B$19:$N$41,3,0)/'4. Billing Determinants'!$D$41*$D14))))) -> 0 | U14: =IF(U$4="",0,IF($E14="kWh",VLOOKUP(U$4,'4. Billing Determinants'!$B$19:$N$41,4,0)/'4. Billing Determinants'!$E$41*$D14,IF($E14="kW",VLOOKUP(U$4,'4. Billing Determinants'!$B$19:$N$41,5,0)/'4. Billing Determinants'!$F$41*$D14,IF($E14="Non-RPP kWh",VLOOKUP(U$4,'4. Billing Determinants'!$B$19:$N$41,6,0)/'4. Billing Determinants'!$G$41*$D14,IF($E14="Distribution Rev.",VLOOKUP(U$4,'4. Billing Determinants'!$B$19:$N$41,8,0)/'4. Billing Determinants'!$I$41*$D14, VLOOKUP(U$4,'4. Billing Determinants'!$B$19:$N$41,3,0)/'4. Billing Determinants'!$D$41*$D14))))) -> 0 | V14: =IF(V$4="",0,IF($E14="kWh",VLOOKUP(V$4,'4. Billing Determinants'!$B$19:$N$41,4,0)/'4. Billing Determinants'!$E$41*$D14,IF($E14="kW",VLOOKUP(V$4,'4. Billing Determinants'!$B$19:$N$41,5,0)/'4. Billing Determinants'!$F$41*$D14,IF($E14="Non-RPP kWh",VLOOKUP(V$4,'4. Billing Determinants'!$B$19:$N$41,6,0)/'4. Billing Determinants'!$G$41*$D14,IF($E14="Distribution Rev.",VLOOKUP(V$4,'4. Billing Determinants'!$B$19:$N$41,8,0)/'4. Billing Determinants'!$I$41*$D14, VLOOKUP(V$4,'4. Billing Determinants'!$B$19:$N$41,3,0)/'4. Billing Determinants'!$D$41*$D14))))) -> 0 | W14: =IF(W$4="",0,IF($E14="kWh",VLOOKUP(W$4,'4. Billing Determinants'!$B$19:$N$41,4,0)/'4. Billing Determinants'!$E$41*$D14,IF($E14="kW",VLOOKUP(W$4,'4. Billing Determinants'!$B$19:$N$41,5,0)/'4. Billing Determinants'!$F$41*$D14,IF($E14="Non-RPP kWh",VLOOKUP(W$4,'4. Billing Determinants'!$B$19:$N$41,6,0)/'4. Billing Determinants'!$G$41*$D14,IF($E14="Distribution Rev.",VLOOKUP(W$4,'4. Billing Determinants'!$B$19:$N$41,8,0)/'4. Billing Determinants'!$I$41*$D14, VLOOKUP(W$4,'4. Billing Determinants'!$B$19:$N$41,3,0)/'4. Billing Determinants'!$D$41*$D14))))) -> 0 | X14: =IF(X$4="",0,IF($E14="kWh",VLOOKUP(X$4,'4. Billing Determinants'!$B$19:$N$41,4,0)/'4. Billing Determinants'!$E$41*$D14,IF($E14="kW",VLOOKUP(X$4,'4. Billing Determinants'!$B$19:$N$41,5,0)/'4. Billing Determinants'!$F$41*$D14,IF($E14="Non-RPP kWh",VLOOKUP(X$4,'4. Billing Determinants'!$B$19:$N$41,6,0)/'4. Billing Determinants'!$G$41*$D14,IF($E14="Distribution Rev.",VLOOKUP(X$4,'4. Billing Determinants'!$B$19:$N$41,8,0)/'4. Billing Determinants'!$I$41*$D14, VLOOKUP(X$4,'4. Billing Determinants'!$B$19:$N$41,3,0)/'4. Billing Determinants'!$D$41*$D14))))) -> 0 | Y14: =IF(Y$4="",0,IF($E14="kWh",VLOOKUP(Y$4,'4. Billing Determinants'!$B$19:$N$41,4,0)/'4. Billing Determinants'!$E$41*$D14,IF($E14="kW",VLOOKUP(Y$4,'4. Billing Determinants'!$B$19:$N$41,5,0)/'4. Billing Determinants'!$F$41*$D14,IF($E14="Non-RPP kWh",VLOOKUP(Y$4,'4. Billing Determinants'!$B$19:$N$41,6,0)/'4. Billing Determinants'!$G$41*$D14,IF($E14="Distribution Rev.",VLOOKUP(Y$4,'4. Billing Determinants'!$B$19:$N$41,8,0)/'4. Billing Determinants'!$I$41*$D14, VLOOKUP(Y$4,'4. Billing Determinants'!$B$19:$N$41,3,0)/'4. Billing Determinants'!$D$41*$D14))))) -> 0
B15: Total of Group 1 Accounts (excluding 1588 sub-account) | D15: =SUM(D5:D14)-D10 -> -174807.04 | F15: =SUM(F5:F14)-F10 -> -59903.76517 | G15: =SUM(G5:G14)-G10 -> -21710.07808 | H15: -91233.09557 | I15: -251.7634567 | J15: -119.9110141 | K15: -1588.426717 | L15: 0 | M15: 0 | N15: 0 | O15: 0 | P15: 0 | Q15: 0 | R15: 0 | S15: 0 | T15: 0 | U15: 0 | V15: 0 | W15: 0 | X15: 0 | Y15: 0
B17: Other Regulatory Assets - Sub-Account - OEB Cost Assessments | C17: 1508 | D17: ='2. 2013 Continuity Schedule'!CP40 -> 0.45 | E17: kWh | F17: =IF(F$4="",0,IF($E17="kWh",VLOOKUP(F$4,'4. Billing Determinants'!$B$19:$N$41,4,0)/'4. Billing Determinants'!$E$41*$D17,IF($E17="kW",VLOOKUP(F$4,'4. Billing Determinants'!$B$19:$N$41,5,0)/'4. Billing Determinants'!$F$41*$D17,IF($E17="Non-RPP kWh",VLOOKUP(F$4,'4. Billing Determinants'!$B$19:$N$41,6,0)/'4. Billing Determinants'!$G$41*$D17,IF($E17="Distribution Rev.",VLOOKUP(F$4,'4. Billing Determinants'!$B$19:$N$41,8,0)/'4. Billing Determinants'!$I$41*$D17, VLOOKUP(F$4,'4. Billing Determinants'!$B$19:$N$41,3,0)/'4. Billing Determinants'!$D$41*$D17))))) -> 0.1542082878 | G17: =IF(G$4="",0,IF($E17="kWh",VLOOKUP(G$4,'4. Billing Determinants'!$B$19:$N$41,4,0)/'4. Billing Determinants'!$E$41*$D17,IF($E17="kW",VLOOKUP(G$4,'4. Billing Determinants'!$B$19:$N$41,5,0)/'4. Billing Determinants'!$F$41*$D17,IF($E17="Non-RPP kWh",VLOOKUP(G$4,'4. Billing Determinants'!$B$19:$N$41,6,0)/'4. Billing Determinants'!$G$41*$D17,IF($E17="Distribution Rev.",VLOOKUP(G$4,'4. Billing Determinants'!$B$19:$N$41,8,0)/'4. Billing Determinants'!$I$41*$D17, VLOOKUP(G$4,'4. Billing Determinants'!$B$19:$N$41,3,0)/'4. Billing Determinants'!$D$41*$D17))))) -> 0.05588753825 | H17: =IF(H$4="",0,IF($E17="kWh",VLOOKUP(H$4,'4. Billing Determinants'!$B$19:$N$41,4,0)/'4. Billing Determinants'!$E$41*$D17,IF($E17="kW",VLOOKUP(H$4,'4. Billing Determinants'!$B$19:$N$41,5,0)/'4. Billing Determinants'!$F$41*$D17,IF($E17="Non-RPP kWh",VLOOKUP(H$4,'4. Billing Determinants'!$B$19:$N$41,6,0)/'4. Billing Determinants'!$G$41*$D17,IF($E17="Distribution Rev.",VLOOKUP(H$4,'4. Billing Determinants'!$B$19:$N$41,8,0)/'4. Billing Determinants'!$I$41*$D17, VLOOKUP(H$4,'4. Billing Determinants'!$B$19:$N$41,3,0)/'4. Billing Determinants'!$D$41*$D17))))) -> 0.2348583501 | I17: =IF(I$4="",0,IF($E17="kWh",VLOOKUP(I$4,'4. Billing Determinants'!$B$19:$N$41,4,0)/'4. Billing Determinants'!$E$41*$D17,IF($E17="kW",VLOOKUP(I$4,'4. Billing Determinants'!$B$19:$N$41,5,0)/'4. Billing Determinants'!$F$41*$D17,IF($E17="Non-RPP kWh",VLOOKUP(I$4,'4. Billing Determinants'!$B$19:$N$41,6,0)/'4. Billing Determinants'!$G$41*$D17,IF($E17="Distribution Rev.",VLOOKUP(I$4,'4. Billing Determinants'!$B$19:$N$41,8,0)/'4. Billing Determinants'!$I$41*$D17, VLOOKUP(I$4,'4. Billing Determinants'!$B$19:$N$41,3,0)/'4. Billing Determinants'!$D$41*$D17))))) -> 0.0006481063664 | J17: =IF(J$4="",0,IF($E17="kWh",VLOOKUP(J$4,'4. Billing Determinants'!$B$19:$N$41,4,0)/'4. Billing Determinants'!$E$41*$D17,IF($E17="kW",VLOOKUP(J$4,'4. Billing Determinants'!$B$19:$N$41,5,0)/'4. Billing Determinants'!$F$41*$D17,IF($E17="Non-RPP kWh",VLOOKUP(J$4,'4. Billing Determinants'!$B$19:$N$41,6,0)/'4. Billing Determinants'!$G$41*$D17,IF($E17="Distribution Rev.",VLOOKUP(J$4,'4. Billing Determinants'!$B$19:$N$41,8,0)/'4. Billing Determinants'!$I$41*$D17, VLOOKUP(J$4,'4. Billing Determinants'!$B$19:$N$41,3,0)/'4. Billing Determinants'!$D$41*$D17))))) -> 0.0003086829704 | K17: =IF(K$4="",0,IF($E17="kWh",VLOOKUP(K$4,'4. Billing Determinants'!$B$19:$N$41,4,0)/'4. Billing Determinants'!$E$41*$D17,IF($E17="kW",VLOOKUP(K$4,'4. Billing Determinants'!$B$19:$N$41,5,0)/'4. Billing Determinants'!$F$41*$D17,IF($E17="Non-RPP kWh",VLOOKUP(K$4,'4. Billing Determinants'!$B$19:$N$41,6,0)/'4. Billing Determinants'!$G$41*$D17,IF($E17="Distribution Rev.",VLOOKUP(K$4,'4. Billing Determinants'!$B$19:$N$41,8,0)/'4. Billing Determinants'!$I$41*$D17, VLOOKUP(K$4,'4. Billing Determinants'!$B$19:$N$41,3,0)/'4. Billing Determinants'!$D$41*$D17))))) -> 0.004089034529 | L17: =IF(L$4="",0,IF($E17="kWh",VLOOKUP(L$4,'4. Billing Determinants'!$B$19:$N$41,4,0)/'4. Billing Determinants'!$E$41*$D17,IF($E17="kW",VLOOKUP(L$4,'4. Billing Determinants'!$B$19:$N$41,5,0)/'4. Billing Determinants'!$F$41*$D17,IF($E17="Non-RPP kWh",VLOOKUP(L$4,'4. Billing Determinants'!$B$19:$N$41,6,0)/'4. Billing Determinants'!$G$41*$D17,IF($E17="Distribution Rev.",VLOOKUP(L$4,'4. Billing Determinants'!$B$19:$N$41,8,0)/'4. Billing Determinants'!$I$41*$D17, VLOOKUP(L$4,'4. Billing Determinants'!$B$19:$N$41,3,0)/'4. Billing Determinants'!$D$41*$D17))))) -> 0 | M17: =IF(M$4="",0,IF($E17="kWh",VLOOKUP(M$4,'4. Billing Determinants'!$B$19:$N$41,4,0)/'4. Billing Determinants'!$E$41*$D17,IF($E17="kW",VLOOKUP(M$4,'4. Billing Determinants'!$B$19:$N$41,5,0)/'4. Billing Determinants'!$F$41*$D17,IF($E17="Non-RPP kWh",VLOOKUP(M$4,'4. Billing Determinants'!$B$19:$N$41,6,0)/'4. Billing Determinants'!$G$41*$D17,IF($E17="Distribution Rev.",VLOOKUP(M$4,'4. Billing Determinants'!$B$19:$N$41,8,0)/'4. Billing Determinants'!$I$41*$D17, VLOOKUP(M$4,'4. Billing Determinants'!$B$19:$N$41,3,0)/'4. Billing Determinants'!$D$41*$D17))))) -> 0 | N17: =IF(N$4="",0,IF($E17="kWh",VLOOKUP(N$4,'4. Billing Determinants'!$B$19:$N$41,4,0)/'4. Billing Determinants'!$E$41*$D17,IF($E17="kW",VLOOKUP(N$4,'4. Billing Determinants'!$B$19:$N$41,5,0)/'4. Billing Determinants'!$F$41*$D17,IF($E17="Non-RPP kWh",VLOOKUP(N$4,'4. Billing Determinants'!$B$19:$N$41,6,0)/'4. Billing Determinants'!$G$41*$D17,IF($E17="Distribution Rev.",VLOOKUP(N$4,'4. Billing Determinants'!$B$19:$N$41,8,0)/'4. Billing Determinants'!$I$41*$D17, VLOOKUP(N$4,'4. Billing Determinants'!$B$19:$N$41,3,0)/'4. Billing Determinants'!$D$41*$D17))))) -> 0 | O17: =IF(O$4="",0,IF($E17="kWh",VLOOKUP(O$4,'4. Billing Determinants'!$B$19:$N$41,4,0)/'4. Billing Determinants'!$E$41*$D17,IF($E17="kW",VLOOKUP(O$4,'4. Billing Determinants'!$B$19:$N$41,5,0)/'4. Billing Determinants'!$F$41*$D17,IF($E17="Non-RPP kWh",VLOOKUP(O$4,'4. Billing Determinants'!$B$19:$N$41,6,0)/'4. Billing Determinants'!$G$41*$D17,IF($E17="Distribution Rev.",VLOOKUP(O$4,'4. Billing Determinants'!$B$19:$N$41,8,0)/'4. Billing Determinants'!$I$41*$D17, VLOOKUP(O$4,'4. Billing Determinants'!$B$19:$N$41,3,0)/'4. Billing Determinants'!$D$41*$D17))))) -> 0 | P17: =IF(P$4="",0,IF($E17="kWh",VLOOKUP(P$4,'4. Billing Determinants'!$B$19:$N$41,4,0)/'4. Billing Determinants'!$E$41*$D17,IF($E17="kW",VLOOKUP(P$4,'4. Billing Determinants'!$B$19:$N$41,5,0)/'4. Billing Determinants'!$F$41*$D17,IF($E17="Non-RPP kWh",VLOOKUP(P$4,'4. Billing Determinants'!$B$19:$N$41,6,0)/'4. Billing Determinants'!$G$41*$D17,IF($E17="Distribution Rev.",VLOOKUP(P$4,'4. Billing Determinants'!$B$19:$N$41,8,0)/'4. Billing Determinants'!$I$41*$D17, VLOOKUP(P$4,'4. Billing Determinants'!$B$19:$N$41,3,0)/'4. Billing Determinants'!$D$41*$D17))))) -> 0 | Q17: =IF(Q$4="",0,IF($E17="kWh",VLOOKUP(Q$4,'4. Billing Determinants'!$B$19:$N$41,4,0)/'4. Billing Determinants'!$E$41*$D17,IF($E17="kW",VLOOKUP(Q$4,'4. Billing Determinants'!$B$19:$N$41,5,0)/'4. Billing Determinants'!$F$41*$D17,IF($E17="Non-RPP kWh",VLOOKUP(Q$4,'4. Billing Determinants'!$B$19:$N$41,6,0)/'4. Billing Determinants'!$G$41*$D17,IF($E17="Distribution Rev.",VLOOKUP(Q$4,'4. Billing Determinants'!$B$19:$N$41,8,0)/'4. Billing Determinants'!$I$41*$D17, VLOOKUP(Q$4,'4. Billing Determinants'!$B$19:$N$41,3,0)/'4. Billing Determinants'!$D$41*$D17))))) -> 0 | R17: =IF(R$4="",0,IF($E17="kWh",VLOOKUP(R$4,'4. Billing Determinants'!$B$19:$N$41,4,0)/'4. Billing Determinants'!$E$41*$D17,IF($E17="kW",VLOOKUP(R$4,'4. Billing Determinants'!$B$19:$N$41,5,0)/'4. Billing Determinants'!$F$41*$D17,IF($E17="Non-RPP kWh",VLOOKUP(R$4,'4. Billing Determinants'!$B$19:$N$41,6,0)/'4. Billing Determinants'!$G$41*$D17,IF($E17="Distribution Rev.",VLOOKUP(R$4,'4. Billing Determinants'!$B$19:$N$41,8,0)/'4. Billing Determinants'!$I$41*$D17, VLOOKUP(R$4,'4. Billing Determinants'!$B$19:$N$41,3,0)/'4. Billing Determinants'!$D$41*$D17))))) -> 0 | S17: =IF(S$4="",0,IF($E17="kWh",VLOOKUP(S$4,'4. Billing Determinants'!$B$19:$N$41,4,0)/'4. Billing Determinants'!$E$41*$D17,IF($E17="kW",VLOOKUP(S$4,'4. Billing Determinants'!$B$19:$N$41,5,0)/'4. Billing Determinants'!$F$41*$D17,IF($E17="Non-RPP kWh",VLOOKUP(S$4,'4. Billing Determinants'!$B$19:$N$41,6,0)/'4. Billing Determinants'!$G$41*$D17,IF($E17="Distribution Rev.",VLOOKUP(S$4,'4. Billing Determinants'!$B$19:$N$41,8,0)/'4. Billing Determinants'!$I$41*$D17, VLOOKUP(S$4,'4. Billing Determinants'!$B$19:$N$41,3,0)/'4. Billing Determinants'!$D$41*$D17))))) -> 0 | T17: =IF(T$4="",0,IF($E17="kWh",VLOOKUP(T$4,'4. Billing Determinants'!$B$19:$N$41,4,0)/'4. Billing Determinants'!$E$41*$D17,IF($E17="kW",VLOOKUP(T$4,'4. Billing Determinants'!$B$19:$N$41,5,0)/'4. Billing Determinants'!$F$41*$D17,IF($E17="Non-RPP kWh",VLOOKUP(T$4,'4. Billing Determinants'!$B$19:$N$41,6,0)/'4. Billing Determinants'!$G$41*$D17,IF($E17="Distribution Rev.",VLOOKUP(T$4,'4. Billing Determinants'!$B$19:$N$41,8,0)/'4. Billing Determinants'!$I$41*$D17, VLOOKUP(T$4,'4. Billing Determinants'!$B$19:$N$41,3,0)/'4. Billing Determinants'!$D$41*$D17))))) -> 0 | U17: =IF(U$4="",0,IF($E17="kWh",VLOOKUP(U$4,'4. Billing Determinants'!$B$19:$N$41,4,0)/'4. Billing Determinants'!$E$41*$D17,IF($E17="kW",VLOOKUP(U$4,'4. Billing Determinants'!$B$19:$N$41,5,0)/'4. Billing Determinants'!$F$41*$D17,IF($E17="Non-RPP kWh",VLOOKUP(U$4,'4. Billing Determinants'!$B$19:$N$41,6,0)/'4. Billing Determinants'!$G$41*$D17,IF($E17="Distribution Rev.",VLOOKUP(U$4,'4. Billing Determinants'!$B$19:$N$41,8,0)/'4. Billing Determinants'!$I$41*$D17, VLOOKUP(U$4,'4. Billing Determinants'!$B$19:$N$41,3,0)/'4. Billing Determinants'!$D$41*$D17))))) -> 0 | V17: =IF(V$4="",0,IF($E17="kWh",VLOOKUP(V$4,'4. Billing Determinants'!$B$19:$N$41,4,0)/'4. Billing Determinants'!$E$41*$D17,IF($E17="kW",VLOOKUP(V$4,'4. Billing Determinants'!$B$19:$N$41,5,0)/'4. Billing Determinants'!$F$41*$D17,IF($E17="Non-RPP kWh",VLOOKUP(V$4,'4. Billing Determinants'!$B$19:$N$41,6,0)/'4. Billing Determinants'!$G$41*$D17,IF($E17="Distribution Rev.",VLOOKUP(V$4,'4. Billing Determinants'!$B$19:$N$41,8,0)/'4. Billing Determinants'!$I$41*$D17, VLOOKUP(V$4,'4. Billing Determinants'!$B$19:$N$41,3,0)/'4. Billing Determinants'!$D$41*$D17))))) -> 0 | W17: =IF(W$4="",0,IF($E17="kWh",VLOOKUP(W$4,'4. Billing Determinants'!$B$19:$N$41,4,0)/'4. Billing Determinants'!$E$41*$D17,IF($E17="kW",VLOOKUP(W$4,'4. Billing Determinants'!$B$19:$N$41,5,0)/'4. Billing Determinants'!$F$41*$D17,IF($E17="Non-RPP kWh",VLOOKUP(W$4,'4. Billing Determinants'!$B$19:$N$41,6,0)/'4. Billing Determinants'!$G$41*$D17,IF($E17="Distribution Rev.",VLOOKUP(W$4,'4. Billing Determinants'!$B$19:$N$41,8,0)/'4. Billing Determinants'!$I$41*$D17, VLOOKUP(W$4,'4. Billing Determinants'!$B$19:$N$41,3,0)/'4. Billing Determinants'!$D$41*$D17))))) -> 0 | X17: =IF(X$4="",0,IF($E17="kWh",VLOOKUP(X$4,'4. Billing Determinants'!$B$19:$N$41,4,0)/'4. Billing Determinants'!$E$41*$D17,IF($E17="kW",VLOOKUP(X$4,'4. Billing Determinants'!$B$19:$N$41,5,0)/'4. Billing Determinants'!$F$41*$D17,IF($E17="Non-RPP kWh",VLOOKUP(X$4,'4. Billing Determinants'!$B$19:$N$41,6,0)/'4. Billing Determinants'!$G$41*$D17,IF($E17="Distribution Rev.",VLOOKUP(X$4,'4. Billing Determinants'!$B$19:$N$41,8,0)/'4. Billing Determinants'!$I$41*$D17, VLOOKUP(X$4,'4. Billing Determinants'!$B$19:$N$41,3,0)/'4. Billing Determinants'!$D$41*$D17))))) -> 0 | Y17: =IF(Y$4="",0,IF($E17="kWh",VLOOKUP(Y$4,'4. Billing Determinants'!$B$19:$N$41,4,0)/'4. Billing Determinants'!$E$41*$D17,IF($E17="kW",VLOOKUP(Y$4,'4. Billing Determinants'!$B$19:$N$41,5,0)/'4. Billing Determinants'!$F$41*$D17,IF($E17="Non-RPP kWh",VLOOKUP(Y$4,'4. Billing Determinants'!$B$19:$N$41,6,0)/'4. Billing Determinants'!$G$41*$D17,IF($E17="Distribution Rev.",VLOOKUP(Y$4,'4. Billing Determinants'!$B$19:$N$41,8,0)/'4. Billing Determinants'!$I$41*$D17, VLOOKUP(Y$4,'4. Billing Determinants'!$B$19:$N$41,3,0)/'4. Billing Determinants'!$D$41*$D17))))) -> 0
B18: Other Regulatory Assets - Sub-Account - Pension Contributions | C18: 1508 | D18: ='2. 2013 Continuity Schedule'!CP41 -> -0.1 | E18: kWh | F18: =IF(F$4="",0,IF($E18="kWh",VLOOKUP(F$4,'4. Billing Determinants'!$B$19:$N$41,4,0)/'4. Billing Determinants'!$E$41*$D18,IF($E18="kW",VLOOKUP(F$4,'4. Billing Determinants'!$B$19:$N$41,5,0)/'4. Billing Determinants'!$F$41*$D18,IF($E18="Non-RPP kWh",VLOOKUP(F$4,'4. Billing Determinants'!$B$19:$N$41,6,0)/'4. Billing Determinants'!$G$41*$D18,IF($E18="Distribution Rev.",VLOOKUP(F$4,'4. Billing Determinants'!$B$19:$N$41,8,0)/'4. Billing Determinants'!$I$41*$D18, VLOOKUP(F$4,'4. Billing Determinants'!$B$19:$N$41,3,0)/'4. Billing Determinants'!$D$41*$D18))))) -> -0.03426850839 | G18: =IF(G$4="",0,IF($E18="kWh",VLOOKUP(G$4,'4. Billing Determinants'!$B$19:$N$41,4,0)/'4. Billing Determinants'!$E$41*$D18,IF($E18="kW",VLOOKUP(G$4,'4. Billing Determinants'!$B$19:$N$41,5,0)/'4. Billing Determinants'!$F$41*$D18,IF($E18="Non-RPP kWh",VLOOKUP(G$4,'4. Billing Determinants'!$B$19:$N$41,6,0)/'4. Billing Determinants'!$G$41*$D18,IF($E18="Distribution Rev.",VLOOKUP(G$4,'4. Billing Determinants'!$B$19:$N$41,8,0)/'4. Billing Determinants'!$I$41*$D18, VLOOKUP(G$4,'4. Billing Determinants'!$B$19:$N$41,3,0)/'4. Billing Determinants'!$D$41*$D18))))) -> -0.01241945294 | H18: =IF(H$4="",0,IF($E18="kWh",VLOOKUP(H$4,'4. Billing Determinants'!$B$19:$N$41,4,0)/'4. Billing Determinants'!$E$41*$D18,IF($E18="kW",VLOOKUP(H$4,'4. Billing Determinants'!$B$19:$N$41,5,0)/'4. Billing Determinants'!$F$41*$D18,IF($E18="Non-RPP kWh",VLOOKUP(H$4,'4. Billing Determinants'!$B$19:$N$41,6,0)/'4. Billing Determinants'!$G$41*$D18,IF($E18="Distribution Rev.",VLOOKUP(H$4,'4. Billing Determinants'!$B$19:$N$41,8,0)/'4. Billing Determinants'!$I$41*$D18, VLOOKUP(H$4,'4. Billing Determinants'!$B$19:$N$41,3,0)/'4. Billing Determinants'!$D$41*$D18))))) -> -0.05219074447 | I18: =IF(I$4="",0,IF($E18="kWh",VLOOKUP(I$4,'4. Billing Determinants'!$B$19:$N$41,4,0)/'4. Billing Determinants'!$E$41*$D18,IF($E18="kW",VLOOKUP(I$4,'4. Billing Determinants'!$B$19:$N$41,5,0)/'4. Billing Determinants'!$F$41*$D18,IF($E18="Non-RPP kWh",VLOOKUP(I$4,'4. Billing Determinants'!$B$19:$N$41,6,0)/'4. Billing Determinants'!$G$41*$D18,IF($E18="Distribution Rev.",VLOOKUP(I$4,'4. Billing Determinants'!$B$19:$N$41,8,0)/'4. Billing Determinants'!$I$41*$D18, VLOOKUP(I$4,'4. Billing Determinants'!$B$19:$N$41,3,0)/'4. Billing Determinants'!$D$41*$D18))))) -> -0.000144023637 | J18: =IF(J$4="",0,IF($E18="kWh",VLOOKUP(J$4,'4. Billing Determinants'!$B$19:$N$41,4,0)/'4. Billing Determinants'!$E$41*$D18,IF($E18="kW",VLOOKUP(J$4,'4. Billing Determinants'!$B$19:$N$41,5,0)/'4. Billing Determinants'!$F$41*$D18,IF($E18="Non-RPP kWh",VLOOKUP(J$4,'4. Billing Determinants'!$B$19:$N$41,6,0)/'4. Billing Determinants'!$G$41*$D18,IF($E18="Distribution Rev.",VLOOKUP(J$4,'4. Billing Determinants'!$B$19:$N$41,8,0)/'4. Billing Determinants'!$I$41*$D18, VLOOKUP(J$4,'4. Billing Determinants'!$B$19:$N$41,3,0)/'4. Billing Determinants'!$D$41*$D18))))) -> -6.859621565e-05 | K18: =IF(K$4="",0,IF($E18="kWh",VLOOKUP(K$4,'4. Billing Determinants'!$B$19:$N$41,4,0)/'4. Billing Determinants'!$E$41*$D18,IF($E18="kW",VLOOKUP(K$4,'4. Billing Determinants'!$B$19:$N$41,5,0)/'4. Billing Determinants'!$F$41*$D18,IF($E18="Non-RPP kWh",VLOOKUP(K$4,'4. Billing Determinants'!$B$19:$N$41,6,0)/'4. Billing Determinants'!$G$41*$D18,IF($E18="Distribution Rev.",VLOOKUP(K$4,'4. Billing Determinants'!$B$19:$N$41,8,0)/'4. Billing Determinants'!$I$41*$D18, VLOOKUP(K$4,'4. Billing Determinants'!$B$19:$N$41,3,0)/'4. Billing Determinants'!$D$41*$D18))))) -> -0.0009086743398 | L18: =IF(L$4="",0,IF($E18="kWh",VLOOKUP(L$4,'4. Billing Determinants'!$B$19:$N$41,4,0)/'4. Billing Determinants'!$E$41*$D18,IF($E18="kW",VLOOKUP(L$4,'4. Billing Determinants'!$B$19:$N$41,5,0)/'4. Billing Determinants'!$F$41*$D18,IF($E18="Non-RPP kWh",VLOOKUP(L$4,'4. Billing Determinants'!$B$19:$N$41,6,0)/'4. Billing Determinants'!$G$41*$D18,IF($E18="Distribution Rev.",VLOOKUP(L$4,'4. Billing Determinants'!$B$19:$N$41,8,0)/'4. Billing Determinants'!$I$41*$D18, VLOOKUP(L$4,'4. Billing Determinants'!$B$19:$N$41,3,0)/'4. Billing Determinants'!$D$41*$D18))))) -> 0 | M18: =IF(M$4="",0,IF($E18="kWh",VLOOKUP(M$4,'4. Billing Determinants'!$B$19:$N$41,4,0)/'4. Billing Determinants'!$E$41*$D18,IF($E18="kW",VLOOKUP(M$4,'4. Billing Determinants'!$B$19:$N$41,5,0)/'4. Billing Determinants'!$F$41*$D18,IF($E18="Non-RPP kWh",VLOOKUP(M$4,'4. Billing Determinants'!$B$19:$N$41,6,0)/'4. Billing Determinants'!$G$41*$D18,IF($E18="Distribution Rev.",VLOOKUP(M$4,'4. Billing Determinants'!$B$19:$N$41,8,0)/'4. Billing Determinants'!$I$41*$D18, VLOOKUP(M$4,'4. Billing Determinants'!$B$19:$N$41,3,0)/'4. Billing Determinants'!$D$41*$D18))))) -> 0 | N18: =IF(N$4="",0,IF($E18="kWh",VLOOKUP(N$4,'4. Billing Determinants'!$B$19:$N$41,4,0)/'4. Billing Determinants'!$E$41*$D18,IF($E18="kW",VLOOKUP(N$4,'4. Billing Determinants'!$B$19:$N$41,5,0)/'4. Billing Determinants'!$F$41*$D18,IF($E18="Non-RPP kWh",VLOOKUP(N$4,'4. Billing Determinants'!$B$19:$N$41,6,0)/'4. Billing Determinants'!$G$41*$D18,IF($E18="Distribution Rev.",VLOOKUP(N$4,'4. Billing Determinants'!$B$19:$N$41,8,0)/'4. Billing Determinants'!$I$41*$D18, VLOOKUP(N$4,'4. Billing Determinants'!$B$19:$N$41,3,0)/'4. Billing Determinants'!$D$41*$D18))))) -> 0 | O18: =IF(O$4="",0,IF($E18="kWh",VLOOKUP(O$4,'4. Billing Determinants'!$B$19:$N$41,4,0)/'4. Billing Determinants'!$E$41*$D18,IF($E18="kW",VLOOKUP(O$4,'4. Billing Determinants'!$B$19:$N$41,5,0)/'4. Billing Determinants'!$F$41*$D18,IF($E18="Non-RPP kWh",VLOOKUP(O$4,'4. Billing Determinants'!$B$19:$N$41,6,0)/'4. Billing Determinants'!$G$41*$D18,IF($E18="Distribution Rev.",VLOOKUP(O$4,'4. Billing Determinants'!$B$19:$N$41,8,0)/'4. Billing Determinants'!$I$41*$D18, VLOOKUP(O$4,'4. Billing Determinants'!$B$19:$N$41,3,0)/'4. Billing Determinants'!$D$41*$D18))))) -> 0 | P18: =IF(P$4="",0,IF($E18="kWh",VLOOKUP(P$4,'4. Billing Determinants'!$B$19:$N$41,4,0)/'4. Billing Determinants'!$E$41*$D18,IF($E18="kW",VLOOKUP(P$4,'4. Billing Determinants'!$B$19:$N$41,5,0)/'4. Billing Determinants'!$F$41*$D18,IF($E18="Non-RPP kWh",VLOOKUP(P$4,'4. Billing Determinants'!$B$19:$N$41,6,0)/'4. Billing Determinants'!$G$41*$D18,IF($E18="Distribution Rev.",VLOOKUP(P$4,'4. Billing Determinants'!$B$19:$N$41,8,0)/'4. Billing Determinants'!$I$41*$D18, VLOOKUP(P$4,'4. Billing Determinants'!$B$19:$N$41,3,0)/'4. Billing Determinants'!$D$41*$D18))))) -> 0 | Q18: =IF(Q$4="",0,IF($E18="kWh",VLOOKUP(Q$4,'4. Billing Determinants'!$B$19:$N$41,4,0)/'4. Billing Determinants'!$E$41*$D18,IF($E18="kW",VLOOKUP(Q$4,'4. Billing Determinants'!$B$19:$N$41,5,0)/'4. Billing Determinants'!$F$41*$D18,IF($E18="Non-RPP kWh",VLOOKUP(Q$4,'4. Billing Determinants'!$B$19:$N$41,6,0)/'4. Billing Determinants'!$G$41*$D18,IF($E18="Distribution Rev.",VLOOKUP(Q$4,'4. Billing Determinants'!$B$19:$N$41,8,0)/'4. Billing Determinants'!$I$41*$D18, VLOOKUP(Q$4,'4. Billing Determinants'!$B$19:$N$41,3,0)/'4. Billing Determinants'!$D$41*$D18))))) -> 0 | R18: =IF(R$4="",0,IF($E18="kWh",VLOOKUP(R$4,'4. Billing Determinants'!$B$19:$N$41,4,0)/'4. Billing Determinants'!$E$41*$D18,IF($E18="kW",VLOOKUP(R$4,'4. Billing Determinants'!$B$19:$N$41,5,0)/'4. Billing Determinants'!$F$41*$D18,IF($E18="Non-RPP kWh",VLOOKUP(R$4,'4. Billing Determinants'!$B$19:$N$41,6,0)/'4. Billing Determinants'!$G$41*$D18,IF($E18="Distribution Rev.",VLOOKUP(R$4,'4. Billing Determinants'!$B$19:$N$41,8,0)/'4. Billing Determinants'!$I$41*$D18, VLOOKUP(R$4,'4. Billing Determinants'!$B$19:$N$41,3,0)/'4. Billing Determinants'!$D$41*$D18))))) -> 0 | S18: =IF(S$4="",0,IF($E18="kWh",VLOOKUP(S$4,'4. Billing Determinants'!$B$19:$N$41,4,0)/'4. Billing Determinants'!$E$41*$D18,IF($E18="kW",VLOOKUP(S$4,'4. Billing Determinants'!$B$19:$N$41,5,0)/'4. Billing Determinants'!$F$41*$D18,IF($E18="Non-RPP kWh",VLOOKUP(S$4,'4. Billing Determinants'!$B$19:$N$41,6,0)/'4. Billing Determinants'!$G$41*$D18,IF($E18="Distribution Rev.",VLOOKUP(S$4,'4. Billing Determinants'!$B$19:$N$41,8,0)/'4. Billing Determinants'!$I$41*$D18, VLOOKUP(S$4,'4. Billing Determinants'!$B$19:$N$41,3,0)/'4. Billing Determinants'!$D$41*$D18))))) -> 0 | T18: =IF(T$4="",0,IF($E18="kWh",VLOOKUP(T$4,'4. Billing Determinants'!$B$19:$N$41,4,0)/'4. Billing Determinants'!$E$41*$D18,IF($E18="kW",VLOOKUP(T$4,'4. Billing Determinants'!$B$19:$N$41,5,0)/'4. Billing Determinants'!$F$41*$D18,IF($E18="Non-RPP kWh",VLOOKUP(T$4,'4. Billing Determinants'!$B$19:$N$41,6,0)/'4. Billing Determinants'!$G$41*$D18,IF($E18="Distribution Rev.",VLOOKUP(T$4,'4. Billing Determinants'!$B$19:$N$41,8,0)/'4. Billing Determinants'!$I$41*$D18, VLOOKUP(T$4,'4. Billing Determinants'!$B$19:$N$41,3,0)/'4. Billing Determinants'!$D$41*$D18))))) -> 0 | U18: =IF(U$4="",0,IF($E18="kWh",VLOOKUP(U$4,'4. Billing Determinants'!$B$19:$N$41,4,0)/'4. Billing Determinants'!$E$41*$D18,IF($E18="kW",VLOOKUP(U$4,'4. Billing Determinants'!$B$19:$N$41,5,0)/'4. Billing Determinants'!$F$41*$D18,IF($E18="Non-RPP kWh",VLOOKUP(U$4,'4. Billing Determinants'!$B$19:$N$41,6,0)/'4. Billing Determinants'!$G$41*$D18,IF($E18="Distribution Rev.",VLOOKUP(U$4,'4. Billing Determinants'!$B$19:$N$41,8,0)/'4. Billing Determinants'!$I$41*$D18, VLOOKUP(U$4,'4. Billing Determinants'!$B$19:$N$41,3,0)/'4. Billing Determinants'!$D$41*$D18))))) -> 0 | V18: =IF(V$4="",0,IF($E18="kWh",VLOOKUP(V$4,'4. Billing Determinants'!$B$19:$N$41,4,0)/'4. Billing Determinants'!$E$41*$D18,IF($E18="kW",VLOOKUP(V$4,'4. Billing Determinants'!$B$19:$N$41,5,0)/'4. Billing Determinants'!$F$41*$D18,IF($E18="Non-RPP kWh",VLOOKUP(V$4,'4. Billing Determinants'!$B$19:$N$41,6,0)/'4. Billing Determinants'!$G$41*$D18,IF($E18="Distribution Rev.",VLOOKUP(V$4,'4. Billing Determinants'!$B$19:$N$41,8,0)/'4. Billing Determinants'!$I$41*$D18, VLOOKUP(V$4,'4. Billing Determinants'!$B$19:$N$41,3,0)/'4. Billing Determinants'!$D$41*$D18))))) -> 0 | W18: =IF(W$4="",0,IF($E18="kWh",VLOOKUP(W$4,'4. Billing Determinants'!$B$19:$N$41,4,0)/'4. Billing Determinants'!$E$41*$D18,IF($E18="kW",VLOOKUP(W$4,'4. Billing Determinants'!$B$19:$N$41,5,0)/'4. Billing Determinants'!$F$41*$D18,IF($E18="Non-RPP kWh",VLOOKUP(W$4,'4. Billing Determinants'!$B$19:$N$41,6,0)/'4. Billing Determinants'!$G$41*$D18,IF($E18="Distribution Rev.",VLOOKUP(W$4,'4. Billing Determinants'!$B$19:$N$41,8,0)/'4. Billing Determinants'!$I$41*$D18, VLOOKUP(W$4,'4. Billing Determinants'!$B$19:$N$41,3,0)/'4. Billing Determinants'!$D$41*$D18))))) -> 0 | X18: =IF(X$4="",0,IF($E18="kWh",VLOOKUP(X$4,'4. Billing Determinants'!$B$19:$N$41,4,0)/'4. Billing Determinants'!$E$41*$D18,IF($E18="kW",VLOOKUP(X$4,'4. Billing Determinants'!$B$19:$N$41,5,0)/'4. Billing Determinants'!$F$41*$D18,IF($E18="Non-RPP kWh",VLOOKUP(X$4,'4. Billing Determinants'!$B$19:$N$41,6,0)/'4. Billing Determinants'!$G$41*$D18,IF($E18="Distribution Rev.",VLOOKUP(X$4,'4. Billing Determinants'!$B$19:$N$41,8,0)/'4. Billing Determinants'!$I$41*$D18, VLOOKUP(X$4,'4. Billing Determinants'!$B$19:$N$41,3,0)/'4. Billing Determinants'!$D$41*$D18))))) -> 0 | Y18: =IF(Y$4="",0,IF($E18="kWh",VLOOKUP(Y$4,'4. Billing Determinants'!$B$19:$N$41,4,0)/'4. Billing Determinants'!$E$41*$D18,IF($E18="kW",VLOOKUP(Y$4,'4. Billing Determinants'!$B$19:$N$41,5,0)/'4. Billing Determinants'!$F$41*$D18,IF($E18="Non-RPP kWh",VLOOKUP(Y$4,'4. Billing Determinants'!$B$19:$N$41,6,0)/'4. Billing Determinants'!$G$41*$D18,IF($E18="Distribution Rev.",VLOOKUP(Y$4,'4. Billing Determinants'!$B$19:$N$41,8,0)/'4. Billing Determinants'!$I$41*$D18, VLOOKUP(Y$4,'4. Billing Determinants'!$B$19:$N$41,3,0)/'4. Billing Determinants'!$D$41*$D18))))) -> 0
B19: Other Regulatory Assets - Sub-Account - Incremental Capital Charges - RATE RIDER | C19: 1508 | F19: =IF(F$4="",0,IF($E19="kWh",VLOOKUP(F$4,'4. Billing Determinants'!$B$19:$N$41,4,0)/'4. Billing Determinants'!$E$41*$D19,IF($E19="kW",VLOOKUP(F$4,'4. Billing Determinants'!$B$19:$N$41,5,0)/'4. Billing Determinants'!$F$41*$D19,IF($E19="Non-RPP kWh",VLOOKUP(F$4,'4. Billing Determinants'!$B$19:$N$41,6,0)/'4. Billing Determinants'!$G$41*$D19,IF($E19="Distribution Rev.",VLOOKUP(F$4,'4. Billing Determinants'!$B$19:$N$41,8,0)/'4. Billing Determinants'!$I$41*$D19, VLOOKUP(F$4,'4. Billing Determinants'!$B$19:$N$41,3,0)/'4. Billing Determinants'!$D$41*$D19))))) -> 0 | G19: =IF(G$4="",0,IF($E19="kWh",VLOOKUP(G$4,'4. Billing Determinants'!$B$19:$N$41,4,0)/'4. Billing Determinants'!$E$41*$D19,IF($E19="kW",VLOOKUP(G$4,'4. Billing Determinants'!$B$19:$N$41,5,0)/'4. Billing Determinants'!$F$41*$D19,IF($E19="Non-RPP kWh",VLOOKUP(G$4,'4. Billing Determinants'!$B$19:$N$41,6,0)/'4. Billing Determinants'!$G$41*$D19,IF($E19="Distribution Rev.",VLOOKUP(G$4,'4. Billing Determinants'!$B$19:$N$41,8,0)/'4. Billing Determinants'!$I$41*$D19, VLOOKUP(G$4,'4. Billing Determinants'!$B$19:$N$41,3,0)/'4. Billing Determinants'!$D$41*$D19))))) -> 0 | H19: =IF(H$4="",0,IF($E19="kWh",VLOOKUP(H$4,'4. Billing Determinants'!$B$19:$N$41,4,0)/'4. Billing Determinants'!$E$41*$D19,IF($E19="kW",VLOOKUP(H$4,'4. Billing Determinants'!$B$19:$N$41,5,0)/'4. Billing Determinants'!$F$41*$D19,IF($E19="Non-RPP kWh",VLOOKUP(H$4,'4. Billing Determinants'!$B$19:$N$41,6,0)/'4. Billing Determinants'!$G$41*$D19,IF($E19="Distribution Rev.",VLOOKUP(H$4,'4. Billing Determinants'!$B$19:$N$41,8,0)/'4. Billing Determinants'!$I$41*$D19, VLOOKUP(H$4,'4. Billing Determinants'!$B$19:$N$41,3,0)/'4. Billing Determinants'!$D$41*$D19))))) -> 0 | I19: =IF(I$4="",0,IF($E19="kWh",VLOOKUP(I$4,'4. Billing Determinants'!$B$19:$N$41,4,0)/'4. Billing Determinants'!$E$41*$D19,IF($E19="kW",VLOOKUP(I$4,'4. Billing Determinants'!$B$19:$N$41,5,0)/'4. Billing Determinants'!$F$41*$D19,IF($E19="Non-RPP kWh",VLOOKUP(I$4,'4. Billing Determinants'!$B$19:$N$41,6,0)/'4. Billing Determinants'!$G$41*$D19,IF($E19="Distribution Rev.",VLOOKUP(I$4,'4. Billing Determinants'!$B$19:$N$41,8,0)/'4. Billing Determinants'!$I$41*$D19, VLOOKUP(I$4,'4. Billing Determinants'!$B$19:$N$41,3,0)/'4. Billing Determinants'!$D$41*$D19))))) -> 0 | J19: =IF(J$4="",0,IF($E19="kWh",VLOOKUP(J$4,'4. Billing Determinants'!$B$19:$N$41,4,0)/'4. Billing Determinants'!$E$41*$D19,IF($E19="kW",VLOOKUP(J$4,'4. Billing Determinants'!$B$19:$N$41,5,0)/'4. Billing Determinants'!$F$41*$D19,IF($E19="Non-RPP kWh",VLOOKUP(J$4,'4. Billing Determinants'!$B$19:$N$41,6,0)/'4. Billing Determinants'!$G$41*$D19,IF($E19="Distribution Rev.",VLOOKUP(J$4,'4. Billing Determinants'!$B$19:$N$41,8,0)/'4. Billing Determinants'!$I$41*$D19, VLOOKUP(J$4,'4. Billing Determinants'!$B$19:$N$41,3,0)/'4. Billing Determinants'!$D$41*$D19))))) -> 0 | K19: =IF(K$4="",0,IF($E19="kWh",VLOOKUP(K$4,'4. Billing Determinants'!$B$19:$N$41,4,0)/'4. Billing Determinants'!$E$41*$D19,IF($E19="kW",VLOOKUP(K$4,'4. Billing Determinants'!$B$19:$N$41,5,0)/'4. Billing Determinants'!$F$41*$D19,IF($E19="Non-RPP kWh",VLOOKUP(K$4,'4. Billing Determinants'!$B$19:$N$41,6,0)/'4. Billing Determinants'!$G$41*$D19,IF($E19="Distribution Rev.",VLOOKUP(K$4,'4. Billing Determinants'!$B$19:$N$41,8,0)/'4. Billing Determinants'!$I$41*$D19, VLOOKUP(K$4,'4. Billing Determinants'!$B$19:$N$41,3,0)/'4. Billing Determinants'!$D$41*$D19))))) -> 0 | L19: =IF(L$4="",0,IF($E19="kWh",VLOOKUP(L$4,'4. Billing Determinants'!$B$19:$N$41,4,0)/'4. Billing Determinants'!$E$41*$D19,IF($E19="kW",VLOOKUP(L$4,'4. Billing Determinants'!$B$19:$N$41,5,0)/'4. Billing Determinants'!$F$41*$D19,IF($E19="Non-RPP kWh",VLOOKUP(L$4,'4. Billing Determinants'!$B$19:$N$41,6,0)/'4. Billing Determinants'!$G$41*$D19,IF($E19="Distribution Rev.",VLOOKUP(L$4,'4. Billing Determinants'!$B$19:$N$41,8,0)/'4. Billing Determinants'!$I$41*$D19, VLOOKUP(L$4,'4. Billing Determinants'!$B$19:$N$41,3,0)/'4. Billing Determinants'!$D$41*$D19))))) -> 0 | M19: =IF(M$4="",0,IF($E19="kWh",VLOOKUP(M$4,'4. Billing Determinants'!$B$19:$N$41,4,0)/'4. Billing Determinants'!$E$41*$D19,IF($E19="kW",VLOOKUP(M$4,'4. Billing Determinants'!$B$19:$N$41,5,0)/'4. Billing Determinants'!$F$41*$D19,IF($E19="Non-RPP kWh",VLOOKUP(M$4,'4. Billing Determinants'!$B$19:$N$41,6,0)/'4. Billing Determinants'!$G$41*$D19,IF($E19="Distribution Rev.",VLOOKUP(M$4,'4. Billing Determinants'!$B$19:$N$41,8,0)/'4. Billing Determinants'!$I$41*$D19, VLOOKUP(M$4,'4. Billing Determinants'!$B$19:$N$41,3,0)/'4. Billing Determinants'!$D$41*$D19))))) -> 0 | N19: =IF(N$4="",0,IF($E19="kWh",VLOOKUP(N$4,'4. Billing Determinants'!$B$19:$N$41,4,0)/'4. Billing Determinants'!$E$41*$D19,IF($E19="kW",VLOOKUP(N$4,'4. Billing Determinants'!$B$19:$N$41,5,0)/'4. Billing Determinants'!$F$41*$D19,IF($E19="Non-RPP kWh",VLOOKUP(N$4,'4. Billing Determinants'!$B$19:$N$41,6,0)/'4. Billing Determinants'!$G$41*$D19,IF($E19="Distribution Rev.",VLOOKUP(N$4,'4. Billing Determinants'!$B$19:$N$41,8,0)/'4. Billing Determinants'!$I$41*$D19, VLOOKUP(N$4,'4. Billing Determinants'!$B$19:$N$41,3,0)/'4. Billing Determinants'!$D$41*$D19))))) -> 0
B20: Other Regulatory Assets - Sub-Account - Incremental Capital Expenditures - SUB 115KV EXPENSES | C20: 1508 | F20: =IF(F$4="",0,IF($E20="kWh",VLOOKUP(F$4,'4. Billing Determinants'!$B$19:$N$41,4,0)/'4. Billing Determinants'!$E$41*$D20,IF($E20="kW",VLOOKUP(F$4,'4. Billing Determinants'!$B$19:$N$41,5,0)/'4. Billing Determinants'!$F$41*$D20,IF($E20="Non-RPP kWh",VLOOKUP(F$4,'4. Billing Determinants'!$B$19:$N$41,6,0)/'4. Billing Determinants'!$G$41*$D20,IF($E20="Distribution Rev.",VLOOKUP(F$4,'4. Billing Determinants'!$B$19:$N$41,8,0)/'4. Billing Determinants'!$I$41*$D20, VLOOKUP(F$4,'4. Billing Determinants'!$B$19:$N$41,3,0)/'4. Billing Determinants'!$D$41*$D20))))) -> 0 | G20: =IF(G$4="",0,IF($E20="kWh",VLOOKUP(G$4,'4. Billing Determinants'!$B$19:$N$41,4,0)/'4. Billing Determinants'!$E$41*$D20,IF($E20="kW",VLOOKUP(G$4,'4. Billing Determinants'!$B$19:$N$41,5,0)/'4. Billing Determinants'!$F$41*$D20,IF($E20="Non-RPP kWh",VLOOKUP(G$4,'4. Billing Determinants'!$B$19:$N$41,6,0)/'4. Billing Determinants'!$G$41*$D20,IF($E20="Distribution Rev.",VLOOKUP(G$4,'4. Billing Determinants'!$B$19:$N$41,8,0)/'4. Billing Determinants'!$I$41*$D20, VLOOKUP(G$4,'4. Billing Determinants'!$B$19:$N$41,3,0)/'4. Billing Determinants'!$D$41*$D20))))) -> 0 | H20: =IF(H$4="",0,IF($E20="kWh",VLOOKUP(H$4,'4. Billing Determinants'!$B$19:$N$41,4,0)/'4. Billing Determinants'!$E$41*$D20,IF($E20="kW",VLOOKUP(H$4,'4. Billing Determinants'!$B$19:$N$41,5,0)/'4. Billing Determinants'!$F$41*$D20,IF($E20="Non-RPP kWh",VLOOKUP(H$4,'4. Billing Determinants'!$B$19:$N$41,6,0)/'4. Billing Determinants'!$G$41*$D20,IF($E20="Distribution Rev.",VLOOKUP(H$4,'4. Billing Determinants'!$B$19:$N$41,8,0)/'4. Billing Determinants'!$I$41*$D20, VLOOKUP(H$4,'4. Billing Determinants'!$B$19:$N$41,3,0)/'4. Billing Determinants'!$D$41*$D20))))) -> 0 | I20: =IF(I$4="",0,IF($E20="kWh",VLOOKUP(I$4,'4. Billing Determinants'!$B$19:$N$41,4,0)/'4. Billing Determinants'!$E$41*$D20,IF($E20="kW",VLOOKUP(I$4,'4. Billing Determinants'!$B$19:$N$41,5,0)/'4. Billing Determinants'!$F$41*$D20,IF($E20="Non-RPP kWh",VLOOKUP(I$4,'4. Billing Determinants'!$B$19:$N$41,6,0)/'4. Billing Determinants'!$G$41*$D20,IF($E20="Distribution Rev.",VLOOKUP(I$4,'4. Billing Determinants'!$B$19:$N$41,8,0)/'4. Billing Determinants'!$I$41*$D20, VLOOKUP(I$4,'4. Billing Determinants'!$B$19:$N$41,3,0)/'4. Billing Determinants'!$D$41*$D20))))) -> 0 | J20: =IF(J$4="",0,IF($E20="kWh",VLOOKUP(J$4,'4. Billing Determinants'!$B$19:$N$41,4,0)/'4. Billing Determinants'!$E$41*$D20,IF($E20="kW",VLOOKUP(J$4,'4. Billing Determinants'!$B$19:$N$41,5,0)/'4. Billing Determinants'!$F$41*$D20,IF($E20="Non-RPP kWh",VLOOKUP(J$4,'4. Billing Determinants'!$B$19:$N$41,6,0)/'4. Billing Determinants'!$G$41*$D20,IF($E20="Distribution Rev.",VLOOKUP(J$4,'4. Billing Determinants'!$B$19:$N$41,8,0)/'4. Billing Determinants'!$I$41*$D20, VLOOKUP(J$4,'4. Billing Determinants'!$B$19:$N$41,3,0)/'4. Billing Determinants'!$D$41*$D20))))) -> 0 | K20: =IF(K$4="",0,IF($E20="kWh",VLOOKUP(K$4,'4. Billing Determinants'!$B$19:$N$41,4,0)/'4. Billing Determinants'!$E$41*$D20,IF($E20="kW",VLOOKUP(K$4,'4. Billing Determinants'!$B$19:$N$41,5,0)/'4. Billing Determinants'!$F$41*$D20,IF($E20="Non-RPP kWh",VLOOKUP(K$4,'4. Billing Determinants'!$B$19:$N$41,6,0)/'4. Billing Determinants'!$G$41*$D20,IF($E20="Distribution Rev.",VLOOKUP(K$4,'4. Billing Determinants'!$B$19:$N$41,8,0)/'4. Billing Determinants'!$I$41*$D20, VLOOKUP(K$4,'4. Billing Determinants'!$B$19:$N$41,3,0)/'4. Billing Determinants'!$D$41*$D20))))) -> 0 | L20: =IF(L$4="",0,IF($E20="kWh",VLOOKUP(L$4,'4. Billing Determinants'!$B$19:$N$41,4,0)/'4. Billing Determinants'!$E$41*$D20,IF($E20="kW",VLOOKUP(L$4,'4. Billing Determinants'!$B$19:$N$41,5,0)/'4. Billing Determinants'!$F$41*$D20,IF($E20="Non-RPP kWh",VLOOKUP(L$4,'4. Billing Determinants'!$B$19:$N$41,6,0)/'4. Billing Determinants'!$G$41*$D20,IF($E20="Distribution Rev.",VLOOKUP(L$4,'4. Billing Determinants'!$B$19:$N$41,8,0)/'4. Billing Determinants'!$I$41*$D20, VLOOKUP(L$4,'4. Billing Determinants'!$B$19:$N$41,3,0)/'4. Billing Determinants'!$D$41*$D20))))) -> 0 | M20: =IF(M$4="",0,IF($E20="kWh",VLOOKUP(M$4,'4. Billing Determinants'!$B$19:$N$41,4,0)/'4. Billing Determinants'!$E$41*$D20,IF($E20="kW",VLOOKUP(M$4,'4. Billing Determinants'!$B$19:$N$41,5,0)/'4. Billing Determinants'!$F$41*$D20,IF($E20="Non-RPP kWh",VLOOKUP(M$4,'4. Billing Determinants'!$B$19:$N$41,6,0)/'4. Billing Determinants'!$G$41*$D20,IF($E20="Distribution Rev.",VLOOKUP(M$4,'4. Billing Determinants'!$B$19:$N$41,8,0)/'4. Billing Determinants'!$I$41*$D20, VLOOKUP(M$4,'4. Billing Determinants'!$B$19:$N$41,3,0)/'4. Billing Determinants'!$D$41*$D20))))) -> 0 | N20: =IF(N$4="",0,IF($E20="kWh",VLOOKUP(N$4,'4. Billing Determinants'!$B$19:$N$41,4,0)/'4. Billing Determinants'!$E$41*$D20,IF($E20="kW",VLOOKUP(N$4,'4. Billing Determinants'!$B$19:$N$41,5,0)/'4. Billing Determinants'!$F$41*$D20,IF($E20="Non-RPP kWh",VLOOKUP(N$4,'4. Billing Determinants'!$B$19:$N$41,6,0)/'4. Billing Determinants'!$G$41*$D20,IF($E20="Distribution Rev.",VLOOKUP(N$4,'4. Billing Determinants'!$B$19:$N$41,8,0)/'4. Billing Determinants'!$I$41*$D20, VLOOKUP(N$4,'4. Billing Determinants'!$B$19:$N$41,3,0)/'4. Billing Determinants'!$D$41*$D20))))) -> 0
B21: Other Regulatory Assets - Sub-Account - Incremental Capital Expenditures - SUB 44KV EXPENSES | C21: 1508 | F21: =IF(F$4="",0,IF($E21="kWh",VLOOKUP(F$4,'4. Billing Determinants'!$B$19:$N$41,4,0)/'4. Billing Determinants'!$E$41*$D21,IF($E21="kW",VLOOKUP(F$4,'4. Billing Determinants'!$B$19:$N$41,5,0)/'4. Billing Determinants'!$F$41*$D21,IF($E21="Non-RPP kWh",VLOOKUP(F$4,'4. Billing Determinants'!$B$19:$N$41,6,0)/'4. Billing Determinants'!$G$41*$D21,IF($E21="Distribution Rev.",VLOOKUP(F$4,'4. Billing Determinants'!$B$19:$N$41,8,0)/'4. Billing Determinants'!$I$41*$D21, VLOOKUP(F$4,'4. Billing Determinants'!$B$19:$N$41,3,0)/'4. Billing Determinants'!$D$41*$D21))))) -> 0 | G21: =IF(G$4="",0,IF($E21="kWh",VLOOKUP(G$4,'4. Billing Determinants'!$B$19:$N$41,4,0)/'4. Billing Determinants'!$E$41*$D21,IF($E21="kW",VLOOKUP(G$4,'4. Billing Determinants'!$B$19:$N$41,5,0)/'4. Billing Determinants'!$F$41*$D21,IF($E21="Non-RPP kWh",VLOOKUP(G$4,'4. Billing Determinants'!$B$19:$N$41,6,0)/'4. Billing Determinants'!$G$41*$D21,IF($E21="Distribution Rev.",VLOOKUP(G$4,'4. Billing Determinants'!$B$19:$N$41,8,0)/'4. Billing Determinants'!$I$41*$D21, VLOOKUP(G$4,'4. Billing Determinants'!$B$19:$N$41,3,0)/'4. Billing Determinants'!$D$41*$D21))))) -> 0 | H21: =IF(H$4="",0,IF($E21="kWh",VLOOKUP(H$4,'4. Billing Determinants'!$B$19:$N$41,4,0)/'4. Billing Determinants'!$E$41*$D21,IF($E21="kW",VLOOKUP(H$4,'4. Billing Determinants'!$B$19:$N$41,5,0)/'4. Billing Determinants'!$F$41*$D21,IF($E21="Non-RPP kWh",VLOOKUP(H$4,'4. Billing Determinants'!$B$19:$N$41,6,0)/'4. Billing Determinants'!$G$41*$D21,IF($E21="Distribution Rev.",VLOOKUP(H$4,'4. Billing Determinants'!$B$19:$N$41,8,0)/'4. Billing Determinants'!$I$41*$D21, VLOOKUP(H$4,'4. Billing Determinants'!$B$19:$N$41,3,0)/'4. Billing Determinants'!$D$41*$D21))))) -> 0 | I21: =IF(I$4="",0,IF($E21="kWh",VLOOKUP(I$4,'4. Billing Determinants'!$B$19:$N$41,4,0)/'4. Billing Determinants'!$E$41*$D21,IF($E21="kW",VLOOKUP(I$4,'4. Billing Determinants'!$B$19:$N$41,5,0)/'4. Billing Determinants'!$F$41*$D21,IF($E21="Non-RPP kWh",VLOOKUP(I$4,'4. Billing Determinants'!$B$19:$N$41,6,0)/'4. Billing Determinants'!$G$41*$D21,IF($E21="Distribution Rev.",VLOOKUP(I$4,'4. Billing Determinants'!$B$19:$N$41,8,0)/'4. Billing Determinants'!$I$41*$D21, VLOOKUP(I$4,'4. Billing Determinants'!$B$19:$N$41,3,0)/'4. Billing Determinants'!$D$41*$D21))))) -> 0 | J21: =IF(J$4="",0,IF($E21="kWh",VLOOKUP(J$4,'4. Billing Determinants'!$B$19:$N$41,4,0)/'4. Billing Determinants'!$E$41*$D21,IF($E21="kW",VLOOKUP(J$4,'4. Billing Determinants'!$B$19:$N$41,5,0)/'4. Billing Determinants'!$F$41*$D21,IF($E21="Non-RPP kWh",VLOOKUP(J$4,'4. Billing Determinants'!$B$19:$N$41,6,0)/'4. Billing Determinants'!$G$41*$D21,IF($E21="Distribution Rev.",VLOOKUP(J$4,'4. Billing Determinants'!$B$19:$N$41,8,0)/'4. Billing Determinants'!$I$41*$D21, VLOOKUP(J$4,'4. Billing Determinants'!$B$19:$N$41,3,0)/'4. Billing Determinants'!$D$41*$D21))))) -> 0 | K21: =IF(K$4="",0,IF($E21="kWh",VLOOKUP(K$4,'4. Billing Determinants'!$B$19:$N$41,4,0)/'4. Billing Determinants'!$E$41*$D21,IF($E21="kW",VLOOKUP(K$4,'4. Billing Determinants'!$B$19:$N$41,5,0)/'4. Billing Determinants'!$F$41*$D21,IF($E21="Non-RPP kWh",VLOOKUP(K$4,'4. Billing Determinants'!$B$19:$N$41,6,0)/'4. Billing Determinants'!$G$41*$D21,IF($E21="Distribution Rev.",VLOOKUP(K$4,'4. Billing Determinants'!$B$19:$N$41,8,0)/'4. Billing Determinants'!$I$41*$D21, VLOOKUP(K$4,'4. Billing Determinants'!$B$19:$N$41,3,0)/'4. Billing Determinants'!$D$41*$D21))))) -> 0 | L21: =IF(L$4="",0,IF($E21="kWh",VLOOKUP(L$4,'4. Billing Determinants'!$B$19:$N$41,4,0)/'4. Billing Determinants'!$E$41*$D21,IF($E21="kW",VLOOKUP(L$4,'4. Billing Determinants'!$B$19:$N$41,5,0)/'4. Billing Determinants'!$F$41*$D21,IF($E21="Non-RPP kWh",VLOOKUP(L$4,'4. Billing Determinants'!$B$19:$N$41,6,0)/'4. Billing Determinants'!$G$41*$D21,IF($E21="Distribution Rev.",VLOOKUP(L$4,'4. Billing Determinants'!$B$19:$N$41,8,0)/'4. Billing Determinants'!$I$41*$D21, VLOOKUP(L$4,'4. Billing Determinants'!$B$19:$N$41,3,0)/'4. Billing Determinants'!$D$41*$D21))))) -> 0 | M21: =IF(M$4="",0,IF($E21="kWh",VLOOKUP(M$4,'4. Billing Determinants'!$B$19:$N$41,4,0)/'4. Billing Determinants'!$E$41*$D21,IF($E21="kW",VLOOKUP(M$4,'4. Billing Determinants'!$B$19:$N$41,5,0)/'4. Billing Determinants'!$F$41*$D21,IF($E21="Non-RPP kWh",VLOOKUP(M$4,'4. Billing Determinants'!$B$19:$N$41,6,0)/'4. Billing Determinants'!$G$41*$D21,IF($E21="Distribution Rev.",VLOOKUP(M$4,'4. Billing Determinants'!$B$19:$N$41,8,0)/'4. Billing Determinants'!$I$41*$D21, VLOOKUP(M$4,'4. Billing Determinants'!$B$19:$N$41,3,0)/'4. Billing Determinants'!$D$41*$D21))))) -> 0 | N21: =IF(N$4="",0,IF($E21="kWh",VLOOKUP(N$4,'4. Billing Determinants'!$B$19:$N$41,4,0)/'4. Billing Determinants'!$E$41*$D21,IF($E21="kW",VLOOKUP(N$4,'4. Billing Determinants'!$B$19:$N$41,5,0)/'4. Billing Determinants'!$F$41*$D21,IF($E21="Non-RPP kWh",VLOOKUP(N$4,'4. Billing Determinants'!$B$19:$N$41,6,0)/'4. Billing Determinants'!$G$41*$D21,IF($E21="Distribution Rev.",VLOOKUP(N$4,'4. Billing Determinants'!$B$19:$N$41,8,0)/'4. Billing Determinants'!$I$41*$D21, VLOOKUP(N$4,'4. Billing Determinants'!$B$19:$N$41,3,0)/'4. Billing Determinants'!$D$41*$D21))))) -> 0
B22: Other Regulatory Assets - Sub-Account - Deferred IFRS Transition Costs | C22: 1508 | F22: =IF(F$4="",0,IF($E22="kWh",VLOOKUP(F$4,'4. Billing Determinants'!$B$19:$N$41,4,0)/'4. Billing Determinants'!$E$41*$D22,IF($E22="kW",VLOOKUP(F$4,'4. Billing Determinants'!$B$19:$N$41,5,0)/'4. Billing Determinants'!$F$41*$D22,IF($E22="Non-RPP kWh",VLOOKUP(F$4,'4. Billing Determinants'!$B$19:$N$41,6,0)/'4. Billing Determinants'!$G$41*$D22,IF($E22="Distribution Rev.",VLOOKUP(F$4,'4. Billing Determinants'!$B$19:$N$41,8,0)/'4. Billing Determinants'!$I$41*$D22, VLOOKUP(F$4,'4. Billing Determinants'!$B$19:$N$41,3,0)/'4. Billing Determinants'!$D$41*$D22))))) -> 0 | G22: =IF(G$4="",0,IF($E22="kWh",VLOOKUP(G$4,'4. Billing Determinants'!$B$19:$N$41,4,0)/'4. Billing Determinants'!$E$41*$D22,IF($E22="kW",VLOOKUP(G$4,'4. Billing Determinants'!$B$19:$N$41,5,0)/'4. Billing Determinants'!$F$41*$D22,IF($E22="Non-RPP kWh",VLOOKUP(G$4,'4. Billing Determinants'!$B$19:$N$41,6,0)/'4. Billing Determinants'!$G$41*$D22,IF($E22="Distribution Rev.",VLOOKUP(G$4,'4. Billing Determinants'!$B$19:$N$41,8,0)/'4. Billing Determinants'!$I$41*$D22, VLOOKUP(G$4,'4. Billing Determinants'!$B$19:$N$41,3,0)/'4. Billing Determinants'!$D$41*$D22))))) -> 0 | H22: =IF(H$4="",0,IF($E22="kWh",VLOOKUP(H$4,'4. Billing Determinants'!$B$19:$N$41,4,0)/'4. Billing Determinants'!$E$41*$D22,IF($E22="kW",VLOOKUP(H$4,'4. Billing Determinants'!$B$19:$N$41,5,0)/'4. Billing Determinants'!$F$41*$D22,IF($E22="Non-RPP kWh",VLOOKUP(H$4,'4. Billing Determinants'!$B$19:$N$41,6,0)/'4. Billing Determinants'!$G$41*$D22,IF($E22="Distribution Rev.",VLOOKUP(H$4,'4. Billing Determinants'!$B$19:$N$41,8,0)/'4. Billing Determinants'!$I$41*$D22, VLOOKUP(H$4,'4. Billing Determinants'!$B$19:$N$41,3,0)/'4. Billing Determinants'!$D$41*$D22))))) -> 0 | I22: =IF(I$4="",0,IF($E22="kWh",VLOOKUP(I$4,'4. Billing Determinants'!$B$19:$N$41,4,0)/'4. Billing Determinants'!$E$41*$D22,IF($E22="kW",VLOOKUP(I$4,'4. Billing Determinants'!$B$19:$N$41,5,0)/'4. Billing Determinants'!$F$41*$D22,IF($E22="Non-RPP kWh",VLOOKUP(I$4,'4. Billing Determinants'!$B$19:$N$41,6,0)/'4. Billing Determinants'!$G$41*$D22,IF($E22="Distribution Rev.",VLOOKUP(I$4,'4. Billing Determinants'!$B$19:$N$41,8,0)/'4. Billing Determinants'!$I$41*$D22, VLOOKUP(I$4,'4. Billing Determinants'!$B$19:$N$41,3,0)/'4. Billing Determinants'!$D$41*$D22))))) -> 0 | J22: =IF(J$4="",0,IF($E22="kWh",VLOOKUP(J$4,'4. Billing Determinants'!$B$19:$N$41,4,0)/'4. Billing Determinants'!$E$41*$D22,IF($E22="kW",VLOOKUP(J$4,'4. Billing Determinants'!$B$19:$N$41,5,0)/'4. Billing Determinants'!$F$41*$D22,IF($E22="Non-RPP kWh",VLOOKUP(J$4,'4. Billing Determinants'!$B$19:$N$41,6,0)/'4. Billing Determinants'!$G$41*$D22,IF($E22="Distribution Rev.",VLOOKUP(J$4,'4. Billing Determinants'!$B$19:$N$41,8,0)/'4. Billing Determinants'!$I$41*$D22, VLOOKUP(J$4,'4. Billing Determinants'!$B$19:$N$41,3,0)/'4. Billing Determinants'!$D$41*$D22))))) -> 0 | K22: =IF(K$4="",0,IF($E22="kWh",VLOOKUP(K$4,'4. Billing Determinants'!$B$19:$N$41,4,0)/'4. Billing Determinants'!$E$41*$D22,IF($E22="kW",VLOOKUP(K$4,'4. Billing Determinants'!$B$19:$N$41,5,0)/'4. Billing Determinants'!$F$41*$D22,IF($E22="Non-RPP kWh",VLOOKUP(K$4,'4. Billing Determinants'!$B$19:$N$41,6,0)/'4. Billing Determinants'!$G$41*$D22,IF($E22="Distribution Rev.",VLOOKUP(K$4,'4. Billing Determinants'!$B$19:$N$41,8,0)/'4. Billing Determinants'!$I$41*$D22, VLOOKUP(K$4,'4. Billing Determinants'!$B$19:$N$41,3,0)/'4. Billing Determinants'!$D$41*$D22))))) -> 0 | L22: =IF(L$4="",0,IF($E22="kWh",VLOOKUP(L$4,'4. Billing Determinants'!$B$19:$N$41,4,0)/'4. Billing Determinants'!$E$41*$D22,IF($E22="kW",VLOOKUP(L$4,'4. Billing Determinants'!$B$19:$N$41,5,0)/'4. Billing Determinants'!$F$41*$D22,IF($E22="Non-RPP kWh",VLOOKUP(L$4,'4. Billing Determinants'!$B$19:$N$41,6,0)/'4. Billing Determinants'!$G$41*$D22,IF($E22="Distribution Rev.",VLOOKUP(L$4,'4. Billing Determinants'!$B$19:$N$41,8,0)/'4. Billing Determinants'!$I$41*$D22, VLOOKUP(L$4,'4. Billing Determinants'!$B$19:$N$41,3,0)/'4. Billing Determinants'!$D$41*$D22))))) -> 0 | M22: =IF(M$4="",0,IF($E22="kWh",VLOOKUP(M$4,'4. Billing Determinants'!$B$19:$N$41,4,0)/'4. Billing Determinants'!$E$41*$D22,IF($E22="kW",VLOOKUP(M$4,'4. Billing Determinants'!$B$19:$N$41,5,0)/'4. Billing Determinants'!$F$41*$D22,IF($E22="Non-RPP kWh",VLOOKUP(M$4,'4. Billing Determinants'!$B$19:$N$41,6,0)/'4. Billing Determinants'!$G$41*$D22,IF($E22="Distribution Rev.",VLOOKUP(M$4,'4. Billing Determinants'!$B$19:$N$41,8,0)/'4. Billing Determinants'!$I$41*$D22, VLOOKUP(M$4,'4. Billing Determinants'!$B$19:$N$41,3,0)/'4. Billing Determinants'!$D$41*$D22))))) -> 0 | N22: =IF(N$4="",0,IF($E22="kWh",VLOOKUP(N$4,'4. Billing Determinants'!$B$19:$N$41,4,0)/'4. Billing Determinants'!$E$41*$D22,IF($E22="kW",VLOOKUP(N$4,'4. Billing Determinants'!$B$19:$N$41,5,0)/'4. Billing Determinants'!$F$41*$D22,IF($E22="Non-RPP kWh",VLOOKUP(N$4,'4. Billing Determinants'!$B$19:$N$41,6,0)/'4. Billing Determinants'!$G$41*$D22,IF($E22="Distribution Rev.",VLOOKUP(N$4,'4. Billing Determinants'!$B$19:$N$41,8,0)/'4. Billing Determinants'!$I$41*$D22, VLOOKUP(N$4,'4. Billing Determinants'!$B$19:$N$41,3,0)/'4. Billing Determinants'!$D$41*$D22))))) -> 0 | O22: =IF(O$4="",0,IF($E22="kWh",VLOOKUP(O$4,'4. Billing Determinants'!$B$19:$N$41,4,0)/'4. Billing Determinants'!$E$41*$D22,IF($E22="kW",VLOOKUP(O$4,'4. Billing Determinants'!$B$19:$N$41,5,0)/'4. Billing Determinants'!$F$41*$D22,IF($E22="Non-RPP kWh",VLOOKUP(O$4,'4. Billing Determinants'!$B$19:$N$41,6,0)/'4. Billing Determinants'!$G$41*$D22,IF($E22="Distribution Rev.",VLOOKUP(O$4,'4. Billing Determinants'!$B$19:$N$41,8,0)/'4. Billing Determinants'!$I$41*$D22, VLOOKUP(O$4,'4. Billing Determinants'!$B$19:$N$41,3,0)/'4. Billing Determinants'!$D$41*$D22))))) -> 0 | P22: =IF(P$4="",0,IF($E22="kWh",VLOOKUP(P$4,'4. Billing Determinants'!$B$19:$N$41,4,0)/'4. Billing Determinants'!$E$41*$D22,IF($E22="kW",VLOOKUP(P$4,'4. Billing Determinants'!$B$19:$N$41,5,0)/'4. Billing Determinants'!$F$41*$D22,IF($E22="Non-RPP kWh",VLOOKUP(P$4,'4. Billing Determinants'!$B$19:$N$41,6,0)/'4. Billing Determinants'!$G$41*$D22,IF($E22="Distribution Rev.",VLOOKUP(P$4,'4. Billing Determinants'!$B$19:$N$41,8,0)/'4. Billing Determinants'!$I$41*$D22, VLOOKUP(P$4,'4. Billing Determinants'!$B$19:$N$41,3,0)/'4. Billing Determinants'!$D$41*$D22))))) -> 0 | Q22: =IF(Q$4="",0,IF($E22="kWh",VLOOKUP(Q$4,'4. Billing Determinants'!$B$19:$N$41,4,0)/'4. Billing Determinants'!$E$41*$D22,IF($E22="kW",VLOOKUP(Q$4,'4. Billing Determinants'!$B$19:$N$41,5,0)/'4. Billing Determinants'!$F$41*$D22,IF($E22="Non-RPP kWh",VLOOKUP(Q$4,'4. Billing Determinants'!$B$19:$N$41,6,0)/'4. Billing Determinants'!$G$41*$D22,IF($E22="Distribution Rev.",VLOOKUP(Q$4,'4. Billing Determinants'!$B$19:$N$41,8,0)/'4. Billing Determinants'!$I$41*$D22, VLOOKUP(Q$4,'4. Billing Determinants'!$B$19:$N$41,3,0)/'4. Billing Determinants'!$D$41*$D22))))) -> 0 | R22: =IF(R$4="",0,IF($E22="kWh",VLOOKUP(R$4,'4. Billing Determinants'!$B$19:$N$41,4,0)/'4. Billing Determinants'!$E$41*$D22,IF($E22="kW",VLOOKUP(R$4,'4. Billing Determinants'!$B$19:$N$41,5,0)/'4. Billing Determinants'!$F$41*$D22,IF($E22="Non-RPP kWh",VLOOKUP(R$4,'4. Billing Determinants'!$B$19:$N$41,6,0)/'4. Billing Determinants'!$G$41*$D22,IF($E22="Distribution Rev.",VLOOKUP(R$4,'4. Billing Determinants'!$B$19:$N$41,8,0)/'4. Billing Determinants'!$I$41*$D22, VLOOKUP(R$4,'4. Billing Determinants'!$B$19:$N$41,3,0)/'4. Billing Determinants'!$D$41*$D22))))) -> 0 | S22: =IF(S$4="",0,IF($E22="kWh",VLOOKUP(S$4,'4. Billing Determinants'!$B$19:$N$41,4,0)/'4. Billing Determinants'!$E$41*$D22,IF($E22="kW",VLOOKUP(S$4,'4. Billing Determinants'!$B$19:$N$41,5,0)/'4. Billing Determinants'!$F$41*$D22,IF($E22="Non-RPP kWh",VLOOKUP(S$4,'4. Billing Determinants'!$B$19:$N$41,6,0)/'4. Billing Determinants'!$G$41*$D22,IF($E22="Distribution Rev.",VLOOKUP(S$4,'4. Billing Determinants'!$B$19:$N$41,8,0)/'4. Billing Determinants'!$I$41*$D22, VLOOKUP(S$4,'4. Billing Determinants'!$B$19:$N$41,3,0)/'4. Billing Determinants'!$D$41*$D22))))) -> 0 | T22: =IF(T$4="",0,IF($E22="kWh",VLOOKUP(T$4,'4. Billing Determinants'!$B$19:$N$41,4,0)/'4. Billing Determinants'!$E$41*$D22,IF($E22="kW",VLOOKUP(T$4,'4. Billing Determinants'!$B$19:$N$41,5,0)/'4. Billing Determinants'!$F$41*$D22,IF($E22="Non-RPP kWh",VLOOKUP(T$4,'4. Billing Determinants'!$B$19:$N$41,6,0)/'4. Billing Determinants'!$G$41*$D22,IF($E22="Distribution Rev.",VLOOKUP(T$4,'4. Billing Determinants'!$B$19:$N$41,8,0)/'4. Billing Determinants'!$I$41*$D22, VLOOKUP(T$4,'4. Billing Determinants'!$B$19:$N$41,3,0)/'4. Billing Determinants'!$D$41*$D22))))) -> 0 | U22: =IF(U$4="",0,IF($E22="kWh",VLOOKUP(U$4,'4. Billing Determinants'!$B$19:$N$41,4,0)/'4. Billing Determinants'!$E$41*$D22,IF($E22="kW",VLOOKUP(U$4,'4. Billing Determinants'!$B$19:$N$41,5,0)/'4. Billing Determinants'!$F$41*$D22,IF($E22="Non-RPP kWh",VLOOKUP(U$4,'4. Billing Determinants'!$B$19:$N$41,6,0)/'4. Billing Determinants'!$G$41*$D22,IF($E22="Distribution Rev.",VLOOKUP(U$4,'4. Billing Determinants'!$B$19:$N$41,8,0)/'4. Billing Determinants'!$I$41*$D22, VLOOKUP(U$4,'4. Billing Determinants'!$B$19:$N$41,3,0)/'4. Billing Determinants'!$D$41*$D22))))) -> 0 | V22: =IF(V$4="",0,IF($E22="kWh",VLOOKUP(V$4,'4. Billing Determinants'!$B$19:$N$41,4,0)/'4. Billing Determinants'!$E$41*$D22,IF($E22="kW",VLOOKUP(V$4,'4. Billing Determinants'!$B$19:$N$41,5,0)/'4. Billing Determinants'!$F$41*$D22,IF($E22="Non-RPP kWh",VLOOKUP(V$4,'4. Billing Determinants'!$B$19:$N$41,6,0)/'4. Billing Determinants'!$G$41*$D22,IF($E22="Distribution Rev.",VLOOKUP(V$4,'4. Billing Determinants'!$B$19:$N$41,8,0)/'4. Billing Determinants'!$I$41*$D22, VLOOKUP(V$4,'4. Billing Determinants'!$B$19:$N$41,3,0)/'4. Billing Determinants'!$D$41*$D22))))) -> 0 | W22: =IF(W$4="",0,IF($E22="kWh",VLOOKUP(W$4,'4. Billing Determinants'!$B$19:$N$41,4,0)/'4. Billing Determinants'!$E$41*$D22,IF($E22="kW",VLOOKUP(W$4,'4. Billing Determinants'!$B$19:$N$41,5,0)/'4. Billing Determinants'!$F$41*$D22,IF($E22="Non-RPP kWh",VLOOKUP(W$4,'4. Billing Determinants'!$B$19:$N$41,6,0)/'4. Billing Determinants'!$G$41*$D22,IF($E22="Distribution Rev.",VLOOKUP(W$4,'4. Billing Determinants'!$B$19:$N$41,8,0)/'4. Billing Determinants'!$I$41*$D22, VLOOKUP(W$4,'4. Billing Determinants'!$B$19:$N$41,3,0)/'4. Billing Determinants'!$D$41*$D22))))) -> 0 | X22: =IF(X$4="",0,IF($E22="kWh",VLOOKUP(X$4,'4. Billing Determinants'!$B$19:$N$41,4,0)/'4. Billing Determinants'!$E$41*$D22,IF($E22="kW",VLOOKUP(X$4,'4. Billing Determinants'!$B$19:$N$41,5,0)/'4. Billing Determinants'!$F$41*$D22,IF($E22="Non-RPP kWh",VLOOKUP(X$4,'4. Billing Determinants'!$B$19:$N$41,6,0)/'4. Billing Determinants'!$G$41*$D22,IF($E22="Distribution Rev.",VLOOKUP(X$4,'4. Billing Determinants'!$B$19:$N$41,8,0)/'4. Billing Determinants'!$I$41*$D22, VLOOKUP(X$4,'4. Billing Determinants'!$B$19:$N$41,3,0)/'4. Billing Determinants'!$D$41*$D22))))) -> 0 | Y22: =IF(Y$4="",0,IF($E22="kWh",VLOOKUP(Y$4,'4. Billing Determinants'!$B$19:$N$41,4,0)/'4. Billing Determinants'!$E$41*$D22,IF($E22="kW",VLOOKUP(Y$4,'4. Billing Determinants'!$B$19:$N$41,5,0)/'4. Billing Determinants'!$F$41*$D22,IF($E22="Non-RPP kWh",VLOOKUP(Y$4,'4. Billing Determinants'!$B$19:$N$41,6,0)/'4. Billing Determinants'!$G$41*$D22,IF($E22="Distribution Rev.",VLOOKUP(Y$4,'4. Billing Determinants'!$B$19:$N$41,8,0)/'4. Billing Determinants'!$I$41*$D22, VLOOKUP(Y$4,'4. Billing Determinants'!$B$19:$N$41,3,0)/'4. Billing Determinants'!$D$41*$D22))))) -> 0
B23: Other Regulatory Assets - Sub-Account - Incremental Capital Charges | C23: 1508 | D23: ='2. 2013 Continuity Schedule'!CP46 -> 3359.01 | E23: Distribution Rev. | F23: =IF(F$4="",0,IF($E23="kWh",VLOOKUP(F$4,'4. Billing Determinants'!$B$19:$N$41,4,0)/'4. Billing Determinants'!$E$41*$D23,IF($E23="kW",VLOOKUP(F$4,'4. Billing Determinants'!$B$19:$N$41,5,0)/'4. Billing Determinants'!$F$41*$D23,IF($E23="Non-RPP kWh",VLOOKUP(F$4,'4. Billing Determinants'!$B$19:$N$41,6,0)/'4. Billing Determinants'!$G$41*$D23,IF($E23="Distribution Rev.",VLOOKUP(F$4,'4. Billing Determinants'!$B$19:$N$41,8,0)/'4. Billing Determinants'!$I$41*$D23, VLOOKUP(F$4,'4. Billing Determinants'!$B$19:$N$41,3,0)/'4. Billing Determinants'!$D$41*$D23))))) -> 2114.667372 | G23: =IF(G$4="",0,IF($E23="kWh",VLOOKUP(G$4,'4. Billing Determinants'!$B$19:$N$41,4,0)/'4. Billing Determinants'!$E$41*$D23,IF($E23="kW",VLOOKUP(G$4,'4. Billing Determinants'!$B$19:$N$41,5,0)/'4. Billing Determinants'!$F$41*$D23,IF($E23="Non-RPP kWh",VLOOKUP(G$4,'4. Billing Determinants'!$B$19:$N$41,6,0)/'4. Billing Determinants'!$G$41*$D23,IF($E23="Distribution Rev.",VLOOKUP(G$4,'4. Billing Determinants'!$B$19:$N$41,8,0)/'4. Billing Determinants'!$I$41*$D23, VLOOKUP(G$4,'4. Billing Determinants'!$B$19:$N$41,3,0)/'4. Billing Determinants'!$D$41*$D23))))) -> 522.5658927 | H23: =IF(H$4="",0,IF($E23="kWh",VLOOKUP(H$4,'4. Billing Determinants'!$B$19:$N$41,4,0)/'4. Billing Determinants'!$E$41*$D23,IF($E23="kW",VLOOKUP(H$4,'4. Billing Determinants'!$B$19:$N$41,5,0)/'4. Billing Determinants'!$F$41*$D23,IF($E23="Non-RPP kWh",VLOOKUP(H$4,'4. Billing Determinants'!$B$19:$N$41,6,0)/'4. Billing Determinants'!$G$41*$D23,IF($E23="Distribution Rev.",VLOOKUP(H$4,'4. Billing Determinants'!$B$19:$N$41,8,0)/'4. Billing Determinants'!$I$41*$D23, VLOOKUP(H$4,'4. Billing Determinants'!$B$19:$N$41,3,0)/'4. Billing Determinants'!$D$41*$D23))))) -> 645.698392 | I23: =IF(I$4="",0,IF($E23="kWh",VLOOKUP(I$4,'4. Billing Determinants'!$B$19:$N$41,4,0)/'4. Billing Determinants'!$E$41*$D23,IF($E23="kW",VLOOKUP(I$4,'4. Billing Determinants'!$B$19:$N$41,5,0)/'4. Billing Determinants'!$F$41*$D23,IF($E23="Non-RPP kWh",VLOOKUP(I$4,'4. Billing Determinants'!$B$19:$N$41,6,0)/'4. Billing Determinants'!$G$41*$D23,IF($E23="Distribution Rev.",VLOOKUP(I$4,'4. Billing Determinants'!$B$19:$N$41,8,0)/'4. Billing Determinants'!$I$41*$D23, VLOOKUP(I$4,'4. Billing Determinants'!$B$19:$N$41,3,0)/'4. Billing Determinants'!$D$41*$D23))))) -> 1.732950622 | J23: =IF(J$4="",0,IF($E23="kWh",VLOOKUP(J$4,'4. Billing Determinants'!$B$19:$N$41,4,0)/'4. Billing Determinants'!$E$41*$D23,IF($E23="kW",VLOOKUP(J$4,'4. Billing Determinants'!$B$19:$N$41,5,0)/'4. Billing Determinants'!$F$41*$D23,IF($E23="Non-RPP kWh",VLOOKUP(J$4,'4. Billing Determinants'!$B$19:$N$41,6,0)/'4. Billing Determinants'!$G$41*$D23,IF($E23="Distribution Rev.",VLOOKUP(J$4,'4. Billing Determinants'!$B$19:$N$41,8,0)/'4. Billing Determinants'!$I$41*$D23, VLOOKUP(J$4,'4. Billing Determinants'!$B$19:$N$41,3,0)/'4. Billing Determinants'!$D$41*$D23))))) -> 5.006933376 | K23: =IF(K$4="",0,IF($E23="kWh",VLOOKUP(K$4,'4. Billing Determinants'!$B$19:$N$41,4,0)/'4. Billing Determinants'!$E$41*$D23,IF($E23="kW",VLOOKUP(K$4,'4. Billing Determinants'!$B$19:$N$41,5,0)/'4. Billing Determinants'!$F$41*$D23,IF($E23="Non-RPP kWh",VLOOKUP(K$4,'4. Billing Determinants'!$B$19:$N$41,6,0)/'4. Billing Determinants'!$G$41*$D23,IF($E23="Distribution Rev.",VLOOKUP(K$4,'4. Billing Determinants'!$B$19:$N$41,8,0)/'4. Billing Determinants'!$I$41*$D23, VLOOKUP(K$4,'4. Billing Determinants'!$B$19:$N$41,3,0)/'4. Billing Determinants'!$D$41*$D23))))) -> 69.33845952 | L23: =IF(L$4="",0,IF($E23="kWh",VLOOKUP(L$4,'4. Billing Determinants'!$B$19:$N$41,4,0)/'4. Billing Determinants'!$E$41*$D23,IF($E23="kW",VLOOKUP(L$4,'4. Billing Determinants'!$B$19:$N$41,5,0)/'4. Billing Determinants'!$F$41*$D23,IF($E23="Non-RPP kWh",VLOOKUP(L$4,'4. Billing Determinants'!$B$19:$N$41,6,0)/'4. Billing Determinants'!$G$41*$D23,IF($E23="Distribution Rev.",VLOOKUP(L$4,'4. Billing Determinants'!$B$19:$N$41,8,0)/'4. Billing Determinants'!$I$41*$D23, VLOOKUP(L$4,'4. Billing Determinants'!$B$19:$N$41,3,0)/'4. Billing Determinants'!$D$41*$D23))))) -> 0 | M23: =IF(M$4="",0,IF($E23="kWh",VLOOKUP(M$4,'4. Billing Determinants'!$B$19:$N$41,4,0)/'4. Billing Determinants'!$E$41*$D23,IF($E23="kW",VLOOKUP(M$4,'4. Billing Determinants'!$B$19:$N$41,5,0)/'4. Billing Determinants'!$F$41*$D23,IF($E23="Non-RPP kWh",VLOOKUP(M$4,'4. Billing Determinants'!$B$19:$N$41,6,0)/'4. Billing Determinants'!$G$41*$D23,IF($E23="Distribution Rev.",VLOOKUP(M$4,'4. Billing Determinants'!$B$19:$N$41,8,0)/'4. Billing Determinants'!$I$41*$D23, VLOOKUP(M$4,'4. Billing Determinants'!$B$19:$N$41,3,0)/'4. Billing Determinants'!$D$41*$D23))))) -> 0 | N23: =IF(N$4="",0,IF($E23="kWh",VLOOKUP(N$4,'4. Billing Determinants'!$B$19:$N$41,4,0)/'4. Billing Determinants'!$E$41*$D23,IF($E23="kW",VLOOKUP(N$4,'4. Billing Determinants'!$B$19:$N$41,5,0)/'4. Billing Determinants'!$F$41*$D23,IF($E23="Non-RPP kWh",VLOOKUP(N$4,'4. Billing Determinants'!$B$19:$N$41,6,0)/'4. Billing Determinants'!$G$41*$D23,IF($E23="Distribution Rev.",VLOOKUP(N$4,'4. Billing Determinants'!$B$19:$N$41,8,0)/'4. Billing Determinants'!$I$41*$D23, VLOOKUP(N$4,'4. Billing Determinants'!$B$19:$N$41,3,0)/'4. Billing Determinants'!$D$41*$D23))))) -> 0 | O23: =IF(O$4="",0,IF($E23="kWh",VLOOKUP(O$4,'4. Billing Determinants'!$B$19:$N$41,4,0)/'4. Billing Determinants'!$E$41*$D23,IF($E23="kW",VLOOKUP(O$4,'4. Billing Determinants'!$B$19:$N$41,5,0)/'4. Billing Determinants'!$F$41*$D23,IF($E23="Non-RPP kWh",VLOOKUP(O$4,'4. Billing Determinants'!$B$19:$N$41,6,0)/'4. Billing Determinants'!$G$41*$D23,IF($E23="Distribution Rev.",VLOOKUP(O$4,'4. Billing Determinants'!$B$19:$N$41,8,0)/'4. Billing Determinants'!$I$41*$D23, VLOOKUP(O$4,'4. Billing Determinants'!$B$19:$N$41,3,0)/'4. Billing Determinants'!$D$41*$D23))))) -> 0 | P23: =IF(P$4="",0,IF($E23="kWh",VLOOKUP(P$4,'4. Billing Determinants'!$B$19:$N$41,4,0)/'4. Billing Determinants'!$E$41*$D23,IF($E23="kW",VLOOKUP(P$4,'4. Billing Determinants'!$B$19:$N$41,5,0)/'4. Billing Determinants'!$F$41*$D23,IF($E23="Non-RPP kWh",VLOOKUP(P$4,'4. Billing Determinants'!$B$19:$N$41,6,0)/'4. Billing Determinants'!$G$41*$D23,IF($E23="Distribution Rev.",VLOOKUP(P$4,'4. Billing Determinants'!$B$19:$N$41,8,0)/'4. Billing Determinants'!$I$41*$D23, VLOOKUP(P$4,'4. Billing Determinants'!$B$19:$N$41,3,0)/'4. Billing Determinants'!$D$41*$D23))))) -> 0 | Q23: =IF(Q$4="",0,IF($E23="kWh",VLOOKUP(Q$4,'4. Billing Determinants'!$B$19:$N$41,4,0)/'4. Billing Determinants'!$E$41*$D23,IF($E23="kW",VLOOKUP(Q$4,'4. Billing Determinants'!$B$19:$N$41,5,0)/'4. Billing Determinants'!$F$41*$D23,IF($E23="Non-RPP kWh",VLOOKUP(Q$4,'4. Billing Determinants'!$B$19:$N$41,6,0)/'4. Billing Determinants'!$G$41*$D23,IF($E23="Distribution Rev.",VLOOKUP(Q$4,'4. Billing Determinants'!$B$19:$N$41,8,0)/'4. Billing Determinants'!$I$41*$D23, VLOOKUP(Q$4,'4. Billing Determinants'!$B$19:$N$41,3,0)/'4. Billing Determinants'!$D$41*$D23))))) -> 0 | R23: =IF(R$4="",0,IF($E23="kWh",VLOOKUP(R$4,'4. Billing Determinants'!$B$19:$N$41,4,0)/'4. Billing Determinants'!$E$41*$D23,IF($E23="kW",VLOOKUP(R$4,'4. Billing Determinants'!$B$19:$N$41,5,0)/'4. Billing Determinants'!$F$41*$D23,IF($E23="Non-RPP kWh",VLOOKUP(R$4,'4. Billing Determinants'!$B$19:$N$41,6,0)/'4. Billing Determinants'!$G$41*$D23,IF($E23="Distribution Rev.",VLOOKUP(R$4,'4. Billing Determinants'!$B$19:$N$41,8,0)/'4. Billing Determinants'!$I$41*$D23, VLOOKUP(R$4,'4. Billing Determinants'!$B$19:$N$41,3,0)/'4. Billing Determinants'!$D$41*$D23))))) -> 0 | S23: =IF(S$4="",0,IF($E23="kWh",VLOOKUP(S$4,'4. Billing Determinants'!$B$19:$N$41,4,0)/'4. Billing Determinants'!$E$41*$D23,IF($E23="kW",VLOOKUP(S$4,'4. Billing Determinants'!$B$19:$N$41,5,0)/'4. Billing Determinants'!$F$41*$D23,IF($E23="Non-RPP kWh",VLOOKUP(S$4,'4. Billing Determinants'!$B$19:$N$41,6,0)/'4. Billing Determinants'!$G$41*$D23,IF($E23="Distribution Rev.",VLOOKUP(S$4,'4. Billing Determinants'!$B$19:$N$41,8,0)/'4. Billing Determinants'!$I$41*$D23, VLOOKUP(S$4,'4. Billing Determinants'!$B$19:$N$41,3,0)/'4. Billing Determinants'!$D$41*$D23))))) -> 0 | T23: =IF(T$4="",0,IF($E23="kWh",VLOOKUP(T$4,'4. Billing Determinants'!$B$19:$N$41,4,0)/'4. Billing Determinants'!$E$41*$D23,IF($E23="kW",VLOOKUP(T$4,'4. Billing Determinants'!$B$19:$N$41,5,0)/'4. Billing Determinants'!$F$41*$D23,IF($E23="Non-RPP kWh",VLOOKUP(T$4,'4. Billing Determinants'!$B$19:$N$41,6,0)/'4. Billing Determinants'!$G$41*$D23,IF($E23="Distribution Rev.",VLOOKUP(T$4,'4. Billing Determinants'!$B$19:$N$41,8,0)/'4. Billing Determinants'!$I$41*$D23, VLOOKUP(T$4,'4. Billing Determinants'!$B$19:$N$41,3,0)/'4. Billing Determinants'!$D$41*$D23))))) -> 0 | U23: =IF(U$4="",0,IF($E23="kWh",VLOOKUP(U$4,'4. Billing Determinants'!$B$19:$N$41,4,0)/'4. Billing Determinants'!$E$41*$D23,IF($E23="kW",VLOOKUP(U$4,'4. Billing Determinants'!$B$19:$N$41,5,0)/'4. Billing Determinants'!$F$41*$D23,IF($E23="Non-RPP kWh",VLOOKUP(U$4,'4. Billing Determinants'!$B$19:$N$41,6,0)/'4. Billing Determinants'!$G$41*$D23,IF($E23="Distribution Rev.",VLOOKUP(U$4,'4. Billing Determinants'!$B$19:$N$41,8,0)/'4. Billing Determinants'!$I$41*$D23, VLOOKUP(U$4,'4. Billing Determinants'!$B$19:$N$41,3,0)/'4. Billing Determinants'!$D$41*$D23))))) -> 0 | V23: =IF(V$4="",0,IF($E23="kWh",VLOOKUP(V$4,'4. Billing Determinants'!$B$19:$N$41,4,0)/'4. Billing Determinants'!$E$41*$D23,IF($E23="kW",VLOOKUP(V$4,'4. Billing Determinants'!$B$19:$N$41,5,0)/'4. Billing Determinants'!$F$41*$D23,IF($E23="Non-RPP kWh",VLOOKUP(V$4,'4. Billing Determinants'!$B$19:$N$41,6,0)/'4. Billing Determinants'!$G$41*$D23,IF($E23="Distribution Rev.",VLOOKUP(V$4,'4. Billing Determinants'!$B$19:$N$41,8,0)/'4. Billing Determinants'!$I$41*$D23, VLOOKUP(V$4,'4. Billing Determinants'!$B$19:$N$41,3,0)/'4. Billing Determinants'!$D$41*$D23))))) -> 0 | W23: =IF(W$4="",0,IF($E23="kWh",VLOOKUP(W$4,'4. Billing Determinants'!$B$19:$N$41,4,0)/'4. Billing Determinants'!$E$41*$D23,IF($E23="kW",VLOOKUP(W$4,'4. Billing Determinants'!$B$19:$N$41,5,0)/'4. Billing Determinants'!$F$41*$D23,IF($E23="Non-RPP kWh",VLOOKUP(W$4,'4. Billing Determinants'!$B$19:$N$41,6,0)/'4. Billing Determinants'!$G$41*$D23,IF($E23="Distribution Rev.",VLOOKUP(W$4,'4. Billing Determinants'!$B$19:$N$41,8,0)/'4. Billing Determinants'!$I$41*$D23, VLOOKUP(W$4,'4. Billing Determinants'!$B$19:$N$41,3,0)/'4. Billing Determinants'!$D$41*$D23))))) -> 0 | X23: =IF(X$4="",0,IF($E23="kWh",VLOOKUP(X$4,'4. Billing Determinants'!$B$19:$N$41,4,0)/'4. Billing Determinants'!$E$41*$D23,IF($E23="kW",VLOOKUP(X$4,'4. Billing Determinants'!$B$19:$N$41,5,0)/'4. Billing Determinants'!$F$41*$D23,IF($E23="Non-RPP kWh",VLOOKUP(X$4,'4. Billing Determinants'!$B$19:$N$41,6,0)/'4. Billing Determinants'!$G$41*$D23,IF($E23="Distribution Rev.",VLOOKUP(X$4,'4. Billing Determinants'!$B$19:$N$41,8,0)/'4. Billing Determinants'!$I$41*$D23, VLOOKUP(X$4,'4. Billing Determinants'!$B$19:$N$41,3,0)/'4. Billing Determinants'!$D$41*$D23))))) -> 0 | Y23: =IF(Y$4="",0,IF($E23="kWh",VLOOKUP(Y$4,'4. Billing Determinants'!$B$19:$N$41,4,0)/'4. Billing Determinants'!$E$41*$D23,IF($E23="kW",VLOOKUP(Y$4,'4. Billing Determinants'!$B$19:$N$41,5,0)/'4. Billing Determinants'!$F$41*$D23,IF($E23="Non-RPP kWh",VLOOKUP(Y$4,'4. Billing Determinants'!$B$19:$N$41,6,0)/'4. Billing Determinants'!$G$41*$D23,IF($E23="Distribution Rev.",VLOOKUP(Y$4,'4. Billing Determinants'!$B$19:$N$41,8,0)/'4. Billing Determinants'!$I$41*$D23, VLOOKUP(Y$4,'4. Billing Determinants'!$B$19:$N$41,3,0)/'4. Billing Determinants'!$D$41*$D23))))) -> 0
B24: Other Regulatory Assets - Sub-Account - Financial Assistance Payment and Recovery Variance - Ontario Clean Energy Benefit Act | C24: 1508 | D24: ='2. 2013 Continuity Schedule'!CP47 -> 0 | F24: =IF(F$4="",0,IF($E24="kWh",VLOOKUP(F$4,'4. Billing Determinants'!$B$19:$N$41,4,0)/'4. Billing Determinants'!$E$41*$D24,IF($E24="kW",VLOOKUP(F$4,'4. Billing Determinants'!$B$19:$N$41,5,0)/'4. Billing Determinants'!$F$41*$D24,IF($E24="Non-RPP kWh",VLOOKUP(F$4,'4. Billing Determinants'!$B$19:$N$41,6,0)/'4. Billing Determinants'!$G$41*$D24,IF($E24="Distribution Rev.",VLOOKUP(F$4,'4. Billing Determinants'!$B$19:$N$41,8,0)/'4. Billing Determinants'!$I$41*$D24, VLOOKUP(F$4,'4. Billing Determinants'!$B$19:$N$41,3,0)/'4. Billing Determinants'!$D$41*$D24))))) -> 0 | G24: =IF(G$4="",0,IF($E24="kWh",VLOOKUP(G$4,'4. Billing Determinants'!$B$19:$N$41,4,0)/'4. Billing Determinants'!$E$41*$D24,IF($E24="kW",VLOOKUP(G$4,'4. Billing Determinants'!$B$19:$N$41,5,0)/'4. Billing Determinants'!$F$41*$D24,IF($E24="Non-RPP kWh",VLOOKUP(G$4,'4. Billing Determinants'!$B$19:$N$41,6,0)/'4. Billing Determinants'!$G$41*$D24,IF($E24="Distribution Rev.",VLOOKUP(G$4,'4. Billing Determinants'!$B$19:$N$41,8,0)/'4. Billing Determinants'!$I$41*$D24, VLOOKUP(G$4,'4. Billing Determinants'!$B$19:$N$41,3,0)/'4. Billing Determinants'!$D$41*$D24))))) -> 0 | H24: =IF(H$4="",0,IF($E24="kWh",VLOOKUP(H$4,'4. Billing Determinants'!$B$19:$N$41,4,0)/'4. Billing Determinants'!$E$41*$D24,IF($E24="kW",VLOOKUP(H$4,'4. Billing Determinants'!$B$19:$N$41,5,0)/'4. Billing Determinants'!$F$41*$D24,IF($E24="Non-RPP kWh",VLOOKUP(H$4,'4. Billing Determinants'!$B$19:$N$41,6,0)/'4. Billing Determinants'!$G$41*$D24,IF($E24="Distribution Rev.",VLOOKUP(H$4,'4. Billing Determinants'!$B$19:$N$41,8,0)/'4. Billing Determinants'!$I$41*$D24, VLOOKUP(H$4,'4. Billing Determinants'!$B$19:$N$41,3,0)/'4. Billing Determinants'!$D$41*$D24))))) -> 0 | I24: =IF(I$4="",0,IF($E24="kWh",VLOOKUP(I$4,'4. Billing Determinants'!$B$19:$N$41,4,0)/'4. Billing Determinants'!$E$41*$D24,IF($E24="kW",VLOOKUP(I$4,'4. Billing Determinants'!$B$19:$N$41,5,0)/'4. Billing Determinants'!$F$41*$D24,IF($E24="Non-RPP kWh",VLOOKUP(I$4,'4. Billing Determinants'!$B$19:$N$41,6,0)/'4. Billing Determinants'!$G$41*$D24,IF($E24="Distribution Rev.",VLOOKUP(I$4,'4. Billing Determinants'!$B$19:$N$41,8,0)/'4. Billing Determinants'!$I$41*$D24, VLOOKUP(I$4,'4. Billing Determinants'!$B$19:$N$41,3,0)/'4. Billing Determinants'!$D$41*$D24))))) -> 0 | J24: =IF(J$4="",0,IF($E24="kWh",VLOOKUP(J$4,'4. Billing Determinants'!$B$19:$N$41,4,0)/'4. Billing Determinants'!$E$41*$D24,IF($E24="kW",VLOOKUP(J$4,'4. Billing Determinants'!$B$19:$N$41,5,0)/'4. Billing Determinants'!$F$41*$D24,IF($E24="Non-RPP kWh",VLOOKUP(J$4,'4. Billing Determinants'!$B$19:$N$41,6,0)/'4. Billing Determinants'!$G$41*$D24,IF($E24="Distribution Rev.",VLOOKUP(J$4,'4. Billing Determinants'!$B$19:$N$41,8,0)/'4. Billing Determinants'!$I$41*$D24, VLOOKUP(J$4,'4. Billing Determinants'!$B$19:$N$41,3,0)/'4. Billing Determinants'!$D$41*$D24))))) -> 0 | K24: =IF(K$4="",0,IF($E24="kWh",VLOOKUP(K$4,'4. Billing Determinants'!$B$19:$N$41,4,0)/'4. Billing Determinants'!$E$41*$D24,IF($E24="kW",VLOOKUP(K$4,'4. Billing Determinants'!$B$19:$N$41,5,0)/'4. Billing Determinants'!$F$41*$D24,IF($E24="Non-RPP kWh",VLOOKUP(K$4,'4. Billing Determinants'!$B$19:$N$41,6,0)/'4. Billing Determinants'!$G$41*$D24,IF($E24="Distribution Rev.",VLOOKUP(K$4,'4. Billing Determinants'!$B$19:$N$41,8,0)/'4. Billing Determinants'!$I$41*$D24, VLOOKUP(K$4,'4. Billing Determinants'!$B$19:$N$41,3,0)/'4. Billing Determinants'!$D$41*$D24))))) -> 0 | L24: =IF(L$4="",0,IF($E24="kWh",VLOOKUP(L$4,'4. Billing Determinants'!$B$19:$N$41,4,0)/'4. Billing Determinants'!$E$41*$D24,IF($E24="kW",VLOOKUP(L$4,'4. Billing Determinants'!$B$19:$N$41,5,0)/'4. Billing Determinants'!$F$41*$D24,IF($E24="Non-RPP kWh",VLOOKUP(L$4,'4. Billing Determinants'!$B$19:$N$41,6,0)/'4. Billing Determinants'!$G$41*$D24,IF($E24="Distribution Rev.",VLOOKUP(L$4,'4. Billing Determinants'!$B$19:$N$41,8,0)/'4. Billing Determinants'!$I$41*$D24, VLOOKUP(L$4,'4. Billing Determinants'!$B$19:$N$41,3,0)/'4. Billing Determinants'!$D$41*$D24))))) -> 0 | M24: =IF(M$4="",0,IF($E24="kWh",VLOOKUP(M$4,'4. Billing Determinants'!$B$19:$N$41,4,0)/'4. Billing Determinants'!$E$41*$D24,IF($E24="kW",VLOOKUP(M$4,'4. Billing Determinants'!$B$19:$N$41,5,0)/'4. Billing Determinants'!$F$41*$D24,IF($E24="Non-RPP kWh",VLOOKUP(M$4,'4. Billing Determinants'!$B$19:$N$41,6,0)/'4. Billing Determinants'!$G$41*$D24,IF($E24="Distribution Rev.",VLOOKUP(M$4,'4. Billing Determinants'!$B$19:$N$41,8,0)/'4. Billing Determinants'!$I$41*$D24, VLOOKUP(M$4,'4. Billing Determinants'!$B$19:$N$41,3,0)/'4. Billing Determinants'!$D$41*$D24))))) -> 0 | N24: =IF(N$4="",0,IF($E24="kWh",VLOOKUP(N$4,'4. Billing Determinants'!$B$19:$N$41,4,0)/'4. Billing Determinants'!$E$41*$D24,IF($E24="kW",VLOOKUP(N$4,'4. Billing Determinants'!$B$19:$N$41,5,0)/'4. Billing Determinants'!$F$41*$D24,IF($E24="Non-RPP kWh",VLOOKUP(N$4,'4. Billing Determinants'!$B$19:$N$41,6,0)/'4. Billing Determinants'!$G$41*$D24,IF($E24="Distribution Rev.",VLOOKUP(N$4,'4. Billing Determinants'!$B$19:$N$41,8,0)/'4. Billing Determinants'!$I$41*$D24, VLOOKUP(N$4,'4. Billing Determinants'!$B$19:$N$41,3,0)/'4. Billing Determinants'!$D$41*$D24))))) -> 0 | O24: =IF(O$4="",0,IF($E24="kWh",VLOOKUP(O$4,'4. Billing Determinants'!$B$19:$N$41,4,0)/'4. Billing Determinants'!$E$41*$D24,IF($E24="kW",VLOOKUP(O$4,'4. Billing Determinants'!$B$19:$N$41,5,0)/'4. Billing Determinants'!$F$41*$D24,IF($E24="Non-RPP kWh",VLOOKUP(O$4,'4. Billing Determinants'!$B$19:$N$41,6,0)/'4. Billing Determinants'!$G$41*$D24,IF($E24="Distribution Rev.",VLOOKUP(O$4,'4. Billing Determinants'!$B$19:$N$41,8,0)/'4. Billing Determinants'!$I$41*$D24, VLOOKUP(O$4,'4. Billing Determinants'!$B$19:$N$41,3,0)/'4. Billing Determinants'!$D$41*$D24))))) -> 0 | P24: =IF(P$4="",0,IF($E24="kWh",VLOOKUP(P$4,'4. Billing Determinants'!$B$19:$N$41,4,0)/'4. Billing Determinants'!$E$41*$D24,IF($E24="kW",VLOOKUP(P$4,'4. Billing Determinants'!$B$19:$N$41,5,0)/'4. Billing Determinants'!$F$41*$D24,IF($E24="Non-RPP kWh",VLOOKUP(P$4,'4. Billing Determinants'!$B$19:$N$41,6,0)/'4. Billing Determinants'!$G$41*$D24,IF($E24="Distribution Rev.",VLOOKUP(P$4,'4. Billing Determinants'!$B$19:$N$41,8,0)/'4. Billing Determinants'!$I$41*$D24, VLOOKUP(P$4,'4. Billing Determinants'!$B$19:$N$41,3,0)/'4. Billing Determinants'!$D$41*$D24))))) -> 0 | Q24: =IF(Q$4="",0,IF($E24="kWh",VLOOKUP(Q$4,'4. Billing Determinants'!$B$19:$N$41,4,0)/'4. Billing Determinants'!$E$41*$D24,IF($E24="kW",VLOOKUP(Q$4,'4. Billing Determinants'!$B$19:$N$41,5,0)/'4. Billing Determinants'!$F$41*$D24,IF($E24="Non-RPP kWh",VLOOKUP(Q$4,'4. Billing Determinants'!$B$19:$N$41,6,0)/'4. Billing Determinants'!$G$41*$D24,IF($E24="Distribution Rev.",VLOOKUP(Q$4,'4. Billing Determinants'!$B$19:$N$41,8,0)/'4. Billing Determinants'!$I$41*$D24, VLOOKUP(Q$4,'4. Billing Determinants'!$B$19:$N$41,3,0)/'4. Billing Determinants'!$D$41*$D24))))) -> 0 | R24: =IF(R$4="",0,IF($E24="kWh",VLOOKUP(R$4,'4. Billing Determinants'!$B$19:$N$41,4,0)/'4. Billing Determinants'!$E$41*$D24,IF($E24="kW",VLOOKUP(R$4,'4. Billing Determinants'!$B$19:$N$41,5,0)/'4. Billing Determinants'!$F$41*$D24,IF($E24="Non-RPP kWh",VLOOKUP(R$4,'4. Billing Determinants'!$B$19:$N$41,6,0)/'4. Billing Determinants'!$G$41*$D24,IF($E24="Distribution Rev.",VLOOKUP(R$4,'4. Billing Determinants'!$B$19:$N$41,8,0)/'4. Billing Determinants'!$I$41*$D24, VLOOKUP(R$4,'4. Billing Determinants'!$B$19:$N$41,3,0)/'4. Billing Determinants'!$D$41*$D24))))) -> 0 | S24: =IF(S$4="",0,IF($E24="kWh",VLOOKUP(S$4,'4. Billing Determinants'!$B$19:$N$41,4,0)/'4. Billing Determinants'!$E$41*$D24,IF($E24="kW",VLOOKUP(S$4,'4. Billing Determinants'!$B$19:$N$41,5,0)/'4. Billing Determinants'!$F$41*$D24,IF($E24="Non-RPP kWh",VLOOKUP(S$4,'4. Billing Determinants'!$B$19:$N$41,6,0)/'4. Billing Determinants'!$G$41*$D24,IF($E24="Distribution Rev.",VLOOKUP(S$4,'4. Billing Determinants'!$B$19:$N$41,8,0)/'4. Billing Determinants'!$I$41*$D24, VLOOKUP(S$4,'4. Billing Determinants'!$B$19:$N$41,3,0)/'4. Billing Determinants'!$D$41*$D24))))) -> 0 | T24: =IF(T$4="",0,IF($E24="kWh",VLOOKUP(T$4,'4. Billing Determinants'!$B$19:$N$41,4,0)/'4. Billing Determinants'!$E$41*$D24,IF($E24="kW",VLOOKUP(T$4,'4. Billing Determinants'!$B$19:$N$41,5,0)/'4. Billing Determinants'!$F$41*$D24,IF($E24="Non-RPP kWh",VLOOKUP(T$4,'4. Billing Determinants'!$B$19:$N$41,6,0)/'4. Billing Determinants'!$G$41*$D24,IF($E24="Distribution Rev.",VLOOKUP(T$4,'4. Billing Determinants'!$B$19:$N$41,8,0)/'4. Billing Determinants'!$I$41*$D24, VLOOKUP(T$4,'4. Billing Determinants'!$B$19:$N$41,3,0)/'4. Billing Determinants'!$D$41*$D24))))) -> 0 | U24: =IF(U$4="",0,IF($E24="kWh",VLOOKUP(U$4,'4. Billing Determinants'!$B$19:$N$41,4,0)/'4. Billing Determinants'!$E$41*$D24,IF($E24="kW",VLOOKUP(U$4,'4. Billing Determinants'!$B$19:$N$41,5,0)/'4. Billing Determinants'!$F$41*$D24,IF($E24="Non-RPP kWh",VLOOKUP(U$4,'4. Billing Determinants'!$B$19:$N$41,6,0)/'4. Billing Determinants'!$G$41*$D24,IF($E24="Distribution Rev.",VLOOKUP(U$4,'4. Billing Determinants'!$B$19:$N$41,8,0)/'4. Billing Determinants'!$I$41*$D24, VLOOKUP(U$4,'4. Billing Determinants'!$B$19:$N$41,3,0)/'4. Billing Determinants'!$D$41*$D24))))) -> 0 | V24: =IF(V$4="",0,IF($E24="kWh",VLOOKUP(V$4,'4. Billing Determinants'!$B$19:$N$41,4,0)/'4. Billing Determinants'!$E$41*$D24,IF($E24="kW",VLOOKUP(V$4,'4. Billing Determinants'!$B$19:$N$41,5,0)/'4. Billing Determinants'!$F$41*$D24,IF($E24="Non-RPP kWh",VLOOKUP(V$4,'4. Billing Determinants'!$B$19:$N$41,6,0)/'4. Billing Determinants'!$G$41*$D24,IF($E24="Distribution Rev.",VLOOKUP(V$4,'4. Billing Determinants'!$B$19:$N$41,8,0)/'4. Billing Determinants'!$I$41*$D24, VLOOKUP(V$4,'4. Billing Determinants'!$B$19:$N$41,3,0)/'4. Billing Determinants'!$D$41*$D24))))) -> 0 | W24: =IF(W$4="",0,IF($E24="kWh",VLOOKUP(W$4,'4. Billing Determinants'!$B$19:$N$41,4,0)/'4. Billing Determinants'!$E$41*$D24,IF($E24="kW",VLOOKUP(W$4,'4. Billing Determinants'!$B$19:$N$41,5,0)/'4. Billing Determinants'!$F$41*$D24,IF($E24="Non-RPP kWh",VLOOKUP(W$4,'4. Billing Determinants'!$B$19:$N$41,6,0)/'4. Billing Determinants'!$G$41*$D24,IF($E24="Distribution Rev.",VLOOKUP(W$4,'4. Billing Determinants'!$B$19:$N$41,8,0)/'4. Billing Determinants'!$I$41*$D24, VLOOKUP(W$4,'4. Billing Determinants'!$B$19:$N$41,3,0)/'4. Billing Determinants'!$D$41*$D24))))) -> 0 | X24: =IF(X$4="",0,IF($E24="kWh",VLOOKUP(X$4,'4. Billing Determinants'!$B$19:$N$41,4,0)/'4. Billing Determinants'!$E$41*$D24,IF($E24="kW",VLOOKUP(X$4,'4. Billing Determinants'!$B$19:$N$41,5,0)/'4. Billing Determinants'!$F$41*$D24,IF($E24="Non-RPP kWh",VLOOKUP(X$4,'4. Billing Determinants'!$B$19:$N$41,6,0)/'4. Billing Determinants'!$G$41*$D24,IF($E24="Distribution Rev.",VLOOKUP(X$4,'4. Billing Determinants'!$B$19:$N$41,8,0)/'4. Billing Determinants'!$I$41*$D24, VLOOKUP(X$4,'4. Billing Determinants'!$B$19:$N$41,3,0)/'4. Billing Determinants'!$D$41*$D24))))) -> 0 | Y24: =IF(Y$4="",0,IF($E24="kWh",VLOOKUP(Y$4,'4. Billing Determinants'!$B$19:$N$41,4,0)/'4. Billing Determinants'!$E$41*$D24,IF($E24="kW",VLOOKUP(Y$4,'4. Billing Determinants'!$B$19:$N$41,5,0)/'4. Billing Determinants'!$F$41*$D24,IF($E24="Non-RPP kWh",VLOOKUP(Y$4,'4. Billing Determinants'!$B$19:$N$41,6,0)/'4. Billing Determinants'!$G$41*$D24,IF($E24="Distribution Rev.",VLOOKUP(Y$4,'4. Billing Determinants'!$B$19:$N$41,8,0)/'4. Billing Determinants'!$I$41*$D24, VLOOKUP(Y$4,'4. Billing Determinants'!$B$19:$N$41,3,0)/'4. Billing Determinants'!$D$41*$D24))))) -> 0
B25: Other Regulatory Assets - Sub-Account - Financial Assistance Payment and Recovery Carrying Charges | C25: 1508 | D25: ='2. 2013 Continuity Schedule'!CP48 -> 0 | F25: =IF(F$4="",0,IF($E25="kWh",VLOOKUP(F$4,'4. Billing Determinants'!$B$19:$N$41,4,0)/'4. Billing Determinants'!$E$41*$D25,IF($E25="kW",VLOOKUP(F$4,'4. Billing Determinants'!$B$19:$N$41,5,0)/'4. Billing Determinants'!$F$41*$D25,IF($E25="Non-RPP kWh",VLOOKUP(F$4,'4. Billing Determinants'!$B$19:$N$41,6,0)/'4. Billing Determinants'!$G$41*$D25,IF($E25="Distribution Rev.",VLOOKUP(F$4,'4. Billing Determinants'!$B$19:$N$41,8,0)/'4. Billing Determinants'!$I$41*$D25, VLOOKUP(F$4,'4. Billing Determinants'!$B$19:$N$41,3,0)/'4. Billing Determinants'!$D$41*$D25))))) -> 0 | G25: =IF(G$4="",0,IF($E25="kWh",VLOOKUP(G$4,'4. Billing Determinants'!$B$19:$N$41,4,0)/'4. Billing Determinants'!$E$41*$D25,IF($E25="kW",VLOOKUP(G$4,'4. Billing Determinants'!$B$19:$N$41,5,0)/'4. Billing Determinants'!$F$41*$D25,IF($E25="Non-RPP kWh",VLOOKUP(G$4,'4. Billing Determinants'!$B$19:$N$41,6,0)/'4. Billing Determinants'!$G$41*$D25,IF($E25="Distribution Rev.",VLOOKUP(G$4,'4. Billing Determinants'!$B$19:$N$41,8,0)/'4. Billing Determinants'!$I$41*$D25, VLOOKUP(G$4,'4. Billing Determinants'!$B$19:$N$41,3,0)/'4. Billing Determinants'!$D$41*$D25))))) -> 0 | H25: =IF(H$4="",0,IF($E25="kWh",VLOOKUP(H$4,'4. Billing Determinants'!$B$19:$N$41,4,0)/'4. Billing Determinants'!$E$41*$D25,IF($E25="kW",VLOOKUP(H$4,'4. Billing Determinants'!$B$19:$N$41,5,0)/'4. Billing Determinants'!$F$41*$D25,IF($E25="Non-RPP kWh",VLOOKUP(H$4,'4. Billing Determinants'!$B$19:$N$41,6,0)/'4. Billing Determinants'!$G$41*$D25,IF($E25="Distribution Rev.",VLOOKUP(H$4,'4. Billing Determinants'!$B$19:$N$41,8,0)/'4. Billing Determinants'!$I$41*$D25, VLOOKUP(H$4,'4. Billing Determinants'!$B$19:$N$41,3,0)/'4. Billing Determinants'!$D$41*$D25))))) -> 0 | I25: =IF(I$4="",0,IF($E25="kWh",VLOOKUP(I$4,'4. Billing Determinants'!$B$19:$N$41,4,0)/'4. Billing Determinants'!$E$41*$D25,IF($E25="kW",VLOOKUP(I$4,'4. Billing Determinants'!$B$19:$N$41,5,0)/'4. Billing Determinants'!$F$41*$D25,IF($E25="Non-RPP kWh",VLOOKUP(I$4,'4. Billing Determinants'!$B$19:$N$41,6,0)/'4. Billing Determinants'!$G$41*$D25,IF($E25="Distribution Rev.",VLOOKUP(I$4,'4. Billing Determinants'!$B$19:$N$41,8,0)/'4. Billing Determinants'!$I$41*$D25, VLOOKUP(I$4,'4. Billing Determinants'!$B$19:$N$41,3,0)/'4. Billing Determinants'!$D$41*$D25))))) -> 0 | J25: =IF(J$4="",0,IF($E25="kWh",VLOOKUP(J$4,'4. Billing Determinants'!$B$19:$N$41,4,0)/'4. Billing Determinants'!$E$41*$D25,IF($E25="kW",VLOOKUP(J$4,'4. Billing Determinants'!$B$19:$N$41,5,0)/'4. Billing Determinants'!$F$41*$D25,IF($E25="Non-RPP kWh",VLOOKUP(J$4,'4. Billing Determinants'!$B$19:$N$41,6,0)/'4. Billing Determinants'!$G$41*$D25,IF($E25="Distribution Rev.",VLOOKUP(J$4,'4. Billing Determinants'!$B$19:$N$41,8,0)/'4. Billing Determinants'!$I$41*$D25, VLOOKUP(J$4,'4. Billing Determinants'!$B$19:$N$41,3,0)/'4. Billing Determinants'!$D$41*$D25))))) -> 0 | K25: =IF(K$4="",0,IF($E25="kWh",VLOOKUP(K$4,'4. Billing Determinants'!$B$19:$N$41,4,0)/'4. Billing Determinants'!$E$41*$D25,IF($E25="kW",VLOOKUP(K$4,'4. Billing Determinants'!$B$19:$N$41,5,0)/'4. Billing Determinants'!$F$41*$D25,IF($E25="Non-RPP kWh",VLOOKUP(K$4,'4. Billing Determinants'!$B$19:$N$41,6,0)/'4. Billing Determinants'!$G$41*$D25,IF($E25="Distribution Rev.",VLOOKUP(K$4,'4. Billing Determinants'!$B$19:$N$41,8,0)/'4. Billing Determinants'!$I$41*$D25, VLOOKUP(K$4,'4. Billing Determinants'!$B$19:$N$41,3,0)/'4. Billing Determinants'!$D$41*$D25))))) -> 0 | L25: =IF(L$4="",0,IF($E25="kWh",VLOOKUP(L$4,'4. Billing Determinants'!$B$19:$N$41,4,0)/'4. Billing Determinants'!$E$41*$D25,IF($E25="kW",VLOOKUP(L$4,'4. Billing Determinants'!$B$19:$N$41,5,0)/'4. Billing Determinants'!$F$41*$D25,IF($E25="Non-RPP kWh",VLOOKUP(L$4,'4. Billing Determinants'!$B$19:$N$41,6,0)/'4. Billing Determinants'!$G$41*$D25,IF($E25="Distribution Rev.",VLOOKUP(L$4,'4. Billing Determinants'!$B$19:$N$41,8,0)/'4. Billing Determinants'!$I$41*$D25, VLOOKUP(L$4,'4. Billing Determinants'!$B$19:$N$41,3,0)/'4. Billing Determinants'!$D$41*$D25))))) -> 0 | M25: =IF(M$4="",0,IF($E25="kWh",VLOOKUP(M$4,'4. Billing Determinants'!$B$19:$N$41,4,0)/'4. Billing Determinants'!$E$41*$D25,IF($E25="kW",VLOOKUP(M$4,'4. Billing Determinants'!$B$19:$N$41,5,0)/'4. Billing Determinants'!$F$41*$D25,IF($E25="Non-RPP kWh",VLOOKUP(M$4,'4. Billing Determinants'!$B$19:$N$41,6,0)/'4. Billing Determinants'!$G$41*$D25,IF($E25="Distribution Rev.",VLOOKUP(M$4,'4. Billing Determinants'!$B$19:$N$41,8,0)/'4. Billing Determinants'!$I$41*$D25, VLOOKUP(M$4,'4. Billing Determinants'!$B$19:$N$41,3,0)/'4. Billing Determinants'!$D$41*$D25))))) -> 0 | N25: =IF(N$4="",0,IF($E25="kWh",VLOOKUP(N$4,'4. Billing Determinants'!$B$19:$N$41,4,0)/'4. Billing Determinants'!$E$41*$D25,IF($E25="kW",VLOOKUP(N$4,'4. Billing Determinants'!$B$19:$N$41,5,0)/'4. Billing Determinants'!$F$41*$D25,IF($E25="Non-RPP kWh",VLOOKUP(N$4,'4. Billing Determinants'!$B$19:$N$41,6,0)/'4. Billing Determinants'!$G$41*$D25,IF($E25="Distribution Rev.",VLOOKUP(N$4,'4. Billing Determinants'!$B$19:$N$41,8,0)/'4. Billing Determinants'!$I$41*$D25, VLOOKUP(N$4,'4. Billing Determinants'!$B$19:$N$41,3,0)/'4. Billing Determinants'!$D$41*$D25))))) -> 0 | O25: =IF(O$4="",0,IF($E25="kWh",VLOOKUP(O$4,'4. Billing Determinants'!$B$19:$N$41,4,0)/'4. Billing Determinants'!$E$41*$D25,IF($E25="kW",VLOOKUP(O$4,'4. Billing Determinants'!$B$19:$N$41,5,0)/'4. Billing Determinants'!$F$41*$D25,IF($E25="Non-RPP kWh",VLOOKUP(O$4,'4. Billing Determinants'!$B$19:$N$41,6,0)/'4. Billing Determinants'!$G$41*$D25,IF($E25="Distribution Rev.",VLOOKUP(O$4,'4. Billing Determinants'!$B$19:$N$41,8,0)/'4. Billing Determinants'!$I$41*$D25, VLOOKUP(O$4,'4. Billing Determinants'!$B$19:$N$41,3,0)/'4. Billing Determinants'!$D$41*$D25))))) -> 0 | P25: =IF(P$4="",0,IF($E25="kWh",VLOOKUP(P$4,'4. Billing Determinants'!$B$19:$N$41,4,0)/'4. Billing Determinants'!$E$41*$D25,IF($E25="kW",VLOOKUP(P$4,'4. Billing Determinants'!$B$19:$N$41,5,0)/'4. Billing Determinants'!$F$41*$D25,IF($E25="Non-RPP kWh",VLOOKUP(P$4,'4. Billing Determinants'!$B$19:$N$41,6,0)/'4. Billing Determinants'!$G$41*$D25,IF($E25="Distribution Rev.",VLOOKUP(P$4,'4. Billing Determinants'!$B$19:$N$41,8,0)/'4. Billing Determinants'!$I$41*$D25, VLOOKUP(P$4,'4. Billing Determinants'!$B$19:$N$41,3,0)/'4. Billing Determinants'!$D$41*$D25))))) -> 0 | Q25: =IF(Q$4="",0,IF($E25="kWh",VLOOKUP(Q$4,'4. Billing Determinants'!$B$19:$N$41,4,0)/'4. Billing Determinants'!$E$41*$D25,IF($E25="kW",VLOOKUP(Q$4,'4. Billing Determinants'!$B$19:$N$41,5,0)/'4. Billing Determinants'!$F$41*$D25,IF($E25="Non-RPP kWh",VLOOKUP(Q$4,'4. Billing Determinants'!$B$19:$N$41,6,0)/'4. Billing Determinants'!$G$41*$D25,IF($E25="Distribution Rev.",VLOOKUP(Q$4,'4. Billing Determinants'!$B$19:$N$41,8,0)/'4. Billing Determinants'!$I$41*$D25, VLOOKUP(Q$4,'4. Billing Determinants'!$B$19:$N$41,3,0)/'4. Billing Determinants'!$D$41*$D25))))) -> 0 | R25: =IF(R$4="",0,IF($E25="kWh",VLOOKUP(R$4,'4. Billing Determinants'!$B$19:$N$41,4,0)/'4. Billing Determinants'!$E$41*$D25,IF($E25="kW",VLOOKUP(R$4,'4. Billing Determinants'!$B$19:$N$41,5,0)/'4. Billing Determinants'!$F$41*$D25,IF($E25="Non-RPP kWh",VLOOKUP(R$4,'4. Billing Determinants'!$B$19:$N$41,6,0)/'4. Billing Determinants'!$G$41*$D25,IF($E25="Distribution Rev.",VLOOKUP(R$4,'4. Billing Determinants'!$B$19:$N$41,8,0)/'4. Billing Determinants'!$I$41*$D25, VLOOKUP(R$4,'4. Billing Determinants'!$B$19:$N$41,3,0)/'4. Billing Determinants'!$D$41*$D25))))) -> 0 | S25: =IF(S$4="",0,IF($E25="kWh",VLOOKUP(S$4,'4. Billing Determinants'!$B$19:$N$41,4,0)/'4. Billing Determinants'!$E$41*$D25,IF($E25="kW",VLOOKUP(S$4,'4. Billing Determinants'!$B$19:$N$41,5,0)/'4. Billing Determinants'!$F$41*$D25,IF($E25="Non-RPP kWh",VLOOKUP(S$4,'4. Billing Determinants'!$B$19:$N$41,6,0)/'4. Billing Determinants'!$G$41*$D25,IF($E25="Distribution Rev.",VLOOKUP(S$4,'4. Billing Determinants'!$B$19:$N$41,8,0)/'4. Billing Determinants'!$I$41*$D25, VLOOKUP(S$4,'4. Billing Determinants'!$B$19:$N$41,3,0)/'4. Billing Determinants'!$D$41*$D25))))) -> 0 | T25: =IF(T$4="",0,IF($E25="kWh",VLOOKUP(T$4,'4. Billing Determinants'!$B$19:$N$41,4,0)/'4. Billing Determinants'!$E$41*$D25,IF($E25="kW",VLOOKUP(T$4,'4. Billing Determinants'!$B$19:$N$41,5,0)/'4. Billing Determinants'!$F$41*$D25,IF($E25="Non-RPP kWh",VLOOKUP(T$4,'4. Billing Determinants'!$B$19:$N$41,6,0)/'4. Billing Determinants'!$G$41*$D25,IF($E25="Distribution Rev.",VLOOKUP(T$4,'4. Billing Determinants'!$B$19:$N$41,8,0)/'4. Billing Determinants'!$I$41*$D25, VLOOKUP(T$4,'4. Billing Determinants'!$B$19:$N$41,3,0)/'4. Billing Determinants'!$D$41*$D25))))) -> 0 | U25: =IF(U$4="",0,IF($E25="kWh",VLOOKUP(U$4,'4. Billing Determinants'!$B$19:$N$41,4,0)/'4. Billing Determinants'!$E$41*$D25,IF($E25="kW",VLOOKUP(U$4,'4. Billing Determinants'!$B$19:$N$41,5,0)/'4. Billing Determinants'!$F$41*$D25,IF($E25="Non-RPP kWh",VLOOKUP(U$4,'4. Billing Determinants'!$B$19:$N$41,6,0)/'4. Billing Determinants'!$G$41*$D25,IF($E25="Distribution Rev.",VLOOKUP(U$4,'4. Billing Determinants'!$B$19:$N$41,8,0)/'4. Billing Determinants'!$I$41*$D25, VLOOKUP(U$4,'4. Billing Determinants'!$B$19:$N$41,3,0)/'4. Billing Determinants'!$D$41*$D25))))) -> 0 | V25: =IF(V$4="",0,IF($E25="kWh",VLOOKUP(V$4,'4. Billing Determinants'!$B$19:$N$41,4,0)/'4. Billing Determinants'!$E$41*$D25,IF($E25="kW",VLOOKUP(V$4,'4. Billing Determinants'!$B$19:$N$41,5,0)/'4. Billing Determinants'!$F$41*$D25,IF($E25="Non-RPP kWh",VLOOKUP(V$4,'4. Billing Determinants'!$B$19:$N$41,6,0)/'4. Billing Determinants'!$G$41*$D25,IF($E25="Distribution Rev.",VLOOKUP(V$4,'4. Billing Determinants'!$B$19:$N$41,8,0)/'4. Billing Determinants'!$I$41*$D25, VLOOKUP(V$4,'4. Billing Determinants'!$B$19:$N$41,3,0)/'4. Billing Determinants'!$D$41*$D25))))) -> 0 | W25: =IF(W$4="",0,IF($E25="kWh",VLOOKUP(W$4,'4. Billing Determinants'!$B$19:$N$41,4,0)/'4. Billing Determinants'!$E$41*$D25,IF($E25="kW",VLOOKUP(W$4,'4. Billing Determinants'!$B$19:$N$41,5,0)/'4. Billing Determinants'!$F$41*$D25,IF($E25="Non-RPP kWh",VLOOKUP(W$4,'4. Billing Determinants'!$B$19:$N$41,6,0)/'4. Billing Determinants'!$G$41*$D25,IF($E25="Distribution Rev.",VLOOKUP(W$4,'4. Billing Determinants'!$B$19:$N$41,8,0)/'4. Billing Determinants'!$I$41*$D25, VLOOKUP(W$4,'4. Billing Determinants'!$B$19:$N$41,3,0)/'4. Billing Determinants'!$D$41*$D25))))) -> 0 | X25: =IF(X$4="",0,IF($E25="kWh",VLOOKUP(X$4,'4. Billing Determinants'!$B$19:$N$41,4,0)/'4. Billing Determinants'!$E$41*$D25,IF($E25="kW",VLOOKUP(X$4,'4. Billing Determinants'!$B$19:$N$41,5,0)/'4. Billing Determinants'!$F$41*$D25,IF($E25="Non-RPP kWh",VLOOKUP(X$4,'4. Billing Determinants'!$B$19:$N$41,6,0)/'4. Billing Determinants'!$G$41*$D25,IF($E25="Distribution Rev.",VLOOKUP(X$4,'4. Billing Determinants'!$B$19:$N$41,8,0)/'4. Billing Determinants'!$I$41*$D25, VLOOKUP(X$4,'4. Billing Determinants'!$B$19:$N$41,3,0)/'4. Billing Determinants'!$D$41*$D25))))) -> 0 | Y25: =IF(Y$4="",0,IF($E25="kWh",VLOOKUP(Y$4,'4. Billing Determinants'!$B$19:$N$41,4,0)/'4. Billing Determinants'!$E$41*$D25,IF($E25="kW",VLOOKUP(Y$4,'4. Billing Determinants'!$B$19:$N$41,5,0)/'4. Billing Determinants'!$F$41*$D25,IF($E25="Non-RPP kWh",VLOOKUP(Y$4,'4. Billing Determinants'!$B$19:$N$41,6,0)/'4. Billing Determinants'!$G$41*$D25,IF($E25="Distribution Rev.",VLOOKUP(Y$4,'4. Billing Determinants'!$B$19:$N$41,8,0)/'4. Billing Determinants'!$I$41*$D25, VLOOKUP(Y$4,'4. Billing Determinants'!$B$19:$N$41,3,0)/'4. Billing Determinants'!$D$41*$D25))))) -> 0
B26: Other Regulatory Assets - Sub-Account - Other | C26: 1508 | D26: ='2. 2013 Continuity Schedule'!CP49 -> 0.17 | F26: =IF(F$4="",0,IF($E26="kWh",VLOOKUP(F$4,'4. Billing Determinants'!$B$19:$N$41,4,0)/'4. Billing Determinants'!$E$41*$D26,IF($E26="kW",VLOOKUP(F$4,'4. Billing Determinants'!$B$19:$N$41,5,0)/'4. Billing Determinants'!$F$41*$D26,IF($E26="Non-RPP kWh",VLOOKUP(F$4,'4. Billing Determinants'!$B$19:$N$41,6,0)/'4. Billing Determinants'!$G$41*$D26,IF($E26="Distribution Rev.",VLOOKUP(F$4,'4. Billing Determinants'!$B$19:$N$41,8,0)/'4. Billing Determinants'!$I$41*$D26, VLOOKUP(F$4,'4. Billing Determinants'!$B$19:$N$41,3,0)/'4. Billing Determinants'!$D$41*$D26))))) -> 0.1215641063 | G26: =IF(G$4="",0,IF($E26="kWh",VLOOKUP(G$4,'4. Billing Determinants'!$B$19:$N$41,4,0)/'4. Billing Determinants'!$E$41*$D26,IF($E26="kW",VLOOKUP(G$4,'4. Billing Determinants'!$B$19:$N$41,5,0)/'4. Billing Determinants'!$F$41*$D26,IF($E26="Non-RPP kWh",VLOOKUP(G$4,'4. Billing Determinants'!$B$19:$N$41,6,0)/'4. Billing Determinants'!$G$41*$D26,IF($E26="Distribution Rev.",VLOOKUP(G$4,'4. Billing Determinants'!$B$19:$N$41,8,0)/'4. Billing Determinants'!$I$41*$D26, VLOOKUP(G$4,'4. Billing Determinants'!$B$19:$N$41,3,0)/'4. Billing Determinants'!$D$41*$D26))))) -> 0.01537964459 | H26: =IF(H$4="",0,IF($E26="kWh",VLOOKUP(H$4,'4. Billing Determinants'!$B$19:$N$41,4,0)/'4. Billing Determinants'!$E$41*$D26,IF($E26="kW",VLOOKUP(H$4,'4. Billing Determinants'!$B$19:$N$41,5,0)/'4. Billing Determinants'!$F$41*$D26,IF($E26="Non-RPP kWh",VLOOKUP(H$4,'4. Billing Determinants'!$B$19:$N$41,6,0)/'4. Billing Determinants'!$G$41*$D26,IF($E26="Distribution Rev.",VLOOKUP(H$4,'4. Billing Determinants'!$B$19:$N$41,8,0)/'4. Billing Determinants'!$I$41*$D26, VLOOKUP(H$4,'4. Billing Determinants'!$B$19:$N$41,3,0)/'4. Billing Determinants'!$D$41*$D26))))) -> 0.002346893817 | I26: =IF(I$4="",0,IF($E26="kWh",VLOOKUP(I$4,'4. Billing Determinants'!$B$19:$N$41,4,0)/'4. Billing Determinants'!$E$41*$D26,IF($E26="kW",VLOOKUP(I$4,'4. Billing Determinants'!$B$19:$N$41,5,0)/'4. Billing Determinants'!$F$41*$D26,IF($E26="Non-RPP kWh",VLOOKUP(I$4,'4. Billing Determinants'!$B$19:$N$41,6,0)/'4. Billing Determinants'!$G$41*$D26,IF($E26="Distribution Rev.",VLOOKUP(I$4,'4. Billing Determinants'!$B$19:$N$41,8,0)/'4. Billing Determinants'!$I$41*$D26, VLOOKUP(I$4,'4. Billing Determinants'!$B$19:$N$41,3,0)/'4. Billing Determinants'!$D$41*$D26))))) -> 0.0001248347775 | J26: =IF(J$4="",0,IF($E26="kWh",VLOOKUP(J$4,'4. Billing Determinants'!$B$19:$N$41,4,0)/'4. Billing Determinants'!$E$41*$D26,IF($E26="kW",VLOOKUP(J$4,'4. Billing Determinants'!$B$19:$N$41,5,0)/'4. Billing Determinants'!$F$41*$D26,IF($E26="Non-RPP kWh",VLOOKUP(J$4,'4. Billing Determinants'!$B$19:$N$41,6,0)/'4. Billing Determinants'!$G$41*$D26,IF($E26="Distribution Rev.",VLOOKUP(J$4,'4. Billing Determinants'!$B$19:$N$41,8,0)/'4. Billing Determinants'!$I$41*$D26, VLOOKUP(J$4,'4. Billing Determinants'!$B$19:$N$41,3,0)/'4. Billing Determinants'!$D$41*$D26))))) -> 0.0005243060655 | K26: =IF(K$4="",0,IF($E26="kWh",VLOOKUP(K$4,'4. Billing Determinants'!$B$19:$N$41,4,0)/'4. Billing Determinants'!$E$41*$D26,IF($E26="kW",VLOOKUP(K$4,'4. Billing Determinants'!$B$19:$N$41,5,0)/'4. Billing Determinants'!$F$41*$D26,IF($E26="Non-RPP kWh",VLOOKUP(K$4,'4. Billing Determinants'!$B$19:$N$41,6,0)/'4. Billing Determinants'!$G$41*$D26,IF($E26="Distribution Rev.",VLOOKUP(K$4,'4. Billing Determinants'!$B$19:$N$41,8,0)/'4. Billing Determinants'!$I$41*$D26, VLOOKUP(K$4,'4. Billing Determinants'!$B$19:$N$41,3,0)/'4. Billing Determinants'!$D$41*$D26))))) -> 0.03006021442 | L26: =IF(L$4="",0,IF($E26="kWh",VLOOKUP(L$4,'4. Billing Determinants'!$B$19:$N$41,4,0)/'4. Billing Determinants'!$E$41*$D26,IF($E26="kW",VLOOKUP(L$4,'4. Billing Determinants'!$B$19:$N$41,5,0)/'4. Billing Determinants'!$F$41*$D26,IF($E26="Non-RPP kWh",VLOOKUP(L$4,'4. Billing Determinants'!$B$19:$N$41,6,0)/'4. Billing Determinants'!$G$41*$D26,IF($E26="Distribution Rev.",VLOOKUP(L$4,'4. Billing Determinants'!$B$19:$N$41,8,0)/'4. Billing Determinants'!$I$41*$D26, VLOOKUP(L$4,'4. Billing Determinants'!$B$19:$N$41,3,0)/'4. Billing Determinants'!$D$41*$D26))))) -> 0 | M26: =IF(M$4="",0,IF($E26="kWh",VLOOKUP(M$4,'4. Billing Determinants'!$B$19:$N$41,4,0)/'4. Billing Determinants'!$E$41*$D26,IF($E26="kW",VLOOKUP(M$4,'4. Billing Determinants'!$B$19:$N$41,5,0)/'4. Billing Determinants'!$F$41*$D26,IF($E26="Non-RPP kWh",VLOOKUP(M$4,'4. Billing Determinants'!$B$19:$N$41,6,0)/'4. Billing Determinants'!$G$41*$D26,IF($E26="Distribution Rev.",VLOOKUP(M$4,'4. Billing Determinants'!$B$19:$N$41,8,0)/'4. Billing Determinants'!$I$41*$D26, VLOOKUP(M$4,'4. Billing Determinants'!$B$19:$N$41,3,0)/'4. Billing Determinants'!$D$41*$D26))))) -> 0 | N26: =IF(N$4="",0,IF($E26="kWh",VLOOKUP(N$4,'4. Billing Determinants'!$B$19:$N$41,4,0)/'4. Billing Determinants'!$E$41*$D26,IF($E26="kW",VLOOKUP(N$4,'4. Billing Determinants'!$B$19:$N$41,5,0)/'4. Billing Determinants'!$F$41*$D26,IF($E26="Non-RPP kWh",VLOOKUP(N$4,'4. Billing Determinants'!$B$19:$N$41,6,0)/'4. Billing Determinants'!$G$41*$D26,IF($E26="Distribution Rev.",VLOOKUP(N$4,'4. Billing Determinants'!$B$19:$N$41,8,0)/'4. Billing Determinants'!$I$41*$D26, VLOOKUP(N$4,'4. Billing Determinants'!$B$19:$N$41,3,0)/'4. Billing Determinants'!$D$41*$D26))))) -> 0 | O26: =IF(O$4="",0,IF($E26="kWh",VLOOKUP(O$4,'4. Billing Determinants'!$B$19:$N$41,4,0)/'4. Billing Determinants'!$E$41*$D26,IF($E26="kW",VLOOKUP(O$4,'4. Billing Determinants'!$B$19:$N$41,5,0)/'4. Billing Determinants'!$F$41*$D26,IF($E26="Non-RPP kWh",VLOOKUP(O$4,'4. Billing Determinants'!$B$19:$N$41,6,0)/'4. Billing Determinants'!$G$41*$D26,IF($E26="Distribution Rev.",VLOOKUP(O$4,'4. Billing Determinants'!$B$19:$N$41,8,0)/'4. Billing Determinants'!$I$41*$D26, VLOOKUP(O$4,'4. Billing Determinants'!$B$19:$N$41,3,0)/'4. Billing Determinants'!$D$41*$D26))))) -> 0 | P26: =IF(P$4="",0,IF($E26="kWh",VLOOKUP(P$4,'4. Billing Determinants'!$B$19:$N$41,4,0)/'4. Billing Determinants'!$E$41*$D26,IF($E26="kW",VLOOKUP(P$4,'4. Billing Determinants'!$B$19:$N$41,5,0)/'4. Billing Determinants'!$F$41*$D26,IF($E26="Non-RPP kWh",VLOOKUP(P$4,'4. Billing Determinants'!$B$19:$N$41,6,0)/'4. Billing Determinants'!$G$41*$D26,IF($E26="Distribution Rev.",VLOOKUP(P$4,'4. Billing Determinants'!$B$19:$N$41,8,0)/'4. Billing Determinants'!$I$41*$D26, VLOOKUP(P$4,'4. Billing Determinants'!$B$19:$N$41,3,0)/'4. Billing Determinants'!$D$41*$D26))))) -> 0 | Q26: =IF(Q$4="",0,IF($E26="kWh",VLOOKUP(Q$4,'4. Billing Determinants'!$B$19:$N$41,4,0)/'4. Billing Determinants'!$E$41*$D26,IF($E26="kW",VLOOKUP(Q$4,'4. Billing Determinants'!$B$19:$N$41,5,0)/'4. Billing Determinants'!$F$41*$D26,IF($E26="Non-RPP kWh",VLOOKUP(Q$4,'4. Billing Determinants'!$B$19:$N$41,6,0)/'4. Billing Determinants'!$G$41*$D26,IF($E26="Distribution Rev.",VLOOKUP(Q$4,'4. Billing Determinants'!$B$19:$N$41,8,0)/'4. Billing Determinants'!$I$41*$D26, VLOOKUP(Q$4,'4. Billing Determinants'!$B$19:$N$41,3,0)/'4. Billing Determinants'!$D$41*$D26))))) -> 0 | R26: =IF(R$4="",0,IF($E26="kWh",VLOOKUP(R$4,'4. Billing Determinants'!$B$19:$N$41,4,0)/'4. Billing Determinants'!$E$41*$D26,IF($E26="kW",VLOOKUP(R$4,'4. Billing Determinants'!$B$19:$N$41,5,0)/'4. Billing Determinants'!$F$41*$D26,IF($E26="Non-RPP kWh",VLOOKUP(R$4,'4. Billing Determinants'!$B$19:$N$41,6,0)/'4. Billing Determinants'!$G$41*$D26,IF($E26="Distribution Rev.",VLOOKUP(R$4,'4. Billing Determinants'!$B$19:$N$41,8,0)/'4. Billing Determinants'!$I$41*$D26, VLOOKUP(R$4,'4. Billing Determinants'!$B$19:$N$41,3,0)/'4. Billing Determinants'!$D$41*$D26))))) -> 0 | S26: =IF(S$4="",0,IF($E26="kWh",VLOOKUP(S$4,'4. Billing Determinants'!$B$19:$N$41,4,0)/'4. Billing Determinants'!$E$41*$D26,IF($E26="kW",VLOOKUP(S$4,'4. Billing Determinants'!$B$19:$N$41,5,0)/'4. Billing Determinants'!$F$41*$D26,IF($E26="Non-RPP kWh",VLOOKUP(S$4,'4. Billing Determinants'!$B$19:$N$41,6,0)/'4. Billing Determinants'!$G$41*$D26,IF($E26="Distribution Rev.",VLOOKUP(S$4,'4. Billing Determinants'!$B$19:$N$41,8,0)/'4. Billing Determinants'!$I$41*$D26, VLOOKUP(S$4,'4. Billing Determinants'!$B$19:$N$41,3,0)/'4. Billing Determinants'!$D$41*$D26))))) -> 0 | T26: =IF(T$4="",0,IF($E26="kWh",VLOOKUP(T$4,'4. Billing Determinants'!$B$19:$N$41,4,0)/'4. Billing Determinants'!$E$41*$D26,IF($E26="kW",VLOOKUP(T$4,'4. Billing Determinants'!$B$19:$N$41,5,0)/'4. Billing Determinants'!$F$41*$D26,IF($E26="Non-RPP kWh",VLOOKUP(T$4,'4. Billing Determinants'!$B$19:$N$41,6,0)/'4. Billing Determinants'!$G$41*$D26,IF($E26="Distribution Rev.",VLOOKUP(T$4,'4. Billing Determinants'!$B$19:$N$41,8,0)/'4. Billing Determinants'!$I$41*$D26, VLOOKUP(T$4,'4. Billing Determinants'!$B$19:$N$41,3,0)/'4. Billing Determinants'!$D$41*$D26))))) -> 0 | U26: =IF(U$4="",0,IF($E26="kWh",VLOOKUP(U$4,'4. Billing Determinants'!$B$19:$N$41,4,0)/'4. Billing Determinants'!$E$41*$D26,IF($E26="kW",VLOOKUP(U$4,'4. Billing Determinants'!$B$19:$N$41,5,0)/'4. Billing Determinants'!$F$41*$D26,IF($E26="Non-RPP kWh",VLOOKUP(U$4,'4. Billing Determinants'!$B$19:$N$41,6,0)/'4. Billing Determinants'!$G$41*$D26,IF($E26="Distribution Rev.",VLOOKUP(U$4,'4. Billing Determinants'!$B$19:$N$41,8,0)/'4. Billing Determinants'!$I$41*$D26, VLOOKUP(U$4,'4. Billing Determinants'!$B$19:$N$41,3,0)/'4. Billing Determinants'!$D$41*$D26))))) -> 0 | V26: =IF(V$4="",0,IF($E26="kWh",VLOOKUP(V$4,'4. Billing Determinants'!$B$19:$N$41,4,0)/'4. Billing Determinants'!$E$41*$D26,IF($E26="kW",VLOOKUP(V$4,'4. Billing Determinants'!$B$19:$N$41,5,0)/'4. Billing Determinants'!$F$41*$D26,IF($E26="Non-RPP kWh",VLOOKUP(V$4,'4. Billing Determinants'!$B$19:$N$41,6,0)/'4. Billing Determinants'!$G$41*$D26,IF($E26="Distribution Rev.",VLOOKUP(V$4,'4. Billing Determinants'!$B$19:$N$41,8,0)/'4. Billing Determinants'!$I$41*$D26, VLOOKUP(V$4,'4. Billing Determinants'!$B$19:$N$41,3,0)/'4. Billing Determinants'!$D$41*$D26))))) -> 0 | W26: =IF(W$4="",0,IF($E26="kWh",VLOOKUP(W$4,'4. Billing Determinants'!$B$19:$N$41,4,0)/'4. Billing Determinants'!$E$41*$D26,IF($E26="kW",VLOOKUP(W$4,'4. Billing Determinants'!$B$19:$N$41,5,0)/'4. Billing Determinants'!$F$41*$D26,IF($E26="Non-RPP kWh",VLOOKUP(W$4,'4. Billing Determinants'!$B$19:$N$41,6,0)/'4. Billing Determinants'!$G$41*$D26,IF($E26="Distribution Rev.",VLOOKUP(W$4,'4. Billing Determinants'!$B$19:$N$41,8,0)/'4. Billing Determinants'!$I$41*$D26, VLOOKUP(W$4,'4. Billing Determinants'!$B$19:$N$41,3,0)/'4. Billing Determinants'!$D$41*$D26))))) -> 0 | X26: =IF(X$4="",0,IF($E26="kWh",VLOOKUP(X$4,'4. Billing Determinants'!$B$19:$N$41,4,0)/'4. Billing Determinants'!$E$41*$D26,IF($E26="kW",VLOOKUP(X$4,'4. Billing Determinants'!$B$19:$N$41,5,0)/'4. Billing Determinants'!$F$41*$D26,IF($E26="Non-RPP kWh",VLOOKUP(X$4,'4. Billing Determinants'!$B$19:$N$41,6,0)/'4. Billing Determinants'!$G$41*$D26,IF($E26="Distribution Rev.",VLOOKUP(X$4,'4. Billing Determinants'!$B$19:$N$41,8,0)/'4. Billing Determinants'!$I$41*$D26, VLOOKUP(X$4,'4. Billing Determinants'!$B$19:$N$41,3,0)/'4. Billing Determinants'!$D$41*$D26))))) -> 0 | Y26: =IF(Y$4="",0,IF($E26="kWh",VLOOKUP(Y$4,'4. Billing Determinants'!$B$19:$N$41,4,0)/'4. Billing Determinants'!$E$41*$D26,IF($E26="kW",VLOOKUP(Y$4,'4. Billing Determinants'!$B$19:$N$41,5,0)/'4. Billing Determinants'!$F$41*$D26,IF($E26="Non-RPP kWh",VLOOKUP(Y$4,'4. Billing Determinants'!$B$19:$N$41,6,0)/'4. Billing Determinants'!$G$41*$D26,IF($E26="Distribution Rev.",VLOOKUP(Y$4,'4. Billing Determinants'!$B$19:$N$41,8,0)/'4. Billing Determinants'!$I$41*$D26, VLOOKUP(Y$4,'4. Billing Determinants'!$B$19:$N$41,3,0)/'4. Billing Determinants'!$D$41*$D26))))) -> 0
